Workbook

Sheet ProjectInformation
A1: CPN DATA
A2: INFORMATION ADDED BY DESIGNER
A3: Section Engineer | B3: HDR
A4: Design Team
A6: County | B6: BENTON
A7: Project Number | B7: NHSX-030-6(231)--3H-06
A8: English or Metric | B8: ENGLISH
A9: Revised
A10: Bridge Block
A11: File No.

Sheet PrintSheets
B94: FILE NO. | I94: =IF(ProjectInformation!$B$11<>"",ProjectInformation!$B$11,"") ->  | P94: =UPPER(ProjectInformation!B8) -> ENGLISH | W94: DESIGN TEAM | AF94: =IF(AND(ProjectInformation!$B$3<>"",ProjectInformation!$B$4<>"",ProjectInformation!$B$5<>""),ProjectInformation!$B$3&"\"&ProjectInformation!$B$4&"\"&ProjectInformation!$B$5,IF(AND(ProjectInformation!$B$3<>"",ProjectInformation!$B$4<>""),ProjectInformation!$B$3&"\"&ProjectInformation!$B$4,IF(ProjectInformation!$B$3<>"",ProjectInformation!$B$3,""))) -> HDR | BN94: =IF(ProjectInformation!$B$6<>"",ProjectInformation!$B$6,"") -> BENTON | CX94: COUNTY | DD94: PROJECT NUMBER | DP94: =IF(ProjectInformation!$B$7<>"",ProjectInformation!$B$7,"") -> NHSX-030-6(231)--3H-06 | ET94: SHEET NUMBER | FD94: CS.2 | FJ94: =IF(FP94<>"","REVISED","") ->  | FP94: =IF(ProjectInformation!$B$9<>"",ProjectInformation!$B$9,"") -> 
B95: 2/14/2018 2:32:48 PM BHAVENS G:\Projects\134 - 221364 US 30 Benton Co Iowa DOT\S2 S3 & S4 Supplemental at US 218\S3\Plan Sheet Preparation\CS Sheet\06030231CS1 revised 021418.xlsm
B189: FILE NO. | I189: =IF(ProjectInformation!$B$11<>"",ProjectInformation!$B$11,"") ->  | P189: =UPPER(ProjectInformation!B8) -> ENGLISH | W189: DESIGN TEAM | AF189: =IF(AND(ProjectInformation!$B$3<>"",ProjectInformation!$B$4<>"",ProjectInformation!$B$5<>""),ProjectInformation!$B$3&"\"&ProjectInformation!$B$4&"\"&ProjectInformation!$B$5,IF(AND(ProjectInformation!$B$3<>"",ProjectInformation!$B$4<>""),ProjectInformation!$B$3&"\"&ProjectInformation!$B$4,IF(ProjectInformation!$B$3<>"",ProjectInformation!$B$3,""))) -> HDR | BN189: =IF(ProjectInformation!$B$6<>"",ProjectInformation!$B$6,"") -> BENTON | CX189: COUNTY | DD189: PROJECT NUMBER | DP189: =IF(ProjectInformation!$B$7<>"",ProjectInformation!$B$7,"") -> NHSX-030-6(231)--3H-06 | ET189: SHEET NUMBER | FD189: CS.3 | FJ189: =IF(FP189<>"","REVISED","") ->  | FP189: =IF(ProjectInformation!$B$9<>"",ProjectInformation!$B$9,"") -> 
B190: 2/14/2018 2:32:48 PM BHAVENS G:\Projects\134 - 221364 US 30 Benton Co Iowa DOT\S2 S3 & S4 Supplemental at US 218\S3\Plan Sheet Preparation\CS Sheet\06030231CS1 revised 021418.xlsm
B284: FILE NO. | I284: =IF(ProjectInformation!$B$11<>"",ProjectInformation!$B$11,"") ->  | P284: =UPPER(ProjectInformation!B8) -> ENGLISH | W284: DESIGN TEAM | AF284: =IF(AND(ProjectInformation!$B$3<>"",ProjectInformation!$B$4<>"",ProjectInformation!$B$5<>""),ProjectInformation!$B$3&"\"&ProjectInformation!$B$4&"\"&ProjectInformation!$B$5,IF(AND(ProjectInformation!$B$3<>"",ProjectInformation!$B$4<>""),ProjectInformation!$B$3&"\"&ProjectInformation!$B$4,IF(ProjectInformation!$B$3<>"",ProjectInformation!$B$3,""))) -> HDR | BN284: =IF(ProjectInformation!$B$6<>"",ProjectInformation!$B$6,"") -> BENTON | CX284: COUNTY | DD284: PROJECT NUMBER | DP284: =IF(ProjectInformation!$B$7<>"",ProjectInformation!$B$7,"") -> NHSX-030-6(231)--3H-06 | ET284: SHEET NUMBER | FD284: CS.4 | FJ284: =IF(FP284<>"","REVISED","") ->  | FP284: =IF(ProjectInformation!$B$9<>"",ProjectInformation!$B$9,"") -> 
B285: 2/14/2018 2:32:48 PM BHAVENS G:\Projects\134 - 221364 US 30 Benton Co Iowa DOT\S2 S3 & S4 Supplemental at US 218\S3\Plan Sheet Preparation\CS Sheet\06030231CS1 revised 021418.xlsm
ET362: I hereby certify that this engineering document was prepared
ET363: by me or under my direct personal supervision and that I
ET364: am a duly licensed Professional Engineer under the laws of
ET365: the State of Iowa.
ET368: Signature | FQ368: Date
ET369: John A. Christiansen
ET371: Printed or Typed Name
ET372: My license renewal date is December 31, 20 | FL372: 18
EG374: Pages or sheets covered by this seal: | EY374: CS.1- CS.4, Q.1-Q.31
B379: FILE NO. | I379: =IF(ProjectInformation!$B$11<>"",ProjectInformation!$B$11,"") ->  | P379: =UPPER(ProjectInformation!B8) -> ENGLISH | W379: DESIGN TEAM | AF379: =IF(AND(ProjectInformation!$B$3<>"",ProjectInformation!$B$4<>"",ProjectInformation!$B$5<>""),ProjectInformation!$B$3&"\"&ProjectInformation!$B$4&"\"&ProjectInformation!$B$5,IF(AND(ProjectInformation!$B$3<>"",ProjectInformation!$B$4<>""),ProjectInformation!$B$3&"\"&ProjectInformation!$B$4,IF(ProjectInformation!$B$3<>"",ProjectInformation!$B$3,""))) -> HDR | BN379: =IF(ProjectInformation!$B$6<>"",ProjectInformation!$B$6,"") -> BENTON | CX379: COUNTY | DD379: PROJECT NUMBER | DP379: =IF(ProjectInformation!$B$7<>"",ProjectInformation!$B$7,"") -> NHSX-030-6(231)--3H-06 | ET379: SHEET NUMBER | FD379: CS.1 | FJ379: =IF(FP379<>"","REVISED","") ->  | FP379: =IF(ProjectInformation!$B$9<>"",ProjectInformation!$B$9,"") -> 
B380: 2/14/2018 2:32:48 PM BHAVENS G:\Projects\134 - 221364 US 30 Benton Co Iowa DOT\S2 S3 & S4 Supplemental at US 218\S3\Plan Sheet Preparation\CS Sheet\06030231CS1 revised 021418.xlsm

Sheet PrintSheetTemplate (hidden)
B94: FILE NO. | I94: =IF(ProjectInformation!$B$11<>"",ProjectInformation!$B$11,"") ->  | P94: =UPPER(ProjectInformation!$B$8) -> ENGLISH | W94: DESIGN TEAM | AF94: =IF(AND(ProjectInformation!$B$3<>"",ProjectInformation!$B$4<>"",ProjectInformation!$B$5<>""),ProjectInformation!$B$3&"\"&ProjectInformation!$B$4&"\"&ProjectInformation!$B$5,IF(AND(ProjectInformation!$B$3<>"",ProjectInformation!$B$4<>""),ProjectInformation!$B$3&"\"&ProjectInformation!$B$4,IF(ProjectInformation!$B$3<>"",ProjectInformation!$B$3,""))) -> HDR | BN94: =IF(ProjectInformation!$B$6<>"",ProjectInformation!$B$6,"") -> BENTON | CX94: COUNTY | DD94: PROJECT NUMBER | DP94: =IF(ProjectInformation!$B$7<>"",ProjectInformation!$B$7,"") -> NHSX-030-6(231)--3H-06 | ET94: SHEET NUMBER | FJ94: =IF(FP94<>"","REVISED","") ->  | FP94: =IF(ProjectInformation!$B$9<>"",ProjectInformation!$B$9,"") -> 

Sheet Note1 (hidden)
A1: SEE V SHEETS FOR ADDITIONAL BID ITEMS AND QUANTITIES

Sheet BridgeBlock (hidden)
A1: 2
C3: Design No. | J3: =IF(#REF!<>"",#REF!,"") -> 
C4: File No. | I4: =IF(#REF!<>"",#REF!,"") -> 

Sheet DE103_6
A1: TabTitle | B1: =C15 -> EMBANKMENT WITH MOISTURE CONTROL
A2: Number of Tab Columns | B2: 1
A3: DE Starter Row Number | B3: 19
A4: TabSheet Starter Row Number | B4: 5
A5: TabSheet Header Row Count | B5: 4
A6: Top Header Cell | B6: E15
A7: Bottom Header Cell | B7: E18
A8: DESheet Row Count | B8: 2
A9: Fixed Empty Rows | B9: 2
A10: Usable Empty Rows | B10: 0
A11: Total Rows Placed | B11: 4 | C11: xlLeft(1) | E11: =C11 -> xlLeft(1)
A12: Total Rows Needed | B12: =SUM(B8:B10) -> 4 | C12: #+00.0 | E12: =C12 -> #+00.0
A13: Last Tab DE Starter Row | B13: 19 | C13: =CELL("width",C13) -> 77 | E13: =CELL("width",E13) -> 0
A14: Last Tab Tabsheet Starter Row | B14: 5 | C14: A | E14: =LOWER(C14) -> a
A15: Last Copy Starter Row | B15: 1 | C15: EMBANKMENT WITH MOISTURE CONTROL | E15: 103-6
A16: Tab Loop Number | B16: 2 | E16: =B17 -> 2017-10-17
A17: Revision Date | B17: 2017-10-17 | E17: =C15 -> EMBANKMENT WITH MOISTURE CONTROL
A18: Tabulation Width | B18: 1 | C18: ="This Data Entry Sheet fills Tab "&E15&" effective "&TEXT(B17,"mm-dd-yy") -> This Data Entry Sheet fills Tab 103-6 effective 10-17-17
A19: Horizontal Grid Lines | B19: No | C19: Moisture Control is required for all Class 10 fill placed in all
C20: locations and depths. Topsoil will not require Moisture Control.

Sheet DE103_5
A1: TabTitle | B1: =C15 -> SETTLEMENT PLATES
A2: Number of Tab Columns | B2: 4
A3: DE Starter Row Number | B3: 22
A4: TabSheet Starter Row Number | B4: 9
A5: TabSheet Header Row Count | B5: 8
A6: Top Header Cell | B6: H15
A7: Bottom Header Cell | B7: K22
A8: DESheet Row Count | B8: 7
A9: Fixed Empty Rows | B9: 5
A10: Usable Empty Rows | B10: 4
A11: Total Rows Placed | B11: 16 | C11: xlRight(1) | D11: xlRight(1) | E11: xlRight(1) | F11: xlLeft(1) | H11: =C11 -> xlRight(1) | I11: xlRight(1) | J11: xlRight(1) | K11: xlLeft(1)
A12: Total Rows Needed | B12: =SUM(B8:B10) -> 16 | C12: General | D12: #+00.00 | E12: 0.0 | F12: General | H12: General | I12: #+00.00 | J12: 0.0 | K12: General
A13: Last Tab DE Starter Row | B13: 22 | C13: =CELL("width",C13) -> 6 | D13: =CELL("width",D13) -> 16 | E13: =CELL("width",E13) -> 16 | F13: =CELL("width",F13) -> 37 | H13: =CELL("width",H13) -> 0 | I13: =CELL("width",I13) -> 0 | J13: =CELL("width",J13) -> 0 | K13: =CELL("width",K13) -> 0
A14: Last Tab Tabsheet Starter Row | B14: 9 | C14: A | D14: B | E14: C | F14: D | H14: =LOWER(C14) -> a | I14: =LOWER(D14) -> b | J14: =LOWER(E14) -> c | K14: =LOWER(F14) -> d
A15: Last Copy Starter Row | B15: 1 | C15: SETTLEMENT PLATES | H15: 103-5
A16: Tab Loop Number | B16: 2 | H16: =B17 -> 2013-10-15
A17: Revision Date | B17: 2013-10-15 | C17: Refer to Standard Road Plan EW-212 | H17: =C15 -> SETTLEMENT PLATES
A18: Tabulation Width | B18: 1 | C18: ="This Data Entry Sheet fills Tab "&H15&" effective "&TEXT(B17,"mm-dd-yy") -> This Data Entry Sheet fills Tab 103-5 effective 10-15-13
A19: Horizontal Grid Lines | B19: Yes | C19: No. | D19: Location | F19: Remarks | H19: =C17 -> Refer to Standard Road Plan EW-212
H20: =C19 -> No. | I20: =D19 -> Location | K20: =F19 -> Remarks
D21: Station | E21: Offset
C22: 1 | D22: 138800 | E22: 25' RT | F22: SP-1 | I22: =D21 -> Station | J22: =E21 -> Offset
C23: 2 | D23: 138975 | E23: 25' LT | F23: SP-2, Stage 2
C24: 3 | D24: 142540 | E24: 25' RT | F24: SP-3
C25: 4 | D25: 142540 | E25: 60' LT | F25: SP-4, Stage 2
C26: 5 | D26: 4147600 | E26: 10' RT | F26: SP-5
C27: 6 | D27: 4148200 | E27: 10' RT | F27: SP-6
C28: 7 | D28: 241477+35 | E28: 20' RT | F28: SP-7

Sheet DE103_7
A1: TabTitle | B1: =C15 -> SHRINKAGE DATA
A2: Number of Tab Columns | B2: 3
A3: DE Starter Row Number | B3: 20
A4: TabSheet Starter Row Number | B4: 7
A5: TabSheet Header Row Count | B5: 6
A6: Top Header Cell | B6: G15
A7: Bottom Header Cell | B7: I20
A8: DESheet Row Count | B8: 4
A9: Fixed Empty Rows | B9: 5
A10: Usable Empty Rows | B10: 0
A11: Total Rows Placed | B11: 9 | C11: xlLeft(1) | D11: xlRight(1) | E11: xlLeft(1) | G11: =C11 -> xlLeft(1) | H11: xlRight(1) | I11: xlLeft(1)
A12: Total Rows Needed | B12: =SUM(B8:B10) -> 9 | C12: General | D12: 0% | E12: General | G12: General | H12: 0% | I12: General
A13: Last Tab DE Starter Row | B13: 20 | C13: =CELL("width",C13) -> 32 | D13: =CELL("width",D13) -> 8 | E13: =CELL("width",E13) -> 35 | G13: =CELL("width",G13) -> 0 | H13: =CELL("width",H13) -> 0 | I13: =CELL("width",I13) -> 0
A14: Last Tab Tabsheet Starter Row | B14: 7 | C14: A | D14: B | E14: C | G14: =LOWER(C14) -> a | H14: =LOWER(D14) -> b | I14: =LOWER(E14) -> c
A15: Last Copy Starter Row | B15: 1 | C15: SHRINKAGE DATA | G15: 103-7
A16: Tab Loop Number | B16: 2 | G16: =B17 -> 2008-08-01
A17: Revision Date | B17: 2008-08-01 | C17: ="This Data Entry Sheet fills Tab "&G15&" effective "&TEXT(B17,"mm-dd-yy") -> This Data Entry Sheet fills Tab 103-7 effective 08-01-08 | G17: =C15 -> SHRINKAGE DATA
A18: Tabulation Width | B18: 1 | C18: Material | D18: % | E18: Remarks
A19: Horizontal Grid Lines | B19: Yes | G19: =C18 -> Material | H19: =D18 -> % | I19: =E18 -> Remarks
C20: Entire Project | D20: 0.3
C21: Topsoil | D21: 0.4
C23: Boulder Estimate | E23: 100 CY

Sheet DE103_10
A1: TabTitle | B1: =C16 -> TOPSOIL STRIPPING AND PLACEMENT
A2: Number of Tab Columns | B2: 7
A3: DE Starter Row Number | B3: 23
A4: TabSheet Starter Row Number | B4: 9
A5: TabSheet Header Row Count | B5: 8
A6: Top Header Cell | B6: M15
A7: Bottom Header Cell | B7: S22
A8: DESheet Row Count | B8: 9
A9: Fixed Empty Rows | B9: 3
A10: Usable Empty Rows | B10: 0
A11: Total Rows Placed | B11: 12 | C11: xlLeft(1) | D11: xlLeft(1) | E11: xlRight(1) | F11: xlRight(1) | G11: xlRight(1) | I11: xlRight(1) | K11: xlLeft(1) | M11: =C11 -> xlLeft(1) | N11: xlLeft(1) | O11: xlRight(1) | P11: xlRight(1) | Q11: xlRight(1) | R11: =I11 -> xlRight(1) | S11: =K11 -> xlLeft(1)
A12: Total Rows Needed | B12: =SUM(B8:B10) -> 12 | C12: General | D12: General | E12: #+00.00 | F12: #+00.00 | G12: 0.0 | I12: 0.0 | K12: General | M12: General | N12: General | O12: #+00.00 | P12: #+00.00 | Q12: 0.0 | R12: =I12 -> 0.0 | S12: =K12 -> General
A13: Last Tab DE Starter Row | B13: 23 | C13: =CELL("width",C13) -> 30 | D13: =CELL("width",D13) -> 9 | E13: =CELL("width",E13) -> 16 | F13: =CELL("width",F13) -> 16 | G13: =CELL("width",G13) -> 21 | I13: =CELL("width",I13) -> 21 | K13: =CELL("width",K13) -> 41 | M13: =CELL("width",M13) -> 0 | N13: 0 | O13: 0 | P13: 0 | Q13: 0 | R13: 0 | S13: 0
A14: Last Tab Tabsheet Starter Row | B14: 9 | C14: A | D14: B | E14: C | F14: D | G14: E | I14: F | K14: G | M14: =LOWER(C14) -> a | N14: =LOWER(D14) -> b | O14: =LOWER(E14) -> c | P14: =LOWER(F14) -> d | Q14: =LOWER(G14) -> e | R14: =LOWER(I14) -> f | S14: =LOWER(K14) -> g
A15: Last Copy Starter Row | B15: 1 | F15: Totals: | G15: =SUBTOTAL(9,G23:G6000) -> 96 | I15: =SUBTOTAL(9,I23:I6000) -> 72 | M15: 103-10
A16: Tab Loop Number | B16: 2 | C16: TOPSOIL STRIPPING AND PLACEMENT | M16: =B17 -> 2017-04-18
A17: Revision Date | B17: 2017-04-18 | M17: =C16 -> TOPSOIL STRIPPING AND PLACEMENT
A18: Tabulation Width | B18: 2 | C18: ="This Data Entry Sheet fills Tab "&M15&" effective "&TEXT(B17,"mm-dd-yy") -> This Data Entry Sheet fills Tab 103-10 effective 04-18-17
A19: Horizontal Grid Lines | B19: Yes | C19: Location | G19: Topsoil Stripping Thickness | I19: Topsoil Placement Thickness | K19: Remarks | M19: =C19 -> Location | Q19: =G19 -> Topsoil Stripping Thickness | R19: =I19 -> Topsoil Placement Thickness | S19: =K19 -> Remarks
C20: Road Identification | D20: Dir. of Traffic | E20: Begin Station | F20: End Station | M20: =C20 -> Road Identification | N20: =D20 -> Dir. of Traffic | O20: =E20 -> Begin Station | P20: =F20 -> End Station
G22: IN | H22: FT | I22: IN | J22: FT | Q22: =G22 -> IN | R22: =I22 -> IN
C23: US 30 Eastbound | D23: EB | E23: 138000 | F23: 151670 | G23: 9 | H23: =IF(G23<>"",G23/12,"") -> 0.75 | I23: =IF(G23<>"",8,"") -> 8 | J23: =IF(I23<>"",I23/12,"") -> 0.6666666667
C24: US 30 Westbound | D24: WB | E24: 138900 | F24: 151670 | G24: 9 | H24: 0.75 | I24: 8 | J24: 0.6666666667
C25: US 218 / 24th Ave. | E25: 24145005 | F25: 24150300 | G25: 12 | H25: 1 | I25: 8 | J25: 0.6666666667
C26: Loop A | E26: 1147915 | F26: 1148664.72 | G26: 12 | H26: 1 | I26: 8 | J26: 0.6666666667
C27: Loop B | E27: 2147225 | F27: 2147975.06 | G27: 12 | H27: 1 | I27: 8 | J27: 0.6666666667
C28: Ramp C | E28: 3144041.75 | F28: 3145646.34 | G28: 12 | H28: 1 | I28: 8 | J28: 0.6666666667
C29: Ramp D | E29: 4147426.45 | F29: 4148996.32 | G29: 12 | H29: 1 | I29: 8 | J29: 0.6666666667
C30: 23rd Ave. | E30: 23141675 | F30: 23142700 | G30: 6 | H30: 0.5 | I30: 8 | J30: 0.6666666667
C31: Youngville Café Access | E31: 0 | F31: 1275 | G31: 12 | H31: 1 | I31: 8 | J31: 0.6666666667
H87: =IF(G87<>"",G87/12,"") ->  | I87: =IF(G87<>"",8,"") ->  | J87: =IF(I87<>"",I87/12,"") -> 
H151: =IF(G151<>"",G151/12,"") ->  | I151: =IF(G151<>"",8,"") ->  | J151: =IF(I151<>"",I151/12,"") -> 
H215: =IF(G215<>"",G215/12,"") ->  | I215: =IF(G215<>"",8,"") ->  | J215: =IF(I215<>"",I215/12,"") -> 
H279: =IF(G279<>"",G279/12,"") ->  | I279: =IF(G279<>"",8,"") ->  | J279: =IF(I279<>"",I279/12,"") -> 
H343: =IF(G343<>"",G343/12,"") ->  | I343: =IF(G343<>"",8,"") ->  | J343: =IF(I343<>"",I343/12,"") -> 
H407: =IF(G407<>"",G407/12,"") ->  | I407: =IF(G407<>"",8,"") ->  | J407: =IF(I407<>"",I407/12,"") -> 
H471: =IF(G471<>"",G471/12,"") ->  | I471: =IF(G471<>"",8,"") ->  | J471: =IF(I471<>"",I471/12,"") -> 
H535: =IF(G535<>"",G535/12,"") ->  | I535: =IF(G535<>"",8,"") ->  | J535: =IF(I535<>"",I535/12,"") -> 
H599: =IF(G599<>"",G599/12,"") ->  | I599: =IF(G599<>"",8,"") ->  | J599: =IF(I599<>"",I599/12,"") -> 
H663: =IF(G663<>"",G663/12,"") ->  | I663: =IF(G663<>"",8,"") ->  | J663: =IF(I663<>"",I663/12,"") -> 
H727: =IF(G727<>"",G727/12,"") ->  | I727: =IF(G727<>"",8,"") ->  | J727: =IF(I727<>"",I727/12,"") -> 
H791: =IF(G791<>"",G791/12,"") ->  | I791: =IF(G791<>"",8,"") ->  | J791: =IF(I791<>"",I791/12,"") -> 
H855: =IF(G855<>"",G855/12,"") ->  | I855: =IF(G855<>"",8,"") ->  | J855: =IF(I855<>"",I855/12,"") -> 
H919: =IF(G919<>"",G919/12,"") ->  | I919: =IF(G919<>"",8,"") ->  | J919: =IF(I919<>"",I919/12,"") -> 
H983: =IF(G983<>"",G983/12,"") ->  | I983: =IF(G983<>"",8,"") ->  | J983: =IF(I983<>"",I983/12,"") -> 
H1047: =IF(G1047<>"",G1047/12,"") ->  | I1047: =IF(G1047<>"",8,"") ->  | J1047: =IF(I1047<>"",I1047/12,"") -> 
H1111: =IF(G1111<>"",G1111/12,"") ->  | I1111: =IF(G1111<>"",8,"") ->  | J1111: =IF(I1111<>"",I1111/12,"") -> 
H1175: =IF(G1175<>"",G1175/12,"") ->  | I1175: =IF(G1175<>"",8,"") ->  | J1175: =IF(I1175<>"",I1175/12,"") -> 
H1239: =IF(G1239<>"",G1239/12,"") ->  | I1239: =IF(G1239<>"",8,"") ->  | J1239: =IF(I1239<>"",I1239/12,"") -> 
H1303: =IF(G1303<>"",G1303/12,"") ->  | I1303: =IF(G1303<>"",8,"") ->  | J1303: =IF(I1303<>"",I1303/12,"") -> 
H1367: =IF(G1367<>"",G1367/12,"") ->  | I1367: =IF(G1367<>"",8,"") ->  | J1367: =IF(I1367<>"",I1367/12,"") -> 
H1431: =IF(G1431<>"",G1431/12,"") ->  | I1431: =IF(G1431<>"",8,"") ->  | J1431: =IF(I1431<>"",I1431/12,"") -> 
H1495: =IF(G1495<>"",G1495/12,"") ->  | I1495: =IF(G1495<>"",8,"") ->  | J1495: =IF(I1495<>"",I1495/12,"") -> 
H1559: =IF(G1559<>"",G1559/12,"") ->  | I1559: =IF(G1559<>"",8,"") ->  | J1559: =IF(I1559<>"",I1559/12,"") -> 
H1623: =IF(G1623<>"",G1623/12,"") ->  | I1623: =IF(G1623<>"",8,"") ->  | J1623: =IF(I1623<>"",I1623/12,"") -> 
H1687: =IF(G1687<>"",G1687/12,"") ->  | I1687: =IF(G1687<>"",8,"") ->  | J1687: =IF(I1687<>"",I1687/12,"") -> 
H1751: =IF(G1751<>"",G1751/12,"") ->  | I1751: =IF(G1751<>"",8,"") ->  | J1751: =IF(I1751<>"",I1751/12,"") -> 
H1815: =IF(G1815<>"",G1815/12,"") ->  | I1815: =IF(G1815<>"",8,"") ->  | J1815: =IF(I1815<>"",I1815/12,"") -> 
H1879: =IF(G1879<>"",G1879/12,"") ->  | I1879: =IF(G1879<>"",8,"") ->  | J1879: =IF(I1879<>"",I1879/12,"") -> 
H1943: =IF(G1943<>"",G1943/12,"") ->  | I1943: =IF(G1943<>"",8,"") ->  | J1943: =IF(I1943<>"",I1943/12,"") -> 
H2007: =IF(G2007<>"",G2007/12,"") ->  | I2007: =IF(G2007<>"",8,"") ->  | J2007: =IF(I2007<>"",I2007/12,"") -> 
H2071: =IF(G2071<>"",G2071/12,"") ->  | I2071: =IF(G2071<>"",8,"") ->  | J2071: =IF(I2071<>"",I2071/12,"") -> 
H2135: =IF(G2135<>"",G2135/12,"") ->  | I2135: =IF(G2135<>"",8,"") ->  | J2135: =IF(I2135<>"",I2135/12,"") -> 
H2199: =IF(G2199<>"",G2199/12,"") ->  | I2199: =IF(G2199<>"",8,"") ->  | J2199: =IF(I2199<>"",I2199/12,"") -> 
H2263: =IF(G2263<>"",G2263/12,"") ->  | I2263: =IF(G2263<>"",8,"") ->  | J2263: =IF(I2263<>"",I2263/12,"") -> 
H2327: =IF(G2327<>"",G2327/12,"") ->  | I2327: =IF(G2327<>"",8,"") ->  | J2327: =IF(I2327<>"",I2327/12,"") -> 
H2391: =IF(G2391<>"",G2391/12,"") ->  | I2391: =IF(G2391<>"",8,"") ->  | J2391: =IF(I2391<>"",I2391/12,"") -> 
H2455: =IF(G2455<>"",G2455/12,"") ->  | I2455: =IF(G2455<>"",8,"") ->  | J2455: =IF(I2455<>"",I2455/12,"") -> 
H2519: =IF(G2519<>"",G2519/12,"") ->  | I2519: =IF(G2519<>"",8,"") ->  | J2519: =IF(I2519<>"",I2519/12,"") -> 
H2583: =IF(G2583<>"",G2583/12,"") ->  | I2583: =IF(G2583<>"",8,"") ->  | J2583: =IF(I2583<>"",I2583/12,"") -> 
H2647: =IF(G2647<>"",G2647/12,"") ->  | I2647: =IF(G2647<>"",8,"") ->  | J2647: =IF(I2647<>"",I2647/12,"") -> 
H2711: =IF(G2711<>"",G2711/12,"") ->  | I2711: =IF(G2711<>"",8,"") ->  | J2711: =IF(I2711<>"",I2711/12,"") -> 
H2775: =IF(G2775<>"",G2775/12,"") ->  | I2775: =IF(G2775<>"",8,"") ->  | J2775: =IF(I2775<>"",I2775/12,"") -> 
H2839: =IF(G2839<>"",G2839/12,"") ->  | I2839: =IF(G2839<>"",8,"") ->  | J2839: =IF(I2839<>"",I2839/12,"") -> 
H2903: =IF(G2903<>"",G2903/12,"") ->  | I2903: =IF(G2903<>"",8,"") ->  | J2903: =IF(I2903<>"",I2903/12,"") -> 
H2967: =IF(G2967<>"",G2967/12,"") ->  | I2967: =IF(G2967<>"",8,"") ->  | J2967: =IF(I2967<>"",I2967/12,"") -> 
H3031: =IF(G3031<>"",G3031/12,"") ->  | I3031: =IF(G3031<>"",8,"") ->  | J3031: =IF(I3031<>"",I3031/12,"") -> 
H3095: =IF(G3095<>"",G3095/12,"") ->  | I3095: =IF(G3095<>"",8,"") ->  | J3095: =IF(I3095<>"",I3095/12,"") -> 
H3159: =IF(G3159<>"",G3159/12,"") ->  | I3159: =IF(G3159<>"",8,"") ->  | J3159: =IF(I3159<>"",I3159/12,"") -> 
H3223: =IF(G3223<>"",G3223/12,"") ->  | I3223: =IF(G3223<>"",8,"") ->  | J3223: =IF(I3223<>"",I3223/12,"") -> 
H3287: =IF(G3287<>"",G3287/12,"") ->  | I3287: =IF(G3287<>"",8,"") ->  | J3287: =IF(I3287<>"",I3287/12,"") -> 
H3351: =IF(G3351<>"",G3351/12,"") ->  | I3351: =IF(G3351<>"",8,"") ->  | J3351: =IF(I3351<>"",I3351/12,"") -> 
H3415: =IF(G3415<>"",G3415/12,"") ->  | I3415: =IF(G3415<>"",8,"") ->  | J3415: =IF(I3415<>"",I3415/12,"") -> 
H3479: =IF(G3479<>"",G3479/12,"") ->  | I3479: =IF(G3479<>"",8,"") ->  | J3479: =IF(I3479<>"",I3479/12,"") -> 
H3543: =IF(G3543<>"",G3543/12,"") ->  | I3543: =IF(G3543<>"",8,"") ->  | J3543: =IF(I3543<>"",I3543/12,"") -> 
H3607: =IF(G3607<>"",G3607/12,"") ->  | I3607: =IF(G3607<>"",8,"") ->  | J3607: =IF(I3607<>"",I3607/12,"") -> 
H3671: =IF(G3671<>"",G3671/12,"") ->  | I3671: =IF(G3671<>"",8,"") ->  | J3671: =IF(I3671<>"",I3671/12,"") -> 
H3735: =IF(G3735<>"",G3735/12,"") ->  | I3735: =IF(G3735<>"",8,"") ->  | J3735: =IF(I3735<>"",I3735/12,"") -> 
H3799: =IF(G3799<>"",G3799/12,"") ->  | I3799: =IF(G3799<>"",8,"") ->  | J3799: =IF(I3799<>"",I3799/12,"") -> 
H3863: =IF(G3863<>"",G3863/12,"") ->  | I3863: =IF(G3863<>"",8,"") ->  | J3863: =IF(I3863<>"",I3863/12,"") -> 
H3927: =IF(G3927<>"",G3927/12,"") ->  | I3927: =IF(G3927<>"",8,"") ->  | J3927: =IF(I3927<>"",I3927/12,"") -> 
H3991: =IF(G3991<>"",G3991/12,"") ->  | I3991: =IF(G3991<>"",8,"") ->  | J3991: =IF(I3991<>"",I3991/12,"") -> 
H4055: =IF(G4055<>"",G4055/12,"") ->  | I4055: =IF(G4055<>"",8,"") ->  | J4055: =IF(I4055<>"",I4055/12,"") -> 
H4119: =IF(G4119<>"",G4119/12,"") ->  | I4119: =IF(G4119<>"",8,"") ->  | J4119: =IF(I4119<>"",I4119/12,"") -> 
H4183: =IF(G4183<>"",G4183/12,"") ->  | I4183: =IF(G4183<>"",8,"") ->  | J4183: =IF(I4183<>"",I4183/12,"") -> 
H4247: =IF(G4247<>"",G4247/12,"") ->  | I4247: =IF(G4247<>"",8,"") ->  | J4247: =IF(I4247<>"",I4247/12,"") -> 
H4311: =IF(G4311<>"",G4311/12,"") ->  | I4311: =IF(G4311<>"",8,"") ->  | J4311: =IF(I4311<>"",I4311/12,"") -> 
H4375: =IF(G4375<>"",G4375/12,"") ->  | I4375: =IF(G4375<>"",8,"") ->  | J4375: =IF(I4375<>"",I4375/12,"") -> 
H4439: =IF(G4439<>"",G4439/12,"") ->  | I4439: =IF(G4439<>"",8,"") ->  | J4439: =IF(I4439<>"",I4439/12,"") -> 
H4503: =IF(G4503<>"",G4503/12,"") ->  | I4503: =IF(G4503<>"",8,"") ->  | J4503: =IF(I4503<>"",I4503/12,"") -> 
H4567: =IF(G4567<>"",G4567/12,"") ->  | I4567: =IF(G4567<>"",8,"") ->  | J4567: =IF(I4567<>"",I4567/12,"") -> 
H4631: =IF(G4631<>"",G4631/12,"") ->  | I4631: =IF(G4631<>"",8,"") ->  | J4631: =IF(I4631<>"",I4631/12,"") -> 
H4695: =IF(G4695<>"",G4695/12,"") ->  | I4695: =IF(G4695<>"",8,"") ->  | J4695: =IF(I4695<>"",I4695/12,"") -> 
H4759: =IF(G4759<>"",G4759/12,"") ->  | I4759: =IF(G4759<>"",8,"") ->  | J4759: =IF(I4759<>"",I4759/12,"") -> 
H4823: =IF(G4823<>"",G4823/12,"") ->  | I4823: =IF(G4823<>"",8,"") ->  | J4823: =IF(I4823<>"",I4823/12,"") -> 
H4887: =IF(G4887<>"",G4887/12,"") ->  | I4887: =IF(G4887<>"",8,"") ->  | J4887: =IF(I4887<>"",I4887/12,"") -> 
H4951: =IF(G4951<>"",G4951/12,"") ->  | I4951: =IF(G4951<>"",8,"") ->  | J4951: =IF(I4951<>"",I4951/12,"") -> 
H5015: =IF(G5015<>"",G5015/12,"") ->  | I5015: =IF(G5015<>"",8,"") ->  | J5015: =IF(I5015<>"",I5015/12,"") -> 
H5079: =IF(G5079<>"",G5079/12,"") ->  | I5079: =IF(G5079<>"",8,"") ->  | J5079: =IF(I5079<>"",I5079/12,"") -> 
H5143: =IF(G5143<>"",G5143/12,"") ->  | I5143: =IF(G5143<>"",8,"") ->  | J5143: =IF(I5143<>"",I5143/12,"") -> 
H5207: =IF(G5207<>"",G5207/12,"") ->  | I5207: =IF(G5207<>"",8,"") ->  | J5207: =IF(I5207<>"",I5207/12,"") -> 
H5271: =IF(G5271<>"",G5271/12,"") ->  | I5271: =IF(G5271<>"",8,"") ->  | J5271: =IF(I5271<>"",I5271/12,"") -> 
H5335: =IF(G5335<>"",G5335/12,"") ->  | I5335: =IF(G5335<>"",8,"") ->  | J5335: =IF(I5335<>"",I5335/12,"") -> 
H5399: =IF(G5399<>"",G5399/12,"") ->  | I5399: =IF(G5399<>"",8,"") ->  | J5399: =IF(I5399<>"",I5399/12,"") -> 
H5463: =IF(G5463<>"",G5463/12,"") ->  | I5463: =IF(G5463<>"",8,"") ->  | J5463: =IF(I5463<>"",I5463/12,"") -> 
H5527: =IF(G5527<>"",G5527/12,"") ->  | I5527: =IF(G5527<>"",8,"") ->  | J5527: =IF(I5527<>"",I5527/12,"") -> 
H5591: =IF(G5591<>"",G5591/12,"") ->  | I5591: =IF(G5591<>"",8,"") ->  | J5591: =IF(I5591<>"",I5591/12,"") -> 
H5655: =IF(G5655<>"",G5655/12,"") ->  | I5655: =IF(G5655<>"",8,"") ->  | J5655: =IF(I5655<>"",I5655/12,"") -> 
H5719: =IF(G5719<>"",G5719/12,"") ->  | I5719: =IF(G5719<>"",8,"") ->  | J5719: =IF(I5719<>"",I5719/12,"") -> 
H5783: =IF(G5783<>"",G5783/12,"") ->  | I5783: =IF(G5783<>"",8,"") ->  | J5783: =IF(I5783<>"",I5783/12,"") -> 
H5847: =IF(G5847<>"",G5847/12,"") ->  | I5847: =IF(G5847<>"",8,"") ->  | J5847: =IF(I5847<>"",I5847/12,"") -> 
H5911: =IF(G5911<>"",G5911/12,"") ->  | I5911: =IF(G5911<>"",8,"") ->  | J5911: =IF(I5911<>"",I5911/12,"") -> 
H5975: =IF(G5975<>"",G5975/12,"") ->  | I5975: =IF(G5975<>"",8,"") ->  | J5975: =IF(I5975<>"",I5975/12,"") -> 

Sheet DE104_5C
A1: TabTitle | B1: =C16 -> LIST OF SUBDRAIN WORK
A2: Number of Tab Columns | B2: 20
A3: DE Starter Row Number | B3: 27
A4: TabSheet Starter Row Number | B4: 14
A5: TabSheet Header Row Count | B5: 13
A6: Top Header Cell | B6: X15
A7: Bottom Header Cell | B7: AQ27
A8: DESheet Row Count | B8: 18
A9: Fixed Empty Rows | B9: 2
A10: Usable Empty Rows | B10: 2
A11: Total Rows Placed | B11: 22 | C11: xlRight(1) | D11: xlRight(1) | E11: xlRight(1) | F11: xlLeft(1) | G11: xlLeft(1) | H11: xlRight(1) | I11: xlRight(1) | J11: xlRight(1) | K11: xlRight(1) | L11: xlRight(1) | M11: xlRight(1) | N11: xlRight(1) | O11: xlRight(1) | P11: xlLeft(1) | Q11: xlRight(1) | R11: xlRight(1) | S11: xlRight(1) | T11: xlRight(1) | U11: xlRight(1) | V11: xlLeft(1) | X11: =C11 -> xlRight(1) | Y11: =D11 -> xlRight(1) | Z11: xlRight(1) | AA11: xlLeft(1) | AB11: xlLeft(1) | AC11: xlRight(1) | AD11: xlRight(1) | AE11: xlRight(1) | AF11: xlRight(1) | AG11: xlRight(1) | AH11: xlRight(1) | AI11: xlRight(1) | AJ11: xlRight(1) | AK11: xlLeft(1) | AL11: xlRight(1) | AM11: xlRight(1) | AN11: xlRight(1) | AO11: =T11 -> xlRight(1) | AP11: xlRight(1) | AQ11: xlLeft(1)
A12: Total Rows Needed | B12: =SUM(B8:B10) -> 22 | C12: General | D12: #+00.00 | E12: #+00.00 | F12: General | G12: General | H12: 0.0 | I12: 0 | J12: 0 | K12: 0 | L12: 0 | M12: General | N12: 0 | O12: 0 | P12: General | Q12: 0 | R12: 0.0 | S12: 0.0 | T12: 0.0 | U12: 0.0 | V12: General | X12: =C12 -> General | Y12: #+00.00 | Z12: #+00.00 | AA12: General | AB12: General | AC12: 0.0 | AD12: 0 | AE12: 0 | AF12: 0 | AG12: 0 | AH12: General | AI12: 0 | AJ12: 0 | AK12: General | AL12: 0 | AM12: 0.0 | AN12: 0.0 | AO12: 0.0 | AP12: 0.0 | AQ12: General
A13: Last Tab DE Starter Row | B13: 27 | C13: =CELL("width",C13) -> 8 | D13: 16 | E13: 16 | F13: 28 | G13: 22 | H13: 8 | I13: 9 | J13: 8 | K13: 8 | L13: 8 | M13: 8 | N13: 8 | O13: 8 | P13: 12 | Q13: 6 | R13: 14 | S13: 14 | T13: 14 | U13: 14 | V13: 81 | X13: =CELL("width",X13) -> 0 | Y13: 0 | Z13: 0 | AA13: 0 | AB13: 0 | AC13: 0 | AD13: 0 | AE13: 0 | AF13: 0 | AG13: 0 | AH13: 0 | AI13: 0 | AJ13: 0 | AK13: 0 | AL13: 0 | AM13: 0 | AN13: 0 | AO13: 0 | AP13: 0 | AQ13: 0
A14: Last Tab Tabsheet Starter Row | B14: 14 | C14: A | D14: B | E14: C | F14: D | G14: E | H14: F | I14: G | J14: H | K14: I | L14: J | M14: K | N14: L | O14: M | P14: N | Q14: O | R14: P | S14: Q | T14: R | U14: S | V14: T | X14: =LOWER(C14) -> a | Y14: =LOWER(D14) -> b | Z14: c | AA14: d | AB14: e | AC14: f | AD14: g | AE14: h | AF14: i | AG14: j | AH14: k | AI14: l | AJ14: m | AK14: n | AL14: o | AM14: p | AN14: q | AO14: r | AP14: s | AQ14: t
A15: Last Copy Starter Row | B15: 1 | P15: Totals: | R15: =SUBTOTAL(9,R27:R6004) -> 0 | S15: =SUBTOTAL(9,S27:S6004) -> 1081.6 | X15: 104-5C | AS15: =F23 -> Type of Installation | AT15: =G21 -> Pipe | AU15: =L21&M23 -> OutletsDR-305 | AV15: =P21 -> Connected Pipe Joints*
A16: Tab Loop Number | B16: 2 | C16: LIST OF SUBDRAIN WORK | X16: =B17 -> 2017-10-17 | AS16: DR-301, Type 1 | AT16: Concrete | AU16: A | AV16: Type 1
A17: Revision Date | B17: 2017-10-17 | X17: =C16 -> LIST OF SUBDRAIN WORK | AS17: DR-301, Type 2 | AT17: C.M.P. | AU17: B | AV17: Type 2
A18: Tabulation Width | B18: 4 | C18: Possible Standards: DR-121, DR-201, DR-203, DR-301, DR-302, DR-303, DR-305 and DR-306. Possible Detail: 500-10. | AS18: DR-301, Type 3 | AT18: Plastic | AU18: C | AV18: Type 3
A19: Horizontal Grid Lines | B19: Yes | C19: * Not a bid item | X19: =C18 -> Possible Standards: DR-121, DR-201, DR-203, DR-301, DR-302, DR-303, DR-305 and DR-306. Possible Detail: 500-10. | AS19: DR-301, Type 4
C20: ="This Data Entry Sheet fills Tab "&X15&" effective "&TEXT(B17,"mm-dd-yy") -> This Data Entry Sheet fills Tab 104-5C effective 10-17-17 | X20: =C19 -> * Not a bid item | AS20: DR-302, Case A
C21: Location | G21: Pipe | J21: Aprons | L21: Outlets | P21: Connected Pipe Joints* | R21: Trench Drain | S21: Granular Material | T21: Special Backfill* | U21: Class "A" Crushed Stone* | V21: Remarks | X21: =C21 -> Location | AB21: =G21 -> Pipe | AE21: =J21 -> Aprons | AG21: =L21 -> Outlets | AK21: =P21 -> Connected Pipe Joints* | AM21: =R21 -> Trench Drain | AN21: =S21 -> Granular Material | AO21: =T21 -> Special Backfill* | AP21: =U21 -> Class "A" Crushed Stone* | AQ21: =V21 -> Remarks | AS21: DR-302, Case B
AS22: DR-302, Case C
C23: No. | D23: Station to Station | F23: Type of Installation | G23: Concrete, C.M.P., or Plastic | H23: Dia. | I23: Length | J23: DR-201 | K23: DR-203 | L23: 500-10 | M23: DR-305 | O23: DR-306 | X23: =C23 -> No. | Y23: =D23 -> Station to Station | AA23: =F23 -> Type of Installation | AB23: Concrete, C.M.P., or Plastic | AC23: Dia. | AD23: Length | AE23: DR-201 | AF23: DR-203 | AG23: 500-10 | AH23: DR-305 | AJ23: =O23 -> DR-306 | AS23: DR-303, Type 5
AS24: DR-303, Type 6
P25: DR-121 | S25: Blanket | AS25: DR-303, Type 7A
F26: DR-301, DR-302, DR-303 | H26: IN | I26: LF | J26: No. | K26: No. | L26: No. | M26: Type | N26: No. | O26: No. | P26: Type | Q26: No. | R26: LF | S26: CY | T26: TONS | U26: CY | AK26: =P25 -> DR-121 | AN26: =S25 -> Blanket | AS26: DR-303, Type 7B
C27: 1 | D27: 142300 | E27: 142550 | S27: 220 | V27: 12-inch thick Working Blanket - US 30 Stage 1 | AA27: =F26 -> DR-301, DR-302, DR-303 | AC27: =H26 -> IN | AD27: =I26 -> LF | AE27: =J26 -> No. | AF27: =K26 -> No. | AG27: =L26 -> No. | AH27: =M26 -> Type | AI27: No. | AJ27: =O26 -> No. | AK27: =P26 -> Type | AL27: =Q26 -> No. | AM27: =R26 -> LF | AN27: =S26 -> CY | AO27: =T26 -> TONS | AP27: =U26 -> CY | AS27: DR-303, Type 8A
C28: 2 | D28: 145250 | E28: 145400 | S28: 195 | V28: 12-inch thick Working Blanket - US 30 Stage 1 | AS28: DR-303, Type 8B
C29: 3 | D29: 146200 | E29: 146700 | S29: 330 | V29: 12-inch thick Working Blanket - US 30 Stage 1 | AS29: DR-303, Type 9
C30: 4 | D30: 3144550 | E30: 3144800 | S30: 200 | V30: 12-inch thick Working Blanket - Ramp C | AS30: DR-303, Type 11
C31: 5 | D31: 3145225 | E31: 3145400 | S31: 115 | V31: 12-inch thick Working Blanket - Ramp C | AS31: DR-303, Type 12
AS32: DR-303, Type 13
D33: 24147120 | E33: 24147457 | T33: 4895 | V33: Special Backfill - MSE Wall Core-Out at South Abutment of US 218 over | AS33: DR-303, Type 14
V34: US 30 Bridge
C36: 1 | D36: 147450 | E36: 147543.9 | F36: DR-301 Type 2 | G36: Plastic | H36: 4 | I36: 100 | O36: 1 | S36: 10.8 | V36: MSE Wall; outlet to ditch at Station 1474+50 as shown on Q.22
C37: 2 | D37: 147450 | E37: 147592.7 | F37: DR-301 Type 2 | G37: Plastic | H37: 4 | I37: 150 | O37: 1 | S37: 10.8 | V37: MSE Wall; outlet to ditch at Station 1474+50 as shown on Q.22
C39: Notes:
C40: 1. The Working Blankets shown on the Q Sheets and on tab. 104-5C may be deleted if determined not to be necessary at the time of construction.
C41: 2. See "MSE Retaining Wall Construction Notes" on Sheet V.1 for details of drain installation
C42: 3. See plan view on Sheet Q.22 for locations of drain installation.
C43: 4. Drain line No. 2 length includes subdrain within MSE wall and length outside wall to reach ditch outlet location.
C44: 5. Quantities are for porous trench width of 20 inches ( both lines combined) and depth of 4 feet with 6 inches of topsoil cover.

Sheet DE104_9
A1: TabTitle | B1: =C16 -> LONGITUDINAL SUBDRAIN SHOULDER AND BACKSLOPE
A2: Number of Tab Columns | B2: 18
A3: DE Starter Row Number | B3: 26
A4: TabSheet Starter Row Number | B4: 13 | R4: if nothing else - change 24/12 to 18/12 for depth of porous backfill
A5: TabSheet Header Row Count | B5: 12 | S5: 0.2
A6: Top Header Cell | B6: AA15 | S6: 0.2
A7: Bottom Header Cell | B7: AR26
A8: DESheet Row Count | B8: 184
A9: Fixed Empty Rows | B9: 5
A10: Usable Empty Rows | B10: 10
A11: Total Rows Placed | B11: 199 | C11: xlRight(1) | D11: xlCenter | E11: xlRight(1) | F11: xlRight(1) | G11: xlCenter | H11: xlRight(1) | I11: xlRight(1) | J11: xlRight(1) | K11: xlRight(1) | L11: xlRight(1) | M11: xlRight(1) | N11: xlRight(1) | O11: xlRight(1) | P11: xlRight(1) | Q11: xlRight(1) | R11: xlRight(1) | S11: xlRight(1) | T11: xlLeft(1) | AA11: =C11 -> xlRight(1) | AB11: xlCenter | AC11: xlRight(1) | AD11: xlRight(1) | AE11: xlCenter | AF11: xlRight(1) | AG11: xlRight(1) | AH11: xlRight(1) | AI11: xlRight(1) | AJ11: xlRight(1) | AK11: xlRight(1) | AL11: xlRight(1) | AM11: xlRight(1) | AN11: xlRight(1) | AO11: xlRight(1) | AP11: xlRight(1) | AQ11: =S11 -> xlRight(1) | AR11: xlLeft(1)
A12: Total Rows Needed | B12: =SUM(B8:B10) -> 199 | C12: General | D12: General | E12: #+00.00 | F12: #+00.00 | G12: General | H12: 0.0 | I12: 0.0 | J12: 0.0 | K12: 0.0 | L12: 0.0 | M12: General | N12: 0.0 | O12: 0.0 | P12: #+00.00 | Q12: General | R12: 0.0 | S12: 0.0 | T12: General | AA12: General | AB12: General | AC12: #+00.00 | AD12: #+00.00 | AE12: General | AF12: 0.0 | AG12: 0.0 | AH12: 0.0 | AI12: 0.0 | AJ12: 0.0 | AK12: General | AL12: 0.0 | AM12: 0.0 | AN12: #+00.00 | AO12: General | AP12: 0.0 | AQ12: 0.0 | AR12: General
A13: Last Tab DE Starter Row | B13: 182 | C13: =CELL("width",C13) -> 7 | D13: 20 | E13: 16 | F13: 16 | G13: 7 | H13: 10 | I13: 10 | J13: 10 | K13: 10 | L13: 10 | M13: =CELL("width",M13) -> 22 | N13: 10 | O13: 10 | P13: 16 | Q13: 22 | R13: 13 | S13: 15 | T13: 86 | AA13: =CELL("width",AA13) -> 0 | AB13: 0 | AC13: 0 | AD13: 0 | AE13: 0 | AF13: 0 | AG13: 0 | AH13: 0 | AI13: 0 | AJ13: 0 | AK13: 0 | AL13: 0 | AM13: 0 | AN13: 0 | AO13: 0 | AP13: 0 | AQ13: 0 | AR13: 0
A14: Last Tab Tabsheet Starter Row | B14: 193 | C14: A | D14: B | E14: C | F14: D | G14: E | H14: F | I14: G | J14: H | K14: I | L14: J | M14: K | N14: L | O14: M | P14: N | Q14: O | R14: P | S14: Q | T14: R | AA14: =LOWER(C14) -> a | AB14: b | AC14: c | AD14: d | AE14: e | AF14: f | AG14: g | AH14: h | AI14: i | AJ14: j | AK14: k | AL14: l | AM14: m | AN14: n | AO14: o | AP14: p | AQ14: q | AR14: r
A15: Last Copy Starter Row | B15: 181 | I15: Totals: | J15: =SUBTOTAL(9,J26:J6001) -> 40297.44 | L15: =SUBTOTAL(9,L26:L6001) -> 0 | O15: =SUBTOTAL(9,O26:O6001) -> 0 | V15: Instructions for filling out Tab 104-09 | AA15: 104-9 | AT15: =M22 -> Bridge Berm (EW-203 or EW-204) | AU15: Subdrain Outlet SRP
A16: Tab Loop Number | B16: 4 | C16: LONGITUDINAL SUBDRAIN SHOULDER AND BACKSLOPE | AA16: =B17 -> 2017-10-17 | AT16: EW-203, Type A | AU16: DR-303
A17: Revision Date | B17: 2017-10-17 | V17: 1.) | W17: You must fill in the Stationing, Side, Depth, Crushed Stone quantity, and Size of Shoulder, Backslope, or Bridge subdrain. | AA17: LONGITUDINAL SUBDRAIN SHOULDER AND BACKSLOPE | AT17: EW-203, Type B | AU17: DR-305, Type A
A18: Tabulation Width | B18: 4 | C18: Refer to Soils Sheets | V18: 2.) | W18: Once the first line is complete, press the Single Outlet or Double Outlet Buttons at the top of the sheet. | AT18: EW-203, Type C | AU18: DR-305, Type B
A19: Horizontal Grid Lines | B19: Yes | C19: * Not a bid item. Bridge berm quantities assume a trench depth of 24 inches. | V19: 3.) | W19: You can insert lines by: | AA19: =C18 -> Refer to Soils Sheets | AT19: EW-204, Type A | AU19: DR-305, Type C
C20: ="This Data Entry Sheet fills Tab "&AA15&" effective "&TEXT(B17,"mm-dd-yy") -> This Data Entry Sheet fills Tab 104-9 effective 10-17-17 | W20: a.) Placing the cell selector on the row where you want to insert the row. | AA20: =C19 -> * Not a bid item. Bridge berm quantities assume a trench depth of 24 inches. | AT20: EW-204, Type B | AU20: DR-306
C21: Location | I21: Longitudinal Subdrain (DR-303) | P21: Subdrain Outlet | R21: Porous* Backfill | S21: Class "A"* Crushed Stone | T21: Remarks | W21: b.) Select the Single Outlet or Double Outlet button. | AA21: =C21 -> Location | AG21: =I21 -> Longitudinal Subdrain (DR-303) | AN21: =P21 -> Subdrain Outlet | AP21: =R21 -> Porous* Backfill | AQ21: =S21 -> Class "A"* Crushed Stone | AR21: =T21 -> Remarks | AT21: EW-204, Type C
C22: Line No. | D22: Road or Lane Identification | E22: Station to Station | G22: Side | H22: Depth | I22: Shoulder | K22: Backslope | M22: Bridge Berm (EW-203 or EW-204) | P22: DR-303, DR-305 or DR-306 | W22: c.) You will be asked if you want to insert a row. Select "Yes". | AA22: =C22 -> Line No. | AB22: =D22 -> Road or Lane Identification | AC22: =E22 -> Station to Station | AE22: =G22 -> Side | AF22: =H22 -> Depth | AG22: =I22 -> Shoulder | AI22: =K22 -> Backslope | AK22: =M22 -> Bridge Berm (EW-203 or EW-204) | AN22: =P22 -> DR-303, DR-305 or DR-306
I23: Size | J23: Length | K23: Size | L23: Length | M23: Standard Road Plan and Type | N23: Size | O23: Length | P23: Station | Q23: Standard Road Plan and Type | W23: d.) You will then be asked if you want to renumber. | AF23: =H23 -> 0
X24: 1. If you choose Yes, the macro will add one to all following subdrain Line Numbers. | AG24: =I23 -> Size | AH24: Length | AI24: Size | AJ24: Length | AK24: Standard Road Plan and Type | AL24: Size | AM24: Length | AN24: Station | AO24: Standard Road Plan and Type
H25: IN | I25: IN | J25: FT | K25: IN | L25: FT | N25: IN | O25: FT | R25: CY | S25: CY | Y25: Example: If you insert a line between lines 5 and 6, the line you insert will become 6 and the
C26: 1 | D26: EBL | E26: 138000 | F26: 138500 | G26: RT | H26: 42 | I26: 4 | J26: =IF(I26>0, ABS(F26-E26)+40,"") -> 540 | P26: =E26 -> 138000 | Q26: DR-306 | R26: =IF(I26>0,ROUND(J26*((((H26-6)/12)*(10/12))/27),1),IF(L26>0,ROUND((L26*(10/12)*((H26-18)/12)/27),1),)) -> 50 | S26: 0.4 | Y26: following line will become 7. | AF26: =H25 -> IN | AG26: =I25 -> IN | AH26: =J25 -> FT | AI26: =K25 -> IN | AJ26: =L25 -> FT | AL26: =N25 -> IN | AM26: =O25 -> FT | AP26: =R25 -> CY | AQ26: =S25 -> CY
P27: =F26 -> 138500 | Q27: DR-306 | S27: 0.4 | X27: 2. If you choose No, the macro will add a letter to the previous and inserted rows.
C28: 2 | D28: EBL | E28: 138500 | F28: 139000 | G28: RT | H28: 42 | I28: 4 | J28: =IF(I28>0, ABS(F28-E28)+40,"") -> 540 | P28: =E28 -> 138500 | Q28: DR-306 | R28: 50 | S28: 0.4 | Y28: Example: If you insert a line between lines 5 and 6, the previous line will become 5A and the
P29: =F28 -> 139000 | Q29: DR-306 | S29: 0.4 | Y29: line you inserted will become 5B. The following line will stay number 6.
C30: 3 | D30: EBL | E30: 139000 | F30: 139500 | G30: RT | H30: 42 | I30: 4 | J30: 540 | P30: =E30 -> 139000 | Q30: DR-306 | R30: 50 | S30: 0.4 | Y30: Example: If you insert a line between lines 5A and 5B, the previous line willstay 5A and the
P31: =F30 -> 139500 | Q31: DR-306 | S31: 0.4 | Y31: line that you insert will become 5B. The following line will become 5C. The macro will work up to "E".
C32: 4 | D32: EBL | E32: 139500 | F32: 140000 | G32: RT | H32: 42 | I32: 4 | J32: 540 | P32: =E32 -> 139500 | Q32: DR-306 | R32: 50 | S32: 0.4 | V32: 4.) | W32: If you are asked if you want to insert a row and you don't, choose "No" and the macro will take you to
P33: =F32 -> 140000 | Q33: DR-306 | S33: 0.4 | W33: the first available row.
C34: 5 | D34: EBL | E34: 140000 | F34: 140475 | G34: RT | H34: 42 | I34: 4 | J34: 515 | P34: =E34 -> 140000 | Q34: DR-306 | R34: 47.7 | S34: 0.4 | V34: 5.) | W34: You can press the Totals button at any time to look at your quantities. The Totals macro also places the
P35: =F34 -> 140475 | Q35: DR-306 | S35: 0.4 | W35: notes onto the tab.
C36: 6 | D36: EBL | E36: 140475 | F36: 140975 | G36: RT | H36: 42 | I36: 4 | J36: 540 | P36: =E36 -> 140475 | Q36: DR-306 | R36: 50 | S36: 0.4
P37: =F36 -> 140975 | Q37: DR-306 | S37: 0.4
C38: 7 | D38: EBL | E38: 140975 | F38: 141500 | G38: RT | H38: 42 | I38: 4 | J38: 565 | P38: =E38 -> 140975 | Q38: DR-306 | R38: 52.3 | S38: 0.4
P39: =F38 -> 141500 | Q39: DR-306 | S39: 0.4
C40: 8 | D40: EBL | E40: 141500 | F40: 142000 | G40: RT | H40: 42 | I40: 4 | J40: 540 | P40: =E40 -> 141500 | Q40: DR-306 | R40: 50 | S40: 0.4
P41: =F40 -> 142000 | Q41: DR-306 | S41: 0.4
C42: 9 | D42: EBL | E42: 142000 | F42: 142500 | G42: RT | H42: 42 | I42: 4 | J42: 540 | P42: =E42 -> 142000 | Q42: DR-306 | R42: 50 | S42: 0.4
P43: =F42 -> 142500 | Q43: DR-306 | S43: 0.4
C44: 10 | D44: EBL | E44: 142500 | F44: 143000 | G44: RT | H44: 42 | I44: 4 | J44: 540 | P44: =E44 -> 142500 | Q44: DR-306 | R44: 50 | S44: 0.4
P45: =F44 -> 143000 | Q45: DR-306 | S45: 0.4
C46: 11 | D46: EBL | E46: 143000 | F46: 143500 | G46: RT | H46: 42 | I46: 4 | J46: 540 | P46: =E46 -> 143000 | Q46: DR-306 | R46: 50 | S46: 0.4
P47: =F46 -> 143500 | Q47: DR-306 | S47: 0.4
C48: 12 | D48: EBL | E48: 143500 | F48: 144000 | G48: RT | H48: 42 | I48: 4 | J48: 540 | P48: =E48 -> 143500 | Q48: DR-306 | R48: 50 | S48: 0.4
P49: =F48 -> 144000 | Q49: DR-306 | S49: 0.4
C50: 13 | D50: EBL | E50: 144000 | F50: 144500 | G50: RT | H50: 42 | I50: 4 | J50: 540 | P50: =E50 -> 144000 | Q50: DR-306 | R50: 50 | S50: 0.4
P51: =F50 -> 144500 | Q51: DR-306 | S51: 0.4
C52: 14 | D52: EBL | E52: 144500 | F52: 145000 | G52: RT | H52: 42 | I52: 4 | J52: 540 | P52: =E52 -> 144500 | Q52: DR-306 | R52: 50 | S52: 0.4
P53: =F52 -> 145000 | Q53: DR-306 | S53: 0.4
C54: 15 | D54: EBL | E54: 145000 | F54: 145500 | G54: RT | H54: 42 | I54: 4 | J54: 540 | P54: =E54 -> 145000 | Q54: DR-306 | R54: 50 | S54: 0.4
P55: =F54 -> 145500 | Q55: DR-306 | S55: 0.4
C56: 16 | D56: EBL | E56: 145500 | F56: 146000 | G56: RT | H56: 42 | I56: 4 | J56: 540 | P56: =E56 -> 145500 | Q56: DR-306 | R56: 50 | S56: 0.4
P57: =F56 -> 146000 | Q57: DR-306 | S57: 0.4
C58: 17 | D58: EBL | E58: 146000 | F58: 146520 | G58: RT | H58: 42 | I58: 4 | J58: 560 | P58: =E58 -> 146000 | Q58: DR-306 | R58: 51.9 | S58: 0.4
P59: =F58 -> 146520 | Q59: DR-306 | S59: 0.4
C60: 18 | D60: EBL | E60: 146530 | F60: 146995 | G60: RT | H60: 42 | I60: 4 | J60: 505 | P60: =E60 -> 146530 | Q60: DR-306 | R60: 46.8 | S60: 0.4
P61: =F60 -> 146995 | Q61: DR-306 | S61: 0.4
C62: 19 | D62: EBL | E62: 147030 | F62: 147500 | G62: RT | H62: 42 | I62: 4 | J62: 510 | P62: =E62 -> 147030 | Q62: DR-306 | R62: 47.2 | S62: 0.4 | T62: US 30 EB AND LOOP A TAPER
P63: =F62 -> 147500 | Q63: DR-306 | S63: 0.4
C64: 20 | D64: EBL | E64: 147500 | F64: 147695 | G64: RT | H64: 42 | I64: 4 | J64: 235 | P64: =E64 -> 147500 | Q64: DR-306 | R64: 21.8 | S64: 0.4 | T64: US 30 EB AND LOOP A TAPER
P65: =F64 -> 147695 | Q65: DR-306 | S65: 0.4
C66: 21 | D66: EBL | E66: 147705 | F66: 147910 | G66: RT | H66: 42 | I66: 4 | J66: =IF(I66>0, ABS(F66-E66)+40,"") -> 245 | P66: =E66 -> 147705 | Q66: DR-306 | R66: =IF(I66>0,ROUND(J66*((((H66-6)/12)*(10/12))/27),1),IF(L66>0,ROUND((L66*(10/12)*((H66-18)/12)/27),1),)) -> 22.7 | S66: 0.4
P67: =F66 -> 147910 | Q67: DR-306 | S67: 0.4
C68: 22 | D68: EBL | E68: 147920 | F68: 148280 | G68: RT | H68: 42 | I68: 4 | J68: =IF(I68>0, ABS(F68-E68)+20,"") -> 380 | P68: =E68 -> 147920 | Q68: DR-306 | R68: 35.2 | S68: 0.4 | T68: INSTALL OUTLET PRIOR TO LOOP A
C69: 23 | D69: EBL | E69: 148280 | F69: 148640 | G69: RT | H69: 42 | I69: 4 | J69: 400 | P69: =E69 -> 148280 | Q69: DR-306 | R69: 37 | S69: 0.4
P70: =F69 -> 148640 | Q70: DR-306 | S70: 0.4
C71: 24 | D71: EBL | E71: 148640 | F71: 148990 | G71: RT | H71: 42 | I71: 4 | J71: =IF(I71>0, ABS(F71-E71)+20,"") -> 370 | P71: =E71 -> 148640 | Q71: DR-306 | R71: 34.3 | S71: 0.4 | T71: SINGLE OUTLET
C72: 25 | D72: EBL | E72: 149000 | F72: 149450 | G72: RT | H72: 42 | I72: 4 | J72: 490 | P72: 149000 | Q72: DR-306 | R72: 45.4 | S72: 0.4 | T72: US 30 EB/RAMP D TAPER; SING.OUT.
C73: 26 | D73: EBL | E73: 149450 | F73: 150000 | G73: RT | H73: 42 | I73: 4 | J73: =IF(I73>0, ABS(F73-E73)+20,"") -> 570 | P73: =F73 -> 150000 | Q73: DR-306 | R73: 52.8 | S73: 0.4 | T73: SINGLE OUTLET
C74: 27 | D74: EBL | E74: 150000 | F74: 150500 | G74: RT | H74: 42 | I74: 4 | J74: 540 | P74: =E74 -> 150000 | Q74: DR-306 | R74: 50 | S74: 0.4
P75: =F74 -> 150500 | Q75: DR-306 | S75: 0.4
C76: 28 | D76: EBL | E76: 150500 | F76: 151000 | G76: RT | H76: 42 | I76: 4 | J76: 540 | P76: =E76 -> 150500 | Q76: DR-306 | R76: 50 | S76: 0.4
P77: =F76 -> 151000 | Q77: DR-306 | S77: 0.4
C78: 29 | D78: EBL | E78: 151000 | F78: 151335 | G78: RT | H78: 42 | I78: 4 | J78: 375 | P78: =E78 -> 151000 | Q78: DR-306 | R78: 34.7 | S78: 0.4
P79: =F78 -> 151335 | Q79: DR-306 | S79: 0.4
C80: 30 | D80: EBL | E80: 151335 | F80: 151670 | G80: RT | H80: 42 | I80: 4 | J80: 375 | P80: =E80 -> 151335 | Q80: DR-306 | R80: 34.7 | S80: 0.4
P81: =F80 -> 151670 | Q81: DR-306 | S81: 0.4
C82: 31 | D82: WBL | E82: 138900 | F82: 139400 | G82: LT | H82: 42 | I82: 4 | J82: 540 | P82: =E82 -> 138900 | Q82: DR-306 | R82: 50 | S82: 0.4
P83: =F82 -> 139400 | Q83: DR-306 | S83: 0.4
C84: 32 | D84: WBL | E84: 139400 | F84: 139745 | G84: LT | H84: 42 | I84: 4 | J84: 385 | P84: =E84 -> 139400 | Q84: DR-306 | R84: 35.6 | S84: 0.4
P85: =F84 -> 139745 | Q85: DR-306 | S85: 0.4
C86: 33 | D86: WBL | E86: 139755 | F86: 140000 | G86: LT | H86: 42 | I86: 4 | J86: =IF(I86>0, ABS(F86-E86)+40,"") -> 285 | P86: =E86 -> 139755 | Q86: DR-306 | R86: =IF(I86>0,ROUND(J86*((((H86-6)/12)*(10/12))/27),1),IF(L86>0,ROUND((L86*(10/12)*((H86-18)/12)/27),1),)) -> 26.4 | S86: 0.4
P87: =F86 -> 140000 | Q87: DR-306 | S87: 0.4
C88: 34 | D88: WBL | E88: 140000 | F88: 140470 | G88: LT | H88: 42 | I88: 4 | J88: 510 | P88: =E88 -> 140000 | Q88: DR-306 | R88: 47.2 | S88: 0.4
P89: =F88 -> 140470 | Q89: DR-306 | S89: 0.4
C90: 35 | D90: WBL | E90: 140480 | F90: 140900 | G90: LT | H90: 42 | I90: 4 | J90: 460 | P90: =E90 -> 140480 | Q90: DR-306 | R90: 42.6 | S90: 0.4
P91: =F90 -> 140900 | Q91: DR-306 | S91: 0.4
C92: 36 | D92: WBL | E92: 140900 | F92: 141400 | G92: LT | H92: 42 | I92: 4 | J92: 540 | P92: =E92 -> 140900 | Q92: DR-306 | R92: 50 | S92: 0.4
P93: =F92 -> 141400 | Q93: DR-306 | S93: 0.4
C94: 37 | D94: WBL | E94: 141400 | F94: 141900 | G94: LT | H94: 42 | I94: 4 | J94: =IF(I94>0, ABS(F94-E94)+40,"") -> 540 | P94: =E94 -> 141400 | Q94: DR-306 | R94: =IF(I94>0,ROUND(J94*((((H94-6)/12)*(10/12))/27),1),IF(L94>0,ROUND((L94*(10/12)*((H94-18)/12)/27),1),)) -> 50 | S94: 0.4
P95: =F94 -> 141900 | Q95: DR-306 | S95: 0.4
C96: 38 | D96: WBL | E96: 141900 | F96: 142400 | G96: LT | H96: 42 | I96: 4 | J96: 540 | P96: =E96 -> 141900 | Q96: DR-306 | R96: 50 | S96: 0.4
P97: =F96 -> 142400 | Q97: DR-306 | S97: 0.4
C98: 39 | D98: WBL | E98: 142400 | F98: 142900 | G98: LT | H98: 42 | I98: 4 | J98: 540 | P98: =E98 -> 142400 | Q98: DR-306 | R98: 50 | S98: 0.4
P99: =F98 -> 142900 | Q99: DR-306 | S99: 0.4
C100: 40 | D100: WBL | E100: 142900 | F100: 143400 | G100: LT | H100: 42 | I100: 4 | J100: 540 | P100: =E100 -> 142900 | Q100: DR-306 | R100: 50 | S100: 0.4
P101: =F100 -> 143400 | Q101: DR-306 | S101: 0.4
C102: 41 | D102: WBL | E102: 143400 | F102: 143900 | G102: LT | H102: 42 | I102: 4 | J102: 540 | P102: =E102 -> 143400 | Q102: DR-306 | R102: 50 | S102: 0.4
P103: =F102 -> 143900 | Q103: DR-306 | S103: 0.4
C104: 42 | D104: WBL | E104: 143900 | F104: 144400 | G104: LT | H104: 42 | I104: 4 | J104: 540 | P104: =E104 -> 143900 | Q104: DR-306 | R104: 50 | S104: 0.4
P105: =F104 -> 144400 | Q105: DR-306 | S105: 0.4
C106: 43 | D106: WBL | E106: 144400 | F106: 144900 | G106: LT | H106: 42 | I106: 4 | J106: 540 | P106: =E106 -> 144400 | Q106: DR-306 | R106: 50 | S106: 0.4
P107: =F106 -> 144900 | Q107: DR-306 | S107: 0.4
C108: 44 | D108: WBL | E108: 144900 | F108: 145400 | G108: LT | H108: 42 | I108: 4 | J108: 540 | P108: =E108 -> 144900 | Q108: DR-306 | R108: 50 | S108: 0.4
P109: =F108 -> 145400 | Q109: DR-306 | S109: 0.4
C110: 45 | D110: WBL | E110: 145400 | F110: 145750 | G110: LT | H110: 42 | I110: 4 | J110: 390 | P110: =E110 -> 145400 | Q110: DR-306 | R110: 36.1 | S110: 0.4
P111: =F110 -> 145750 | Q111: DR-306 | S111: 0.4
C112: 46 | D112: WBL | E112: 145750 | F112: 146070 | G112: LT | H112: 42 | I112: 4 | J112: 360 | P112: =E112 -> 145750 | Q112: DR-306 | R112: 33.3 | S112: 0.4 | T112: US 30 WB AND RAMP C TAPER
P113: =F112 -> 146070 | Q113: DR-306 | S113: 0.4
C114: 47 | D114: WBL | E114: 146105 | F114: 146500 | G114: LT | H114: 42 | I114: 4 | J114: =IF(I114>0, ABS(F114-E114)+20,"") -> 415 | P114: 146500 | Q114: DR-306 | R114: 38.4 | S114: 0.4 | T114: SINGLE OUTLET
C115: 48 | D115: WBL | E115: 146500 | F115: 146845 | G115: LT | H115: 42 | I115: 4 | J115: 385 | P115: =E115 -> 146500 | Q115: DR-306 | R115: 35.6 | S115: 0.4
P116: =F115 -> 146845 | Q116: DR-306 | S116: 0.4
C117: 49 | D117: WBL | E117: 146845 | F117: 147220 | G117: LT | H117: 42 | I117: 4 | J117: =IF(I117>0, ABS(F117-E117)+20,"") -> 395 | P117: =E117 -> 146845 | Q117: DR-306 | R117: 36.6 | S117: 0.4 | T117: SINGLE OUTLET
C118: 50 | D118: WBL | E118: 147230 | F118: 147730 | G118: LT | H118: 36 | I118: 4 | J118: 540 | P118: 147230 | Q118: DR-306 | R118: 41.7 | S118: 0.4 | T118: US 30 WB AND LOOP B TAPER
P119: =F118 -> 147730 | Q119: DR-306 | S119: 0.4
C120: 51 | D120: WBL | E120: 147730 | F120: 148230 | G120: LT | H120: 36 | I120: 4 | J120: 540 | P120: =E120 -> 147730 | Q120: DR-306 | R120: 41.7 | S120: 0.4
P121: =F120 -> 148230 | Q121: DR-306 | S121: 0.4
C122: 52 | D122: WBL | E122: 148230 | F122: 148730 | G122: LT | H122: 36 | I122: 4 | J122: 540 | P122: =E122 -> 148230 | Q122: DR-306 | R122: 41.7 | S122: 0.4
P123: =F122 -> 148730 | Q123: DR-306 | S123: 0.4
C124: 53 | D124: WBL | E124: 148730 | F124: 149230 | G124: LT | H124: 42 | I124: 4 | J124: 540 | P124: =E124 -> 148730 | Q124: DR-306 | R124: 50 | S124: 0.4
P125: =F124 -> 149230 | Q125: DR-306 | S125: 0.4
C126: 54 | D126: WBL | E126: 149230 | F126: 149730 | G126: LT | H126: 42 | I126: 4 | J126: 540 | P126: =E126 -> 149230 | Q126: DR-306 | R126: 50 | S126: 0.4
P127: =F126 -> 149730 | Q127: DR-306 | S127: 0.4
C128: 55 | D128: WBL | E128: 149730 | F128: 150230 | G128: LT | H128: 42 | I128: 4 | J128: 540 | P128: =E128 -> 149730 | Q128: DR-306 | R128: 50 | S128: 0.4
P129: =F128 -> 150230 | Q129: DR-306 | S129: 0.4
C130: 56 | D130: WBL | E130: 150230 | F130: 150730 | G130: LT | H130: 42 | I130: 4 | J130: 540 | P130: =E130 -> 150230 | Q130: DR-306 | R130: 50 | S130: 0.4
P131: =F130 -> 150730 | Q131: DR-306 | S131: 0.4
C132: 57 | D132: WBL | E132: 150730 | F132: 151230 | G132: LT | H132: 42 | I132: 4 | J132: 540 | P132: =E132 -> 150730 | Q132: DR-306 | R132: 50 | S132: 0.4
P133: =F132 -> 151230 | Q133: DR-306 | S133: 0.4
C134: 58 | D134: WBL | E134: 151230 | F134: 151670 | G134: LT | H134: 18 | I134: 4 | J134: 480 | P134: =E134 -> 151230 | Q134: DR-306 | R134: 14.8 | S134: 0.4
P135: =F134 -> 151670 | Q135: DR-306 | S135: 0.4
C136: 59 | D136: Loop A | E136: 1147915 | F136: 1148400 | G136: RT | H136: 42 | I136: 4 | J136: 525 | P136: =E136 -> 1147915 | Q136: DR-306 | R136: 48.6 | S136: 0.4 | T136: OUTLET WITH LINE NO. 22
P137: =F136 -> 1148400 | Q137: DR-306 | S137: 0.4
C138: 60 | D138: Loop A | E138: 1148400 | F138: 1148664.72 | G138: RT | H138: 42 | I138: 4 | J138: 304.72 | P138: =E138 -> 1148400 | Q138: DR-306 | R138: 28.2 | S138: 0.4
P139: =F138 -> 1148664.72 | Q139: DR-306 | S139: 0.4
C140: 61 | D140: Loop B | E140: 2147225 | F140: 2147375 | G140: RT | H140: 42 | I140: 4 | J140: 190 | P140: =E140 -> 2147225 | Q140: DR-306 | R140: 17.6 | S140: 0.4
P141: =F140 -> 2147375 | Q141: DR-306 | S141: 0.4
C142: 62 | D142: Loop B | E142: 2147375 | F142: 2147675 | G142: RT | H142: 42 | I142: 4 | J142: 340 | P142: =E142 -> 2147375 | Q142: DR-306 | R142: 31.5 | S142: 0.4
P143: =F142 -> 2147675 | Q143: DR-306 | S143: 0.4
C144: 63 | D144: Loop B | E144: 2147675 | F144: 2147975.06 | G144: RT | H144: 42 | I144: 4 | J144: =IF(I144>0, ABS(F144-E144)+40,"") -> 340.06 | P144: =E144 -> 2147675 | Q144: DR-306 | R144: =IF(I144>0,ROUND(J144*((((H144-6)/12)*(10/12))/27),1),IF(L144>0,ROUND((L144*(10/12)*((H144-18)/12)/27),1),)) -> 31.5 | S144: 0.4
P145: =F144 -> 2147975.06 | Q145: DR-306 | S145: 0.4
C146: 64 | D146: Ramp C | E146: 3144100 | F146: 3144370 | G146: LT | H146: 42 | I146: 4 | J146: 310 | P146: =E146 -> 3144100 | Q146: DR-306 | R146: 28.7 | S146: 0.4 | T146: RAMP C AND LOOP B TAPER
P147: =F146 -> 3144370 | Q147: DR-306 | S147: 0.4
C148: 65 | D148: Ramp C | E148: 3144375 | F148: 3144775 | G148: LT | H148: 42 | I148: 4 | J148: 440 | P148: =F148 -> 3144775 | Q148: DR-306 | R148: 40.7 | S148: 0.4 | T148: SINGLE OUTLET
C149: 66 | D149: Ramp C | E149: 3144775 | F149: 3145210 | G149: RT | H149: 42 | I149: 4 | J149: 475 | P149: =E149 -> 3144775 | Q149: DR-306 | R149: 44 | S149: 0.4 | T149: SUPERELEV. CHANGE - OUTLET RIGHT
P150: =F149 -> 3145210 | Q150: DR-306 | S150: 0.4
C151: 67 | D151: Ramp C | E151: 3145210 | F151: 3145370 | G151: RT | H151: 42 | I151: 4 | J151: 200 | P151: =E151 -> 3145210 | Q151: DR-306 | R151: 18.5 | S151: 0.4
P152: =F151 -> 3145370 | Q152: DR-306 | S152: 0.4
C153: 68 | D153: Ramp C | E153: 3145380 | F153: 3145475 | G153: RT | H153: 42 | I153: 4 | J153: =IF(I153>0, ABS(F153-E153)+40,"") -> 135 | P153: =E153 -> 3145380 | Q153: DR-306 | R153: =IF(I153>0,ROUND(J153*((((H153-6)/12)*(10/12))/27),1),IF(L153>0,ROUND((L153*(10/12)*((H153-18)/12)/27),1),)) -> 12.5 | S153: 0.4
P154: =F153 -> 3145475 | Q154: DR-306 | S154: 0.4
C155: 69 | D155: Ramp C | E155: 3145475 | F155: 3145646.34 | G155: RT | H155: 42 | I155: 4 | J155: =IF(I155>0, ABS(F155-E155)+40,"") -> 211.34 | P155: =E155 -> 3145475 | Q155: DR-306 | R155: =IF(I155>0,ROUND(J155*((((H155-6)/12)*(10/12))/27),1),IF(L155>0,ROUND((L155*(10/12)*((H155-18)/12)/27),1),)) -> 19.6 | S155: 0.4
P156: =F155 -> 3145646.34 | Q156: DR-306 | S156: 0.4
C157: 70 | D157: Ramp D | E157: 4147500 | F157: 4147755 | G157: LT | H157: 42 | I157: 4 | J157: 295 | P157: =E157 -> 4147500 | Q157: DR-306 | R157: 27.3 | S157: 0.4 | T157: RAMP D AND LOOP A TAPER
P158: =F157 -> 4147755 | Q158: DR-306 | S158: 0.4
C159: 71 | D159: Ramp D | E159: 4147765 | F159: 4148225 | G159: LT | H159: 42 | I159: 4 | J159: =IF(I159>0, ABS(F159-E159)+20,"") -> 480 | P159: =F159 -> 4148225 | Q159: DR-306 | R159: 44.4 | S159: 0.4 | T159: SINGLE OUTLET
C160: 72 | D160: Ramp D | E160: 4148225 | F160: 4148600 | G160: RT | H160: 42 | I160: 4 | J160: =IF(I160>0, ABS(F160-E160)+40,"") -> 415 | P160: =E160 -> 4148225 | Q160: DR-306 | R160: =IF(I160>0,ROUND(J160*((((H160-6)/12)*(10/12))/27),1),IF(L160>0,ROUND((L160*(10/12)*((H160-18)/12)/27),1),)) -> 38.4 | S160: 0.4 | T160: SUPERELEV. CHANGE - OUTLET RIGHT
P161: =F160 -> 4148600 | Q161: DR-306 | S161: 0.4
C162: 73 | D162: Ramp D | E162: 4148600 | F162: 4148996.32 | G162: RT | H162: 42 | I162: 4 | J162: 436.32 | P162: =E162 -> 4148600 | Q162: DR-306 | R162: 40.4 | S162: 0.4
P163: =F162 -> 4148996.32 | Q163: DR-306 | S163: 0.4
C164: 74 | D164: US 218 | E164: 24146800 | F164: 24147125 | G164: LT | H164: 42 | I164: 4 | J164: 365 | P164: =E164 -> 24146800 | Q164: DR-306 | R164: 33.8 | S164: 0.4
P165: =F164 -> 24147125 | Q165: DR-306 | S165: 0.4
C166: 75 | D166: US 218 | E166: 24147710 | F166: 24148050 | G166: LT | H166: 42 | I166: 4 | J166: 380 | P166: =E166 -> 24147710 | Q166: DR-306 | R166: 35.2 | S166: 0.4
P167: =F166 -> 24148050 | Q167: DR-306 | S167: 0.4
C168: 76 | D168: US 218 | E168: 24148050 | F168: 24148336.2 | G168: LT | H168: 42 | I168: 4 | J168: 326.2 | P168: =E168 -> 24148050 | Q168: DR-306 | R168: 30.2 | S168: 0.4
P169: =F168 -> 24148336.2 | Q169: DR-306 | S169: 0.4
C170: 77 | D170: US 218 | E170: 24148336.2 | F170: 24148825 | G170: LT | H170: 42 | I170: 4 | J170: 528.8 | P170: =E170 -> 24148336.2 | Q170: DR-306 | R170: 49 | S170: 0.4
P171: =F170 -> 24148825 | Q171: DR-306 | S171: 0.4
C172: 78 | D172: US 218 | E172: 24148825 | F172: 24149315 | G172: LT | H172: 42 | I172: 4 | J172: 530 | P172: =E172 -> 24148825 | Q172: DR-306 | R172: 49.1 | S172: 0.4
P173: =F172 -> 24149315 | Q173: DR-306 | S173: 0.4
C174: 79 | D174: US 218 | E174: 24149315 | F174: 24149805 | G174: LT | H174: 30 | I174: 4 | J174: 530 | P174: =E174 -> 24149315 | Q174: DR-306 | R174: 32.7 | S174: 0.4
P175: =F174 -> 24149805 | Q175: DR-306 | S175: 0.4
C176: 80 | D176: US 218 | E176: 24149805 | F176: 24150300 | G176: LT | H176: 30 | I176: 4 | J176: 535 | P176: =E176 -> 24149805 | Q176: DR-306 | R176: 33 | S176: 0.4
P177: =F176 -> 24150300 | Q177: DR-306 | S177: 0.4
C178: 81 | D178: US 218 | E178: 24146800 | F178: 24147100 | G178: RT | H178: 42 | I178: 4 | J178: 340 | P178: =E178 -> 24146800 | Q178: DR-306 | R178: 31.5 | S178: 0.4
P179: =F178 -> 24147100 | Q179: DR-306 | S179: 0.4
C180: 82 | D180: US 218 | E180: 24147100 | F180: 24147375 | G180: RT | H180: 42 | I180: 4 | J180: 315 | P180: =E180 -> 24147100 | Q180: DR-306 | R180: 29.2 | S180: 0.4
P181: =F180 -> 24147375 | Q181: DR-306 | S181: 0.4
C182: 83 | D182: US 218 | E182: 24147710 | F182: 24148150 | G182: RT | H182: 42 | I182: 4 | J182: 480 | P182: =E182 -> 24147710 | Q182: DR-306 | R182: 44.4 | S182: 0.4
P183: =F182 -> 24148150 | Q183: DR-306 | S183: 0.4
C184: 84 | D184: US 218 | E184: 24148150 | F184: 24148650 | G184: RT | H184: 42 | I184: 4 | J184: 540 | P184: =E184 -> 24148150 | Q184: DR-306 | R184: 50 | S184: 0.4
P185: =F184 -> 24148650 | Q185: DR-306 | S185: 0.4
C186: 85 | D186: US 218 | E186: 24148650 | F186: 24149150 | G186: RT | H186: 30 | I186: 4 | J186: 540 | P186: =E186 -> 24148650 | Q186: DR-306 | R186: 33.3 | S186: 0.4
P187: =F186 -> 24149150 | Q187: DR-306 | S187: 0.4
C188: 86 | D188: US 218 | E188: 24149150 | F188: 24149400 | G188: RT | H188: 26 | I188: 4 | J188: 290 | P188: =E188 -> 24149150 | Q188: DR-306 | R188: 14.9 | S188: 0.4
P189: =F188 -> 24149400 | Q189: DR-306 | S189: 0.4
C190: 87 | D190: US 218 | E190: 24149400 | F190: 24150300 | G190: RT | H190: 22 | I190: 4 | J190: 940 | P190: =E190 -> 24149400 | Q190: DR-306 | R190: 38.7 | S190: 0.4 | T190: SHALLOW DITCH; SEE NOTE BELOW
P191: =F190 -> 24150300 | Q191: DR-306 | S191: 0.4
D195: Totals | J195: =SUBTOTAL(9,J26:J192) -> 40257.44 | Q195: DR-306 = 166 | R195: =SUBTOTAL(9,R26:R192) -> 3563.1 | S195: =SUBTOTAL(9,S26:S192) -> 66.4
D197: NOTE: ALL LONGITUDINAL SUBDRAINS ARE TYPE 7 WITH PCC UNLESS OTHERWISE NOTED IN REMARKS COLUMN.
D198: NOTE: LINE NO. 84 OUTLETS SHALL DAYLIGHT AT LEAST 6 INCHES ABOVE BASE OF DITCH.
D199: NOTE: LINE NO. 22 SHALL OUTLET AT SAME LOCATION AS LINE NO. 57.
D204: NEW OUTLET TO BE ADDED
D205: US 218 | G205: RT | H205: 48 | I205: 4 | J205: 20 | P205: 24150300 | Q205: DR-306 | R205: =IF(I205>0,ROUND(J205*((((H205-6)/12)*(10/12))/27),1),IF(L205>0,ROUND((L205*(10/12)*((H205-18)/12)/27),1),)) -> 2.2 | S205: 0.4
D209: Totals | J209: =+SUM(J205:J205) -> 20 | Q209: DR-306 = 1 | R209: =+SUM(R205:R205) -> 2.2 | S209: =+SUM(S205:S205) -> 0.4

Sheet DE107_31
A1: TabTitle | B1: =C15 -> PLOWING AND SHAPING
A2: Number of Tab Columns | B2: 4
A3: DE Starter Row Number | B3: 22
A4: TabSheet Starter Row Number | B4: 9
A5: TabSheet Header Row Count | B5: 8
A6: Top Header Cell | B6: H15
A7: Bottom Header Cell | B7: K22
A8: DESheet Row Count | B8: 11
A9: Fixed Empty Rows | B9: 2
A10: Usable Empty Rows | B10: 4
A11: Total Rows Placed | B11: 17 | C11: xlRight(1) | D11: xlRight(1) | E11: xlRight(1) | F11: xlLeft(1) | H11: =C11 -> xlRight(1) | I11: xlRight(1) | J11: xlRight(1) | K11: xlLeft(1)
A12: Total Rows Needed | B12: =SUM(B8:B10) -> 17 | C12: #+00.00 | D12: #+00.00 | E12: 0.0 | F12: General | H12: #+00.00 | I12: #+00.00 | J12: 0.0 | K12: General
A13: Last Tab DE Starter Row | B13: 22 | C13: =CELL("width",C13) -> 16 | D13: =CELL("width",D13) -> 16 | E13: =CELL("width",E13) -> 10 | F13: =CELL("width",F13) -> 33 | H13: =CELL("width",H13) -> 0 | I13: =CELL("width",I13) -> 0 | J13: =CELL("width",J13) -> 0 | K13: =CELL("width",K13) -> 0
A14: Last Tab Tabsheet Starter Row | B14: 9 | C14: A | D14: B | E14: C | F14: D | H14: =LOWER(C14) -> a | I14: =LOWER(D14) -> b | J14: =LOWER(E14) -> c | K14: =LOWER(F14) -> d | L14: =LOWER(G14) -> 
A15: Last Copy Starter Row | B15: 1 | C15: PLOWING AND SHAPING | H15: 107-31
A16: Tab Loop Number | B16: 2 | H16: =B17 -> 2011-04-19
A17: Revision Date | B17: 2011-04-19 | C17: Refer to Standard Road Plan EW-101 | H17: =C15 -> PLOWING AND SHAPING
A18: Tabulation Width | B18: 1 | C18: ="This Data Entry Sheet fills Tab "&H15&" effective "&TEXT(B17,"mm-dd-yy") -> This Data Entry Sheet fills Tab 107-31 effective 04-19-11
A19: Horizontal Grid Lines | B19: Yes | C19: Station to Station | E19: D | F19: Remarks | H19: =C17 -> Refer to Standard Road Plan EW-101
H20: =C19 -> Station to Station | J20: =E19 -> D | K20: =F19 -> Remarks
E21: FT
C22: 1458+75 | D22: 1466+00 | E22: 4.5 | F22: Stage 1 | J22: =E21 -> FT
C23: 1490+00 | D23: 1491+25 | E23: 4.5 | F23: Stage 1
C24: 1492+50 | D24: 1507+00 | E24: 4.5 | F24: Stage 1
C25: 1395+50 | D25: 1397+00 | E25: 5 | F25: Stage 2
C26: 1413+75 | D26: 1418+75 | E26: 5 | F26: Stage 2
C27: 1433+50 | D27: 1438+25 | E27: 5 | F27: Stage 2
C28: 1438+50 | D28: 1440+50 | E28: 3.5 | F28: Stage 2
C29: 1448+25 | D29: 1457+75 | E29: 5 | F29: Stage 2
C30: 1458+00 | D30: 1459+50 | E30: 3.5 | F30: Stage 2
C31: 1486+25 | D31: 1493+50 | E31: 3.5 | F31: Stage 2
C32: 1498+50 | D32: 1506+00 | E32: 5 | F32: Stage 2

Sheet 103_6
A1: 103-6
A2: 2017-10-17
A3: EMBANKMENT WITH MOISTURE CONTROL
A5: =IF(OFFSET(DE103_6!$C$19,ROWS($C$19:C19)-1,COLUMNS($C$19:C19)-1)<>"",OFFSET(DE103_6!$C$19,ROWS($C$19:C19)-1,COLUMNS($C$19:C19)-1),"") -> Moisture Control is required for all Class 10 fill placed in all
A6: =IF(OFFSET(DE103_6!$C$19,ROWS($C$19:C20)-1,COLUMNS($C$19:C20)-1)<>"",OFFSET(DE103_6!$C$19,ROWS($C$19:C20)-1,COLUMNS($C$19:C20)-1),"") -> locations and depths. Topsoil will not require Moisture Control.
A7: =IF(OFFSET(DE103_6!$C$19,ROWS($C$19:C21)-1,COLUMNS($C$19:C21)-1)<>"",OFFSET(DE103_6!$C$19,ROWS($C$19:C21)-1,COLUMNS($C$19:C21)-1),"") -> 
A8: =IF(OFFSET(DE103_6!$C$19,ROWS($C$19:C22)-1,COLUMNS($C$19:C22)-1)<>"",OFFSET(DE103_6!$C$19,ROWS($C$19:C22)-1,COLUMNS($C$19:C22)-1),"") -> 

Sheet 103_5
A1: 103-5
A2: 2013-10-15
A3: SETTLEMENT PLATES
A5: Refer to Standard Road Plan EW-212
A6: No. | B6: Location | D6: Remarks
B8: Station | C8: Offset
A9: =IF(OFFSET(DE103_5!$C$22,ROWS($C$22:C22)-1,COLUMNS($C$22:C22)-1)<>"",OFFSET(DE103_5!$C$22,ROWS($C$22:C22)-1,COLUMNS($C$22:C22)-1),"") -> 1 | B9: =IF(OFFSET(DE103_5!$D$22,ROWS($D$22:D22)-1,COLUMNS($D$22:D22)-1)<>"",OFFSET(DE103_5!$D$22,ROWS($D$22:D22)-1,COLUMNS($D$22:D22)-1),"") -> 138800 | C9: =IF(OFFSET(DE103_5!$E$22,ROWS($E$22:E22)-1,COLUMNS($E$22:E22)-1)<>"",OFFSET(DE103_5!$E$22,ROWS($E$22:E22)-1,COLUMNS($E$22:E22)-1),"") -> 25' RT | D9: =IF(OFFSET(DE103_5!$F$22,ROWS($F$22:F22)-1,COLUMNS($F$22:F22)-1)<>"",OFFSET(DE103_5!$F$22,ROWS($F$22:F22)-1,COLUMNS($F$22:F22)-1),"") -> SP-1
A10: =IF(OFFSET(DE103_5!$C$22,ROWS($C$22:C23)-1,COLUMNS($C$22:C23)-1)<>"",OFFSET(DE103_5!$C$22,ROWS($C$22:C23)-1,COLUMNS($C$22:C23)-1),"") -> 2 | B10: =IF(OFFSET(DE103_5!$D$22,ROWS($D$22:D23)-1,COLUMNS($D$22:D23)-1)<>"",OFFSET(DE103_5!$D$22,ROWS($D$22:D23)-1,COLUMNS($D$22:D23)-1),"") -> 138975 | C10: =IF(OFFSET(DE103_5!$E$22,ROWS($E$22:E23)-1,COLUMNS($E$22:E23)-1)<>"",OFFSET(DE103_5!$E$22,ROWS($E$22:E23)-1,COLUMNS($E$22:E23)-1),"") -> 25' LT | D10: =IF(OFFSET(DE103_5!$F$22,ROWS($F$22:F23)-1,COLUMNS($F$22:F23)-1)<>"",OFFSET(DE103_5!$F$22,ROWS($F$22:F23)-1,COLUMNS($F$22:F23)-1),"") -> SP-2, Stage 2
A11: =IF(OFFSET(DE103_5!$C$22,ROWS($C$22:C24)-1,COLUMNS($C$22:C24)-1)<>"",OFFSET(DE103_5!$C$22,ROWS($C$22:C24)-1,COLUMNS($C$22:C24)-1),"") -> 3 | B11: =IF(OFFSET(DE103_5!$D$22,ROWS($D$22:D24)-1,COLUMNS($D$22:D24)-1)<>"",OFFSET(DE103_5!$D$22,ROWS($D$22:D24)-1,COLUMNS($D$22:D24)-1),"") -> 142540 | C11: =IF(OFFSET(DE103_5!$E$22,ROWS($E$22:E24)-1,COLUMNS($E$22:E24)-1)<>"",OFFSET(DE103_5!$E$22,ROWS($E$22:E24)-1,COLUMNS($E$22:E24)-1),"") -> 25' RT | D11: =IF(OFFSET(DE103_5!$F$22,ROWS($F$22:F24)-1,COLUMNS($F$22:F24)-1)<>"",OFFSET(DE103_5!$F$22,ROWS($F$22:F24)-1,COLUMNS($F$22:F24)-1),"") -> SP-3
A12: =IF(OFFSET(DE103_5!$C$22,ROWS($C$22:C25)-1,COLUMNS($C$22:C25)-1)<>"",OFFSET(DE103_5!$C$22,ROWS($C$22:C25)-1,COLUMNS($C$22:C25)-1),"") -> 4 | B12: =IF(OFFSET(DE103_5!$D$22,ROWS($D$22:D25)-1,COLUMNS($D$22:D25)-1)<>"",OFFSET(DE103_5!$D$22,ROWS($D$22:D25)-1,COLUMNS($D$22:D25)-1),"") -> 142540 | C12: =IF(OFFSET(DE103_5!$E$22,ROWS($E$22:E25)-1,COLUMNS($E$22:E25)-1)<>"",OFFSET(DE103_5!$E$22,ROWS($E$22:E25)-1,COLUMNS($E$22:E25)-1),"") -> 60' LT | D12: =IF(OFFSET(DE103_5!$F$22,ROWS($F$22:F25)-1,COLUMNS($F$22:F25)-1)<>"",OFFSET(DE103_5!$F$22,ROWS($F$22:F25)-1,COLUMNS($F$22:F25)-1),"") -> SP-4, Stage 2
A13: =IF(OFFSET(DE103_5!$C$22,ROWS($C$22:C26)-1,COLUMNS($C$22:C26)-1)<>"",OFFSET(DE103_5!$C$22,ROWS($C$22:C26)-1,COLUMNS($C$22:C26)-1),"") -> 5 | B13: =IF(OFFSET(DE103_5!$D$22,ROWS($D$22:D26)-1,COLUMNS($D$22:D26)-1)<>"",OFFSET(DE103_5!$D$22,ROWS($D$22:D26)-1,COLUMNS($D$22:D26)-1),"") -> 4147600 | C13: =IF(OFFSET(DE103_5!$E$22,ROWS($E$22:E26)-1,COLUMNS($E$22:E26)-1)<>"",OFFSET(DE103_5!$E$22,ROWS($E$22:E26)-1,COLUMNS($E$22:E26)-1),"") -> 10' RT | D13: =IF(OFFSET(DE103_5!$F$22,ROWS($F$22:F26)-1,COLUMNS($F$22:F26)-1)<>"",OFFSET(DE103_5!$F$22,ROWS($F$22:F26)-1,COLUMNS($F$22:F26)-1),"") -> SP-5
A14: =IF(OFFSET(DE103_5!$C$22,ROWS($C$22:C27)-1,COLUMNS($C$22:C27)-1)<>"",OFFSET(DE103_5!$C$22,ROWS($C$22:C27)-1,COLUMNS($C$22:C27)-1),"") -> 6 | B14: =IF(OFFSET(DE103_5!$D$22,ROWS($D$22:D27)-1,COLUMNS($D$22:D27)-1)<>"",OFFSET(DE103_5!$D$22,ROWS($D$22:D27)-1,COLUMNS($D$22:D27)-1),"") -> 4148200 | C14: =IF(OFFSET(DE103_5!$E$22,ROWS($E$22:E27)-1,COLUMNS($E$22:E27)-1)<>"",OFFSET(DE103_5!$E$22,ROWS($E$22:E27)-1,COLUMNS($E$22:E27)-1),"") -> 10' RT | D14: =IF(OFFSET(DE103_5!$F$22,ROWS($F$22:F27)-1,COLUMNS($F$22:F27)-1)<>"",OFFSET(DE103_5!$F$22,ROWS($F$22:F27)-1,COLUMNS($F$22:F27)-1),"") -> SP-6
A15: =IF(OFFSET(DE103_5!$C$22,ROWS($C$22:C28)-1,COLUMNS($C$22:C28)-1)<>"",OFFSET(DE103_5!$C$22,ROWS($C$22:C28)-1,COLUMNS($C$22:C28)-1),"") -> 7 | B15: =IF(OFFSET(DE103_5!$D$22,ROWS($D$22:D28)-1,COLUMNS($D$22:D28)-1)<>"",OFFSET(DE103_5!$D$22,ROWS($D$22:D28)-1,COLUMNS($D$22:D28)-1),"") -> 241477+35 | C15: =IF(OFFSET(DE103_5!$E$22,ROWS($E$22:E28)-1,COLUMNS($E$22:E28)-1)<>"",OFFSET(DE103_5!$E$22,ROWS($E$22:E28)-1,COLUMNS($E$22:E28)-1),"") -> 20' RT | D15: =IF(OFFSET(DE103_5!$F$22,ROWS($F$22:F28)-1,COLUMNS($F$22:F28)-1)<>"",OFFSET(DE103_5!$F$22,ROWS($F$22:F28)-1,COLUMNS($F$22:F28)-1),"") -> SP-7
A16: =IF(OFFSET(DE103_5!$C$22,ROWS($C$22:C29)-1,COLUMNS($C$22:C29)-1)<>"",OFFSET(DE103_5!$C$22,ROWS($C$22:C29)-1,COLUMNS($C$22:C29)-1),"") ->  | B16: =IF(OFFSET(DE103_5!$D$22,ROWS($D$22:D29)-1,COLUMNS($D$22:D29)-1)<>"",OFFSET(DE103_5!$D$22,ROWS($D$22:D29)-1,COLUMNS($D$22:D29)-1),"") ->  | C16: =IF(OFFSET(DE103_5!$E$22,ROWS($E$22:E29)-1,COLUMNS($E$22:E29)-1)<>"",OFFSET(DE103_5!$E$22,ROWS($E$22:E29)-1,COLUMNS($E$22:E29)-1),"") ->  | D16: =IF(OFFSET(DE103_5!$F$22,ROWS($F$22:F29)-1,COLUMNS($F$22:F29)-1)<>"",OFFSET(DE103_5!$F$22,ROWS($F$22:F29)-1,COLUMNS($F$22:F29)-1),"") -> 
A17: =IF(OFFSET(DE103_5!$C$22,ROWS($C$22:C30)-1,COLUMNS($C$22:C30)-1)<>"",OFFSET(DE103_5!$C$22,ROWS($C$22:C30)-1,COLUMNS($C$22:C30)-1),"") ->  | B17: =IF(OFFSET(DE103_5!$D$22,ROWS($D$22:D30)-1,COLUMNS($D$22:D30)-1)<>"",OFFSET(DE103_5!$D$22,ROWS($D$22:D30)-1,COLUMNS($D$22:D30)-1),"") ->  | C17: =IF(OFFSET(DE103_5!$E$22,ROWS($E$22:E30)-1,COLUMNS($E$22:E30)-1)<>"",OFFSET(DE103_5!$E$22,ROWS($E$22:E30)-1,COLUMNS($E$22:E30)-1),"") ->  | D17: =IF(OFFSET(DE103_5!$F$22,ROWS($F$22:F30)-1,COLUMNS($F$22:F30)-1)<>"",OFFSET(DE103_5!$F$22,ROWS($F$22:F30)-1,COLUMNS($F$22:F30)-1),"") -> 
A18: =IF(OFFSET(DE103_5!$C$22,ROWS($C$22:C31)-1,COLUMNS($C$22:C31)-1)<>"",OFFSET(DE103_5!$C$22,ROWS($C$22:C31)-1,COLUMNS($C$22:C31)-1),"") ->  | B18: =IF(OFFSET(DE103_5!$D$22,ROWS($D$22:D31)-1,COLUMNS($D$22:D31)-1)<>"",OFFSET(DE103_5!$D$22,ROWS($D$22:D31)-1,COLUMNS($D$22:D31)-1),"") ->  | C18: =IF(OFFSET(DE103_5!$E$22,ROWS($E$22:E31)-1,COLUMNS($E$22:E31)-1)<>"",OFFSET(DE103_5!$E$22,ROWS($E$22:E31)-1,COLUMNS($E$22:E31)-1),"") ->  | D18: =IF(OFFSET(DE103_5!$F$22,ROWS($F$22:F31)-1,COLUMNS($F$22:F31)-1)<>"",OFFSET(DE103_5!$F$22,ROWS($F$22:F31)-1,COLUMNS($F$22:F31)-1),"") -> 
A19: =IF(OFFSET(DE103_5!$C$22,ROWS($C$22:C32)-1,COLUMNS($C$22:C32)-1)<>"",OFFSET(DE103_5!$C$22,ROWS($C$22:C32)-1,COLUMNS($C$22:C32)-1),"") ->  | B19: =IF(OFFSET(DE103_5!$D$22,ROWS($D$22:D32)-1,COLUMNS($D$22:D32)-1)<>"",OFFSET(DE103_5!$D$22,ROWS($D$22:D32)-1,COLUMNS($D$22:D32)-1),"") ->  | C19: =IF(OFFSET(DE103_5!$E$22,ROWS($E$22:E32)-1,COLUMNS($E$22:E32)-1)<>"",OFFSET(DE103_5!$E$22,ROWS($E$22:E32)-1,COLUMNS($E$22:E32)-1),"") ->  | D19: =IF(OFFSET(DE103_5!$F$22,ROWS($F$22:F32)-1,COLUMNS($F$22:F32)-1)<>"",OFFSET(DE103_5!$F$22,ROWS($F$22:F32)-1,COLUMNS($F$22:F32)-1),"") -> 
A20: =IF(OFFSET(DE103_5!$C$22,ROWS($C$22:C33)-1,COLUMNS($C$22:C33)-1)<>"",OFFSET(DE103_5!$C$22,ROWS($C$22:C33)-1,COLUMNS($C$22:C33)-1),"") ->  | B20: =IF(OFFSET(DE103_5!$D$22,ROWS($D$22:D33)-1,COLUMNS($D$22:D33)-1)<>"",OFFSET(DE103_5!$D$22,ROWS($D$22:D33)-1,COLUMNS($D$22:D33)-1),"") ->  | C20: =IF(OFFSET(DE103_5!$E$22,ROWS($E$22:E33)-1,COLUMNS($E$22:E33)-1)<>"",OFFSET(DE103_5!$E$22,ROWS($E$22:E33)-1,COLUMNS($E$22:E33)-1),"") ->  | D20: =IF(OFFSET(DE103_5!$F$22,ROWS($F$22:F33)-1,COLUMNS($F$22:F33)-1)<>"",OFFSET(DE103_5!$F$22,ROWS($F$22:F33)-1,COLUMNS($F$22:F33)-1),"") -> 
A21: =IF(OFFSET(DE103_5!$C$22,ROWS($C$22:C34)-1,COLUMNS($C$22:C34)-1)<>"",OFFSET(DE103_5!$C$22,ROWS($C$22:C34)-1,COLUMNS($C$22:C34)-1),"") ->  | B21: =IF(OFFSET(DE103_5!$D$22,ROWS($D$22:D34)-1,COLUMNS($D$22:D34)-1)<>"",OFFSET(DE103_5!$D$22,ROWS($D$22:D34)-1,COLUMNS($D$22:D34)-1),"") ->  | C21: =IF(OFFSET(DE103_5!$E$22,ROWS($E$22:E34)-1,COLUMNS($E$22:E34)-1)<>"",OFFSET(DE103_5!$E$22,ROWS($E$22:E34)-1,COLUMNS($E$22:E34)-1),"") ->  | D21: =IF(OFFSET(DE103_5!$F$22,ROWS($F$22:F34)-1,COLUMNS($F$22:F34)-1)<>"",OFFSET(DE103_5!$F$22,ROWS($F$22:F34)-1,COLUMNS($F$22:F34)-1),"") -> 
A22: =IF(OFFSET(DE103_5!$C$22,ROWS($C$22:C35)-1,COLUMNS($C$22:C35)-1)<>"",OFFSET(DE103_5!$C$22,ROWS($C$22:C35)-1,COLUMNS($C$22:C35)-1),"") ->  | B22: =IF(OFFSET(DE103_5!$D$22,ROWS($D$22:D35)-1,COLUMNS($D$22:D35)-1)<>"",OFFSET(DE103_5!$D$22,ROWS($D$22:D35)-1,COLUMNS($D$22:D35)-1),"") ->  | C22: =IF(OFFSET(DE103_5!$E$22,ROWS($E$22:E35)-1,COLUMNS($E$22:E35)-1)<>"",OFFSET(DE103_5!$E$22,ROWS($E$22:E35)-1,COLUMNS($E$22:E35)-1),"") ->  | D22: =IF(OFFSET(DE103_5!$F$22,ROWS($F$22:F35)-1,COLUMNS($F$22:F35)-1)<>"",OFFSET(DE103_5!$F$22,ROWS($F$22:F35)-1,COLUMNS($F$22:F35)-1),"") -> 
A23: =IF(OFFSET(DE103_5!$C$22,ROWS($C$22:C36)-1,COLUMNS($C$22:C36)-1)<>"",OFFSET(DE103_5!$C$22,ROWS($C$22:C36)-1,COLUMNS($C$22:C36)-1),"") ->  | B23: =IF(OFFSET(DE103_5!$D$22,ROWS($D$22:D36)-1,COLUMNS($D$22:D36)-1)<>"",OFFSET(DE103_5!$D$22,ROWS($D$22:D36)-1,COLUMNS($D$22:D36)-1),"") ->  | C23: =IF(OFFSET(DE103_5!$E$22,ROWS($E$22:E36)-1,COLUMNS($E$22:E36)-1)<>"",OFFSET(DE103_5!$E$22,ROWS($E$22:E36)-1,COLUMNS($E$22:E36)-1),"") ->  | D23: =IF(OFFSET(DE103_5!$F$22,ROWS($F$22:F36)-1,COLUMNS($F$22:F36)-1)<>"",OFFSET(DE103_5!$F$22,ROWS($F$22:F36)-1,COLUMNS($F$22:F36)-1),"") -> 
A24: =IF(OFFSET(DE103_5!$C$22,ROWS($C$22:C37)-1,COLUMNS($C$22:C37)-1)<>"",OFFSET(DE103_5!$C$22,ROWS($C$22:C37)-1,COLUMNS($C$22:C37)-1),"") ->  | B24: =IF(OFFSET(DE103_5!$D$22,ROWS($D$22:D37)-1,COLUMNS($D$22:D37)-1)<>"",OFFSET(DE103_5!$D$22,ROWS($D$22:D37)-1,COLUMNS($D$22:D37)-1),"") ->  | C24: =IF(OFFSET(DE103_5!$E$22,ROWS($E$22:E37)-1,COLUMNS($E$22:E37)-1)<>"",OFFSET(DE103_5!$E$22,ROWS($E$22:E37)-1,COLUMNS($E$22:E37)-1),"") ->  | D24: =IF(OFFSET(DE103_5!$F$22,ROWS($F$22:F37)-1,COLUMNS($F$22:F37)-1)<>"",OFFSET(DE103_5!$F$22,ROWS($F$22:F37)-1,COLUMNS($F$22:F37)-1),"") -> 

Sheet 103_7
A1: 103-7
A2: 2008-08-01
A3: SHRINKAGE DATA
A5: Material | B5: % | C5: Remarks
A7: =IF(OFFSET(DE103_7!$C$20,ROWS($C$20:C20)-1,COLUMNS($C$20:C20)-1)<>"",OFFSET(DE103_7!$C$20,ROWS($C$20:C20)-1,COLUMNS($C$20:C20)-1),"") -> Entire Project | B7: =IF(OFFSET(DE103_7!$D$20,ROWS($D$20:D20)-1,COLUMNS($D$20:D20)-1)<>"",OFFSET(DE103_7!$D$20,ROWS($D$20:D20)-1,COLUMNS($D$20:D20)-1),"") -> 0.3 | C7: =IF(OFFSET(DE103_7!$E$20,ROWS($E$20:E20)-1,COLUMNS($E$20:E20)-1)<>"",OFFSET(DE103_7!$E$20,ROWS($E$20:E20)-1,COLUMNS($E$20:E20)-1),"") -> 
A8: =IF(OFFSET(DE103_7!$C$20,ROWS($C$20:C21)-1,COLUMNS($C$20:C21)-1)<>"",OFFSET(DE103_7!$C$20,ROWS($C$20:C21)-1,COLUMNS($C$20:C21)-1),"") -> Topsoil | B8: =IF(OFFSET(DE103_7!$D$20,ROWS($D$20:D21)-1,COLUMNS($D$20:D21)-1)<>"",OFFSET(DE103_7!$D$20,ROWS($D$20:D21)-1,COLUMNS($D$20:D21)-1),"") -> 0.4 | C8: =IF(OFFSET(DE103_7!$E$20,ROWS($E$20:E21)-1,COLUMNS($E$20:E21)-1)<>"",OFFSET(DE103_7!$E$20,ROWS($E$20:E21)-1,COLUMNS($E$20:E21)-1),"") -> 
A9: =IF(OFFSET(DE103_7!$C$20,ROWS($C$20:C22)-1,COLUMNS($C$20:C22)-1)<>"",OFFSET(DE103_7!$C$20,ROWS($C$20:C22)-1,COLUMNS($C$20:C22)-1),"") ->  | B9: =IF(OFFSET(DE103_7!$D$20,ROWS($D$20:D22)-1,COLUMNS($D$20:D22)-1)<>"",OFFSET(DE103_7!$D$20,ROWS($D$20:D22)-1,COLUMNS($D$20:D22)-1),"") ->  | C9: =IF(OFFSET(DE103_7!$E$20,ROWS($E$20:E22)-1,COLUMNS($E$20:E22)-1)<>"",OFFSET(DE103_7!$E$20,ROWS($E$20:E22)-1,COLUMNS($E$20:E22)-1),"") -> 
A10: =IF(OFFSET(DE103_7!$C$20,ROWS($C$20:C23)-1,COLUMNS($C$20:C23)-1)<>"",OFFSET(DE103_7!$C$20,ROWS($C$20:C23)-1,COLUMNS($C$20:C23)-1),"") -> Boulder Estimate | B10: =IF(OFFSET(DE103_7!$D$20,ROWS($D$20:D23)-1,COLUMNS($D$20:D23)-1)<>"",OFFSET(DE103_7!$D$20,ROWS($D$20:D23)-1,COLUMNS($D$20:D23)-1),"") ->  | C10: =IF(OFFSET(DE103_7!$E$20,ROWS($E$20:E23)-1,COLUMNS($E$20:E23)-1)<>"",OFFSET(DE103_7!$E$20,ROWS($E$20:E23)-1,COLUMNS($E$20:E23)-1),"") -> 100 CY
A11: =IF(OFFSET(DE103_7!$C$20,ROWS($C$20:C24)-1,COLUMNS($C$20:C24)-1)<>"",OFFSET(DE103_7!$C$20,ROWS($C$20:C24)-1,COLUMNS($C$20:C24)-1),"") ->  | B11: =IF(OFFSET(DE103_7!$D$20,ROWS($D$20:D24)-1,COLUMNS($D$20:D24)-1)<>"",OFFSET(DE103_7!$D$20,ROWS($D$20:D24)-1,COLUMNS($D$20:D24)-1),"") ->  | C11: =IF(OFFSET(DE103_7!$E$20,ROWS($E$20:E24)-1,COLUMNS($E$20:E24)-1)<>"",OFFSET(DE103_7!$E$20,ROWS($E$20:E24)-1,COLUMNS($E$20:E24)-1),"") -> 
A12: =IF(OFFSET(DE103_7!$C$20,ROWS($C$20:C25)-1,COLUMNS($C$20:C25)-1)<>"",OFFSET(DE103_7!$C$20,ROWS($C$20:C25)-1,COLUMNS($C$20:C25)-1),"") ->  | B12: =IF(OFFSET(DE103_7!$D$20,ROWS($D$20:D25)-1,COLUMNS($D$20:D25)-1)<>"",OFFSET(DE103_7!$D$20,ROWS($D$20:D25)-1,COLUMNS($D$20:D25)-1),"") ->  | C12: =IF(OFFSET(DE103_7!$E$20,ROWS($E$20:E25)-1,COLUMNS($E$20:E25)-1)<>"",OFFSET(DE103_7!$E$20,ROWS($E$20:E25)-1,COLUMNS($E$20:E25)-1),"") -> 
A13: =IF(OFFSET(DE103_7!$C$20,ROWS($C$20:C26)-1,COLUMNS($C$20:C26)-1)<>"",OFFSET(DE103_7!$C$20,ROWS($C$20:C26)-1,COLUMNS($C$20:C26)-1),"") ->  | B13: =IF(OFFSET(DE103_7!$D$20,ROWS($D$20:D26)-1,COLUMNS($D$20:D26)-1)<>"",OFFSET(DE103_7!$D$20,ROWS($D$20:D26)-1,COLUMNS($D$20:D26)-1),"") ->  | C13: =IF(OFFSET(DE103_7!$E$20,ROWS($E$20:E26)-1,COLUMNS($E$20:E26)-1)<>"",OFFSET(DE103_7!$E$20,ROWS($E$20:E26)-1,COLUMNS($E$20:E26)-1),"") -> 
A14: =IF(OFFSET(DE103_7!$C$20,ROWS($C$20:C27)-1,COLUMNS($C$20:C27)-1)<>"",OFFSET(DE103_7!$C$20,ROWS($C$20:C27)-1,COLUMNS($C$20:C27)-1),"") ->  | B14: =IF(OFFSET(DE103_7!$D$20,ROWS($D$20:D27)-1,COLUMNS($D$20:D27)-1)<>"",OFFSET(DE103_7!$D$20,ROWS($D$20:D27)-1,COLUMNS($D$20:D27)-1),"") ->  | C14: =IF(OFFSET(DE103_7!$E$20,ROWS($E$20:E27)-1,COLUMNS($E$20:E27)-1)<>"",OFFSET(DE103_7!$E$20,ROWS($E$20:E27)-1,COLUMNS($E$20:E27)-1),"") -> 
A15: =IF(OFFSET(DE103_7!$C$20,ROWS($C$20:C28)-1,COLUMNS($C$20:C28)-1)<>"",OFFSET(DE103_7!$C$20,ROWS($C$20:C28)-1,COLUMNS($C$20:C28)-1),"") ->  | B15: =IF(OFFSET(DE103_7!$D$20,ROWS($D$20:D28)-1,COLUMNS($D$20:D28)-1)<>"",OFFSET(DE103_7!$D$20,ROWS($D$20:D28)-1,COLUMNS($D$20:D28)-1),"") ->  | C15: =IF(OFFSET(DE103_7!$E$20,ROWS($E$20:E28)-1,COLUMNS($E$20:E28)-1)<>"",OFFSET(DE103_7!$E$20,ROWS($E$20:E28)-1,COLUMNS($E$20:E28)-1),"") -> 

Sheet 103_10
A1: 103-10
A2: 2017-04-18
A3: TOPSOIL STRIPPING AND PLACEMENT
A5: Location | E5: Topsoil Stripping Thickness | F5: Topsoil Placement Thickness | G5: Remarks
A6: Road Identification | B6: Dir. of Traffic | C6: Begin Station | D6: End Station
E8: IN | F8: IN
A9: =IF(OFFSET(DE103_10!$C$23,ROWS($C$23:C23)-1,COLUMNS($C$23:C23)-1)<>"",OFFSET(DE103_10!$C$23,ROWS($C$23:C23)-1,COLUMNS($C$23:C23)-1),"") -> US 30 Eastbound | B9: =IF(OFFSET(DE103_10!$D$23,ROWS($D$23:D23)-1,COLUMNS($D$23:D23)-1)<>"",OFFSET(DE103_10!$D$23,ROWS($D$23:D23)-1,COLUMNS($D$23:D23)-1),"") -> EB | C9: =IF(OFFSET(DE103_10!$E$23,ROWS($E$23:E23)-1,COLUMNS($E$23:E23)-1)<>"",OFFSET(DE103_10!$E$23,ROWS($E$23:E23)-1,COLUMNS($E$23:E23)-1),"") -> 138000 | D9: =IF(OFFSET(DE103_10!$F$23,ROWS($F$23:F23)-1,COLUMNS($F$23:F23)-1)<>"",OFFSET(DE103_10!$F$23,ROWS($F$23:F23)-1,COLUMNS($F$23:F23)-1),"") -> 151670 | E9: =IF(OFFSET(DE103_10!$G$23,ROWS($G$23:G23)-1,COLUMNS($G$23:G23)-1)<>"",OFFSET(DE103_10!$G$23,ROWS($G$23:G23)-1,COLUMNS($G$23:G23)-1),"") -> 9 | F9: =IF(OFFSET(DE103_10!$I$23,ROWS($I$23:I23)-1,COLUMNS($I$23:I23)-1)<>"",OFFSET(DE103_10!$I$23,ROWS($I$23:I23)-1,COLUMNS($I$23:I23)-1),"") -> 8 | G9: =IF(OFFSET(DE103_10!$K$23,ROWS($K$23:K23)-1,COLUMNS($K$23:K23)-1)<>"",OFFSET(DE103_10!$K$23,ROWS($K$23:K23)-1,COLUMNS($K$23:K23)-1),"") -> 
A10: =IF(OFFSET(DE103_10!$C$23,ROWS($C$23:C24)-1,COLUMNS($C$23:C24)-1)<>"",OFFSET(DE103_10!$C$23,ROWS($C$23:C24)-1,COLUMNS($C$23:C24)-1),"") -> US 30 Westbound | B10: =IF(OFFSET(DE103_10!$D$23,ROWS($D$23:D24)-1,COLUMNS($D$23:D24)-1)<>"",OFFSET(DE103_10!$D$23,ROWS($D$23:D24)-1,COLUMNS($D$23:D24)-1),"") -> WB | C10: =IF(OFFSET(DE103_10!$E$23,ROWS($E$23:E24)-1,COLUMNS($E$23:E24)-1)<>"",OFFSET(DE103_10!$E$23,ROWS($E$23:E24)-1,COLUMNS($E$23:E24)-1),"") -> 138900 | D10: =IF(OFFSET(DE103_10!$F$23,ROWS($F$23:F24)-1,COLUMNS($F$23:F24)-1)<>"",OFFSET(DE103_10!$F$23,ROWS($F$23:F24)-1,COLUMNS($F$23:F24)-1),"") -> 151670 | E10: =IF(OFFSET(DE103_10!$G$23,ROWS($G$23:G24)-1,COLUMNS($G$23:G24)-1)<>"",OFFSET(DE103_10!$G$23,ROWS($G$23:G24)-1,COLUMNS($G$23:G24)-1),"") -> 9 | F10: =IF(OFFSET(DE103_10!$I$23,ROWS($I$23:I24)-1,COLUMNS($I$23:I24)-1)<>"",OFFSET(DE103_10!$I$23,ROWS($I$23:I24)-1,COLUMNS($I$23:I24)-1),"") -> 8 | G10: =IF(OFFSET(DE103_10!$K$23,ROWS($K$23:K24)-1,COLUMNS($K$23:K24)-1)<>"",OFFSET(DE103_10!$K$23,ROWS($K$23:K24)-1,COLUMNS($K$23:K24)-1),"") -> 
A11: =IF(OFFSET(DE103_10!$C$23,ROWS($C$23:C25)-1,COLUMNS($C$23:C25)-1)<>"",OFFSET(DE103_10!$C$23,ROWS($C$23:C25)-1,COLUMNS($C$23:C25)-1),"") -> US 218 / 24th Ave. | B11: =IF(OFFSET(DE103_10!$D$23,ROWS($D$23:D25)-1,COLUMNS($D$23:D25)-1)<>"",OFFSET(DE103_10!$D$23,ROWS($D$23:D25)-1,COLUMNS($D$23:D25)-1),"") ->  | C11: =IF(OFFSET(DE103_10!$E$23,ROWS($E$23:E25)-1,COLUMNS($E$23:E25)-1)<>"",OFFSET(DE103_10!$E$23,ROWS($E$23:E25)-1,COLUMNS($E$23:E25)-1),"") -> 24145005 | D11: =IF(OFFSET(DE103_10!$F$23,ROWS($F$23:F25)-1,COLUMNS($F$23:F25)-1)<>"",OFFSET(DE103_10!$F$23,ROWS($F$23:F25)-1,COLUMNS($F$23:F25)-1),"") -> 24150300 | E11: =IF(OFFSET(DE103_10!$G$23,ROWS($G$23:G25)-1,COLUMNS($G$23:G25)-1)<>"",OFFSET(DE103_10!$G$23,ROWS($G$23:G25)-1,COLUMNS($G$23:G25)-1),"") -> 12 | F11: =IF(OFFSET(DE103_10!$I$23,ROWS($I$23:I25)-1,COLUMNS($I$23:I25)-1)<>"",OFFSET(DE103_10!$I$23,ROWS($I$23:I25)-1,COLUMNS($I$23:I25)-1),"") -> 8 | G11: =IF(OFFSET(DE103_10!$K$23,ROWS($K$23:K25)-1,COLUMNS($K$23:K25)-1)<>"",OFFSET(DE103_10!$K$23,ROWS($K$23:K25)-1,COLUMNS($K$23:K25)-1),"") -> 
A12: =IF(OFFSET(DE103_10!$C$23,ROWS($C$23:C26)-1,COLUMNS($C$23:C26)-1)<>"",OFFSET(DE103_10!$C$23,ROWS($C$23:C26)-1,COLUMNS($C$23:C26)-1),"") -> Loop A | B12: =IF(OFFSET(DE103_10!$D$23,ROWS($D$23:D26)-1,COLUMNS($D$23:D26)-1)<>"",OFFSET(DE103_10!$D$23,ROWS($D$23:D26)-1,COLUMNS($D$23:D26)-1),"") ->  | C12: =IF(OFFSET(DE103_10!$E$23,ROWS($E$23:E26)-1,COLUMNS($E$23:E26)-1)<>"",OFFSET(DE103_10!$E$23,ROWS($E$23:E26)-1,COLUMNS($E$23:E26)-1),"") -> 1147915 | D12: =IF(OFFSET(DE103_10!$F$23,ROWS($F$23:F26)-1,COLUMNS($F$23:F26)-1)<>"",OFFSET(DE103_10!$F$23,ROWS($F$23:F26)-1,COLUMNS($F$23:F26)-1),"") -> 1148664.72 | E12: =IF(OFFSET(DE103_10!$G$23,ROWS($G$23:G26)-1,COLUMNS($G$23:G26)-1)<>"",OFFSET(DE103_10!$G$23,ROWS($G$23:G26)-1,COLUMNS($G$23:G26)-1),"") -> 12 | F12: =IF(OFFSET(DE103_10!$I$23,ROWS($I$23:I26)-1,COLUMNS($I$23:I26)-1)<>"",OFFSET(DE103_10!$I$23,ROWS($I$23:I26)-1,COLUMNS($I$23:I26)-1),"") -> 8 | G12: =IF(OFFSET(DE103_10!$K$23,ROWS($K$23:K26)-1,COLUMNS($K$23:K26)-1)<>"",OFFSET(DE103_10!$K$23,ROWS($K$23:K26)-1,COLUMNS($K$23:K26)-1),"") -> 
A13: =IF(OFFSET(DE103_10!$C$23,ROWS($C$23:C27)-1,COLUMNS($C$23:C27)-1)<>"",OFFSET(DE103_10!$C$23,ROWS($C$23:C27)-1,COLUMNS($C$23:C27)-1),"") -> Loop B | B13: =IF(OFFSET(DE103_10!$D$23,ROWS($D$23:D27)-1,COLUMNS($D$23:D27)-1)<>"",OFFSET(DE103_10!$D$23,ROWS($D$23:D27)-1,COLUMNS($D$23:D27)-1),"") ->  | C13: =IF(OFFSET(DE103_10!$E$23,ROWS($E$23:E27)-1,COLUMNS($E$23:E27)-1)<>"",OFFSET(DE103_10!$E$23,ROWS($E$23:E27)-1,COLUMNS($E$23:E27)-1),"") -> 2147225 | D13: =IF(OFFSET(DE103_10!$F$23,ROWS($F$23:F27)-1,COLUMNS($F$23:F27)-1)<>"",OFFSET(DE103_10!$F$23,ROWS($F$23:F27)-1,COLUMNS($F$23:F27)-1),"") -> 2147975.06 | E13: =IF(OFFSET(DE103_10!$G$23,ROWS($G$23:G27)-1,COLUMNS($G$23:G27)-1)<>"",OFFSET(DE103_10!$G$23,ROWS($G$23:G27)-1,COLUMNS($G$23:G27)-1),"") -> 12 | F13: =IF(OFFSET(DE103_10!$I$23,ROWS($I$23:I27)-1,COLUMNS($I$23:I27)-1)<>"",OFFSET(DE103_10!$I$23,ROWS($I$23:I27)-1,COLUMNS($I$23:I27)-1),"") -> 8 | G13: =IF(OFFSET(DE103_10!$K$23,ROWS($K$23:K27)-1,COLUMNS($K$23:K27)-1)<>"",OFFSET(DE103_10!$K$23,ROWS($K$23:K27)-1,COLUMNS($K$23:K27)-1),"") -> 
A14: =IF(OFFSET(DE103_10!$C$23,ROWS($C$23:C28)-1,COLUMNS($C$23:C28)-1)<>"",OFFSET(DE103_10!$C$23,ROWS($C$23:C28)-1,COLUMNS($C$23:C28)-1),"") -> Ramp C | B14: =IF(OFFSET(DE103_10!$D$23,ROWS($D$23:D28)-1,COLUMNS($D$23:D28)-1)<>"",OFFSET(DE103_10!$D$23,ROWS($D$23:D28)-1,COLUMNS($D$23:D28)-1),"") ->  | C14: =IF(OFFSET(DE103_10!$E$23,ROWS($E$23:E28)-1,COLUMNS($E$23:E28)-1)<>"",OFFSET(DE103_10!$E$23,ROWS($E$23:E28)-1,COLUMNS($E$23:E28)-1),"") -> 3144041.75 | D14: =IF(OFFSET(DE103_10!$F$23,ROWS($F$23:F28)-1,COLUMNS($F$23:F28)-1)<>"",OFFSET(DE103_10!$F$23,ROWS($F$23:F28)-1,COLUMNS($F$23:F28)-1),"") -> 3145646.34 | E14: =IF(OFFSET(DE103_10!$G$23,ROWS($G$23:G28)-1,COLUMNS($G$23:G28)-1)<>"",OFFSET(DE103_10!$G$23,ROWS($G$23:G28)-1,COLUMNS($G$23:G28)-1),"") -> 12 | F14: =IF(OFFSET(DE103_10!$I$23,ROWS($I$23:I28)-1,COLUMNS($I$23:I28)-1)<>"",OFFSET(DE103_10!$I$23,ROWS($I$23:I28)-1,COLUMNS($I$23:I28)-1),"") -> 8 | G14: =IF(OFFSET(DE103_10!$K$23,ROWS($K$23:K28)-1,COLUMNS($K$23:K28)-1)<>"",OFFSET(DE103_10!$K$23,ROWS($K$23:K28)-1,COLUMNS($K$23:K28)-1),"") -> 
A15: =IF(OFFSET(DE103_10!$C$23,ROWS($C$23:C29)-1,COLUMNS($C$23:C29)-1)<>"",OFFSET(DE103_10!$C$23,ROWS($C$23:C29)-1,COLUMNS($C$23:C29)-1),"") -> Ramp D | B15: =IF(OFFSET(DE103_10!$D$23,ROWS($D$23:D29)-1,COLUMNS($D$23:D29)-1)<>"",OFFSET(DE103_10!$D$23,ROWS($D$23:D29)-1,COLUMNS($D$23:D29)-1),"") ->  | C15: =IF(OFFSET(DE103_10!$E$23,ROWS($E$23:E29)-1,COLUMNS($E$23:E29)-1)<>"",OFFSET(DE103_10!$E$23,ROWS($E$23:E29)-1,COLUMNS($E$23:E29)-1),"") -> 4147426.45 | D15: =IF(OFFSET(DE103_10!$F$23,ROWS($F$23:F29)-1,COLUMNS($F$23:F29)-1)<>"",OFFSET(DE103_10!$F$23,ROWS($F$23:F29)-1,COLUMNS($F$23:F29)-1),"") -> 4148996.32 | E15: =IF(OFFSET(DE103_10!$G$23,ROWS($G$23:G29)-1,COLUMNS($G$23:G29)-1)<>"",OFFSET(DE103_10!$G$23,ROWS($G$23:G29)-1,COLUMNS($G$23:G29)-1),"") -> 12 | F15: =IF(OFFSET(DE103_10!$I$23,ROWS($I$23:I29)-1,COLUMNS($I$23:I29)-1)<>"",OFFSET(DE103_10!$I$23,ROWS($I$23:I29)-1,COLUMNS($I$23:I29)-1),"") -> 8 | G15: =IF(OFFSET(DE103_10!$K$23,ROWS($K$23:K29)-1,COLUMNS($K$23:K29)-1)<>"",OFFSET(DE103_10!$K$23,ROWS($K$23:K29)-1,COLUMNS($K$23:K29)-1),"") -> 
A16: =IF(OFFSET(DE103_10!$C$23,ROWS($C$23:C30)-1,COLUMNS($C$23:C30)-1)<>"",OFFSET(DE103_10!$C$23,ROWS($C$23:C30)-1,COLUMNS($C$23:C30)-1),"") -> 23rd Ave. | B16: =IF(OFFSET(DE103_10!$D$23,ROWS($D$23:D30)-1,COLUMNS($D$23:D30)-1)<>"",OFFSET(DE103_10!$D$23,ROWS($D$23:D30)-1,COLUMNS($D$23:D30)-1),"") ->  | C16: =IF(OFFSET(DE103_10!$E$23,ROWS($E$23:E30)-1,COLUMNS($E$23:E30)-1)<>"",OFFSET(DE103_10!$E$23,ROWS($E$23:E30)-1,COLUMNS($E$23:E30)-1),"") -> 23141675 | D16: =IF(OFFSET(DE103_10!$F$23,ROWS($F$23:F30)-1,COLUMNS($F$23:F30)-1)<>"",OFFSET(DE103_10!$F$23,ROWS($F$23:F30)-1,COLUMNS($F$23:F30)-1),"") -> 23142700 | E16: =IF(OFFSET(DE103_10!$G$23,ROWS($G$23:G30)-1,COLUMNS($G$23:G30)-1)<>"",OFFSET(DE103_10!$G$23,ROWS($G$23:G30)-1,COLUMNS($G$23:G30)-1),"") -> 6 | F16: =IF(OFFSET(DE103_10!$I$23,ROWS($I$23:I30)-1,COLUMNS($I$23:I30)-1)<>"",OFFSET(DE103_10!$I$23,ROWS($I$23:I30)-1,COLUMNS($I$23:I30)-1),"") -> 8 | G16: =IF(OFFSET(DE103_10!$K$23,ROWS($K$23:K30)-1,COLUMNS($K$23:K30)-1)<>"",OFFSET(DE103_10!$K$23,ROWS($K$23:K30)-1,COLUMNS($K$23:K30)-1),"") -> 
A17: =IF(OFFSET(DE103_10!$C$23,ROWS($C$23:C31)-1,COLUMNS($C$23:C31)-1)<>"",OFFSET(DE103_10!$C$23,ROWS($C$23:C31)-1,COLUMNS($C$23:C31)-1),"") -> Youngville Café Access | B17: =IF(OFFSET(DE103_10!$D$23,ROWS($D$23:D31)-1,COLUMNS($D$23:D31)-1)<>"",OFFSET(DE103_10!$D$23,ROWS($D$23:D31)-1,COLUMNS($D$23:D31)-1),"") ->  | C17: =IF(OFFSET(DE103_10!$E$23,ROWS($E$23:E31)-1,COLUMNS($E$23:E31)-1)<>"",OFFSET(DE103_10!$E$23,ROWS($E$23:E31)-1,COLUMNS($E$23:E31)-1),"") -> 0 | D17: =IF(OFFSET(DE103_10!$F$23,ROWS($F$23:F31)-1,COLUMNS($F$23:F31)-1)<>"",OFFSET(DE103_10!$F$23,ROWS($F$23:F31)-1,COLUMNS($F$23:F31)-1),"") -> 1275 | E17: =IF(OFFSET(DE103_10!$G$23,ROWS($G$23:G31)-1,COLUMNS($G$23:G31)-1)<>"",OFFSET(DE103_10!$G$23,ROWS($G$23:G31)-1,COLUMNS($G$23:G31)-1),"") -> 12 | F17: =IF(OFFSET(DE103_10!$I$23,ROWS($I$23:I31)-1,COLUMNS($I$23:I31)-1)<>"",OFFSET(DE103_10!$I$23,ROWS($I$23:I31)-1,COLUMNS($I$23:I31)-1),"") -> 8 | G17: =IF(OFFSET(DE103_10!$K$23,ROWS($K$23:K31)-1,COLUMNS($K$23:K31)-1)<>"",OFFSET(DE103_10!$K$23,ROWS($K$23:K31)-1,COLUMNS($K$23:K31)-1),"") -> 
A18: =IF(OFFSET(DE103_10!$C$23,ROWS($C$23:C32)-1,COLUMNS($C$23:C32)-1)<>"",OFFSET(DE103_10!$C$23,ROWS($C$23:C32)-1,COLUMNS($C$23:C32)-1),"") ->  | B18: =IF(OFFSET(DE103_10!$D$23,ROWS($D$23:D32)-1,COLUMNS($D$23:D32)-1)<>"",OFFSET(DE103_10!$D$23,ROWS($D$23:D32)-1,COLUMNS($D$23:D32)-1),"") ->  | C18: =IF(OFFSET(DE103_10!$E$23,ROWS($E$23:E32)-1,COLUMNS($E$23:E32)-1)<>"",OFFSET(DE103_10!$E$23,ROWS($E$23:E32)-1,COLUMNS($E$23:E32)-1),"") ->  | D18: =IF(OFFSET(DE103_10!$F$23,ROWS($F$23:F32)-1,COLUMNS($F$23:F32)-1)<>"",OFFSET(DE103_10!$F$23,ROWS($F$23:F32)-1,COLUMNS($F$23:F32)-1),"") ->  | E18: =IF(OFFSET(DE103_10!$G$23,ROWS($G$23:G32)-1,COLUMNS($G$23:G32)-1)<>"",OFFSET(DE103_10!$G$23,ROWS($G$23:G32)-1,COLUMNS($G$23:G32)-1),"") ->  | F18: =IF(OFFSET(DE103_10!$I$23,ROWS($I$23:I32)-1,COLUMNS($I$23:I32)-1)<>"",OFFSET(DE103_10!$I$23,ROWS($I$23:I32)-1,COLUMNS($I$23:I32)-1),"") ->  | G18: =IF(OFFSET(DE103_10!$K$23,ROWS($K$23:K32)-1,COLUMNS($K$23:K32)-1)<>"",OFFSET(DE103_10!$K$23,ROWS($K$23:K32)-1,COLUMNS($K$23:K32)-1),"") -> 
A19: =IF(OFFSET(DE103_10!$C$23,ROWS($C$23:C33)-1,COLUMNS($C$23:C33)-1)<>"",OFFSET(DE103_10!$C$23,ROWS($C$23:C33)-1,COLUMNS($C$23:C33)-1),"") ->  | B19: =IF(OFFSET(DE103_10!$D$23,ROWS($D$23:D33)-1,COLUMNS($D$23:D33)-1)<>"",OFFSET(DE103_10!$D$23,ROWS($D$23:D33)-1,COLUMNS($D$23:D33)-1),"") ->  | C19: =IF(OFFSET(DE103_10!$E$23,ROWS($E$23:E33)-1,COLUMNS($E$23:E33)-1)<>"",OFFSET(DE103_10!$E$23,ROWS($E$23:E33)-1,COLUMNS($E$23:E33)-1),"") ->  | D19: =IF(OFFSET(DE103_10!$F$23,ROWS($F$23:F33)-1,COLUMNS($F$23:F33)-1)<>"",OFFSET(DE103_10!$F$23,ROWS($F$23:F33)-1,COLUMNS($F$23:F33)-1),"") ->  | E19: =IF(OFFSET(DE103_10!$G$23,ROWS($G$23:G33)-1,COLUMNS($G$23:G33)-1)<>"",OFFSET(DE103_10!$G$23,ROWS($G$23:G33)-1,COLUMNS($G$23:G33)-1),"") ->  | F19: =IF(OFFSET(DE103_10!$I$23,ROWS($I$23:I33)-1,COLUMNS($I$23:I33)-1)<>"",OFFSET(DE103_10!$I$23,ROWS($I$23:I33)-1,COLUMNS($I$23:I33)-1),"") ->  | G19: =IF(OFFSET(DE103_10!$K$23,ROWS($K$23:K33)-1,COLUMNS($K$23:K33)-1)<>"",OFFSET(DE103_10!$K$23,ROWS($K$23:K33)-1,COLUMNS($K$23:K33)-1),"") -> 
A20: =IF(OFFSET(DE103_10!$C$23,ROWS($C$23:C34)-1,COLUMNS($C$23:C34)-1)<>"",OFFSET(DE103_10!$C$23,ROWS($C$23:C34)-1,COLUMNS($C$23:C34)-1),"") ->  | B20: =IF(OFFSET(DE103_10!$D$23,ROWS($D$23:D34)-1,COLUMNS($D$23:D34)-1)<>"",OFFSET(DE103_10!$D$23,ROWS($D$23:D34)-1,COLUMNS($D$23:D34)-1),"") ->  | C20: =IF(OFFSET(DE103_10!$E$23,ROWS($E$23:E34)-1,COLUMNS($E$23:E34)-1)<>"",OFFSET(DE103_10!$E$23,ROWS($E$23:E34)-1,COLUMNS($E$23:E34)-1),"") ->  | D20: =IF(OFFSET(DE103_10!$F$23,ROWS($F$23:F34)-1,COLUMNS($F$23:F34)-1)<>"",OFFSET(DE103_10!$F$23,ROWS($F$23:F34)-1,COLUMNS($F$23:F34)-1),"") ->  | E20: =IF(OFFSET(DE103_10!$G$23,ROWS($G$23:G34)-1,COLUMNS($G$23:G34)-1)<>"",OFFSET(DE103_10!$G$23,ROWS($G$23:G34)-1,COLUMNS($G$23:G34)-1),"") ->  | F20: =IF(OFFSET(DE103_10!$I$23,ROWS($I$23:I34)-1,COLUMNS($I$23:I34)-1)<>"",OFFSET(DE103_10!$I$23,ROWS($I$23:I34)-1,COLUMNS($I$23:I34)-1),"") ->  | G20: =IF(OFFSET(DE103_10!$K$23,ROWS($K$23:K34)-1,COLUMNS($K$23:K34)-1)<>"",OFFSET(DE103_10!$K$23,ROWS($K$23:K34)-1,COLUMNS($K$23:K34)-1),"") -> 

Sheet 104_5C
A1: 104-5C
A2: 2017-10-17
A3: LIST OF SUBDRAIN WORK
A5: Possible Standards: DR-121, DR-201, DR-203, DR-301, DR-302, DR-303, DR-305 and DR-306. Possible Detail: 500-10.
A6: * Not a bid item
A7: Location | E7: Pipe | H7: Aprons | J7: Outlets | N7: Connected Pipe Joints* | P7: Trench Drain | Q7: Granular Material | R7: Special Backfill* | S7: Class "A" Crushed Stone* | T7: Remarks
A9: No. | B9: Station to Station | D9: Type of Installation | E9: Concrete, C.M.P., or Plastic | F9: Dia. | G9: Length | H9: DR-201 | I9: DR-203 | J9: 500-10 | K9: DR-305 | M9: DR-306
N12: DR-121 | Q12: Blanket
D13: DR-301, DR-302, DR-303 | F13: IN | G13: LF | H13: No. | I13: No. | J13: No. | K13: Type | L13: No. | M13: No. | N13: Type | O13: No. | P13: LF | Q13: CY | R13: TONS | S13: CY
A14: =IF(OFFSET(DE104_5C!$C$27,ROWS($C$27:C27)-1,COLUMNS($C$27:C27)-1)<>"",OFFSET(DE104_5C!$C$27,ROWS($C$27:C27)-1,COLUMNS($C$27:C27)-1),"") -> 1 | B14: =IF(OFFSET(DE104_5C!$D$27,ROWS($D$27:D27)-1,COLUMNS($D$27:D27)-1)<>"",OFFSET(DE104_5C!$D$27,ROWS($D$27:D27)-1,COLUMNS($D$27:D27)-1),"") -> 142300 | C14: =IF(OFFSET(DE104_5C!$E$27,ROWS($E$27:E27)-1,COLUMNS($E$27:E27)-1)<>"",OFFSET(DE104_5C!$E$27,ROWS($E$27:E27)-1,COLUMNS($E$27:E27)-1),"") -> 142550 | D14: =IF(OFFSET(DE104_5C!$F$27,ROWS($F$27:F27)-1,COLUMNS($F$27:F27)-1)<>"",OFFSET(DE104_5C!$F$27,ROWS($F$27:F27)-1,COLUMNS($F$27:F27)-1),"") ->  | E14: =IF(OFFSET(DE104_5C!$G$27,ROWS($G$27:G27)-1,COLUMNS($G$27:G27)-1)<>"",OFFSET(DE104_5C!$G$27,ROWS($G$27:G27)-1,COLUMNS($G$27:G27)-1),"") ->  | F14: =IF(OFFSET(DE104_5C!$H$27,ROWS($H$27:H27)-1,COLUMNS($H$27:H27)-1)<>"",OFFSET(DE104_5C!$H$27,ROWS($H$27:H27)-1,COLUMNS($H$27:H27)-1),"") ->  | G14: =IF(OFFSET(DE104_5C!$I$27,ROWS($I$27:I27)-1,COLUMNS($I$27:I27)-1)<>"",OFFSET(DE104_5C!$I$27,ROWS($I$27:I27)-1,COLUMNS($I$27:I27)-1),"") ->  | H14: =IF(OFFSET(DE104_5C!$J$27,ROWS($J$27:J27)-1,COLUMNS($J$27:J27)-1)<>"",OFFSET(DE104_5C!$J$27,ROWS($J$27:J27)-1,COLUMNS($J$27:J27)-1),"") ->  | I14: =IF(OFFSET(DE104_5C!$K$27,ROWS($K$27:K27)-1,COLUMNS($K$27:K27)-1)<>"",OFFSET(DE104_5C!$K$27,ROWS($K$27:K27)-1,COLUMNS($K$27:K27)-1),"") ->  | J14: =IF(OFFSET(DE104_5C!$L$27,ROWS($L$27:L27)-1,COLUMNS($L$27:L27)-1)<>"",OFFSET(DE104_5C!$L$27,ROWS($L$27:L27)-1,COLUMNS($L$27:L27)-1),"") ->  | K14: =IF(OFFSET(DE104_5C!$M$27,ROWS($M$27:M27)-1,COLUMNS($M$27:M27)-1)<>"",OFFSET(DE104_5C!$M$27,ROWS($M$27:M27)-1,COLUMNS($M$27:M27)-1),"") ->  | L14: =IF(OFFSET(DE104_5C!$N$27,ROWS($N$27:N27)-1,COLUMNS($N$27:N27)-1)<>"",OFFSET(DE104_5C!$N$27,ROWS($N$27:N27)-1,COLUMNS($N$27:N27)-1),"") ->  | M14: =IF(OFFSET(DE104_5C!$O$27,ROWS($O$27:O27)-1,COLUMNS($O$27:O27)-1)<>"",OFFSET(DE104_5C!$O$27,ROWS($O$27:O27)-1,COLUMNS($O$27:O27)-1),"") ->  | N14: =IF(OFFSET(DE104_5C!$P$27,ROWS($P$27:P27)-1,COLUMNS($P$27:P27)-1)<>"",OFFSET(DE104_5C!$P$27,ROWS($P$27:P27)-1,COLUMNS($P$27:P27)-1),"") ->  | O14: =IF(OFFSET(DE104_5C!$Q$27,ROWS($Q$27:Q27)-1,COLUMNS($Q$27:Q27)-1)<>"",OFFSET(DE104_5C!$Q$27,ROWS($Q$27:Q27)-1,COLUMNS($Q$27:Q27)-1),"") ->  | P14: =IF(OFFSET(DE104_5C!$R$27,ROWS($R$27:R27)-1,COLUMNS($R$27:R27)-1)<>"",OFFSET(DE104_5C!$R$27,ROWS($R$27:R27)-1,COLUMNS($R$27:R27)-1),"") ->  | Q14: =IF(OFFSET(DE104_5C!$S$27,ROWS($S$27:S27)-1,COLUMNS($S$27:S27)-1)<>"",OFFSET(DE104_5C!$S$27,ROWS($S$27:S27)-1,COLUMNS($S$27:S27)-1),"") -> 220 | R14: =IF(OFFSET(DE104_5C!$T$27,ROWS($T$27:T27)-1,COLUMNS($T$27:T27)-1)<>"",OFFSET(DE104_5C!$T$27,ROWS($T$27:T27)-1,COLUMNS($T$27:T27)-1),"") ->  | S14: =IF(OFFSET(DE104_5C!$U$27,ROWS($U$27:U27)-1,COLUMNS($U$27:U27)-1)<>"",OFFSET(DE104_5C!$U$27,ROWS($U$27:U27)-1,COLUMNS($U$27:U27)-1),"") ->  | T14: =IF(OFFSET(DE104_5C!$V$27,ROWS($V$27:V27)-1,COLUMNS($V$27:V27)-1)<>"",OFFSET(DE104_5C!$V$27,ROWS($V$27:V27)-1,COLUMNS($V$27:V27)-1),"") -> 12-inch thick Working Blanket - US 30 Stage 1
A15: =IF(OFFSET(DE104_5C!$C$27,ROWS($C$27:C28)-1,COLUMNS($C$27:C28)-1)<>"",OFFSET(DE104_5C!$C$27,ROWS($C$27:C28)-1,COLUMNS($C$27:C28)-1),"") -> 2 | B15: =IF(OFFSET(DE104_5C!$D$27,ROWS($D$27:D28)-1,COLUMNS($D$27:D28)-1)<>"",OFFSET(DE104_5C!$D$27,ROWS($D$27:D28)-1,COLUMNS($D$27:D28)-1),"") -> 145250 | C15: =IF(OFFSET(DE104_5C!$E$27,ROWS($E$27:E28)-1,COLUMNS($E$27:E28)-1)<>"",OFFSET(DE104_5C!$E$27,ROWS($E$27:E28)-1,COLUMNS($E$27:E28)-1),"") -> 145400 | D15: =IF(OFFSET(DE104_5C!$F$27,ROWS($F$27:F28)-1,COLUMNS($F$27:F28)-1)<>"",OFFSET(DE104_5C!$F$27,ROWS($F$27:F28)-1,COLUMNS($F$27:F28)-1),"") ->  | E15: =IF(OFFSET(DE104_5C!$G$27,ROWS($G$27:G28)-1,COLUMNS($G$27:G28)-1)<>"",OFFSET(DE104_5C!$G$27,ROWS($G$27:G28)-1,COLUMNS($G$27:G28)-1),"") ->  | F15: =IF(OFFSET(DE104_5C!$H$27,ROWS($H$27:H28)-1,COLUMNS($H$27:H28)-1)<>"",OFFSET(DE104_5C!$H$27,ROWS($H$27:H28)-1,COLUMNS($H$27:H28)-1),"") ->  | G15: =IF(OFFSET(DE104_5C!$I$27,ROWS($I$27:I28)-1,COLUMNS($I$27:I28)-1)<>"",OFFSET(DE104_5C!$I$27,ROWS($I$27:I28)-1,COLUMNS($I$27:I28)-1),"") ->  | H15: =IF(OFFSET(DE104_5C!$J$27,ROWS($J$27:J28)-1,COLUMNS($J$27:J28)-1)<>"",OFFSET(DE104_5C!$J$27,ROWS($J$27:J28)-1,COLUMNS($J$27:J28)-1),"") ->  | I15: =IF(OFFSET(DE104_5C!$K$27,ROWS($K$27:K28)-1,COLUMNS($K$27:K28)-1)<>"",OFFSET(DE104_5C!$K$27,ROWS($K$27:K28)-1,COLUMNS($K$27:K28)-1),"") ->  | J15: =IF(OFFSET(DE104_5C!$L$27,ROWS($L$27:L28)-1,COLUMNS($L$27:L28)-1)<>"",OFFSET(DE104_5C!$L$27,ROWS($L$27:L28)-1,COLUMNS($L$27:L28)-1),"") ->  | K15: =IF(OFFSET(DE104_5C!$M$27,ROWS($M$27:M28)-1,COLUMNS($M$27:M28)-1)<>"",OFFSET(DE104_5C!$M$27,ROWS($M$27:M28)-1,COLUMNS($M$27:M28)-1),"") ->  | L15: =IF(OFFSET(DE104_5C!$N$27,ROWS($N$27:N28)-1,COLUMNS($N$27:N28)-1)<>"",OFFSET(DE104_5C!$N$27,ROWS($N$27:N28)-1,COLUMNS($N$27:N28)-1),"") ->  | M15: =IF(OFFSET(DE104_5C!$O$27,ROWS($O$27:O28)-1,COLUMNS($O$27:O28)-1)<>"",OFFSET(DE104_5C!$O$27,ROWS($O$27:O28)-1,COLUMNS($O$27:O28)-1),"") ->  | N15: =IF(OFFSET(DE104_5C!$P$27,ROWS($P$27:P28)-1,COLUMNS($P$27:P28)-1)<>"",OFFSET(DE104_5C!$P$27,ROWS($P$27:P28)-1,COLUMNS($P$27:P28)-1),"") ->  | O15: =IF(OFFSET(DE104_5C!$Q$27,ROWS($Q$27:Q28)-1,COLUMNS($Q$27:Q28)-1)<>"",OFFSET(DE104_5C!$Q$27,ROWS($Q$27:Q28)-1,COLUMNS($Q$27:Q28)-1),"") ->  | P15: =IF(OFFSET(DE104_5C!$R$27,ROWS($R$27:R28)-1,COLUMNS($R$27:R28)-1)<>"",OFFSET(DE104_5C!$R$27,ROWS($R$27:R28)-1,COLUMNS($R$27:R28)-1),"") ->  | Q15: =IF(OFFSET(DE104_5C!$S$27,ROWS($S$27:S28)-1,COLUMNS($S$27:S28)-1)<>"",OFFSET(DE104_5C!$S$27,ROWS($S$27:S28)-1,COLUMNS($S$27:S28)-1),"") -> 195 | R15: =IF(OFFSET(DE104_5C!$T$27,ROWS($T$27:T28)-1,COLUMNS($T$27:T28)-1)<>"",OFFSET(DE104_5C!$T$27,ROWS($T$27:T28)-1,COLUMNS($T$27:T28)-1),"") ->  | S15: =IF(OFFSET(DE104_5C!$U$27,ROWS($U$27:U28)-1,COLUMNS($U$27:U28)-1)<>"",OFFSET(DE104_5C!$U$27,ROWS($U$27:U28)-1,COLUMNS($U$27:U28)-1),"") ->  | T15: =IF(OFFSET(DE104_5C!$V$27,ROWS($V$27:V28)-1,COLUMNS($V$27:V28)-1)<>"",OFFSET(DE104_5C!$V$27,ROWS($V$27:V28)-1,COLUMNS($V$27:V28)-1),"") -> 12-inch thick Working Blanket - US 30 Stage 1
A16: =IF(OFFSET(DE104_5C!$C$27,ROWS($C$27:C29)-1,COLUMNS($C$27:C29)-1)<>"",OFFSET(DE104_5C!$C$27,ROWS($C$27:C29)-1,COLUMNS($C$27:C29)-1),"") -> 3 | B16: =IF(OFFSET(DE104_5C!$D$27,ROWS($D$27:D29)-1,COLUMNS($D$27:D29)-1)<>"",OFFSET(DE104_5C!$D$27,ROWS($D$27:D29)-1,COLUMNS($D$27:D29)-1),"") -> 146200 | C16: =IF(OFFSET(DE104_5C!$E$27,ROWS($E$27:E29)-1,COLUMNS($E$27:E29)-1)<>"",OFFSET(DE104_5C!$E$27,ROWS($E$27:E29)-1,COLUMNS($E$27:E29)-1),"") -> 146700 | D16: =IF(OFFSET(DE104_5C!$F$27,ROWS($F$27:F29)-1,COLUMNS($F$27:F29)-1)<>"",OFFSET(DE104_5C!$F$27,ROWS($F$27:F29)-1,COLUMNS($F$27:F29)-1),"") ->  | E16: =IF(OFFSET(DE104_5C!$G$27,ROWS($G$27:G29)-1,COLUMNS($G$27:G29)-1)<>"",OFFSET(DE104_5C!$G$27,ROWS($G$27:G29)-1,COLUMNS($G$27:G29)-1),"") ->  | F16: =IF(OFFSET(DE104_5C!$H$27,ROWS($H$27:H29)-1,COLUMNS($H$27:H29)-1)<>"",OFFSET(DE104_5C!$H$27,ROWS($H$27:H29)-1,COLUMNS($H$27:H29)-1),"") ->  | G16: =IF(OFFSET(DE104_5C!$I$27,ROWS($I$27:I29)-1,COLUMNS($I$27:I29)-1)<>"",OFFSET(DE104_5C!$I$27,ROWS($I$27:I29)-1,COLUMNS($I$27:I29)-1),"") ->  | H16: =IF(OFFSET(DE104_5C!$J$27,ROWS($J$27:J29)-1,COLUMNS($J$27:J29)-1)<>"",OFFSET(DE104_5C!$J$27,ROWS($J$27:J29)-1,COLUMNS($J$27:J29)-1),"") ->  | I16: =IF(OFFSET(DE104_5C!$K$27,ROWS($K$27:K29)-1,COLUMNS($K$27:K29)-1)<>"",OFFSET(DE104_5C!$K$27,ROWS($K$27:K29)-1,COLUMNS($K$27:K29)-1),"") ->  | J16: =IF(OFFSET(DE104_5C!$L$27,ROWS($L$27:L29)-1,COLUMNS($L$27:L29)-1)<>"",OFFSET(DE104_5C!$L$27,ROWS($L$27:L29)-1,COLUMNS($L$27:L29)-1),"") ->  | K16: =IF(OFFSET(DE104_5C!$M$27,ROWS($M$27:M29)-1,COLUMNS($M$27:M29)-1)<>"",OFFSET(DE104_5C!$M$27,ROWS($M$27:M29)-1,COLUMNS($M$27:M29)-1),"") ->  | L16: =IF(OFFSET(DE104_5C!$N$27,ROWS($N$27:N29)-1,COLUMNS($N$27:N29)-1)<>"",OFFSET(DE104_5C!$N$27,ROWS($N$27:N29)-1,COLUMNS($N$27:N29)-1),"") ->  | M16: =IF(OFFSET(DE104_5C!$O$27,ROWS($O$27:O29)-1,COLUMNS($O$27:O29)-1)<>"",OFFSET(DE104_5C!$O$27,ROWS($O$27:O29)-1,COLUMNS($O$27:O29)-1),"") ->  | N16: =IF(OFFSET(DE104_5C!$P$27,ROWS($P$27:P29)-1,COLUMNS($P$27:P29)-1)<>"",OFFSET(DE104_5C!$P$27,ROWS($P$27:P29)-1,COLUMNS($P$27:P29)-1),"") ->  | O16: =IF(OFFSET(DE104_5C!$Q$27,ROWS($Q$27:Q29)-1,COLUMNS($Q$27:Q29)-1)<>"",OFFSET(DE104_5C!$Q$27,ROWS($Q$27:Q29)-1,COLUMNS($Q$27:Q29)-1),"") ->  | P16: =IF(OFFSET(DE104_5C!$R$27,ROWS($R$27:R29)-1,COLUMNS($R$27:R29)-1)<>"",OFFSET(DE104_5C!$R$27,ROWS($R$27:R29)-1,COLUMNS($R$27:R29)-1),"") ->  | Q16: =IF(OFFSET(DE104_5C!$S$27,ROWS($S$27:S29)-1,COLUMNS($S$27:S29)-1)<>"",OFFSET(DE104_5C!$S$27,ROWS($S$27:S29)-1,COLUMNS($S$27:S29)-1),"") -> 330 | R16: =IF(OFFSET(DE104_5C!$T$27,ROWS($T$27:T29)-1,COLUMNS($T$27:T29)-1)<>"",OFFSET(DE104_5C!$T$27,ROWS($T$27:T29)-1,COLUMNS($T$27:T29)-1),"") ->  | S16: =IF(OFFSET(DE104_5C!$U$27,ROWS($U$27:U29)-1,COLUMNS($U$27:U29)-1)<>"",OFFSET(DE104_5C!$U$27,ROWS($U$27:U29)-1,COLUMNS($U$27:U29)-1),"") ->  | T16: =IF(OFFSET(DE104_5C!$V$27,ROWS($V$27:V29)-1,COLUMNS($V$27:V29)-1)<>"",OFFSET(DE104_5C!$V$27,ROWS($V$27:V29)-1,COLUMNS($V$27:V29)-1),"") -> 12-inch thick Working Blanket - US 30 Stage 1
A17: =IF(OFFSET(DE104_5C!$C$27,ROWS($C$27:C30)-1,COLUMNS($C$27:C30)-1)<>"",OFFSET(DE104_5C!$C$27,ROWS($C$27:C30)-1,COLUMNS($C$27:C30)-1),"") -> 4 | B17: =IF(OFFSET(DE104_5C!$D$27,ROWS($D$27:D30)-1,COLUMNS($D$27:D30)-1)<>"",OFFSET(DE104_5C!$D$27,ROWS($D$27:D30)-1,COLUMNS($D$27:D30)-1),"") -> 3144550 | C17: =IF(OFFSET(DE104_5C!$E$27,ROWS($E$27:E30)-1,COLUMNS($E$27:E30)-1)<>"",OFFSET(DE104_5C!$E$27,ROWS($E$27:E30)-1,COLUMNS($E$27:E30)-1),"") -> 3144800 | D17: =IF(OFFSET(DE104_5C!$F$27,ROWS($F$27:F30)-1,COLUMNS($F$27:F30)-1)<>"",OFFSET(DE104_5C!$F$27,ROWS($F$27:F30)-1,COLUMNS($F$27:F30)-1),"") ->  | E17: =IF(OFFSET(DE104_5C!$G$27,ROWS($G$27:G30)-1,COLUMNS($G$27:G30)-1)<>"",OFFSET(DE104_5C!$G$27,ROWS($G$27:G30)-1,COLUMNS($G$27:G30)-1),"") ->  | F17: =IF(OFFSET(DE104_5C!$H$27,ROWS($H$27:H30)-1,COLUMNS($H$27:H30)-1)<>"",OFFSET(DE104_5C!$H$27,ROWS($H$27:H30)-1,COLUMNS($H$27:H30)-1),"") ->  | G17: =IF(OFFSET(DE104_5C!$I$27,ROWS($I$27:I30)-1,COLUMNS($I$27:I30)-1)<>"",OFFSET(DE104_5C!$I$27,ROWS($I$27:I30)-1,COLUMNS($I$27:I30)-1),"") ->  | H17: =IF(OFFSET(DE104_5C!$J$27,ROWS($J$27:J30)-1,COLUMNS($J$27:J30)-1)<>"",OFFSET(DE104_5C!$J$27,ROWS($J$27:J30)-1,COLUMNS($J$27:J30)-1),"") ->  | I17: =IF(OFFSET(DE104_5C!$K$27,ROWS($K$27:K30)-1,COLUMNS($K$27:K30)-1)<>"",OFFSET(DE104_5C!$K$27,ROWS($K$27:K30)-1,COLUMNS($K$27:K30)-1),"") ->  | J17: =IF(OFFSET(DE104_5C!$L$27,ROWS($L$27:L30)-1,COLUMNS($L$27:L30)-1)<>"",OFFSET(DE104_5C!$L$27,ROWS($L$27:L30)-1,COLUMNS($L$27:L30)-1),"") ->  | K17: =IF(OFFSET(DE104_5C!$M$27,ROWS($M$27:M30)-1,COLUMNS($M$27:M30)-1)<>"",OFFSET(DE104_5C!$M$27,ROWS($M$27:M30)-1,COLUMNS($M$27:M30)-1),"") ->  | L17: =IF(OFFSET(DE104_5C!$N$27,ROWS($N$27:N30)-1,COLUMNS($N$27:N30)-1)<>"",OFFSET(DE104_5C!$N$27,ROWS($N$27:N30)-1,COLUMNS($N$27:N30)-1),"") ->  | M17: =IF(OFFSET(DE104_5C!$O$27,ROWS($O$27:O30)-1,COLUMNS($O$27:O30)-1)<>"",OFFSET(DE104_5C!$O$27,ROWS($O$27:O30)-1,COLUMNS($O$27:O30)-1),"") ->  | N17: =IF(OFFSET(DE104_5C!$P$27,ROWS($P$27:P30)-1,COLUMNS($P$27:P30)-1)<>"",OFFSET(DE104_5C!$P$27,ROWS($P$27:P30)-1,COLUMNS($P$27:P30)-1),"") ->  | O17: =IF(OFFSET(DE104_5C!$Q$27,ROWS($Q$27:Q30)-1,COLUMNS($Q$27:Q30)-1)<>"",OFFSET(DE104_5C!$Q$27,ROWS($Q$27:Q30)-1,COLUMNS($Q$27:Q30)-1),"") ->  | P17: =IF(OFFSET(DE104_5C!$R$27,ROWS($R$27:R30)-1,COLUMNS($R$27:R30)-1)<>"",OFFSET(DE104_5C!$R$27,ROWS($R$27:R30)-1,COLUMNS($R$27:R30)-1),"") ->  | Q17: =IF(OFFSET(DE104_5C!$S$27,ROWS($S$27:S30)-1,COLUMNS($S$27:S30)-1)<>"",OFFSET(DE104_5C!$S$27,ROWS($S$27:S30)-1,COLUMNS($S$27:S30)-1),"") -> 200 | R17: =IF(OFFSET(DE104_5C!$T$27,ROWS($T$27:T30)-1,COLUMNS($T$27:T30)-1)<>"",OFFSET(DE104_5C!$T$27,ROWS($T$27:T30)-1,COLUMNS($T$27:T30)-1),"") ->  | S17: =IF(OFFSET(DE104_5C!$U$27,ROWS($U$27:U30)-1,COLUMNS($U$27:U30)-1)<>"",OFFSET(DE104_5C!$U$27,ROWS($U$27:U30)-1,COLUMNS($U$27:U30)-1),"") ->  | T17: =IF(OFFSET(DE104_5C!$V$27,ROWS($V$27:V30)-1,COLUMNS($V$27:V30)-1)<>"",OFFSET(DE104_5C!$V$27,ROWS($V$27:V30)-1,COLUMNS($V$27:V30)-1),"") -> 12-inch thick Working Blanket - Ramp C
A18: =IF(OFFSET(DE104_5C!$C$27,ROWS($C$27:C31)-1,COLUMNS($C$27:C31)-1)<>"",OFFSET(DE104_5C!$C$27,ROWS($C$27:C31)-1,COLUMNS($C$27:C31)-1),"") -> 5 | B18: =IF(OFFSET(DE104_5C!$D$27,ROWS($D$27:D31)-1,COLUMNS($D$27:D31)-1)<>"",OFFSET(DE104_5C!$D$27,ROWS($D$27:D31)-1,COLUMNS($D$27:D31)-1),"") -> 3145225 | C18: =IF(OFFSET(DE104_5C!$E$27,ROWS($E$27:E31)-1,COLUMNS($E$27:E31)-1)<>"",OFFSET(DE104_5C!$E$27,ROWS($E$27:E31)-1,COLUMNS($E$27:E31)-1),"") -> 3145400 | D18: =IF(OFFSET(DE104_5C!$F$27,ROWS($F$27:F31)-1,COLUMNS($F$27:F31)-1)<>"",OFFSET(DE104_5C!$F$27,ROWS($F$27:F31)-1,COLUMNS($F$27:F31)-1),"") ->  | E18: =IF(OFFSET(DE104_5C!$G$27,ROWS($G$27:G31)-1,COLUMNS($G$27:G31)-1)<>"",OFFSET(DE104_5C!$G$27,ROWS($G$27:G31)-1,COLUMNS($G$27:G31)-1),"") ->  | F18: =IF(OFFSET(DE104_5C!$H$27,ROWS($H$27:H31)-1,COLUMNS($H$27:H31)-1)<>"",OFFSET(DE104_5C!$H$27,ROWS($H$27:H31)-1,COLUMNS($H$27:H31)-1),"") ->  | G18: =IF(OFFSET(DE104_5C!$I$27,ROWS($I$27:I31)-1,COLUMNS($I$27:I31)-1)<>"",OFFSET(DE104_5C!$I$27,ROWS($I$27:I31)-1,COLUMNS($I$27:I31)-1),"") ->  | H18: =IF(OFFSET(DE104_5C!$J$27,ROWS($J$27:J31)-1,COLUMNS($J$27:J31)-1)<>"",OFFSET(DE104_5C!$J$27,ROWS($J$27:J31)-1,COLUMNS($J$27:J31)-1),"") ->  | I18: =IF(OFFSET(DE104_5C!$K$27,ROWS($K$27:K31)-1,COLUMNS($K$27:K31)-1)<>"",OFFSET(DE104_5C!$K$27,ROWS($K$27:K31)-1,COLUMNS($K$27:K31)-1),"") ->  | J18: =IF(OFFSET(DE104_5C!$L$27,ROWS($L$27:L31)-1,COLUMNS($L$27:L31)-1)<>"",OFFSET(DE104_5C!$L$27,ROWS($L$27:L31)-1,COLUMNS($L$27:L31)-1),"") ->  | K18: =IF(OFFSET(DE104_5C!$M$27,ROWS($M$27:M31)-1,COLUMNS($M$27:M31)-1)<>"",OFFSET(DE104_5C!$M$27,ROWS($M$27:M31)-1,COLUMNS($M$27:M31)-1),"") ->  | L18: =IF(OFFSET(DE104_5C!$N$27,ROWS($N$27:N31)-1,COLUMNS($N$27:N31)-1)<>"",OFFSET(DE104_5C!$N$27,ROWS($N$27:N31)-1,COLUMNS($N$27:N31)-1),"") ->  | M18: =IF(OFFSET(DE104_5C!$O$27,ROWS($O$27:O31)-1,COLUMNS($O$27:O31)-1)<>"",OFFSET(DE104_5C!$O$27,ROWS($O$27:O31)-1,COLUMNS($O$27:O31)-1),"") ->  | N18: =IF(OFFSET(DE104_5C!$P$27,ROWS($P$27:P31)-1,COLUMNS($P$27:P31)-1)<>"",OFFSET(DE104_5C!$P$27,ROWS($P$27:P31)-1,COLUMNS($P$27:P31)-1),"") ->  | O18: =IF(OFFSET(DE104_5C!$Q$27,ROWS($Q$27:Q31)-1,COLUMNS($Q$27:Q31)-1)<>"",OFFSET(DE104_5C!$Q$27,ROWS($Q$27:Q31)-1,COLUMNS($Q$27:Q31)-1),"") ->  | P18: =IF(OFFSET(DE104_5C!$R$27,ROWS($R$27:R31)-1,COLUMNS($R$27:R31)-1)<>"",OFFSET(DE104_5C!$R$27,ROWS($R$27:R31)-1,COLUMNS($R$27:R31)-1),"") ->  | Q18: =IF(OFFSET(DE104_5C!$S$27,ROWS($S$27:S31)-1,COLUMNS($S$27:S31)-1)<>"",OFFSET(DE104_5C!$S$27,ROWS($S$27:S31)-1,COLUMNS($S$27:S31)-1),"") -> 115 | R18: =IF(OFFSET(DE104_5C!$T$27,ROWS($T$27:T31)-1,COLUMNS($T$27:T31)-1)<>"",OFFSET(DE104_5C!$T$27,ROWS($T$27:T31)-1,COLUMNS($T$27:T31)-1),"") ->  | S18: =IF(OFFSET(DE104_5C!$U$27,ROWS($U$27:U31)-1,COLUMNS($U$27:U31)-1)<>"",OFFSET(DE104_5C!$U$27,ROWS($U$27:U31)-1,COLUMNS($U$27:U31)-1),"") ->  | T18: =IF(OFFSET(DE104_5C!$V$27,ROWS($V$27:V31)-1,COLUMNS($V$27:V31)-1)<>"",OFFSET(DE104_5C!$V$27,ROWS($V$27:V31)-1,COLUMNS($V$27:V31)-1),"") -> 12-inch thick Working Blanket - Ramp C
A19: =IF(OFFSET(DE104_5C!$C$27,ROWS($C$27:C32)-1,COLUMNS($C$27:C32)-1)<>"",OFFSET(DE104_5C!$C$27,ROWS($C$27:C32)-1,COLUMNS($C$27:C32)-1),"") ->  | B19: =IF(OFFSET(DE104_5C!$D$27,ROWS($D$27:D32)-1,COLUMNS($D$27:D32)-1)<>"",OFFSET(DE104_5C!$D$27,ROWS($D$27:D32)-1,COLUMNS($D$27:D32)-1),"") ->  | C19: =IF(OFFSET(DE104_5C!$E$27,ROWS($E$27:E32)-1,COLUMNS($E$27:E32)-1)<>"",OFFSET(DE104_5C!$E$27,ROWS($E$27:E32)-1,COLUMNS($E$27:E32)-1),"") ->  | D19: =IF(OFFSET(DE104_5C!$F$27,ROWS($F$27:F32)-1,COLUMNS($F$27:F32)-1)<>"",OFFSET(DE104_5C!$F$27,ROWS($F$27:F32)-1,COLUMNS($F$27:F32)-1),"") ->  | E19: =IF(OFFSET(DE104_5C!$G$27,ROWS($G$27:G32)-1,COLUMNS($G$27:G32)-1)<>"",OFFSET(DE104_5C!$G$27,ROWS($G$27:G32)-1,COLUMNS($G$27:G32)-1),"") ->  | F19: =IF(OFFSET(DE104_5C!$H$27,ROWS($H$27:H32)-1,COLUMNS($H$27:H32)-1)<>"",OFFSET(DE104_5C!$H$27,ROWS($H$27:H32)-1,COLUMNS($H$27:H32)-1),"") ->  | G19: =IF(OFFSET(DE104_5C!$I$27,ROWS($I$27:I32)-1,COLUMNS($I$27:I32)-1)<>"",OFFSET(DE104_5C!$I$27,ROWS($I$27:I32)-1,COLUMNS($I$27:I32)-1),"") ->  | H19: =IF(OFFSET(DE104_5C!$J$27,ROWS($J$27:J32)-1,COLUMNS($J$27:J32)-1)<>"",OFFSET(DE104_5C!$J$27,ROWS($J$27:J32)-1,COLUMNS($J$27:J32)-1),"") ->  | I19: =IF(OFFSET(DE104_5C!$K$27,ROWS($K$27:K32)-1,COLUMNS($K$27:K32)-1)<>"",OFFSET(DE104_5C!$K$27,ROWS($K$27:K32)-1,COLUMNS($K$27:K32)-1),"") ->  | J19: =IF(OFFSET(DE104_5C!$L$27,ROWS($L$27:L32)-1,COLUMNS($L$27:L32)-1)<>"",OFFSET(DE104_5C!$L$27,ROWS($L$27:L32)-1,COLUMNS($L$27:L32)-1),"") ->  | K19: =IF(OFFSET(DE104_5C!$M$27,ROWS($M$27:M32)-1,COLUMNS($M$27:M32)-1)<>"",OFFSET(DE104_5C!$M$27,ROWS($M$27:M32)-1,COLUMNS($M$27:M32)-1),"") ->  | L19: =IF(OFFSET(DE104_5C!$N$27,ROWS($N$27:N32)-1,COLUMNS($N$27:N32)-1)<>"",OFFSET(DE104_5C!$N$27,ROWS($N$27:N32)-1,COLUMNS($N$27:N32)-1),"") ->  | M19: =IF(OFFSET(DE104_5C!$O$27,ROWS($O$27:O32)-1,COLUMNS($O$27:O32)-1)<>"",OFFSET(DE104_5C!$O$27,ROWS($O$27:O32)-1,COLUMNS($O$27:O32)-1),"") ->  | N19: =IF(OFFSET(DE104_5C!$P$27,ROWS($P$27:P32)-1,COLUMNS($P$27:P32)-1)<>"",OFFSET(DE104_5C!$P$27,ROWS($P$27:P32)-1,COLUMNS($P$27:P32)-1),"") ->  | O19: =IF(OFFSET(DE104_5C!$Q$27,ROWS($Q$27:Q32)-1,COLUMNS($Q$27:Q32)-1)<>"",OFFSET(DE104_5C!$Q$27,ROWS($Q$27:Q32)-1,COLUMNS($Q$27:Q32)-1),"") ->  | P19: =IF(OFFSET(DE104_5C!$R$27,ROWS($R$27:R32)-1,COLUMNS($R$27:R32)-1)<>"",OFFSET(DE104_5C!$R$27,ROWS($R$27:R32)-1,COLUMNS($R$27:R32)-1),"") ->  | Q19: =IF(OFFSET(DE104_5C!$S$27,ROWS($S$27:S32)-1,COLUMNS($S$27:S32)-1)<>"",OFFSET(DE104_5C!$S$27,ROWS($S$27:S32)-1,COLUMNS($S$27:S32)-1),"") ->  | R19: =IF(OFFSET(DE104_5C!$T$27,ROWS($T$27:T32)-1,COLUMNS($T$27:T32)-1)<>"",OFFSET(DE104_5C!$T$27,ROWS($T$27:T32)-1,COLUMNS($T$27:T32)-1),"") ->  | S19: =IF(OFFSET(DE104_5C!$U$27,ROWS($U$27:U32)-1,COLUMNS($U$27:U32)-1)<>"",OFFSET(DE104_5C!$U$27,ROWS($U$27:U32)-1,COLUMNS($U$27:U32)-1),"") ->  | T19: =IF(OFFSET(DE104_5C!$V$27,ROWS($V$27:V32)-1,COLUMNS($V$27:V32)-1)<>"",OFFSET(DE104_5C!$V$27,ROWS($V$27:V32)-1,COLUMNS($V$27:V32)-1),"") -> 
A20: =IF(OFFSET(DE104_5C!$C$27,ROWS($C$27:C33)-1,COLUMNS($C$27:C33)-1)<>"",OFFSET(DE104_5C!$C$27,ROWS($C$27:C33)-1,COLUMNS($C$27:C33)-1),"") ->  | B20: =IF(OFFSET(DE104_5C!$D$27,ROWS($D$27:D33)-1,COLUMNS($D$27:D33)-1)<>"",OFFSET(DE104_5C!$D$27,ROWS($D$27:D33)-1,COLUMNS($D$27:D33)-1),"") -> 24147120 | C20: =IF(OFFSET(DE104_5C!$E$27,ROWS($E$27:E33)-1,COLUMNS($E$27:E33)-1)<>"",OFFSET(DE104_5C!$E$27,ROWS($E$27:E33)-1,COLUMNS($E$27:E33)-1),"") -> 24147457 | D20: =IF(OFFSET(DE104_5C!$F$27,ROWS($F$27:F33)-1,COLUMNS($F$27:F33)-1)<>"",OFFSET(DE104_5C!$F$27,ROWS($F$27:F33)-1,COLUMNS($F$27:F33)-1),"") ->  | E20: =IF(OFFSET(DE104_5C!$G$27,ROWS($G$27:G33)-1,COLUMNS($G$27:G33)-1)<>"",OFFSET(DE104_5C!$G$27,ROWS($G$27:G33)-1,COLUMNS($G$27:G33)-1),"") ->  | F20: =IF(OFFSET(DE104_5C!$H$27,ROWS($H$27:H33)-1,COLUMNS($H$27:H33)-1)<>"",OFFSET(DE104_5C!$H$27,ROWS($H$27:H33)-1,COLUMNS($H$27:H33)-1),"") ->  | G20: =IF(OFFSET(DE104_5C!$I$27,ROWS($I$27:I33)-1,COLUMNS($I$27:I33)-1)<>"",OFFSET(DE104_5C!$I$27,ROWS($I$27:I33)-1,COLUMNS($I$27:I33)-1),"") ->  | H20: =IF(OFFSET(DE104_5C!$J$27,ROWS($J$27:J33)-1,COLUMNS($J$27:J33)-1)<>"",OFFSET(DE104_5C!$J$27,ROWS($J$27:J33)-1,COLUMNS($J$27:J33)-1),"") ->  | I20: =IF(OFFSET(DE104_5C!$K$27,ROWS($K$27:K33)-1,COLUMNS($K$27:K33)-1)<>"",OFFSET(DE104_5C!$K$27,ROWS($K$27:K33)-1,COLUMNS($K$27:K33)-1),"") ->  | J20: =IF(OFFSET(DE104_5C!$L$27,ROWS($L$27:L33)-1,COLUMNS($L$27:L33)-1)<>"",OFFSET(DE104_5C!$L$27,ROWS($L$27:L33)-1,COLUMNS($L$27:L33)-1),"") ->  | K20: =IF(OFFSET(DE104_5C!$M$27,ROWS($M$27:M33)-1,COLUMNS($M$27:M33)-1)<>"",OFFSET(DE104_5C!$M$27,ROWS($M$27:M33)-1,COLUMNS($M$27:M33)-1),"") ->  | L20: =IF(OFFSET(DE104_5C!$N$27,ROWS($N$27:N33)-1,COLUMNS($N$27:N33)-1)<>"",OFFSET(DE104_5C!$N$27,ROWS($N$27:N33)-1,COLUMNS($N$27:N33)-1),"") ->  | M20: =IF(OFFSET(DE104_5C!$O$27,ROWS($O$27:O33)-1,COLUMNS($O$27:O33)-1)<>"",OFFSET(DE104_5C!$O$27,ROWS($O$27:O33)-1,COLUMNS($O$27:O33)-1),"") ->  | N20: =IF(OFFSET(DE104_5C!$P$27,ROWS($P$27:P33)-1,COLUMNS($P$27:P33)-1)<>"",OFFSET(DE104_5C!$P$27,ROWS($P$27:P33)-1,COLUMNS($P$27:P33)-1),"") ->  | O20: =IF(OFFSET(DE104_5C!$Q$27,ROWS($Q$27:Q33)-1,COLUMNS($Q$27:Q33)-1)<>"",OFFSET(DE104_5C!$Q$27,ROWS($Q$27:Q33)-1,COLUMNS($Q$27:Q33)-1),"") ->  | P20: =IF(OFFSET(DE104_5C!$R$27,ROWS($R$27:R33)-1,COLUMNS($R$27:R33)-1)<>"",OFFSET(DE104_5C!$R$27,ROWS($R$27:R33)-1,COLUMNS($R$27:R33)-1),"") ->  | Q20: =IF(OFFSET(DE104_5C!$S$27,ROWS($S$27:S33)-1,COLUMNS($S$27:S33)-1)<>"",OFFSET(DE104_5C!$S$27,ROWS($S$27:S33)-1,COLUMNS($S$27:S33)-1),"") ->  | R20: =IF(OFFSET(DE104_5C!$T$27,ROWS($T$27:T33)-1,COLUMNS($T$27:T33)-1)<>"",OFFSET(DE104_5C!$T$27,ROWS($T$27:T33)-1,COLUMNS($T$27:T33)-1),"") -> 4895 | S20: =IF(OFFSET(DE104_5C!$U$27,ROWS($U$27:U33)-1,COLUMNS($U$27:U33)-1)<>"",OFFSET(DE104_5C!$U$27,ROWS($U$27:U33)-1,COLUMNS($U$27:U33)-1),"") ->  | T20: =IF(OFFSET(DE104_5C!$V$27,ROWS($V$27:V33)-1,COLUMNS($V$27:V33)-1)<>"",OFFSET(DE104_5C!$V$27,ROWS($V$27:V33)-1,COLUMNS($V$27:V33)-1),"") -> Special Backfill - MSE Wall Core-Out at South Abutment of US 218 over
A21: =IF(OFFSET(DE104_5C!$C$27,ROWS($C$27:C34)-1,COLUMNS($C$27:C34)-1)<>"",OFFSET(DE104_5C!$C$27,ROWS($C$27:C34)-1,COLUMNS($C$27:C34)-1),"") ->  | B21: =IF(OFFSET(DE104_5C!$D$27,ROWS($D$27:D34)-1,COLUMNS($D$27:D34)-1)<>"",OFFSET(DE104_5C!$D$27,ROWS($D$27:D34)-1,COLUMNS($D$27:D34)-1),"") ->  | C21: =IF(OFFSET(DE104_5C!$E$27,ROWS($E$27:E34)-1,COLUMNS($E$27:E34)-1)<>"",OFFSET(DE104_5C!$E$27,ROWS($E$27:E34)-1,COLUMNS($E$27:E34)-1),"") ->  | D21: =IF(OFFSET(DE104_5C!$F$27,ROWS($F$27:F34)-1,COLUMNS($F$27:F34)-1)<>"",OFFSET(DE104_5C!$F$27,ROWS($F$27:F34)-1,COLUMNS($F$27:F34)-1),"") ->  | E21: =IF(OFFSET(DE104_5C!$G$27,ROWS($G$27:G34)-1,COLUMNS($G$27:G34)-1)<>"",OFFSET(DE104_5C!$G$27,ROWS($G$27:G34)-1,COLUMNS($G$27:G34)-1),"") ->  | F21: =IF(OFFSET(DE104_5C!$H$27,ROWS($H$27:H34)-1,COLUMNS($H$27:H34)-1)<>"",OFFSET(DE104_5C!$H$27,ROWS($H$27:H34)-1,COLUMNS($H$27:H34)-1),"") ->  | G21: =IF(OFFSET(DE104_5C!$I$27,ROWS($I$27:I34)-1,COLUMNS($I$27:I34)-1)<>"",OFFSET(DE104_5C!$I$27,ROWS($I$27:I34)-1,COLUMNS($I$27:I34)-1),"") ->  | H21: =IF(OFFSET(DE104_5C!$J$27,ROWS($J$27:J34)-1,COLUMNS($J$27:J34)-1)<>"",OFFSET(DE104_5C!$J$27,ROWS($J$27:J34)-1,COLUMNS($J$27:J34)-1),"") ->  | I21: =IF(OFFSET(DE104_5C!$K$27,ROWS($K$27:K34)-1,COLUMNS($K$27:K34)-1)<>"",OFFSET(DE104_5C!$K$27,ROWS($K$27:K34)-1,COLUMNS($K$27:K34)-1),"") ->  | J21: =IF(OFFSET(DE104_5C!$L$27,ROWS($L$27:L34)-1,COLUMNS($L$27:L34)-1)<>"",OFFSET(DE104_5C!$L$27,ROWS($L$27:L34)-1,COLUMNS($L$27:L34)-1),"") ->  | K21: =IF(OFFSET(DE104_5C!$M$27,ROWS($M$27:M34)-1,COLUMNS($M$27:M34)-1)<>"",OFFSET(DE104_5C!$M$27,ROWS($M$27:M34)-1,COLUMNS($M$27:M34)-1),"") ->  | L21: =IF(OFFSET(DE104_5C!$N$27,ROWS($N$27:N34)-1,COLUMNS($N$27:N34)-1)<>"",OFFSET(DE104_5C!$N$27,ROWS($N$27:N34)-1,COLUMNS($N$27:N34)-1),"") ->  | M21: =IF(OFFSET(DE104_5C!$O$27,ROWS($O$27:O34)-1,COLUMNS($O$27:O34)-1)<>"",OFFSET(DE104_5C!$O$27,ROWS($O$27:O34)-1,COLUMNS($O$27:O34)-1),"") ->  | N21: =IF(OFFSET(DE104_5C!$P$27,ROWS($P$27:P34)-1,COLUMNS($P$27:P34)-1)<>"",OFFSET(DE104_5C!$P$27,ROWS($P$27:P34)-1,COLUMNS($P$27:P34)-1),"") ->  | O21: =IF(OFFSET(DE104_5C!$Q$27,ROWS($Q$27:Q34)-1,COLUMNS($Q$27:Q34)-1)<>"",OFFSET(DE104_5C!$Q$27,ROWS($Q$27:Q34)-1,COLUMNS($Q$27:Q34)-1),"") ->  | P21: =IF(OFFSET(DE104_5C!$R$27,ROWS($R$27:R34)-1,COLUMNS($R$27:R34)-1)<>"",OFFSET(DE104_5C!$R$27,ROWS($R$27:R34)-1,COLUMNS($R$27:R34)-1),"") ->  | Q21: =IF(OFFSET(DE104_5C!$S$27,ROWS($S$27:S34)-1,COLUMNS($S$27:S34)-1)<>"",OFFSET(DE104_5C!$S$27,ROWS($S$27:S34)-1,COLUMNS($S$27:S34)-1),"") ->  | R21: =IF(OFFSET(DE104_5C!$T$27,ROWS($T$27:T34)-1,COLUMNS($T$27:T34)-1)<>"",OFFSET(DE104_5C!$T$27,ROWS($T$27:T34)-1,COLUMNS($T$27:T34)-1),"") ->  | S21: =IF(OFFSET(DE104_5C!$U$27,ROWS($U$27:U34)-1,COLUMNS($U$27:U34)-1)<>"",OFFSET(DE104_5C!$U$27,ROWS($U$27:U34)-1,COLUMNS($U$27:U34)-1),"") ->  | T21: =IF(OFFSET(DE104_5C!$V$27,ROWS($V$27:V34)-1,COLUMNS($V$27:V34)-1)<>"",OFFSET(DE104_5C!$V$27,ROWS($V$27:V34)-1,COLUMNS($V$27:V34)-1),"") -> US 30 Bridge
A22: =IF(OFFSET(DE104_5C!$C$27,ROWS($C$27:C35)-1,COLUMNS($C$27:C35)-1)<>"",OFFSET(DE104_5C!$C$27,ROWS($C$27:C35)-1,COLUMNS($C$27:C35)-1),"") ->  | B22: =IF(OFFSET(DE104_5C!$D$27,ROWS($D$27:D35)-1,COLUMNS($D$27:D35)-1)<>"",OFFSET(DE104_5C!$D$27,ROWS($D$27:D35)-1,COLUMNS($D$27:D35)-1),"") ->  | C22: =IF(OFFSET(DE104_5C!$E$27,ROWS($E$27:E35)-1,COLUMNS($E$27:E35)-1)<>"",OFFSET(DE104_5C!$E$27,ROWS($E$27:E35)-1,COLUMNS($E$27:E35)-1),"") ->  | D22: =IF(OFFSET(DE104_5C!$F$27,ROWS($F$27:F35)-1,COLUMNS($F$27:F35)-1)<>"",OFFSET(DE104_5C!$F$27,ROWS($F$27:F35)-1,COLUMNS($F$27:F35)-1),"") ->  | E22: =IF(OFFSET(DE104_5C!$G$27,ROWS($G$27:G35)-1,COLUMNS($G$27:G35)-1)<>"",OFFSET(DE104_5C!$G$27,ROWS($G$27:G35)-1,COLUMNS($G$27:G35)-1),"") ->  | F22: =IF(OFFSET(DE104_5C!$H$27,ROWS($H$27:H35)-1,COLUMNS($H$27:H35)-1)<>"",OFFSET(DE104_5C!$H$27,ROWS($H$27:H35)-1,COLUMNS($H$27:H35)-1),"") ->  | G22: =IF(OFFSET(DE104_5C!$I$27,ROWS($I$27:I35)-1,COLUMNS($I$27:I35)-1)<>"",OFFSET(DE104_5C!$I$27,ROWS($I$27:I35)-1,COLUMNS($I$27:I35)-1),"") ->  | H22: =IF(OFFSET(DE104_5C!$J$27,ROWS($J$27:J35)-1,COLUMNS($J$27:J35)-1)<>"",OFFSET(DE104_5C!$J$27,ROWS($J$27:J35)-1,COLUMNS($J$27:J35)-1),"") ->  | I22: =IF(OFFSET(DE104_5C!$K$27,ROWS($K$27:K35)-1,COLUMNS($K$27:K35)-1)<>"",OFFSET(DE104_5C!$K$27,ROWS($K$27:K35)-1,COLUMNS($K$27:K35)-1),"") ->  | J22: =IF(OFFSET(DE104_5C!$L$27,ROWS($L$27:L35)-1,COLUMNS($L$27:L35)-1)<>"",OFFSET(DE104_5C!$L$27,ROWS($L$27:L35)-1,COLUMNS($L$27:L35)-1),"") ->  | K22: =IF(OFFSET(DE104_5C!$M$27,ROWS($M$27:M35)-1,COLUMNS($M$27:M35)-1)<>"",OFFSET(DE104_5C!$M$27,ROWS($M$27:M35)-1,COLUMNS($M$27:M35)-1),"") ->  | L22: =IF(OFFSET(DE104_5C!$N$27,ROWS($N$27:N35)-1,COLUMNS($N$27:N35)-1)<>"",OFFSET(DE104_5C!$N$27,ROWS($N$27:N35)-1,COLUMNS($N$27:N35)-1),"") ->  | M22: =IF(OFFSET(DE104_5C!$O$27,ROWS($O$27:O35)-1,COLUMNS($O$27:O35)-1)<>"",OFFSET(DE104_5C!$O$27,ROWS($O$27:O35)-1,COLUMNS($O$27:O35)-1),"") ->  | N22: =IF(OFFSET(DE104_5C!$P$27,ROWS($P$27:P35)-1,COLUMNS($P$27:P35)-1)<>"",OFFSET(DE104_5C!$P$27,ROWS($P$27:P35)-1,COLUMNS($P$27:P35)-1),"") ->  | O22: =IF(OFFSET(DE104_5C!$Q$27,ROWS($Q$27:Q35)-1,COLUMNS($Q$27:Q35)-1)<>"",OFFSET(DE104_5C!$Q$27,ROWS($Q$27:Q35)-1,COLUMNS($Q$27:Q35)-1),"") ->  | P22: =IF(OFFSET(DE104_5C!$R$27,ROWS($R$27:R35)-1,COLUMNS($R$27:R35)-1)<>"",OFFSET(DE104_5C!$R$27,ROWS($R$27:R35)-1,COLUMNS($R$27:R35)-1),"") ->  | Q22: =IF(OFFSET(DE104_5C!$S$27,ROWS($S$27:S35)-1,COLUMNS($S$27:S35)-1)<>"",OFFSET(DE104_5C!$S$27,ROWS($S$27:S35)-1,COLUMNS($S$27:S35)-1),"") ->  | R22: =IF(OFFSET(DE104_5C!$T$27,ROWS($T$27:T35)-1,COLUMNS($T$27:T35)-1)<>"",OFFSET(DE104_5C!$T$27,ROWS($T$27:T35)-1,COLUMNS($T$27:T35)-1),"") ->  | S22: =IF(OFFSET(DE104_5C!$U$27,ROWS($U$27:U35)-1,COLUMNS($U$27:U35)-1)<>"",OFFSET(DE104_5C!$U$27,ROWS($U$27:U35)-1,COLUMNS($U$27:U35)-1),"") ->  | T22: =IF(OFFSET(DE104_5C!$V$27,ROWS($V$27:V35)-1,COLUMNS($V$27:V35)-1)<>"",OFFSET(DE104_5C!$V$27,ROWS($V$27:V35)-1,COLUMNS($V$27:V35)-1),"") -> 
A23: =IF(OFFSET(DE104_5C!$C$27,ROWS($C$27:C36)-1,COLUMNS($C$27:C36)-1)<>"",OFFSET(DE104_5C!$C$27,ROWS($C$27:C36)-1,COLUMNS($C$27:C36)-1),"") -> 1 | B23: =IF(OFFSET(DE104_5C!$D$27,ROWS($D$27:D36)-1,COLUMNS($D$27:D36)-1)<>"",OFFSET(DE104_5C!$D$27,ROWS($D$27:D36)-1,COLUMNS($D$27:D36)-1),"") -> 147450 | C23: =IF(OFFSET(DE104_5C!$E$27,ROWS($E$27:E36)-1,COLUMNS($E$27:E36)-1)<>"",OFFSET(DE104_5C!$E$27,ROWS($E$27:E36)-1,COLUMNS($E$27:E36)-1),"") -> 147543.9 | D23: =IF(OFFSET(DE104_5C!$F$27,ROWS($F$27:F36)-1,COLUMNS($F$27:F36)-1)<>"",OFFSET(DE104_5C!$F$27,ROWS($F$27:F36)-1,COLUMNS($F$27:F36)-1),"") -> DR-301 Type 2 | E23: =IF(OFFSET(DE104_5C!$G$27,ROWS($G$27:G36)-1,COLUMNS($G$27:G36)-1)<>"",OFFSET(DE104_5C!$G$27,ROWS($G$27:G36)-1,COLUMNS($G$27:G36)-1),"") -> Plastic | F23: =IF(OFFSET(DE104_5C!$H$27,ROWS($H$27:H36)-1,COLUMNS($H$27:H36)-1)<>"",OFFSET(DE104_5C!$H$27,ROWS($H$27:H36)-1,COLUMNS($H$27:H36)-1),"") -> 4 | G23: =IF(OFFSET(DE104_5C!$I$27,ROWS($I$27:I36)-1,COLUMNS($I$27:I36)-1)<>"",OFFSET(DE104_5C!$I$27,ROWS($I$27:I36)-1,COLUMNS($I$27:I36)-1),"") -> 100 | H23: =IF(OFFSET(DE104_5C!$J$27,ROWS($J$27:J36)-1,COLUMNS($J$27:J36)-1)<>"",OFFSET(DE104_5C!$J$27,ROWS($J$27:J36)-1,COLUMNS($J$27:J36)-1),"") ->  | I23: =IF(OFFSET(DE104_5C!$K$27,ROWS($K$27:K36)-1,COLUMNS($K$27:K36)-1)<>"",OFFSET(DE104_5C!$K$27,ROWS($K$27:K36)-1,COLUMNS($K$27:K36)-1),"") ->  | J23: =IF(OFFSET(DE104_5C!$L$27,ROWS($L$27:L36)-1,COLUMNS($L$27:L36)-1)<>"",OFFSET(DE104_5C!$L$27,ROWS($L$27:L36)-1,COLUMNS($L$27:L36)-1),"") ->  | K23: =IF(OFFSET(DE104_5C!$M$27,ROWS($M$27:M36)-1,COLUMNS($M$27:M36)-1)<>"",OFFSET(DE104_5C!$M$27,ROWS($M$27:M36)-1,COLUMNS($M$27:M36)-1),"") ->  | L23: =IF(OFFSET(DE104_5C!$N$27,ROWS($N$27:N36)-1,COLUMNS($N$27:N36)-1)<>"",OFFSET(DE104_5C!$N$27,ROWS($N$27:N36)-1,COLUMNS($N$27:N36)-1),"") ->  | M23: =IF(OFFSET(DE104_5C!$O$27,ROWS($O$27:O36)-1,COLUMNS($O$27:O36)-1)<>"",OFFSET(DE104_5C!$O$27,ROWS($O$27:O36)-1,COLUMNS($O$27:O36)-1),"") -> 1 | N23: =IF(OFFSET(DE104_5C!$P$27,ROWS($P$27:P36)-1,COLUMNS($P$27:P36)-1)<>"",OFFSET(DE104_5C!$P$27,ROWS($P$27:P36)-1,COLUMNS($P$27:P36)-1),"") ->  | O23: =IF(OFFSET(DE104_5C!$Q$27,ROWS($Q$27:Q36)-1,COLUMNS($Q$27:Q36)-1)<>"",OFFSET(DE104_5C!$Q$27,ROWS($Q$27:Q36)-1,COLUMNS($Q$27:Q36)-1),"") ->  | P23: =IF(OFFSET(DE104_5C!$R$27,ROWS($R$27:R36)-1,COLUMNS($R$27:R36)-1)<>"",OFFSET(DE104_5C!$R$27,ROWS($R$27:R36)-1,COLUMNS($R$27:R36)-1),"") ->  | Q23: =IF(OFFSET(DE104_5C!$S$27,ROWS($S$27:S36)-1,COLUMNS($S$27:S36)-1)<>"",OFFSET(DE104_5C!$S$27,ROWS($S$27:S36)-1,COLUMNS($S$27:S36)-1),"") -> 10.8 | R23: =IF(OFFSET(DE104_5C!$T$27,ROWS($T$27:T36)-1,COLUMNS($T$27:T36)-1)<>"",OFFSET(DE104_5C!$T$27,ROWS($T$27:T36)-1,COLUMNS($T$27:T36)-1),"") ->  | S23: =IF(OFFSET(DE104_5C!$U$27,ROWS($U$27:U36)-1,COLUMNS($U$27:U36)-1)<>"",OFFSET(DE104_5C!$U$27,ROWS($U$27:U36)-1,COLUMNS($U$27:U36)-1),"") ->  | T23: =IF(OFFSET(DE104_5C!$V$27,ROWS($V$27:V36)-1,COLUMNS($V$27:V36)-1)<>"",OFFSET(DE104_5C!$V$27,ROWS($V$27:V36)-1,COLUMNS($V$27:V36)-1),"") -> MSE Wall; outlet to ditch at Station 1474+50 as shown on Q.22
A24: =IF(OFFSET(DE104_5C!$C$27,ROWS($C$27:C37)-1,COLUMNS($C$27:C37)-1)<>"",OFFSET(DE104_5C!$C$27,ROWS($C$27:C37)-1,COLUMNS($C$27:C37)-1),"") -> 2 | B24: =IF(OFFSET(DE104_5C!$D$27,ROWS($D$27:D37)-1,COLUMNS($D$27:D37)-1)<>"",OFFSET(DE104_5C!$D$27,ROWS($D$27:D37)-1,COLUMNS($D$27:D37)-1),"") -> 147450 | C24: =IF(OFFSET(DE104_5C!$E$27,ROWS($E$27:E37)-1,COLUMNS($E$27:E37)-1)<>"",OFFSET(DE104_5C!$E$27,ROWS($E$27:E37)-1,COLUMNS($E$27:E37)-1),"") -> 147592.7 | D24: =IF(OFFSET(DE104_5C!$F$27,ROWS($F$27:F37)-1,COLUMNS($F$27:F37)-1)<>"",OFFSET(DE104_5C!$F$27,ROWS($F$27:F37)-1,COLUMNS($F$27:F37)-1),"") -> DR-301 Type 2 | E24: =IF(OFFSET(DE104_5C!$G$27,ROWS($G$27:G37)-1,COLUMNS($G$27:G37)-1)<>"",OFFSET(DE104_5C!$G$27,ROWS($G$27:G37)-1,COLUMNS($G$27:G37)-1),"") -> Plastic | F24: =IF(OFFSET(DE104_5C!$H$27,ROWS($H$27:H37)-1,COLUMNS($H$27:H37)-1)<>"",OFFSET(DE104_5C!$H$27,ROWS($H$27:H37)-1,COLUMNS($H$27:H37)-1),"") -> 4 | G24: =IF(OFFSET(DE104_5C!$I$27,ROWS($I$27:I37)-1,COLUMNS($I$27:I37)-1)<>"",OFFSET(DE104_5C!$I$27,ROWS($I$27:I37)-1,COLUMNS($I$27:I37)-1),"") -> 150 | H24: =IF(OFFSET(DE104_5C!$J$27,ROWS($J$27:J37)-1,COLUMNS($J$27:J37)-1)<>"",OFFSET(DE104_5C!$J$27,ROWS($J$27:J37)-1,COLUMNS($J$27:J37)-1),"") ->  | I24: =IF(OFFSET(DE104_5C!$K$27,ROWS($K$27:K37)-1,COLUMNS($K$27:K37)-1)<>"",OFFSET(DE104_5C!$K$27,ROWS($K$27:K37)-1,COLUMNS($K$27:K37)-1),"") ->  | J24: =IF(OFFSET(DE104_5C!$L$27,ROWS($L$27:L37)-1,COLUMNS($L$27:L37)-1)<>"",OFFSET(DE104_5C!$L$27,ROWS($L$27:L37)-1,COLUMNS($L$27:L37)-1),"") ->  | K24: =IF(OFFSET(DE104_5C!$M$27,ROWS($M$27:M37)-1,COLUMNS($M$27:M37)-1)<>"",OFFSET(DE104_5C!$M$27,ROWS($M$27:M37)-1,COLUMNS($M$27:M37)-1),"") ->  | L24: =IF(OFFSET(DE104_5C!$N$27,ROWS($N$27:N37)-1,COLUMNS($N$27:N37)-1)<>"",OFFSET(DE104_5C!$N$27,ROWS($N$27:N37)-1,COLUMNS($N$27:N37)-1),"") ->  | M24: =IF(OFFSET(DE104_5C!$O$27,ROWS($O$27:O37)-1,COLUMNS($O$27:O37)-1)<>"",OFFSET(DE104_5C!$O$27,ROWS($O$27:O37)-1,COLUMNS($O$27:O37)-1),"") -> 1 | N24: =IF(OFFSET(DE104_5C!$P$27,ROWS($P$27:P37)-1,COLUMNS($P$27:P37)-1)<>"",OFFSET(DE104_5C!$P$27,ROWS($P$27:P37)-1,COLUMNS($P$27:P37)-1),"") ->  | O24: =IF(OFFSET(DE104_5C!$Q$27,ROWS($Q$27:Q37)-1,COLUMNS($Q$27:Q37)-1)<>"",OFFSET(DE104_5C!$Q$27,ROWS($Q$27:Q37)-1,COLUMNS($Q$27:Q37)-1),"") ->  | P24: =IF(OFFSET(DE104_5C!$R$27,ROWS($R$27:R37)-1,COLUMNS($R$27:R37)-1)<>"",OFFSET(DE104_5C!$R$27,ROWS($R$27:R37)-1,COLUMNS($R$27:R37)-1),"") ->  | Q24: =IF(OFFSET(DE104_5C!$S$27,ROWS($S$27:S37)-1,COLUMNS($S$27:S37)-1)<>"",OFFSET(DE104_5C!$S$27,ROWS($S$27:S37)-1,COLUMNS($S$27:S37)-1),"") -> 10.8 | R24: =IF(OFFSET(DE104_5C!$T$27,ROWS($T$27:T37)-1,COLUMNS($T$27:T37)-1)<>"",OFFSET(DE104_5C!$T$27,ROWS($T$27:T37)-1,COLUMNS($T$27:T37)-1),"") ->  | S24: =IF(OFFSET(DE104_5C!$U$27,ROWS($U$27:U37)-1,COLUMNS($U$27:U37)-1)<>"",OFFSET(DE104_5C!$U$27,ROWS($U$27:U37)-1,COLUMNS($U$27:U37)-1),"") ->  | T24: =IF(OFFSET(DE104_5C!$V$27,ROWS($V$27:V37)-1,COLUMNS($V$27:V37)-1)<>"",OFFSET(DE104_5C!$V$27,ROWS($V$27:V37)-1,COLUMNS($V$27:V37)-1),"") -> MSE Wall; outlet to ditch at Station 1474+50 as shown on Q.22
A25: =IF(OFFSET(DE104_5C!$C$27,ROWS($C$27:C38)-1,COLUMNS($C$27:C38)-1)<>"",OFFSET(DE104_5C!$C$27,ROWS($C$27:C38)-1,COLUMNS($C$27:C38)-1),"") ->  | B25: =IF(OFFSET(DE104_5C!$D$27,ROWS($D$27:D38)-1,COLUMNS($D$27:D38)-1)<>"",OFFSET(DE104_5C!$D$27,ROWS($D$27:D38)-1,COLUMNS($D$27:D38)-1),"") ->  | C25: =IF(OFFSET(DE104_5C!$E$27,ROWS($E$27:E38)-1,COLUMNS($E$27:E38)-1)<>"",OFFSET(DE104_5C!$E$27,ROWS($E$27:E38)-1,COLUMNS($E$27:E38)-1),"") ->  | D25: =IF(OFFSET(DE104_5C!$F$27,ROWS($F$27:F38)-1,COLUMNS($F$27:F38)-1)<>"",OFFSET(DE104_5C!$F$27,ROWS($F$27:F38)-1,COLUMNS($F$27:F38)-1),"") ->  | E25: =IF(OFFSET(DE104_5C!$G$27,ROWS($G$27:G38)-1,COLUMNS($G$27:G38)-1)<>"",OFFSET(DE104_5C!$G$27,ROWS($G$27:G38)-1,COLUMNS($G$27:G38)-1),"") ->  | F25: =IF(OFFSET(DE104_5C!$H$27,ROWS($H$27:H38)-1,COLUMNS($H$27:H38)-1)<>"",OFFSET(DE104_5C!$H$27,ROWS($H$27:H38)-1,COLUMNS($H$27:H38)-1),"") ->  | G25: =IF(OFFSET(DE104_5C!$I$27,ROWS($I$27:I38)-1,COLUMNS($I$27:I38)-1)<>"",OFFSET(DE104_5C!$I$27,ROWS($I$27:I38)-1,COLUMNS($I$27:I38)-1),"") ->  | H25: =IF(OFFSET(DE104_5C!$J$27,ROWS($J$27:J38)-1,COLUMNS($J$27:J38)-1)<>"",OFFSET(DE104_5C!$J$27,ROWS($J$27:J38)-1,COLUMNS($J$27:J38)-1),"") ->  | I25: =IF(OFFSET(DE104_5C!$K$27,ROWS($K$27:K38)-1,COLUMNS($K$27:K38)-1)<>"",OFFSET(DE104_5C!$K$27,ROWS($K$27:K38)-1,COLUMNS($K$27:K38)-1),"") ->  | J25: =IF(OFFSET(DE104_5C!$L$27,ROWS($L$27:L38)-1,COLUMNS($L$27:L38)-1)<>"",OFFSET(DE104_5C!$L$27,ROWS($L$27:L38)-1,COLUMNS($L$27:L38)-1),"") ->  | K25: =IF(OFFSET(DE104_5C!$M$27,ROWS($M$27:M38)-1,COLUMNS($M$27:M38)-1)<>"",OFFSET(DE104_5C!$M$27,ROWS($M$27:M38)-1,COLUMNS($M$27:M38)-1),"") ->  | L25: =IF(OFFSET(DE104_5C!$N$27,ROWS($N$27:N38)-1,COLUMNS($N$27:N38)-1)<>"",OFFSET(DE104_5C!$N$27,ROWS($N$27:N38)-1,COLUMNS($N$27:N38)-1),"") ->  | M25: =IF(OFFSET(DE104_5C!$O$27,ROWS($O$27:O38)-1,COLUMNS($O$27:O38)-1)<>"",OFFSET(DE104_5C!$O$27,ROWS($O$27:O38)-1,COLUMNS($O$27:O38)-1),"") ->  | N25: =IF(OFFSET(DE104_5C!$P$27,ROWS($P$27:P38)-1,COLUMNS($P$27:P38)-1)<>"",OFFSET(DE104_5C!$P$27,ROWS($P$27:P38)-1,COLUMNS($P$27:P38)-1),"") ->  | O25: =IF(OFFSET(DE104_5C!$Q$27,ROWS($Q$27:Q38)-1,COLUMNS($Q$27:Q38)-1)<>"",OFFSET(DE104_5C!$Q$27,ROWS($Q$27:Q38)-1,COLUMNS($Q$27:Q38)-1),"") ->  | P25: =IF(OFFSET(DE104_5C!$R$27,ROWS($R$27:R38)-1,COLUMNS($R$27:R38)-1)<>"",OFFSET(DE104_5C!$R$27,ROWS($R$27:R38)-1,COLUMNS($R$27:R38)-1),"") ->  | Q25: =IF(OFFSET(DE104_5C!$S$27,ROWS($S$27:S38)-1,COLUMNS($S$27:S38)-1)<>"",OFFSET(DE104_5C!$S$27,ROWS($S$27:S38)-1,COLUMNS($S$27:S38)-1),"") ->  | R25: =IF(OFFSET(DE104_5C!$T$27,ROWS($T$27:T38)-1,COLUMNS($T$27:T38)-1)<>"",OFFSET(DE104_5C!$T$27,ROWS($T$27:T38)-1,COLUMNS($T$27:T38)-1),"") ->  | S25: =IF(OFFSET(DE104_5C!$U$27,ROWS($U$27:U38)-1,COLUMNS($U$27:U38)-1)<>"",OFFSET(DE104_5C!$U$27,ROWS($U$27:U38)-1,COLUMNS($U$27:U38)-1),"") ->  | T25: =IF(OFFSET(DE104_5C!$V$27,ROWS($V$27:V38)-1,COLUMNS($V$27:V38)-1)<>"",OFFSET(DE104_5C!$V$27,ROWS($V$27:V38)-1,COLUMNS($V$27:V38)-1),"") -> 
A26: =IF(OFFSET(DE104_5C!$C$27,ROWS($C$27:C39)-1,COLUMNS($C$27:C39)-1)<>"",OFFSET(DE104_5C!$C$27,ROWS($C$27:C39)-1,COLUMNS($C$27:C39)-1),"") -> Notes: | B26: =IF(OFFSET(DE104_5C!$D$27,ROWS($D$27:D39)-1,COLUMNS($D$27:D39)-1)<>"",OFFSET(DE104_5C!$D$27,ROWS($D$27:D39)-1,COLUMNS($D$27:D39)-1),"") ->  | C26: =IF(OFFSET(DE104_5C!$E$27,ROWS($E$27:E39)-1,COLUMNS($E$27:E39)-1)<>"",OFFSET(DE104_5C!$E$27,ROWS($E$27:E39)-1,COLUMNS($E$27:E39)-1),"") ->  | D26: =IF(OFFSET(DE104_5C!$F$27,ROWS($F$27:F39)-1,COLUMNS($F$27:F39)-1)<>"",OFFSET(DE104_5C!$F$27,ROWS($F$27:F39)-1,COLUMNS($F$27:F39)-1),"") ->  | E26: =IF(OFFSET(DE104_5C!$G$27,ROWS($G$27:G39)-1,COLUMNS($G$27:G39)-1)<>"",OFFSET(DE104_5C!$G$27,ROWS($G$27:G39)-1,COLUMNS($G$27:G39)-1),"") ->  | F26: =IF(OFFSET(DE104_5C!$H$27,ROWS($H$27:H39)-1,COLUMNS($H$27:H39)-1)<>"",OFFSET(DE104_5C!$H$27,ROWS($H$27:H39)-1,COLUMNS($H$27:H39)-1),"") ->  | G26: =IF(OFFSET(DE104_5C!$I$27,ROWS($I$27:I39)-1,COLUMNS($I$27:I39)-1)<>"",OFFSET(DE104_5C!$I$27,ROWS($I$27:I39)-1,COLUMNS($I$27:I39)-1),"") ->  | H26: =IF(OFFSET(DE104_5C!$J$27,ROWS($J$27:J39)-1,COLUMNS($J$27:J39)-1)<>"",OFFSET(DE104_5C!$J$27,ROWS($J$27:J39)-1,COLUMNS($J$27:J39)-1),"") ->  | I26: =IF(OFFSET(DE104_5C!$K$27,ROWS($K$27:K39)-1,COLUMNS($K$27:K39)-1)<>"",OFFSET(DE104_5C!$K$27,ROWS($K$27:K39)-1,COLUMNS($K$27:K39)-1),"") ->  | J26: =IF(OFFSET(DE104_5C!$L$27,ROWS($L$27:L39)-1,COLUMNS($L$27:L39)-1)<>"",OFFSET(DE104_5C!$L$27,ROWS($L$27:L39)-1,COLUMNS($L$27:L39)-1),"") ->  | K26: =IF(OFFSET(DE104_5C!$M$27,ROWS($M$27:M39)-1,COLUMNS($M$27:M39)-1)<>"",OFFSET(DE104_5C!$M$27,ROWS($M$27:M39)-1,COLUMNS($M$27:M39)-1),"") ->  | L26: =IF(OFFSET(DE104_5C!$N$27,ROWS($N$27:N39)-1,COLUMNS($N$27:N39)-1)<>"",OFFSET(DE104_5C!$N$27,ROWS($N$27:N39)-1,COLUMNS($N$27:N39)-1),"") ->  | M26: =IF(OFFSET(DE104_5C!$O$27,ROWS($O$27:O39)-1,COLUMNS($O$27:O39)-1)<>"",OFFSET(DE104_5C!$O$27,ROWS($O$27:O39)-1,COLUMNS($O$27:O39)-1),"") ->  | N26: =IF(OFFSET(DE104_5C!$P$27,ROWS($P$27:P39)-1,COLUMNS($P$27:P39)-1)<>"",OFFSET(DE104_5C!$P$27,ROWS($P$27:P39)-1,COLUMNS($P$27:P39)-1),"") ->  | O26: =IF(OFFSET(DE104_5C!$Q$27,ROWS($Q$27:Q39)-1,COLUMNS($Q$27:Q39)-1)<>"",OFFSET(DE104_5C!$Q$27,ROWS($Q$27:Q39)-1,COLUMNS($Q$27:Q39)-1),"") ->  | P26: =IF(OFFSET(DE104_5C!$R$27,ROWS($R$27:R39)-1,COLUMNS($R$27:R39)-1)<>"",OFFSET(DE104_5C!$R$27,ROWS($R$27:R39)-1,COLUMNS($R$27:R39)-1),"") ->  | Q26: =IF(OFFSET(DE104_5C!$S$27,ROWS($S$27:S39)-1,COLUMNS($S$27:S39)-1)<>"",OFFSET(DE104_5C!$S$27,ROWS($S$27:S39)-1,COLUMNS($S$27:S39)-1),"") ->  | R26: =IF(OFFSET(DE104_5C!$T$27,ROWS($T$27:T39)-1,COLUMNS($T$27:T39)-1)<>"",OFFSET(DE104_5C!$T$27,ROWS($T$27:T39)-1,COLUMNS($T$27:T39)-1),"") ->  | S26: =IF(OFFSET(DE104_5C!$U$27,ROWS($U$27:U39)-1,COLUMNS($U$27:U39)-1)<>"",OFFSET(DE104_5C!$U$27,ROWS($U$27:U39)-1,COLUMNS($U$27:U39)-1),"") ->  | T26: =IF(OFFSET(DE104_5C!$V$27,ROWS($V$27:V39)-1,COLUMNS($V$27:V39)-1)<>"",OFFSET(DE104_5C!$V$27,ROWS($V$27:V39)-1,COLUMNS($V$27:V39)-1),"") -> 
A27: =IF(OFFSET(DE104_5C!$C$27,ROWS($C$27:C40)-1,COLUMNS($C$27:C40)-1)<>"",OFFSET(DE104_5C!$C$27,ROWS($C$27:C40)-1,COLUMNS($C$27:C40)-1),"") -> 1. The Working Blankets shown on the Q Sheets and on tab. 104-5C may be deleted if determined not to be necessary at the time of construction. | O27: =IF(OFFSET(DE104_5C!$Q$27,ROWS($Q$27:Q40)-1,COLUMNS($Q$27:Q40)-1)<>"",OFFSET(DE104_5C!$Q$27,ROWS($Q$27:Q40)-1,COLUMNS($Q$27:Q40)-1),"") ->  | P27: =IF(OFFSET(DE104_5C!$R$27,ROWS($R$27:R40)-1,COLUMNS($R$27:R40)-1)<>"",OFFSET(DE104_5C!$R$27,ROWS($R$27:R40)-1,COLUMNS($R$27:R40)-1),"") ->  | Q27: =IF(OFFSET(DE104_5C!$S$27,ROWS($S$27:S40)-1,COLUMNS($S$27:S40)-1)<>"",OFFSET(DE104_5C!$S$27,ROWS($S$27:S40)-1,COLUMNS($S$27:S40)-1),"") ->  | R27: =IF(OFFSET(DE104_5C!$T$27,ROWS($T$27:T40)-1,COLUMNS($T$27:T40)-1)<>"",OFFSET(DE104_5C!$T$27,ROWS($T$27:T40)-1,COLUMNS($T$27:T40)-1),"") ->  | S27: =IF(OFFSET(DE104_5C!$U$27,ROWS($U$27:U40)-1,COLUMNS($U$27:U40)-1)<>"",OFFSET(DE104_5C!$U$27,ROWS($U$27:U40)-1,COLUMNS($U$27:U40)-1),"") ->  | T27: =IF(OFFSET(DE104_5C!$V$27,ROWS($V$27:V40)-1,COLUMNS($V$27:V40)-1)<>"",OFFSET(DE104_5C!$V$27,ROWS($V$27:V40)-1,COLUMNS($V$27:V40)-1),"") -> 
A28: =IF(OFFSET(DE104_5C!$C$27,ROWS($C$27:C41)-1,COLUMNS($C$27:C41)-1)<>"",OFFSET(DE104_5C!$C$27,ROWS($C$27:C41)-1,COLUMNS($C$27:C41)-1),"") -> 2. See "MSE Retaining Wall Construction Notes" on Sheet V.1 for details of drain installation | N28: =IF(OFFSET(DE104_5C!$P$27,ROWS($P$27:P41)-1,COLUMNS($P$27:P41)-1)<>"",OFFSET(DE104_5C!$P$27,ROWS($P$27:P41)-1,COLUMNS($P$27:P41)-1),"") ->  | O28: =IF(OFFSET(DE104_5C!$Q$27,ROWS($Q$27:Q41)-1,COLUMNS($Q$27:Q41)-1)<>"",OFFSET(DE104_5C!$Q$27,ROWS($Q$27:Q41)-1,COLUMNS($Q$27:Q41)-1),"") ->  | P28: =IF(OFFSET(DE104_5C!$R$27,ROWS($R$27:R41)-1,COLUMNS($R$27:R41)-1)<>"",OFFSET(DE104_5C!$R$27,ROWS($R$27:R41)-1,COLUMNS($R$27:R41)-1),"") ->  | Q28: =IF(OFFSET(DE104_5C!$S$27,ROWS($S$27:S41)-1,COLUMNS($S$27:S41)-1)<>"",OFFSET(DE104_5C!$S$27,ROWS($S$27:S41)-1,COLUMNS($S$27:S41)-1),"") ->  | R28: =IF(OFFSET(DE104_5C!$T$27,ROWS($T$27:T41)-1,COLUMNS($T$27:T41)-1)<>"",OFFSET(DE104_5C!$T$27,ROWS($T$27:T41)-1,COLUMNS($T$27:T41)-1),"") ->  | S28: =IF(OFFSET(DE104_5C!$U$27,ROWS($U$27:U41)-1,COLUMNS($U$27:U41)-1)<>"",OFFSET(DE104_5C!$U$27,ROWS($U$27:U41)-1,COLUMNS($U$27:U41)-1),"") ->  | T28: =IF(OFFSET(DE104_5C!$V$27,ROWS($V$27:V41)-1,COLUMNS($V$27:V41)-1)<>"",OFFSET(DE104_5C!$V$27,ROWS($V$27:V41)-1,COLUMNS($V$27:V41)-1),"") -> 
A29: =IF(OFFSET(DE104_5C!$C$27,ROWS($C$27:C42)-1,COLUMNS($C$27:C42)-1)<>"",OFFSET(DE104_5C!$C$27,ROWS($C$27:C42)-1,COLUMNS($C$27:C42)-1),"") -> 3. See plan view on Sheet Q.22 for locations of drain installation. | N29: =IF(OFFSET(DE104_5C!$P$27,ROWS($P$27:P42)-1,COLUMNS($P$27:P42)-1)<>"",OFFSET(DE104_5C!$P$27,ROWS($P$27:P42)-1,COLUMNS($P$27:P42)-1),"") ->  | O29: =IF(OFFSET(DE104_5C!$Q$27,ROWS($Q$27:Q42)-1,COLUMNS($Q$27:Q42)-1)<>"",OFFSET(DE104_5C!$Q$27,ROWS($Q$27:Q42)-1,COLUMNS($Q$27:Q42)-1),"") ->  | P29: =IF(OFFSET(DE104_5C!$R$27,ROWS($R$27:R42)-1,COLUMNS($R$27:R42)-1)<>"",OFFSET(DE104_5C!$R$27,ROWS($R$27:R42)-1,COLUMNS($R$27:R42)-1),"") ->  | Q29: =IF(OFFSET(DE104_5C!$S$27,ROWS($S$27:S42)-1,COLUMNS($S$27:S42)-1)<>"",OFFSET(DE104_5C!$S$27,ROWS($S$27:S42)-1,COLUMNS($S$27:S42)-1),"") ->  | R29: =IF(OFFSET(DE104_5C!$T$27,ROWS($T$27:T42)-1,COLUMNS($T$27:T42)-1)<>"",OFFSET(DE104_5C!$T$27,ROWS($T$27:T42)-1,COLUMNS($T$27:T42)-1),"") ->  | S29: =IF(OFFSET(DE104_5C!$U$27,ROWS($U$27:U42)-1,COLUMNS($U$27:U42)-1)<>"",OFFSET(DE104_5C!$U$27,ROWS($U$27:U42)-1,COLUMNS($U$27:U42)-1),"") ->  | T29: =IF(OFFSET(DE104_5C!$V$27,ROWS($V$27:V42)-1,COLUMNS($V$27:V42)-1)<>"",OFFSET(DE104_5C!$V$27,ROWS($V$27:V42)-1,COLUMNS($V$27:V42)-1),"") -> 
A30: =IF(OFFSET(DE104_5C!$C$27,ROWS($C$27:C43)-1,COLUMNS($C$27:C43)-1)<>"",OFFSET(DE104_5C!$C$27,ROWS($C$27:C43)-1,COLUMNS($C$27:C43)-1),"") -> 4. Drain line No. 2 length includes subdrain within MSE wall and length outside wall to reach ditch outlet location. | N30: =IF(OFFSET(DE104_5C!$P$27,ROWS($P$27:P43)-1,COLUMNS($P$27:P43)-1)<>"",OFFSET(DE104_5C!$P$27,ROWS($P$27:P43)-1,COLUMNS($P$27:P43)-1),"") ->  | O30: =IF(OFFSET(DE104_5C!$Q$27,ROWS($Q$27:Q43)-1,COLUMNS($Q$27:Q43)-1)<>"",OFFSET(DE104_5C!$Q$27,ROWS($Q$27:Q43)-1,COLUMNS($Q$27:Q43)-1),"") ->  | P30: =IF(OFFSET(DE104_5C!$R$27,ROWS($R$27:R43)-1,COLUMNS($R$27:R43)-1)<>"",OFFSET(DE104_5C!$R$27,ROWS($R$27:R43)-1,COLUMNS($R$27:R43)-1),"") ->  | Q30: =IF(OFFSET(DE104_5C!$S$27,ROWS($S$27:S43)-1,COLUMNS($S$27:S43)-1)<>"",OFFSET(DE104_5C!$S$27,ROWS($S$27:S43)-1,COLUMNS($S$27:S43)-1),"") ->  | R30: =IF(OFFSET(DE104_5C!$T$27,ROWS($T$27:T43)-1,COLUMNS($T$27:T43)-1)<>"",OFFSET(DE104_5C!$T$27,ROWS($T$27:T43)-1,COLUMNS($T$27:T43)-1),"") ->  | S30: =IF(OFFSET(DE104_5C!$U$27,ROWS($U$27:U43)-1,COLUMNS($U$27:U43)-1)<>"",OFFSET(DE104_5C!$U$27,ROWS($U$27:U43)-1,COLUMNS($U$27:U43)-1),"") ->  | T30: =IF(OFFSET(DE104_5C!$V$27,ROWS($V$27:V43)-1,COLUMNS($V$27:V43)-1)<>"",OFFSET(DE104_5C!$V$27,ROWS($V$27:V43)-1,COLUMNS($V$27:V43)-1),"") -> 
A31: =IF(OFFSET(DE104_5C!$C$27,ROWS($C$27:C44)-1,COLUMNS($C$27:C44)-1)<>"",OFFSET(DE104_5C!$C$27,ROWS($C$27:C44)-1,COLUMNS($C$27:C44)-1),"") -> 5. Quantities are for porous trench width of 20 inches ( both lines combined) and depth of 4 feet with 6 inches of topsoil cover. | N31: =IF(OFFSET(DE104_5C!$P$27,ROWS($P$27:P44)-1,COLUMNS($P$27:P44)-1)<>"",OFFSET(DE104_5C!$P$27,ROWS($P$27:P44)-1,COLUMNS($P$27:P44)-1),"") ->  | O31: =IF(OFFSET(DE104_5C!$Q$27,ROWS($Q$27:Q44)-1,COLUMNS($Q$27:Q44)-1)<>"",OFFSET(DE104_5C!$Q$27,ROWS($Q$27:Q44)-1,COLUMNS($Q$27:Q44)-1),"") ->  | P31: =IF(OFFSET(DE104_5C!$R$27,ROWS($R$27:R44)-1,COLUMNS($R$27:R44)-1)<>"",OFFSET(DE104_5C!$R$27,ROWS($R$27:R44)-1,COLUMNS($R$27:R44)-1),"") ->  | Q31: =IF(OFFSET(DE104_5C!$S$27,ROWS($S$27:S44)-1,COLUMNS($S$27:S44)-1)<>"",OFFSET(DE104_5C!$S$27,ROWS($S$27:S44)-1,COLUMNS($S$27:S44)-1),"") ->  | R31: =IF(OFFSET(DE104_5C!$T$27,ROWS($T$27:T44)-1,COLUMNS($T$27:T44)-1)<>"",OFFSET(DE104_5C!$T$27,ROWS($T$27:T44)-1,COLUMNS($T$27:T44)-1),"") ->  | S31: =IF(OFFSET(DE104_5C!$U$27,ROWS($U$27:U44)-1,COLUMNS($U$27:U44)-1)<>"",OFFSET(DE104_5C!$U$27,ROWS($U$27:U44)-1,COLUMNS($U$27:U44)-1),"") ->  | T31: =IF(OFFSET(DE104_5C!$V$27,ROWS($V$27:V44)-1,COLUMNS($V$27:V44)-1)<>"",OFFSET(DE104_5C!$V$27,ROWS($V$27:V44)-1,COLUMNS($V$27:V44)-1),"") -> 
A32: =IF(OFFSET(DE104_5C!$C$27,ROWS($C$27:C45)-1,COLUMNS($C$27:C45)-1)<>"",OFFSET(DE104_5C!$C$27,ROWS($C$27:C45)-1,COLUMNS($C$27:C45)-1),"") ->  | B32: =IF(OFFSET(DE104_5C!$D$27,ROWS($D$27:D45)-1,COLUMNS($D$27:D45)-1)<>"",OFFSET(DE104_5C!$D$27,ROWS($D$27:D45)-1,COLUMNS($D$27:D45)-1),"") ->  | C32: =IF(OFFSET(DE104_5C!$E$27,ROWS($E$27:E45)-1,COLUMNS($E$27:E45)-1)<>"",OFFSET(DE104_5C!$E$27,ROWS($E$27:E45)-1,COLUMNS($E$27:E45)-1),"") ->  | D32: =IF(OFFSET(DE104_5C!$F$27,ROWS($F$27:F45)-1,COLUMNS($F$27:F45)-1)<>"",OFFSET(DE104_5C!$F$27,ROWS($F$27:F45)-1,COLUMNS($F$27:F45)-1),"") ->  | E32: =IF(OFFSET(DE104_5C!$G$27,ROWS($G$27:G45)-1,COLUMNS($G$27:G45)-1)<>"",OFFSET(DE104_5C!$G$27,ROWS($G$27:G45)-1,COLUMNS($G$27:G45)-1),"") ->  | F32: =IF(OFFSET(DE104_5C!$H$27,ROWS($H$27:H45)-1,COLUMNS($H$27:H45)-1)<>"",OFFSET(DE104_5C!$H$27,ROWS($H$27:H45)-1,COLUMNS($H$27:H45)-1),"") ->  | G32: =IF(OFFSET(DE104_5C!$I$27,ROWS($I$27:I45)-1,COLUMNS($I$27:I45)-1)<>"",OFFSET(DE104_5C!$I$27,ROWS($I$27:I45)-1,COLUMNS($I$27:I45)-1),"") ->  | H32: =IF(OFFSET(DE104_5C!$J$27,ROWS($J$27:J45)-1,COLUMNS($J$27:J45)-1)<>"",OFFSET(DE104_5C!$J$27,ROWS($J$27:J45)-1,COLUMNS($J$27:J45)-1),"") ->  | I32: =IF(OFFSET(DE104_5C!$K$27,ROWS($K$27:K45)-1,COLUMNS($K$27:K45)-1)<>"",OFFSET(DE104_5C!$K$27,ROWS($K$27:K45)-1,COLUMNS($K$27:K45)-1),"") ->  | J32: =IF(OFFSET(DE104_5C!$L$27,ROWS($L$27:L45)-1,COLUMNS($L$27:L45)-1)<>"",OFFSET(DE104_5C!$L$27,ROWS($L$27:L45)-1,COLUMNS($L$27:L45)-1),"") ->  | K32: =IF(OFFSET(DE104_5C!$M$27,ROWS($M$27:M45)-1,COLUMNS($M$27:M45)-1)<>"",OFFSET(DE104_5C!$M$27,ROWS($M$27:M45)-1,COLUMNS($M$27:M45)-1),"") ->  | L32: =IF(OFFSET(DE104_5C!$N$27,ROWS($N$27:N45)-1,COLUMNS($N$27:N45)-1)<>"",OFFSET(DE104_5C!$N$27,ROWS($N$27:N45)-1,COLUMNS($N$27:N45)-1),"") ->  | M32: =IF(OFFSET(DE104_5C!$O$27,ROWS($O$27:O45)-1,COLUMNS($O$27:O45)-1)<>"",OFFSET(DE104_5C!$O$27,ROWS($O$27:O45)-1,COLUMNS($O$27:O45)-1),"") ->  | N32: =IF(OFFSET(DE104_5C!$P$27,ROWS($P$27:P45)-1,COLUMNS($P$27:P45)-1)<>"",OFFSET(DE104_5C!$P$27,ROWS($P$27:P45)-1,COLUMNS($P$27:P45)-1),"") ->  | O32: =IF(OFFSET(DE104_5C!$Q$27,ROWS($Q$27:Q45)-1,COLUMNS($Q$27:Q45)-1)<>"",OFFSET(DE104_5C!$Q$27,ROWS($Q$27:Q45)-1,COLUMNS($Q$27:Q45)-1),"") ->  | P32: =IF(OFFSET(DE104_5C!$R$27,ROWS($R$27:R45)-1,COLUMNS($R$27:R45)-1)<>"",OFFSET(DE104_5C!$R$27,ROWS($R$27:R45)-1,COLUMNS($R$27:R45)-1),"") ->  | Q32: =IF(OFFSET(DE104_5C!$S$27,ROWS($S$27:S45)-1,COLUMNS($S$27:S45)-1)<>"",OFFSET(DE104_5C!$S$27,ROWS($S$27:S45)-1,COLUMNS($S$27:S45)-1),"") ->  | R32: =IF(OFFSET(DE104_5C!$T$27,ROWS($T$27:T45)-1,COLUMNS($T$27:T45)-1)<>"",OFFSET(DE104_5C!$T$27,ROWS($T$27:T45)-1,COLUMNS($T$27:T45)-1),"") ->  | S32: =IF(OFFSET(DE104_5C!$U$27,ROWS($U$27:U45)-1,COLUMNS($U$27:U45)-1)<>"",OFFSET(DE104_5C!$U$27,ROWS($U$27:U45)-1,COLUMNS($U$27:U45)-1),"") ->  | T32: =IF(OFFSET(DE104_5C!$V$27,ROWS($V$27:V45)-1,COLUMNS($V$27:V45)-1)<>"",OFFSET(DE104_5C!$V$27,ROWS($V$27:V45)-1,COLUMNS($V$27:V45)-1),"") -> 
A33: =IF(OFFSET(DE104_5C!$C$27,ROWS($C$27:C46)-1,COLUMNS($C$27:C46)-1)<>"",OFFSET(DE104_5C!$C$27,ROWS($C$27:C46)-1,COLUMNS($C$27:C46)-1),"") ->  | B33: =IF(OFFSET(DE104_5C!$D$27,ROWS($D$27:D46)-1,COLUMNS($D$27:D46)-1)<>"",OFFSET(DE104_5C!$D$27,ROWS($D$27:D46)-1,COLUMNS($D$27:D46)-1),"") ->  | C33: =IF(OFFSET(DE104_5C!$E$27,ROWS($E$27:E46)-1,COLUMNS($E$27:E46)-1)<>"",OFFSET(DE104_5C!$E$27,ROWS($E$27:E46)-1,COLUMNS($E$27:E46)-1),"") ->  | D33: =IF(OFFSET(DE104_5C!$F$27,ROWS($F$27:F46)-1,COLUMNS($F$27:F46)-1)<>"",OFFSET(DE104_5C!$F$27,ROWS($F$27:F46)-1,COLUMNS($F$27:F46)-1),"") ->  | E33: =IF(OFFSET(DE104_5C!$G$27,ROWS($G$27:G46)-1,COLUMNS($G$27:G46)-1)<>"",OFFSET(DE104_5C!$G$27,ROWS($G$27:G46)-1,COLUMNS($G$27:G46)-1),"") ->  | F33: =IF(OFFSET(DE104_5C!$H$27,ROWS($H$27:H46)-1,COLUMNS($H$27:H46)-1)<>"",OFFSET(DE104_5C!$H$27,ROWS($H$27:H46)-1,COLUMNS($H$27:H46)-1),"") ->  | G33: =IF(OFFSET(DE104_5C!$I$27,ROWS($I$27:I46)-1,COLUMNS($I$27:I46)-1)<>"",OFFSET(DE104_5C!$I$27,ROWS($I$27:I46)-1,COLUMNS($I$27:I46)-1),"") ->  | H33: =IF(OFFSET(DE104_5C!$J$27,ROWS($J$27:J46)-1,COLUMNS($J$27:J46)-1)<>"",OFFSET(DE104_5C!$J$27,ROWS($J$27:J46)-1,COLUMNS($J$27:J46)-1),"") ->  | I33: =IF(OFFSET(DE104_5C!$K$27,ROWS($K$27:K46)-1,COLUMNS($K$27:K46)-1)<>"",OFFSET(DE104_5C!$K$27,ROWS($K$27:K46)-1,COLUMNS($K$27:K46)-1),"") ->  | J33: =IF(OFFSET(DE104_5C!$L$27,ROWS($L$27:L46)-1,COLUMNS($L$27:L46)-1)<>"",OFFSET(DE104_5C!$L$27,ROWS($L$27:L46)-1,COLUMNS($L$27:L46)-1),"") ->  | K33: =IF(OFFSET(DE104_5C!$M$27,ROWS($M$27:M46)-1,COLUMNS($M$27:M46)-1)<>"",OFFSET(DE104_5C!$M$27,ROWS($M$27:M46)-1,COLUMNS($M$27:M46)-1),"") ->  | L33: =IF(OFFSET(DE104_5C!$N$27,ROWS($N$27:N46)-1,COLUMNS($N$27:N46)-1)<>"",OFFSET(DE104_5C!$N$27,ROWS($N$27:N46)-1,COLUMNS($N$27:N46)-1),"") ->  | M33: =IF(OFFSET(DE104_5C!$O$27,ROWS($O$27:O46)-1,COLUMNS($O$27:O46)-1)<>"",OFFSET(DE104_5C!$O$27,ROWS($O$27:O46)-1,COLUMNS($O$27:O46)-1),"") ->  | N33: =IF(OFFSET(DE104_5C!$P$27,ROWS($P$27:P46)-1,COLUMNS($P$27:P46)-1)<>"",OFFSET(DE104_5C!$P$27,ROWS($P$27:P46)-1,COLUMNS($P$27:P46)-1),"") ->  | O33: =IF(OFFSET(DE104_5C!$Q$27,ROWS($Q$27:Q46)-1,COLUMNS($Q$27:Q46)-1)<>"",OFFSET(DE104_5C!$Q$27,ROWS($Q$27:Q46)-1,COLUMNS($Q$27:Q46)-1),"") ->  | P33: =IF(OFFSET(DE104_5C!$R$27,ROWS($R$27:R46)-1,COLUMNS($R$27:R46)-1)<>"",OFFSET(DE104_5C!$R$27,ROWS($R$27:R46)-1,COLUMNS($R$27:R46)-1),"") ->  | Q33: =IF(OFFSET(DE104_5C!$S$27,ROWS($S$27:S46)-1,COLUMNS($S$27:S46)-1)<>"",OFFSET(DE104_5C!$S$27,ROWS($S$27:S46)-1,COLUMNS($S$27:S46)-1),"") ->  | R33: =IF(OFFSET(DE104_5C!$T$27,ROWS($T$27:T46)-1,COLUMNS($T$27:T46)-1)<>"",OFFSET(DE104_5C!$T$27,ROWS($T$27:T46)-1,COLUMNS($T$27:T46)-1),"") ->  | S33: =IF(OFFSET(DE104_5C!$U$27,ROWS($U$27:U46)-1,COLUMNS($U$27:U46)-1)<>"",OFFSET(DE104_5C!$U$27,ROWS($U$27:U46)-1,COLUMNS($U$27:U46)-1),"") ->  | T33: =IF(OFFSET(DE104_5C!$V$27,ROWS($V$27:V46)-1,COLUMNS($V$27:V46)-1)<>"",OFFSET(DE104_5C!$V$27,ROWS($V$27:V46)-1,COLUMNS($V$27:V46)-1),"") -> 
A34: =IF(OFFSET(DE104_5C!$C$27,ROWS($C$27:C47)-1,COLUMNS($C$27:C47)-1)<>"",OFFSET(DE104_5C!$C$27,ROWS($C$27:C47)-1,COLUMNS($C$27:C47)-1),"") ->  | B34: =IF(OFFSET(DE104_5C!$D$27,ROWS($D$27:D47)-1,COLUMNS($D$27:D47)-1)<>"",OFFSET(DE104_5C!$D$27,ROWS($D$27:D47)-1,COLUMNS($D$27:D47)-1),"") ->  | C34: =IF(OFFSET(DE104_5C!$E$27,ROWS($E$27:E47)-1,COLUMNS($E$27:E47)-1)<>"",OFFSET(DE104_5C!$E$27,ROWS($E$27:E47)-1,COLUMNS($E$27:E47)-1),"") ->  | D34: =IF(OFFSET(DE104_5C!$F$27,ROWS($F$27:F47)-1,COLUMNS($F$27:F47)-1)<>"",OFFSET(DE104_5C!$F$27,ROWS($F$27:F47)-1,COLUMNS($F$27:F47)-1),"") ->  | E34: =IF(OFFSET(DE104_5C!$G$27,ROWS($G$27:G47)-1,COLUMNS($G$27:G47)-1)<>"",OFFSET(DE104_5C!$G$27,ROWS($G$27:G47)-1,COLUMNS($G$27:G47)-1),"") ->  | F34: =IF(OFFSET(DE104_5C!$H$27,ROWS($H$27:H47)-1,COLUMNS($H$27:H47)-1)<>"",OFFSET(DE104_5C!$H$27,ROWS($H$27:H47)-1,COLUMNS($H$27:H47)-1),"") ->  | G34: =IF(OFFSET(DE104_5C!$I$27,ROWS($I$27:I47)-1,COLUMNS($I$27:I47)-1)<>"",OFFSET(DE104_5C!$I$27,ROWS($I$27:I47)-1,COLUMNS($I$27:I47)-1),"") ->  | H34: =IF(OFFSET(DE104_5C!$J$27,ROWS($J$27:J47)-1,COLUMNS($J$27:J47)-1)<>"",OFFSET(DE104_5C!$J$27,ROWS($J$27:J47)-1,COLUMNS($J$27:J47)-1),"") ->  | I34: =IF(OFFSET(DE104_5C!$K$27,ROWS($K$27:K47)-1,COLUMNS($K$27:K47)-1)<>"",OFFSET(DE104_5C!$K$27,ROWS($K$27:K47)-1,COLUMNS($K$27:K47)-1),"") ->  | J34: =IF(OFFSET(DE104_5C!$L$27,ROWS($L$27:L47)-1,COLUMNS($L$27:L47)-1)<>"",OFFSET(DE104_5C!$L$27,ROWS($L$27:L47)-1,COLUMNS($L$27:L47)-1),"") ->  | K34: =IF(OFFSET(DE104_5C!$M$27,ROWS($M$27:M47)-1,COLUMNS($M$27:M47)-1)<>"",OFFSET(DE104_5C!$M$27,ROWS($M$27:M47)-1,COLUMNS($M$27:M47)-1),"") ->  | L34: =IF(OFFSET(DE104_5C!$N$27,ROWS($N$27:N47)-1,COLUMNS($N$27:N47)-1)<>"",OFFSET(DE104_5C!$N$27,ROWS($N$27:N47)-1,COLUMNS($N$27:N47)-1),"") ->  | M34: =IF(OFFSET(DE104_5C!$O$27,ROWS($O$27:O47)-1,COLUMNS($O$27:O47)-1)<>"",OFFSET(DE104_5C!$O$27,ROWS($O$27:O47)-1,COLUMNS($O$27:O47)-1),"") ->  | N34: =IF(OFFSET(DE104_5C!$P$27,ROWS($P$27:P47)-1,COLUMNS($P$27:P47)-1)<>"",OFFSET(DE104_5C!$P$27,ROWS($P$27:P47)-1,COLUMNS($P$27:P47)-1),"") ->  | O34: =IF(OFFSET(DE104_5C!$Q$27,ROWS($Q$27:Q47)-1,COLUMNS($Q$27:Q47)-1)<>"",OFFSET(DE104_5C!$Q$27,ROWS($Q$27:Q47)-1,COLUMNS($Q$27:Q47)-1),"") ->  | P34: =IF(OFFSET(DE104_5C!$R$27,ROWS($R$27:R47)-1,COLUMNS($R$27:R47)-1)<>"",OFFSET(DE104_5C!$R$27,ROWS($R$27:R47)-1,COLUMNS($R$27:R47)-1),"") ->  | Q34: =IF(OFFSET(DE104_5C!$S$27,ROWS($S$27:S47)-1,COLUMNS($S$27:S47)-1)<>"",OFFSET(DE104_5C!$S$27,ROWS($S$27:S47)-1,COLUMNS($S$27:S47)-1),"") ->  | R34: =IF(OFFSET(DE104_5C!$T$27,ROWS($T$27:T47)-1,COLUMNS($T$27:T47)-1)<>"",OFFSET(DE104_5C!$T$27,ROWS($T$27:T47)-1,COLUMNS($T$27:T47)-1),"") ->  | S34: =IF(OFFSET(DE104_5C!$U$27,ROWS($U$27:U47)-1,COLUMNS($U$27:U47)-1)<>"",OFFSET(DE104_5C!$U$27,ROWS($U$27:U47)-1,COLUMNS($U$27:U47)-1),"") ->  | T34: =IF(OFFSET(DE104_5C!$V$27,ROWS($V$27:V47)-1,COLUMNS($V$27:V47)-1)<>"",OFFSET(DE104_5C!$V$27,ROWS($V$27:V47)-1,COLUMNS($V$27:V47)-1),"") -> 
A35: =IF(OFFSET(DE104_5C!$C$27,ROWS($C$27:C48)-1,COLUMNS($C$27:C48)-1)<>"",OFFSET(DE104_5C!$C$27,ROWS($C$27:C48)-1,COLUMNS($C$27:C48)-1),"") ->  | B35: =IF(OFFSET(DE104_5C!$D$27,ROWS($D$27:D48)-1,COLUMNS($D$27:D48)-1)<>"",OFFSET(DE104_5C!$D$27,ROWS($D$27:D48)-1,COLUMNS($D$27:D48)-1),"") ->  | C35: =IF(OFFSET(DE104_5C!$E$27,ROWS($E$27:E48)-1,COLUMNS($E$27:E48)-1)<>"",OFFSET(DE104_5C!$E$27,ROWS($E$27:E48)-1,COLUMNS($E$27:E48)-1),"") ->  | D35: =IF(OFFSET(DE104_5C!$F$27,ROWS($F$27:F48)-1,COLUMNS($F$27:F48)-1)<>"",OFFSET(DE104_5C!$F$27,ROWS($F$27:F48)-1,COLUMNS($F$27:F48)-1),"") ->  | E35: =IF(OFFSET(DE104_5C!$G$27,ROWS($G$27:G48)-1,COLUMNS($G$27:G48)-1)<>"",OFFSET(DE104_5C!$G$27,ROWS($G$27:G48)-1,COLUMNS($G$27:G48)-1),"") ->  | F35: =IF(OFFSET(DE104_5C!$H$27,ROWS($H$27:H48)-1,COLUMNS($H$27:H48)-1)<>"",OFFSET(DE104_5C!$H$27,ROWS($H$27:H48)-1,COLUMNS($H$27:H48)-1),"") ->  | G35: =IF(OFFSET(DE104_5C!$I$27,ROWS($I$27:I48)-1,COLUMNS($I$27:I48)-1)<>"",OFFSET(DE104_5C!$I$27,ROWS($I$27:I48)-1,COLUMNS($I$27:I48)-1),"") ->  | H35: =IF(OFFSET(DE104_5C!$J$27,ROWS($J$27:J48)-1,COLUMNS($J$27:J48)-1)<>"",OFFSET(DE104_5C!$J$27,ROWS($J$27:J48)-1,COLUMNS($J$27:J48)-1),"") ->  | I35: =IF(OFFSET(DE104_5C!$K$27,ROWS($K$27:K48)-1,COLUMNS($K$27:K48)-1)<>"",OFFSET(DE104_5C!$K$27,ROWS($K$27:K48)-1,COLUMNS($K$27:K48)-1),"") ->  | J35: =IF(OFFSET(DE104_5C!$L$27,ROWS($L$27:L48)-1,COLUMNS($L$27:L48)-1)<>"",OFFSET(DE104_5C!$L$27,ROWS($L$27:L48)-1,COLUMNS($L$27:L48)-1),"") ->  | K35: =IF(OFFSET(DE104_5C!$M$27,ROWS($M$27:M48)-1,COLUMNS($M$27:M48)-1)<>"",OFFSET(DE104_5C!$M$27,ROWS($M$27:M48)-1,COLUMNS($M$27:M48)-1),"") ->  | L35: =IF(OFFSET(DE104_5C!$N$27,ROWS($N$27:N48)-1,COLUMNS($N$27:N48)-1)<>"",OFFSET(DE104_5C!$N$27,ROWS($N$27:N48)-1,COLUMNS($N$27:N48)-1),"") ->  | M35: =IF(OFFSET(DE104_5C!$O$27,ROWS($O$27:O48)-1,COLUMNS($O$27:O48)-1)<>"",OFFSET(DE104_5C!$O$27,ROWS($O$27:O48)-1,COLUMNS($O$27:O48)-1),"") ->  | N35: =IF(OFFSET(DE104_5C!$P$27,ROWS($P$27:P48)-1,COLUMNS($P$27:P48)-1)<>"",OFFSET(DE104_5C!$P$27,ROWS($P$27:P48)-1,COLUMNS($P$27:P48)-1),"") ->  | O35: =IF(OFFSET(DE104_5C!$Q$27,ROWS($Q$27:Q48)-1,COLUMNS($Q$27:Q48)-1)<>"",OFFSET(DE104_5C!$Q$27,ROWS($Q$27:Q48)-1,COLUMNS($Q$27:Q48)-1),"") ->  | P35: =IF(OFFSET(DE104_5C!$R$27,ROWS($R$27:R48)-1,COLUMNS($R$27:R48)-1)<>"",OFFSET(DE104_5C!$R$27,ROWS($R$27:R48)-1,COLUMNS($R$27:R48)-1),"") ->  | Q35: =IF(OFFSET(DE104_5C!$S$27,ROWS($S$27:S48)-1,COLUMNS($S$27:S48)-1)<>"",OFFSET(DE104_5C!$S$27,ROWS($S$27:S48)-1,COLUMNS($S$27:S48)-1),"") ->  | R35: =IF(OFFSET(DE104_5C!$T$27,ROWS($T$27:T48)-1,COLUMNS($T$27:T48)-1)<>"",OFFSET(DE104_5C!$T$27,ROWS($T$27:T48)-1,COLUMNS($T$27:T48)-1),"") ->  | S35: =IF(OFFSET(DE104_5C!$U$27,ROWS($U$27:U48)-1,COLUMNS($U$27:U48)-1)<>"",OFFSET(DE104_5C!$U$27,ROWS($U$27:U48)-1,COLUMNS($U$27:U48)-1),"") ->  | T35: =IF(OFFSET(DE104_5C!$V$27,ROWS($V$27:V48)-1,COLUMNS($V$27:V48)-1)<>"",OFFSET(DE104_5C!$V$27,ROWS($V$27:V48)-1,COLUMNS($V$27:V48)-1),"") -> 

Sheet 104_9
A1: 104-9
A2: 2017-10-17
A3: LONGITUDINAL SUBDRAIN SHOULDER AND BACKSLOPE
A5: Refer to Soils Sheets
A6: * Not a bid item. Bridge berm quantities assume a trench depth of 24 inches.
A7: Location | G7: Longitudinal Subdrain (DR-303) | N7: Subdrain Outlet | P7: Porous* Backfill | Q7: Class "A"* Crushed Stone | R7: Remarks
A8: Line No. | B8: Road or Lane Identification | C8: Station to Station | E8: Side | F8: Depth | G8: Shoulder | I8: Backslope | K8: Bridge Berm (EW-203 or EW-204) | N8: DR-303, DR-305 or DR-306
F9: 0
G10: Size | H10: Length | I10: Size | J10: Length | K10: Standard Road Plan and Type | L10: Size | M10: Length | N10: Station | O10: Standard Road Plan and Type
F12: IN | G12: IN | H12: FT | I12: IN | J12: FT | L12: IN | M12: FT | P12: CY | Q12: CY
A13: =IF(OFFSET(DE104_9!$C$26,ROWS($C$26:C26)-1,COLUMNS($C$26:C26)-1)<>"",OFFSET(DE104_9!$C$26,ROWS($C$26:C26)-1,COLUMNS($C$26:C26)-1),"") -> 1 | B13: =IF(OFFSET(DE104_9!$D$26,ROWS($D$26:D26)-1,COLUMNS($D$26:D26)-1)<>"",OFFSET(DE104_9!$D$26,ROWS($D$26:D26)-1,COLUMNS($D$26:D26)-1),"") -> EBL | C13: =IF(OFFSET(DE104_9!$E$26,ROWS($E$26:E26)-1,COLUMNS($E$26:E26)-1)<>"",OFFSET(DE104_9!$E$26,ROWS($E$26:E26)-1,COLUMNS($E$26:E26)-1),"") -> 138000 | D13: =IF(OFFSET(DE104_9!$F$26,ROWS($F$26:F26)-1,COLUMNS($F$26:F26)-1)<>"",OFFSET(DE104_9!$F$26,ROWS($F$26:F26)-1,COLUMNS($F$26:F26)-1),"") -> 138500 | E13: =IF(OFFSET(DE104_9!$G$26,ROWS($G$26:G26)-1,COLUMNS($G$26:G26)-1)<>"",OFFSET(DE104_9!$G$26,ROWS($G$26:G26)-1,COLUMNS($G$26:G26)-1),"") -> RT | F13: =IF(OFFSET(DE104_9!$H$26,ROWS($H$26:H26)-1,COLUMNS($H$26:H26)-1)<>"",OFFSET(DE104_9!$H$26,ROWS($H$26:H26)-1,COLUMNS($H$26:H26)-1),"") -> 42 | G13: =IF(OFFSET(DE104_9!$I$26,ROWS($I$26:I26)-1,COLUMNS($I$26:I26)-1)<>"",OFFSET(DE104_9!$I$26,ROWS($I$26:I26)-1,COLUMNS($I$26:I26)-1),"") -> 4 | H13: =IF(OFFSET(DE104_9!$J$26,ROWS($J$26:J26)-1,COLUMNS($J$26:J26)-1)<>"",OFFSET(DE104_9!$J$26,ROWS($J$26:J26)-1,COLUMNS($J$26:J26)-1),"") -> 540 | I13: =IF(OFFSET(DE104_9!$K$26,ROWS($K$26:K26)-1,COLUMNS($K$26:K26)-1)<>"",OFFSET(DE104_9!$K$26,ROWS($K$26:K26)-1,COLUMNS($K$26:K26)-1),"") ->  | J13: =IF(OFFSET(DE104_9!$L$26,ROWS($L$26:L26)-1,COLUMNS($L$26:L26)-1)<>"",OFFSET(DE104_9!$L$26,ROWS($L$26:L26)-1,COLUMNS($L$26:L26)-1),"") ->  | K13: =IF(OFFSET(DE104_9!$M$26,ROWS($M$26:M26)-1,COLUMNS($M$26:M26)-1)<>"",OFFSET(DE104_9!$M$26,ROWS($M$26:M26)-1,COLUMNS($M$26:M26)-1),"") ->  | L13: =IF(OFFSET(DE104_9!$N$26,ROWS($N$26:N26)-1,COLUMNS($N$26:N26)-1)<>"",OFFSET(DE104_9!$N$26,ROWS($N$26:N26)-1,COLUMNS($N$26:N26)-1),"") ->  | M13: =IF(OFFSET(DE104_9!$O$26,ROWS($O$26:O26)-1,COLUMNS($O$26:O26)-1)<>"",OFFSET(DE104_9!$O$26,ROWS($O$26:O26)-1,COLUMNS($O$26:O26)-1),"") ->  | N13: =IF(OFFSET(DE104_9!$P$26,ROWS($P$26:P26)-1,COLUMNS($P$26:P26)-1)<>"",OFFSET(DE104_9!$P$26,ROWS($P$26:P26)-1,COLUMNS($P$26:P26)-1),"") -> 138000 | O13: =IF(OFFSET(DE104_9!$Q$26,ROWS($Q$26:Q26)-1,COLUMNS($Q$26:Q26)-1)<>"",OFFSET(DE104_9!$Q$26,ROWS($Q$26:Q26)-1,COLUMNS($Q$26:Q26)-1),"") -> DR-306 | P13: =IF(OFFSET(DE104_9!$R$26,ROWS($R$26:R26)-1,COLUMNS($R$26:R26)-1)<>"",OFFSET(DE104_9!$R$26,ROWS($R$26:R26)-1,COLUMNS($R$26:R26)-1),"") -> 50 | Q13: =IF(OFFSET(DE104_9!$S$26,ROWS($S$26:S26)-1,COLUMNS($S$26:S26)-1)<>"",OFFSET(DE104_9!$S$26,ROWS($S$26:S26)-1,COLUMNS($S$26:S26)-1),"") -> 0.4 | R13: =IF(OFFSET(DE104_9!$T$26,ROWS($T$26:T26)-1,COLUMNS($T$26:T26)-1)<>"",OFFSET(DE104_9!$T$26,ROWS($T$26:T26)-1,COLUMNS($T$26:T26)-1),"") -> 
A14: =IF(OFFSET(DE104_9!$C$26,ROWS($C$26:C27)-1,COLUMNS($C$26:C27)-1)<>"",OFFSET(DE104_9!$C$26,ROWS($C$26:C27)-1,COLUMNS($C$26:C27)-1),"") ->  | B14: =IF(OFFSET(DE104_9!$D$26,ROWS($D$26:D27)-1,COLUMNS($D$26:D27)-1)<>"",OFFSET(DE104_9!$D$26,ROWS($D$26:D27)-1,COLUMNS($D$26:D27)-1),"") ->  | C14: =IF(OFFSET(DE104_9!$E$26,ROWS($E$26:E27)-1,COLUMNS($E$26:E27)-1)<>"",OFFSET(DE104_9!$E$26,ROWS($E$26:E27)-1,COLUMNS($E$26:E27)-1),"") ->  | D14: =IF(OFFSET(DE104_9!$F$26,ROWS($F$26:F27)-1,COLUMNS($F$26:F27)-1)<>"",OFFSET(DE104_9!$F$26,ROWS($F$26:F27)-1,COLUMNS($F$26:F27)-1),"") ->  | E14: =IF(OFFSET(DE104_9!$G$26,ROWS($G$26:G27)-1,COLUMNS($G$26:G27)-1)<>"",OFFSET(DE104_9!$G$26,ROWS($G$26:G27)-1,COLUMNS($G$26:G27)-1),"") ->  | F14: =IF(OFFSET(DE104_9!$H$26,ROWS($H$26:H27)-1,COLUMNS($H$26:H27)-1)<>"",OFFSET(DE104_9!$H$26,ROWS($H$26:H27)-1,COLUMNS($H$26:H27)-1),"") ->  | G14: =IF(OFFSET(DE104_9!$I$26,ROWS($I$26:I27)-1,COLUMNS($I$26:I27)-1)<>"",OFFSET(DE104_9!$I$26,ROWS($I$26:I27)-1,COLUMNS($I$26:I27)-1),"") ->  | H14: =IF(OFFSET(DE104_9!$J$26,ROWS($J$26:J27)-1,COLUMNS($J$26:J27)-1)<>"",OFFSET(DE104_9!$J$26,ROWS($J$26:J27)-1,COLUMNS($J$26:J27)-1),"") ->  | I14: =IF(OFFSET(DE104_9!$K$26,ROWS($K$26:K27)-1,COLUMNS($K$26:K27)-1)<>"",OFFSET(DE104_9!$K$26,ROWS($K$26:K27)-1,COLUMNS($K$26:K27)-1),"") ->  | J14: =IF(OFFSET(DE104_9!$L$26,ROWS($L$26:L27)-1,COLUMNS($L$26:L27)-1)<>"",OFFSET(DE104_9!$L$26,ROWS($L$26:L27)-1,COLUMNS($L$26:L27)-1),"") ->  | K14: =IF(OFFSET(DE104_9!$M$26,ROWS($M$26:M27)-1,COLUMNS($M$26:M27)-1)<>"",OFFSET(DE104_9!$M$26,ROWS($M$26:M27)-1,COLUMNS($M$26:M27)-1),"") ->  | L14: =IF(OFFSET(DE104_9!$N$26,ROWS($N$26:N27)-1,COLUMNS($N$26:N27)-1)<>"",OFFSET(DE104_9!$N$26,ROWS($N$26:N27)-1,COLUMNS($N$26:N27)-1),"") ->  | M14: =IF(OFFSET(DE104_9!$O$26,ROWS($O$26:O27)-1,COLUMNS($O$26:O27)-1)<>"",OFFSET(DE104_9!$O$26,ROWS($O$26:O27)-1,COLUMNS($O$26:O27)-1),"") ->  | N14: =IF(OFFSET(DE104_9!$P$26,ROWS($P$26:P27)-1,COLUMNS($P$26:P27)-1)<>"",OFFSET(DE104_9!$P$26,ROWS($P$26:P27)-1,COLUMNS($P$26:P27)-1),"") -> 138500 | O14: =IF(OFFSET(DE104_9!$Q$26,ROWS($Q$26:Q27)-1,COLUMNS($Q$26:Q27)-1)<>"",OFFSET(DE104_9!$Q$26,ROWS($Q$26:Q27)-1,COLUMNS($Q$26:Q27)-1),"") -> DR-306 | P14: =IF(OFFSET(DE104_9!$R$26,ROWS($R$26:R27)-1,COLUMNS($R$26:R27)-1)<>"",OFFSET(DE104_9!$R$26,ROWS($R$26:R27)-1,COLUMNS($R$26:R27)-1),"") ->  | Q14: =IF(OFFSET(DE104_9!$S$26,ROWS($S$26:S27)-1,COLUMNS($S$26:S27)-1)<>"",OFFSET(DE104_9!$S$26,ROWS($S$26:S27)-1,COLUMNS($S$26:S27)-1),"") -> 0.4 | R14: =IF(OFFSET(DE104_9!$T$26,ROWS($T$26:T27)-1,COLUMNS($T$26:T27)-1)<>"",OFFSET(DE104_9!$T$26,ROWS($T$26:T27)-1,COLUMNS($T$26:T27)-1),"") -> 
A15: =IF(OFFSET(DE104_9!$C$26,ROWS($C$26:C28)-1,COLUMNS($C$26:C28)-1)<>"",OFFSET(DE104_9!$C$26,ROWS($C$26:C28)-1,COLUMNS($C$26:C28)-1),"") -> 2 | B15: =IF(OFFSET(DE104_9!$D$26,ROWS($D$26:D28)-1,COLUMNS($D$26:D28)-1)<>"",OFFSET(DE104_9!$D$26,ROWS($D$26:D28)-1,COLUMNS($D$26:D28)-1),"") -> EBL | C15: =IF(OFFSET(DE104_9!$E$26,ROWS($E$26:E28)-1,COLUMNS($E$26:E28)-1)<>"",OFFSET(DE104_9!$E$26,ROWS($E$26:E28)-1,COLUMNS($E$26:E28)-1),"") -> 138500 | D15: =IF(OFFSET(DE104_9!$F$26,ROWS($F$26:F28)-1,COLUMNS($F$26:F28)-1)<>"",OFFSET(DE104_9!$F$26,ROWS($F$26:F28)-1,COLUMNS($F$26:F28)-1),"") -> 139000 | E15: =IF(OFFSET(DE104_9!$G$26,ROWS($G$26:G28)-1,COLUMNS($G$26:G28)-1)<>"",OFFSET(DE104_9!$G$26,ROWS($G$26:G28)-1,COLUMNS($G$26:G28)-1),"") -> RT | F15: =IF(OFFSET(DE104_9!$H$26,ROWS($H$26:H28)-1,COLUMNS($H$26:H28)-1)<>"",OFFSET(DE104_9!$H$26,ROWS($H$26:H28)-1,COLUMNS($H$26:H28)-1),"") -> 42 | G15: =IF(OFFSET(DE104_9!$I$26,ROWS($I$26:I28)-1,COLUMNS($I$26:I28)-1)<>"",OFFSET(DE104_9!$I$26,ROWS($I$26:I28)-1,COLUMNS($I$26:I28)-1),"") -> 4 | H15: =IF(OFFSET(DE104_9!$J$26,ROWS($J$26:J28)-1,COLUMNS($J$26:J28)-1)<>"",OFFSET(DE104_9!$J$26,ROWS($J$26:J28)-1,COLUMNS($J$26:J28)-1),"") -> 540 | I15: =IF(OFFSET(DE104_9!$K$26,ROWS($K$26:K28)-1,COLUMNS($K$26:K28)-1)<>"",OFFSET(DE104_9!$K$26,ROWS($K$26:K28)-1,COLUMNS($K$26:K28)-1),"") ->  | J15: =IF(OFFSET(DE104_9!$L$26,ROWS($L$26:L28)-1,COLUMNS($L$26:L28)-1)<>"",OFFSET(DE104_9!$L$26,ROWS($L$26:L28)-1,COLUMNS($L$26:L28)-1),"") ->  | K15: =IF(OFFSET(DE104_9!$M$26,ROWS($M$26:M28)-1,COLUMNS($M$26:M28)-1)<>"",OFFSET(DE104_9!$M$26,ROWS($M$26:M28)-1,COLUMNS($M$26:M28)-1),"") ->  | L15: =IF(OFFSET(DE104_9!$N$26,ROWS($N$26:N28)-1,COLUMNS($N$26:N28)-1)<>"",OFFSET(DE104_9!$N$26,ROWS($N$26:N28)-1,COLUMNS($N$26:N28)-1),"") ->  | M15: =IF(OFFSET(DE104_9!$O$26,ROWS($O$26:O28)-1,COLUMNS($O$26:O28)-1)<>"",OFFSET(DE104_9!$O$26,ROWS($O$26:O28)-1,COLUMNS($O$26:O28)-1),"") ->  | N15: =IF(OFFSET(DE104_9!$P$26,ROWS($P$26:P28)-1,COLUMNS($P$26:P28)-1)<>"",OFFSET(DE104_9!$P$26,ROWS($P$26:P28)-1,COLUMNS($P$26:P28)-1),"") -> 138500 | O15: =IF(OFFSET(DE104_9!$Q$26,ROWS($Q$26:Q28)-1,COLUMNS($Q$26:Q28)-1)<>"",OFFSET(DE104_9!$Q$26,ROWS($Q$26:Q28)-1,COLUMNS($Q$26:Q28)-1),"") -> DR-306 | P15: =IF(OFFSET(DE104_9!$R$26,ROWS($R$26:R28)-1,COLUMNS($R$26:R28)-1)<>"",OFFSET(DE104_9!$R$26,ROWS($R$26:R28)-1,COLUMNS($R$26:R28)-1),"") -> 50 | Q15: =IF(OFFSET(DE104_9!$S$26,ROWS($S$26:S28)-1,COLUMNS($S$26:S28)-1)<>"",OFFSET(DE104_9!$S$26,ROWS($S$26:S28)-1,COLUMNS($S$26:S28)-1),"") -> 0.4 | R15: =IF(OFFSET(DE104_9!$T$26,ROWS($T$26:T28)-1,COLUMNS($T$26:T28)-1)<>"",OFFSET(DE104_9!$T$26,ROWS($T$26:T28)-1,COLUMNS($T$26:T28)-1),"") -> 
A16: =IF(OFFSET(DE104_9!$C$26,ROWS($C$26:C29)-1,COLUMNS($C$26:C29)-1)<>"",OFFSET(DE104_9!$C$26,ROWS($C$26:C29)-1,COLUMNS($C$26:C29)-1),"") ->  | B16: =IF(OFFSET(DE104_9!$D$26,ROWS($D$26:D29)-1,COLUMNS($D$26:D29)-1)<>"",OFFSET(DE104_9!$D$26,ROWS($D$26:D29)-1,COLUMNS($D$26:D29)-1),"") ->  | C16: =IF(OFFSET(DE104_9!$E$26,ROWS($E$26:E29)-1,COLUMNS($E$26:E29)-1)<>"",OFFSET(DE104_9!$E$26,ROWS($E$26:E29)-1,COLUMNS($E$26:E29)-1),"") ->  | D16: =IF(OFFSET(DE104_9!$F$26,ROWS($F$26:F29)-1,COLUMNS($F$26:F29)-1)<>"",OFFSET(DE104_9!$F$26,ROWS($F$26:F29)-1,COLUMNS($F$26:F29)-1),"") ->  | E16: =IF(OFFSET(DE104_9!$G$26,ROWS($G$26:G29)-1,COLUMNS($G$26:G29)-1)<>"",OFFSET(DE104_9!$G$26,ROWS($G$26:G29)-1,COLUMNS($G$26:G29)-1),"") ->  | F16: =IF(OFFSET(DE104_9!$H$26,ROWS($H$26:H29)-1,COLUMNS($H$26:H29)-1)<>"",OFFSET(DE104_9!$H$26,ROWS($H$26:H29)-1,COLUMNS($H$26:H29)-1),"") ->  | G16: =IF(OFFSET(DE104_9!$I$26,ROWS($I$26:I29)-1,COLUMNS($I$26:I29)-1)<>"",OFFSET(DE104_9!$I$26,ROWS($I$26:I29)-1,COLUMNS($I$26:I29)-1),"") ->  | H16: =IF(OFFSET(DE104_9!$J$26,ROWS($J$26:J29)-1,COLUMNS($J$26:J29)-1)<>"",OFFSET(DE104_9!$J$26,ROWS($J$26:J29)-1,COLUMNS($J$26:J29)-1),"") ->  | I16: =IF(OFFSET(DE104_9!$K$26,ROWS($K$26:K29)-1,COLUMNS($K$26:K29)-1)<>"",OFFSET(DE104_9!$K$26,ROWS($K$26:K29)-1,COLUMNS($K$26:K29)-1),"") ->  | J16: =IF(OFFSET(DE104_9!$L$26,ROWS($L$26:L29)-1,COLUMNS($L$26:L29)-1)<>"",OFFSET(DE104_9!$L$26,ROWS($L$26:L29)-1,COLUMNS($L$26:L29)-1),"") ->  | K16: =IF(OFFSET(DE104_9!$M$26,ROWS($M$26:M29)-1,COLUMNS($M$26:M29)-1)<>"",OFFSET(DE104_9!$M$26,ROWS($M$26:M29)-1,COLUMNS($M$26:M29)-1),"") ->  | L16: =IF(OFFSET(DE104_9!$N$26,ROWS($N$26:N29)-1,COLUMNS($N$26:N29)-1)<>"",OFFSET(DE104_9!$N$26,ROWS($N$26:N29)-1,COLUMNS($N$26:N29)-1),"") ->  | M16: =IF(OFFSET(DE104_9!$O$26,ROWS($O$26:O29)-1,COLUMNS($O$26:O29)-1)<>"",OFFSET(DE104_9!$O$26,ROWS($O$26:O29)-1,COLUMNS($O$26:O29)-1),"") ->  | N16: =IF(OFFSET(DE104_9!$P$26,ROWS($P$26:P29)-1,COLUMNS($P$26:P29)-1)<>"",OFFSET(DE104_9!$P$26,ROWS($P$26:P29)-1,COLUMNS($P$26:P29)-1),"") -> 139000 | O16: =IF(OFFSET(DE104_9!$Q$26,ROWS($Q$26:Q29)-1,COLUMNS($Q$26:Q29)-1)<>"",OFFSET(DE104_9!$Q$26,ROWS($Q$26:Q29)-1,COLUMNS($Q$26:Q29)-1),"") -> DR-306 | P16: =IF(OFFSET(DE104_9!$R$26,ROWS($R$26:R29)-1,COLUMNS($R$26:R29)-1)<>"",OFFSET(DE104_9!$R$26,ROWS($R$26:R29)-1,COLUMNS($R$26:R29)-1),"") ->  | Q16: =IF(OFFSET(DE104_9!$S$26,ROWS($S$26:S29)-1,COLUMNS($S$26:S29)-1)<>"",OFFSET(DE104_9!$S$26,ROWS($S$26:S29)-1,COLUMNS($S$26:S29)-1),"") -> 0.4 | R16: =IF(OFFSET(DE104_9!$T$26,ROWS($T$26:T29)-1,COLUMNS($T$26:T29)-1)<>"",OFFSET(DE104_9!$T$26,ROWS($T$26:T29)-1,COLUMNS($T$26:T29)-1),"") -> 
A17: =IF(OFFSET(DE104_9!$C$26,ROWS($C$26:C30)-1,COLUMNS($C$26:C30)-1)<>"",OFFSET(DE104_9!$C$26,ROWS($C$26:C30)-1,COLUMNS($C$26:C30)-1),"") -> 3 | B17: =IF(OFFSET(DE104_9!$D$26,ROWS($D$26:D30)-1,COLUMNS($D$26:D30)-1)<>"",OFFSET(DE104_9!$D$26,ROWS($D$26:D30)-1,COLUMNS($D$26:D30)-1),"") -> EBL | C17: =IF(OFFSET(DE104_9!$E$26,ROWS($E$26:E30)-1,COLUMNS($E$26:E30)-1)<>"",OFFSET(DE104_9!$E$26,ROWS($E$26:E30)-1,COLUMNS($E$26:E30)-1),"") -> 139000 | D17: =IF(OFFSET(DE104_9!$F$26,ROWS($F$26:F30)-1,COLUMNS($F$26:F30)-1)<>"",OFFSET(DE104_9!$F$26,ROWS($F$26:F30)-1,COLUMNS($F$26:F30)-1),"") -> 139500 | E17: =IF(OFFSET(DE104_9!$G$26,ROWS($G$26:G30)-1,COLUMNS($G$26:G30)-1)<>"",OFFSET(DE104_9!$G$26,ROWS($G$26:G30)-1,COLUMNS($G$26:G30)-1),"") -> RT | F17: =IF(OFFSET(DE104_9!$H$26,ROWS($H$26:H30)-1,COLUMNS($H$26:H30)-1)<>"",OFFSET(DE104_9!$H$26,ROWS($H$26:H30)-1,COLUMNS($H$26:H30)-1),"") -> 42 | G17: =IF(OFFSET(DE104_9!$I$26,ROWS($I$26:I30)-1,COLUMNS($I$26:I30)-1)<>"",OFFSET(DE104_9!$I$26,ROWS($I$26:I30)-1,COLUMNS($I$26:I30)-1),"") -> 4 | H17: =IF(OFFSET(DE104_9!$J$26,ROWS($J$26:J30)-1,COLUMNS($J$26:J30)-1)<>"",OFFSET(DE104_9!$J$26,ROWS($J$26:J30)-1,COLUMNS($J$26:J30)-1),"") -> 540 | I17: =IF(OFFSET(DE104_9!$K$26,ROWS($K$26:K30)-1,COLUMNS($K$26:K30)-1)<>"",OFFSET(DE104_9!$K$26,ROWS($K$26:K30)-1,COLUMNS($K$26:K30)-1),"") ->  | J17: =IF(OFFSET(DE104_9!$L$26,ROWS($L$26:L30)-1,COLUMNS($L$26:L30)-1)<>"",OFFSET(DE104_9!$L$26,ROWS($L$26:L30)-1,COLUMNS($L$26:L30)-1),"") ->  | K17: =IF(OFFSET(DE104_9!$M$26,ROWS($M$26:M30)-1,COLUMNS($M$26:M30)-1)<>"",OFFSET(DE104_9!$M$26,ROWS($M$26:M30)-1,COLUMNS($M$26:M30)-1),"") ->  | L17: =IF(OFFSET(DE104_9!$N$26,ROWS($N$26:N30)-1,COLUMNS($N$26:N30)-1)<>"",OFFSET(DE104_9!$N$26,ROWS($N$26:N30)-1,COLUMNS($N$26:N30)-1),"") ->  | M17: =IF(OFFSET(DE104_9!$O$26,ROWS($O$26:O30)-1,COLUMNS($O$26:O30)-1)<>"",OFFSET(DE104_9!$O$26,ROWS($O$26:O30)-1,COLUMNS($O$26:O30)-1),"") ->  | N17: =IF(OFFSET(DE104_9!$P$26,ROWS($P$26:P30)-1,COLUMNS($P$26:P30)-1)<>"",OFFSET(DE104_9!$P$26,ROWS($P$26:P30)-1,COLUMNS($P$26:P30)-1),"") -> 139000 | O17: =IF(OFFSET(DE104_9!$Q$26,ROWS($Q$26:Q30)-1,COLUMNS($Q$26:Q30)-1)<>"",OFFSET(DE104_9!$Q$26,ROWS($Q$26:Q30)-1,COLUMNS($Q$26:Q30)-1),"") -> DR-306 | P17: =IF(OFFSET(DE104_9!$R$26,ROWS($R$26:R30)-1,COLUMNS($R$26:R30)-1)<>"",OFFSET(DE104_9!$R$26,ROWS($R$26:R30)-1,COLUMNS($R$26:R30)-1),"") -> 50 | Q17: =IF(OFFSET(DE104_9!$S$26,ROWS($S$26:S30)-1,COLUMNS($S$26:S30)-1)<>"",OFFSET(DE104_9!$S$26,ROWS($S$26:S30)-1,COLUMNS($S$26:S30)-1),"") -> 0.4 | R17: =IF(OFFSET(DE104_9!$T$26,ROWS($T$26:T30)-1,COLUMNS($T$26:T30)-1)<>"",OFFSET(DE104_9!$T$26,ROWS($T$26:T30)-1,COLUMNS($T$26:T30)-1),"") -> 
A18: =IF(OFFSET(DE104_9!$C$26,ROWS($C$26:C31)-1,COLUMNS($C$26:C31)-1)<>"",OFFSET(DE104_9!$C$26,ROWS($C$26:C31)-1,COLUMNS($C$26:C31)-1),"") ->  | B18: =IF(OFFSET(DE104_9!$D$26,ROWS($D$26:D31)-1,COLUMNS($D$26:D31)-1)<>"",OFFSET(DE104_9!$D$26,ROWS($D$26:D31)-1,COLUMNS($D$26:D31)-1),"") ->  | C18: =IF(OFFSET(DE104_9!$E$26,ROWS($E$26:E31)-1,COLUMNS($E$26:E31)-1)<>"",OFFSET(DE104_9!$E$26,ROWS($E$26:E31)-1,COLUMNS($E$26:E31)-1),"") ->  | D18: =IF(OFFSET(DE104_9!$F$26,ROWS($F$26:F31)-1,COLUMNS($F$26:F31)-1)<>"",OFFSET(DE104_9!$F$26,ROWS($F$26:F31)-1,COLUMNS($F$26:F31)-1),"") ->  | E18: =IF(OFFSET(DE104_9!$G$26,ROWS($G$26:G31)-1,COLUMNS($G$26:G31)-1)<>"",OFFSET(DE104_9!$G$26,ROWS($G$26:G31)-1,COLUMNS($G$26:G31)-1),"") ->  | F18: =IF(OFFSET(DE104_9!$H$26,ROWS($H$26:H31)-1,COLUMNS($H$26:H31)-1)<>"",OFFSET(DE104_9!$H$26,ROWS($H$26:H31)-1,COLUMNS($H$26:H31)-1),"") ->  | G18: =IF(OFFSET(DE104_9!$I$26,ROWS($I$26:I31)-1,COLUMNS($I$26:I31)-1)<>"",OFFSET(DE104_9!$I$26,ROWS($I$26:I31)-1,COLUMNS($I$26:I31)-1),"") ->  | H18: =IF(OFFSET(DE104_9!$J$26,ROWS($J$26:J31)-1,COLUMNS($J$26:J31)-1)<>"",OFFSET(DE104_9!$J$26,ROWS($J$26:J31)-1,COLUMNS($J$26:J31)-1),"") ->  | I18: =IF(OFFSET(DE104_9!$K$26,ROWS($K$26:K31)-1,COLUMNS($K$26:K31)-1)<>"",OFFSET(DE104_9!$K$26,ROWS($K$26:K31)-1,COLUMNS($K$26:K31)-1),"") ->  | J18: =IF(OFFSET(DE104_9!$L$26,ROWS($L$26:L31)-1,COLUMNS($L$26:L31)-1)<>"",OFFSET(DE104_9!$L$26,ROWS($L$26:L31)-1,COLUMNS($L$26:L31)-1),"") ->  | K18: =IF(OFFSET(DE104_9!$M$26,ROWS($M$26:M31)-1,COLUMNS($M$26:M31)-1)<>"",OFFSET(DE104_9!$M$26,ROWS($M$26:M31)-1,COLUMNS($M$26:M31)-1),"") ->  | L18: =IF(OFFSET(DE104_9!$N$26,ROWS($N$26:N31)-1,COLUMNS($N$26:N31)-1)<>"",OFFSET(DE104_9!$N$26,ROWS($N$26:N31)-1,COLUMNS($N$26:N31)-1),"") ->  | M18: =IF(OFFSET(DE104_9!$O$26,ROWS($O$26:O31)-1,COLUMNS($O$26:O31)-1)<>"",OFFSET(DE104_9!$O$26,ROWS($O$26:O31)-1,COLUMNS($O$26:O31)-1),"") ->  | N18: =IF(OFFSET(DE104_9!$P$26,ROWS($P$26:P31)-1,COLUMNS($P$26:P31)-1)<>"",OFFSET(DE104_9!$P$26,ROWS($P$26:P31)-1,COLUMNS($P$26:P31)-1),"") -> 139500 | O18: =IF(OFFSET(DE104_9!$Q$26,ROWS($Q$26:Q31)-1,COLUMNS($Q$26:Q31)-1)<>"",OFFSET(DE104_9!$Q$26,ROWS($Q$26:Q31)-1,COLUMNS($Q$26:Q31)-1),"") -> DR-306 | P18: =IF(OFFSET(DE104_9!$R$26,ROWS($R$26:R31)-1,COLUMNS($R$26:R31)-1)<>"",OFFSET(DE104_9!$R$26,ROWS($R$26:R31)-1,COLUMNS($R$26:R31)-1),"") ->  | Q18: =IF(OFFSET(DE104_9!$S$26,ROWS($S$26:S31)-1,COLUMNS($S$26:S31)-1)<>"",OFFSET(DE104_9!$S$26,ROWS($S$26:S31)-1,COLUMNS($S$26:S31)-1),"") -> 0.4 | R18: =IF(OFFSET(DE104_9!$T$26,ROWS($T$26:T31)-1,COLUMNS($T$26:T31)-1)<>"",OFFSET(DE104_9!$T$26,ROWS($T$26:T31)-1,COLUMNS($T$26:T31)-1),"") -> 
A19: =IF(OFFSET(DE104_9!$C$26,ROWS($C$26:C32)-1,COLUMNS($C$26:C32)-1)<>"",OFFSET(DE104_9!$C$26,ROWS($C$26:C32)-1,COLUMNS($C$26:C32)-1),"") -> 4 | B19: =IF(OFFSET(DE104_9!$D$26,ROWS($D$26:D32)-1,COLUMNS($D$26:D32)-1)<>"",OFFSET(DE104_9!$D$26,ROWS($D$26:D32)-1,COLUMNS($D$26:D32)-1),"") -> EBL | C19: =IF(OFFSET(DE104_9!$E$26,ROWS($E$26:E32)-1,COLUMNS($E$26:E32)-1)<>"",OFFSET(DE104_9!$E$26,ROWS($E$26:E32)-1,COLUMNS($E$26:E32)-1),"") -> 139500 | D19: =IF(OFFSET(DE104_9!$F$26,ROWS($F$26:F32)-1,COLUMNS($F$26:F32)-1)<>"",OFFSET(DE104_9!$F$26,ROWS($F$26:F32)-1,COLUMNS($F$26:F32)-1),"") -> 140000 | E19: =IF(OFFSET(DE104_9!$G$26,ROWS($G$26:G32)-1,COLUMNS($G$26:G32)-1)<>"",OFFSET(DE104_9!$G$26,ROWS($G$26:G32)-1,COLUMNS($G$26:G32)-1),"") -> RT | F19: =IF(OFFSET(DE104_9!$H$26,ROWS($H$26:H32)-1,COLUMNS($H$26:H32)-1)<>"",OFFSET(DE104_9!$H$26,ROWS($H$26:H32)-1,COLUMNS($H$26:H32)-1),"") -> 42 | G19: =IF(OFFSET(DE104_9!$I$26,ROWS($I$26:I32)-1,COLUMNS($I$26:I32)-1)<>"",OFFSET(DE104_9!$I$26,ROWS($I$26:I32)-1,COLUMNS($I$26:I32)-1),"") -> 4 | H19: =IF(OFFSET(DE104_9!$J$26,ROWS($J$26:J32)-1,COLUMNS($J$26:J32)-1)<>"",OFFSET(DE104_9!$J$26,ROWS($J$26:J32)-1,COLUMNS($J$26:J32)-1),"") -> 540 | I19: =IF(OFFSET(DE104_9!$K$26,ROWS($K$26:K32)-1,COLUMNS($K$26:K32)-1)<>"",OFFSET(DE104_9!$K$26,ROWS($K$26:K32)-1,COLUMNS($K$26:K32)-1),"") ->  | J19: =IF(OFFSET(DE104_9!$L$26,ROWS($L$26:L32)-1,COLUMNS($L$26:L32)-1)<>"",OFFSET(DE104_9!$L$26,ROWS($L$26:L32)-1,COLUMNS($L$26:L32)-1),"") ->  | K19: =IF(OFFSET(DE104_9!$M$26,ROWS($M$26:M32)-1,COLUMNS($M$26:M32)-1)<>"",OFFSET(DE104_9!$M$26,ROWS($M$26:M32)-1,COLUMNS($M$26:M32)-1),"") ->  | L19: =IF(OFFSET(DE104_9!$N$26,ROWS($N$26:N32)-1,COLUMNS($N$26:N32)-1)<>"",OFFSET(DE104_9!$N$26,ROWS($N$26:N32)-1,COLUMNS($N$26:N32)-1),"") ->  | M19: =IF(OFFSET(DE104_9!$O$26,ROWS($O$26:O32)-1,COLUMNS($O$26:O32)-1)<>"",OFFSET(DE104_9!$O$26,ROWS($O$26:O32)-1,COLUMNS($O$26:O32)-1),"") ->  | N19: =IF(OFFSET(DE104_9!$P$26,ROWS($P$26:P32)-1,COLUMNS($P$26:P32)-1)<>"",OFFSET(DE104_9!$P$26,ROWS($P$26:P32)-1,COLUMNS($P$26:P32)-1),"") -> 139500 | O19: =IF(OFFSET(DE104_9!$Q$26,ROWS($Q$26:Q32)-1,COLUMNS($Q$26:Q32)-1)<>"",OFFSET(DE104_9!$Q$26,ROWS($Q$26:Q32)-1,COLUMNS($Q$26:Q32)-1),"") -> DR-306 | P19: =IF(OFFSET(DE104_9!$R$26,ROWS($R$26:R32)-1,COLUMNS($R$26:R32)-1)<>"",OFFSET(DE104_9!$R$26,ROWS($R$26:R32)-1,COLUMNS($R$26:R32)-1),"") -> 50 | Q19: =IF(OFFSET(DE104_9!$S$26,ROWS($S$26:S32)-1,COLUMNS($S$26:S32)-1)<>"",OFFSET(DE104_9!$S$26,ROWS($S$26:S32)-1,COLUMNS($S$26:S32)-1),"") -> 0.4 | R19: =IF(OFFSET(DE104_9!$T$26,ROWS($T$26:T32)-1,COLUMNS($T$26:T32)-1)<>"",OFFSET(DE104_9!$T$26,ROWS($T$26:T32)-1,COLUMNS($T$26:T32)-1),"") -> 
A20: =IF(OFFSET(DE104_9!$C$26,ROWS($C$26:C33)-1,COLUMNS($C$26:C33)-1)<>"",OFFSET(DE104_9!$C$26,ROWS($C$26:C33)-1,COLUMNS($C$26:C33)-1),"") ->  | B20: =IF(OFFSET(DE104_9!$D$26,ROWS($D$26:D33)-1,COLUMNS($D$26:D33)-1)<>"",OFFSET(DE104_9!$D$26,ROWS($D$26:D33)-1,COLUMNS($D$26:D33)-1),"") ->  | C20: =IF(OFFSET(DE104_9!$E$26,ROWS($E$26:E33)-1,COLUMNS($E$26:E33)-1)<>"",OFFSET(DE104_9!$E$26,ROWS($E$26:E33)-1,COLUMNS($E$26:E33)-1),"") ->  | D20: =IF(OFFSET(DE104_9!$F$26,ROWS($F$26:F33)-1,COLUMNS($F$26:F33)-1)<>"",OFFSET(DE104_9!$F$26,ROWS($F$26:F33)-1,COLUMNS($F$26:F33)-1),"") ->  | E20: =IF(OFFSET(DE104_9!$G$26,ROWS($G$26:G33)-1,COLUMNS($G$26:G33)-1)<>"",OFFSET(DE104_9!$G$26,ROWS($G$26:G33)-1,COLUMNS($G$26:G33)-1),"") ->  | F20: =IF(OFFSET(DE104_9!$H$26,ROWS($H$26:H33)-1,COLUMNS($H$26:H33)-1)<>"",OFFSET(DE104_9!$H$26,ROWS($H$26:H33)-1,COLUMNS($H$26:H33)-1),"") ->  | G20: =IF(OFFSET(DE104_9!$I$26,ROWS($I$26:I33)-1,COLUMNS($I$26:I33)-1)<>"",OFFSET(DE104_9!$I$26,ROWS($I$26:I33)-1,COLUMNS($I$26:I33)-1),"") ->  | H20: =IF(OFFSET(DE104_9!$J$26,ROWS($J$26:J33)-1,COLUMNS($J$26:J33)-1)<>"",OFFSET(DE104_9!$J$26,ROWS($J$26:J33)-1,COLUMNS($J$26:J33)-1),"") ->  | I20: =IF(OFFSET(DE104_9!$K$26,ROWS($K$26:K33)-1,COLUMNS($K$26:K33)-1)<>"",OFFSET(DE104_9!$K$26,ROWS($K$26:K33)-1,COLUMNS($K$26:K33)-1),"") ->  | J20: =IF(OFFSET(DE104_9!$L$26,ROWS($L$26:L33)-1,COLUMNS($L$26:L33)-1)<>"",OFFSET(DE104_9!$L$26,ROWS($L$26:L33)-1,COLUMNS($L$26:L33)-1),"") ->  | K20: =IF(OFFSET(DE104_9!$M$26,ROWS($M$26:M33)-1,COLUMNS($M$26:M33)-1)<>"",OFFSET(DE104_9!$M$26,ROWS($M$26:M33)-1,COLUMNS($M$26:M33)-1),"") ->  | L20: =IF(OFFSET(DE104_9!$N$26,ROWS($N$26:N33)-1,COLUMNS($N$26:N33)-1)<>"",OFFSET(DE104_9!$N$26,ROWS($N$26:N33)-1,COLUMNS($N$26:N33)-1),"") ->  | M20: =IF(OFFSET(DE104_9!$O$26,ROWS($O$26:O33)-1,COLUMNS($O$26:O33)-1)<>"",OFFSET(DE104_9!$O$26,ROWS($O$26:O33)-1,COLUMNS($O$26:O33)-1),"") ->  | N20: =IF(OFFSET(DE104_9!$P$26,ROWS($P$26:P33)-1,COLUMNS($P$26:P33)-1)<>"",OFFSET(DE104_9!$P$26,ROWS($P$26:P33)-1,COLUMNS($P$26:P33)-1),"") -> 140000 | O20: =IF(OFFSET(DE104_9!$Q$26,ROWS($Q$26:Q33)-1,COLUMNS($Q$26:Q33)-1)<>"",OFFSET(DE104_9!$Q$26,ROWS($Q$26:Q33)-1,COLUMNS($Q$26:Q33)-1),"") -> DR-306 | P20: =IF(OFFSET(DE104_9!$R$26,ROWS($R$26:R33)-1,COLUMNS($R$26:R33)-1)<>"",OFFSET(DE104_9!$R$26,ROWS($R$26:R33)-1,COLUMNS($R$26:R33)-1),"") ->  | Q20: =IF(OFFSET(DE104_9!$S$26,ROWS($S$26:S33)-1,COLUMNS($S$26:S33)-1)<>"",OFFSET(DE104_9!$S$26,ROWS($S$26:S33)-1,COLUMNS($S$26:S33)-1),"") -> 0.4 | R20: =IF(OFFSET(DE104_9!$T$26,ROWS($T$26:T33)-1,COLUMNS($T$26:T33)-1)<>"",OFFSET(DE104_9!$T$26,ROWS($T$26:T33)-1,COLUMNS($T$26:T33)-1),"") -> 
A21: =IF(OFFSET(DE104_9!$C$26,ROWS($C$26:C34)-1,COLUMNS($C$26:C34)-1)<>"",OFFSET(DE104_9!$C$26,ROWS($C$26:C34)-1,COLUMNS($C$26:C34)-1),"") -> 5 | B21: =IF(OFFSET(DE104_9!$D$26,ROWS($D$26:D34)-1,COLUMNS($D$26:D34)-1)<>"",OFFSET(DE104_9!$D$26,ROWS($D$26:D34)-1,COLUMNS($D$26:D34)-1),"") -> EBL | C21: =IF(OFFSET(DE104_9!$E$26,ROWS($E$26:E34)-1,COLUMNS($E$26:E34)-1)<>"",OFFSET(DE104_9!$E$26,ROWS($E$26:E34)-1,COLUMNS($E$26:E34)-1),"") -> 140000 | D21: =IF(OFFSET(DE104_9!$F$26,ROWS($F$26:F34)-1,COLUMNS($F$26:F34)-1)<>"",OFFSET(DE104_9!$F$26,ROWS($F$26:F34)-1,COLUMNS($F$26:F34)-1),"") -> 140475 | E21: =IF(OFFSET(DE104_9!$G$26,ROWS($G$26:G34)-1,COLUMNS($G$26:G34)-1)<>"",OFFSET(DE104_9!$G$26,ROWS($G$26:G34)-1,COLUMNS($G$26:G34)-1),"") -> RT | F21: =IF(OFFSET(DE104_9!$H$26,ROWS($H$26:H34)-1,COLUMNS($H$26:H34)-1)<>"",OFFSET(DE104_9!$H$26,ROWS($H$26:H34)-1,COLUMNS($H$26:H34)-1),"") -> 42 | G21: =IF(OFFSET(DE104_9!$I$26,ROWS($I$26:I34)-1,COLUMNS($I$26:I34)-1)<>"",OFFSET(DE104_9!$I$26,ROWS($I$26:I34)-1,COLUMNS($I$26:I34)-1),"") -> 4 | H21: =IF(OFFSET(DE104_9!$J$26,ROWS($J$26:J34)-1,COLUMNS($J$26:J34)-1)<>"",OFFSET(DE104_9!$J$26,ROWS($J$26:J34)-1,COLUMNS($J$26:J34)-1),"") -> 515 | I21: =IF(OFFSET(DE104_9!$K$26,ROWS($K$26:K34)-1,COLUMNS($K$26:K34)-1)<>"",OFFSET(DE104_9!$K$26,ROWS($K$26:K34)-1,COLUMNS($K$26:K34)-1),"") ->  | J21: =IF(OFFSET(DE104_9!$L$26,ROWS($L$26:L34)-1,COLUMNS($L$26:L34)-1)<>"",OFFSET(DE104_9!$L$26,ROWS($L$26:L34)-1,COLUMNS($L$26:L34)-1),"") ->  | K21: =IF(OFFSET(DE104_9!$M$26,ROWS($M$26:M34)-1,COLUMNS($M$26:M34)-1)<>"",OFFSET(DE104_9!$M$26,ROWS($M$26:M34)-1,COLUMNS($M$26:M34)-1),"") ->  | L21: =IF(OFFSET(DE104_9!$N$26,ROWS($N$26:N34)-1,COLUMNS($N$26:N34)-1)<>"",OFFSET(DE104_9!$N$26,ROWS($N$26:N34)-1,COLUMNS($N$26:N34)-1),"") ->  | M21: =IF(OFFSET(DE104_9!$O$26,ROWS($O$26:O34)-1,COLUMNS($O$26:O34)-1)<>"",OFFSET(DE104_9!$O$26,ROWS($O$26:O34)-1,COLUMNS($O$26:O34)-1),"") ->  | N21: =IF(OFFSET(DE104_9!$P$26,ROWS($P$26:P34)-1,COLUMNS($P$26:P34)-1)<>"",OFFSET(DE104_9!$P$26,ROWS($P$26:P34)-1,COLUMNS($P$26:P34)-1),"") -> 140000 | O21: =IF(OFFSET(DE104_9!$Q$26,ROWS($Q$26:Q34)-1,COLUMNS($Q$26:Q34)-1)<>"",OFFSET(DE104_9!$Q$26,ROWS($Q$26:Q34)-1,COLUMNS($Q$26:Q34)-1),"") -> DR-306 | P21: =IF(OFFSET(DE104_9!$R$26,ROWS($R$26:R34)-1,COLUMNS($R$26:R34)-1)<>"",OFFSET(DE104_9!$R$26,ROWS($R$26:R34)-1,COLUMNS($R$26:R34)-1),"") -> 47.7 | Q21: =IF(OFFSET(DE104_9!$S$26,ROWS($S$26:S34)-1,COLUMNS($S$26:S34)-1)<>"",OFFSET(DE104_9!$S$26,ROWS($S$26:S34)-1,COLUMNS($S$26:S34)-1),"") -> 0.4 | R21: =IF(OFFSET(DE104_9!$T$26,ROWS($T$26:T34)-1,COLUMNS($T$26:T34)-1)<>"",OFFSET(DE104_9!$T$26,ROWS($T$26:T34)-1,COLUMNS($T$26:T34)-1),"") -> 
A22: =IF(OFFSET(DE104_9!$C$26,ROWS($C$26:C35)-1,COLUMNS($C$26:C35)-1)<>"",OFFSET(DE104_9!$C$26,ROWS($C$26:C35)-1,COLUMNS($C$26:C35)-1),"") ->  | B22: =IF(OFFSET(DE104_9!$D$26,ROWS($D$26:D35)-1,COLUMNS($D$26:D35)-1)<>"",OFFSET(DE104_9!$D$26,ROWS($D$26:D35)-1,COLUMNS($D$26:D35)-1),"") ->  | C22: =IF(OFFSET(DE104_9!$E$26,ROWS($E$26:E35)-1,COLUMNS($E$26:E35)-1)<>"",OFFSET(DE104_9!$E$26,ROWS($E$26:E35)-1,COLUMNS($E$26:E35)-1),"") ->  | D22: =IF(OFFSET(DE104_9!$F$26,ROWS($F$26:F35)-1,COLUMNS($F$26:F35)-1)<>"",OFFSET(DE104_9!$F$26,ROWS($F$26:F35)-1,COLUMNS($F$26:F35)-1),"") ->  | E22: =IF(OFFSET(DE104_9!$G$26,ROWS($G$26:G35)-1,COLUMNS($G$26:G35)-1)<>"",OFFSET(DE104_9!$G$26,ROWS($G$26:G35)-1,COLUMNS($G$26:G35)-1),"") ->  | F22: =IF(OFFSET(DE104_9!$H$26,ROWS($H$26:H35)-1,COLUMNS($H$26:H35)-1)<>"",OFFSET(DE104_9!$H$26,ROWS($H$26:H35)-1,COLUMNS($H$26:H35)-1),"") ->  | G22: =IF(OFFSET(DE104_9!$I$26,ROWS($I$26:I35)-1,COLUMNS($I$26:I35)-1)<>"",OFFSET(DE104_9!$I$26,ROWS($I$26:I35)-1,COLUMNS($I$26:I35)-1),"") ->  | H22: =IF(OFFSET(DE104_9!$J$26,ROWS($J$26:J35)-1,COLUMNS($J$26:J35)-1)<>"",OFFSET(DE104_9!$J$26,ROWS($J$26:J35)-1,COLUMNS($J$26:J35)-1),"") ->  | I22: =IF(OFFSET(DE104_9!$K$26,ROWS($K$26:K35)-1,COLUMNS($K$26:K35)-1)<>"",OFFSET(DE104_9!$K$26,ROWS($K$26:K35)-1,COLUMNS($K$26:K35)-1),"") ->  | J22: =IF(OFFSET(DE104_9!$L$26,ROWS($L$26:L35)-1,COLUMNS($L$26:L35)-1)<>"",OFFSET(DE104_9!$L$26,ROWS($L$26:L35)-1,COLUMNS($L$26:L35)-1),"") ->  | K22: =IF(OFFSET(DE104_9!$M$26,ROWS($M$26:M35)-1,COLUMNS($M$26:M35)-1)<>"",OFFSET(DE104_9!$M$26,ROWS($M$26:M35)-1,COLUMNS($M$26:M35)-1),"") ->  | L22: =IF(OFFSET(DE104_9!$N$26,ROWS($N$26:N35)-1,COLUMNS($N$26:N35)-1)<>"",OFFSET(DE104_9!$N$26,ROWS($N$26:N35)-1,COLUMNS($N$26:N35)-1),"") ->  | M22: =IF(OFFSET(DE104_9!$O$26,ROWS($O$26:O35)-1,COLUMNS($O$26:O35)-1)<>"",OFFSET(DE104_9!$O$26,ROWS($O$26:O35)-1,COLUMNS($O$26:O35)-1),"") ->  | N22: =IF(OFFSET(DE104_9!$P$26,ROWS($P$26:P35)-1,COLUMNS($P$26:P35)-1)<>"",OFFSET(DE104_9!$P$26,ROWS($P$26:P35)-1,COLUMNS($P$26:P35)-1),"") -> 140475 | O22: =IF(OFFSET(DE104_9!$Q$26,ROWS($Q$26:Q35)-1,COLUMNS($Q$26:Q35)-1)<>"",OFFSET(DE104_9!$Q$26,ROWS($Q$26:Q35)-1,COLUMNS($Q$26:Q35)-1),"") -> DR-306 | P22: =IF(OFFSET(DE104_9!$R$26,ROWS($R$26:R35)-1,COLUMNS($R$26:R35)-1)<>"",OFFSET(DE104_9!$R$26,ROWS($R$26:R35)-1,COLUMNS($R$26:R35)-1),"") ->  | Q22: =IF(OFFSET(DE104_9!$S$26,ROWS($S$26:S35)-1,COLUMNS($S$26:S35)-1)<>"",OFFSET(DE104_9!$S$26,ROWS($S$26:S35)-1,COLUMNS($S$26:S35)-1),"") -> 0.4 | R22: =IF(OFFSET(DE104_9!$T$26,ROWS($T$26:T35)-1,COLUMNS($T$26:T35)-1)<>"",OFFSET(DE104_9!$T$26,ROWS($T$26:T35)-1,COLUMNS($T$26:T35)-1),"") -> 
A23: =IF(OFFSET(DE104_9!$C$26,ROWS($C$26:C36)-1,COLUMNS($C$26:C36)-1)<>"",OFFSET(DE104_9!$C$26,ROWS($C$26:C36)-1,COLUMNS($C$26:C36)-1),"") -> 6 | B23: =IF(OFFSET(DE104_9!$D$26,ROWS($D$26:D36)-1,COLUMNS($D$26:D36)-1)<>"",OFFSET(DE104_9!$D$26,ROWS($D$26:D36)-1,COLUMNS($D$26:D36)-1),"") -> EBL | C23: =IF(OFFSET(DE104_9!$E$26,ROWS($E$26:E36)-1,COLUMNS($E$26:E36)-1)<>"",OFFSET(DE104_9!$E$26,ROWS($E$26:E36)-1,COLUMNS($E$26:E36)-1),"") -> 140475 | D23: =IF(OFFSET(DE104_9!$F$26,ROWS($F$26:F36)-1,COLUMNS($F$26:F36)-1)<>"",OFFSET(DE104_9!$F$26,ROWS($F$26:F36)-1,COLUMNS($F$26:F36)-1),"") -> 140975 | E23: =IF(OFFSET(DE104_9!$G$26,ROWS($G$26:G36)-1,COLUMNS($G$26:G36)-1)<>"",OFFSET(DE104_9!$G$26,ROWS($G$26:G36)-1,COLUMNS($G$26:G36)-1),"") -> RT | F23: =IF(OFFSET(DE104_9!$H$26,ROWS($H$26:H36)-1,COLUMNS($H$26:H36)-1)<>"",OFFSET(DE104_9!$H$26,ROWS($H$26:H36)-1,COLUMNS($H$26:H36)-1),"") -> 42 | G23: =IF(OFFSET(DE104_9!$I$26,ROWS($I$26:I36)-1,COLUMNS($I$26:I36)-1)<>"",OFFSET(DE104_9!$I$26,ROWS($I$26:I36)-1,COLUMNS($I$26:I36)-1),"") -> 4 | H23: =IF(OFFSET(DE104_9!$J$26,ROWS($J$26:J36)-1,COLUMNS($J$26:J36)-1)<>"",OFFSET(DE104_9!$J$26,ROWS($J$26:J36)-1,COLUMNS($J$26:J36)-1),"") -> 540 | I23: =IF(OFFSET(DE104_9!$K$26,ROWS($K$26:K36)-1,COLUMNS($K$26:K36)-1)<>"",OFFSET(DE104_9!$K$26,ROWS($K$26:K36)-1,COLUMNS($K$26:K36)-1),"") ->  | J23: =IF(OFFSET(DE104_9!$L$26,ROWS($L$26:L36)-1,COLUMNS($L$26:L36)-1)<>"",OFFSET(DE104_9!$L$26,ROWS($L$26:L36)-1,COLUMNS($L$26:L36)-1),"") ->  | K23: =IF(OFFSET(DE104_9!$M$26,ROWS($M$26:M36)-1,COLUMNS($M$26:M36)-1)<>"",OFFSET(DE104_9!$M$26,ROWS($M$26:M36)-1,COLUMNS($M$26:M36)-1),"") ->  | L23: =IF(OFFSET(DE104_9!$N$26,ROWS($N$26:N36)-1,COLUMNS($N$26:N36)-1)<>"",OFFSET(DE104_9!$N$26,ROWS($N$26:N36)-1,COLUMNS($N$26:N36)-1),"") ->  | M23: =IF(OFFSET(DE104_9!$O$26,ROWS($O$26:O36)-1,COLUMNS($O$26:O36)-1)<>"",OFFSET(DE104_9!$O$26,ROWS($O$26:O36)-1,COLUMNS($O$26:O36)-1),"") ->  | N23: =IF(OFFSET(DE104_9!$P$26,ROWS($P$26:P36)-1,COLUMNS($P$26:P36)-1)<>"",OFFSET(DE104_9!$P$26,ROWS($P$26:P36)-1,COLUMNS($P$26:P36)-1),"") -> 140475 | O23: =IF(OFFSET(DE104_9!$Q$26,ROWS($Q$26:Q36)-1,COLUMNS($Q$26:Q36)-1)<>"",OFFSET(DE104_9!$Q$26,ROWS($Q$26:Q36)-1,COLUMNS($Q$26:Q36)-1),"") -> DR-306 | P23: =IF(OFFSET(DE104_9!$R$26,ROWS($R$26:R36)-1,COLUMNS($R$26:R36)-1)<>"",OFFSET(DE104_9!$R$26,ROWS($R$26:R36)-1,COLUMNS($R$26:R36)-1),"") -> 50 | Q23: =IF(OFFSET(DE104_9!$S$26,ROWS($S$26:S36)-1,COLUMNS($S$26:S36)-1)<>"",OFFSET(DE104_9!$S$26,ROWS($S$26:S36)-1,COLUMNS($S$26:S36)-1),"") -> 0.4 | R23: =IF(OFFSET(DE104_9!$T$26,ROWS($T$26:T36)-1,COLUMNS($T$26:T36)-1)<>"",OFFSET(DE104_9!$T$26,ROWS($T$26:T36)-1,COLUMNS($T$26:T36)-1),"") -> 
A24: =IF(OFFSET(DE104_9!$C$26,ROWS($C$26:C37)-1,COLUMNS($C$26:C37)-1)<>"",OFFSET(DE104_9!$C$26,ROWS($C$26:C37)-1,COLUMNS($C$26:C37)-1),"") ->  | B24: =IF(OFFSET(DE104_9!$D$26,ROWS($D$26:D37)-1,COLUMNS($D$26:D37)-1)<>"",OFFSET(DE104_9!$D$26,ROWS($D$26:D37)-1,COLUMNS($D$26:D37)-1),"") ->  | C24: =IF(OFFSET(DE104_9!$E$26,ROWS($E$26:E37)-1,COLUMNS($E$26:E37)-1)<>"",OFFSET(DE104_9!$E$26,ROWS($E$26:E37)-1,COLUMNS($E$26:E37)-1),"") ->  | D24: =IF(OFFSET(DE104_9!$F$26,ROWS($F$26:F37)-1,COLUMNS($F$26:F37)-1)<>"",OFFSET(DE104_9!$F$26,ROWS($F$26:F37)-1,COLUMNS($F$26:F37)-1),"") ->  | E24: =IF(OFFSET(DE104_9!$G$26,ROWS($G$26:G37)-1,COLUMNS($G$26:G37)-1)<>"",OFFSET(DE104_9!$G$26,ROWS($G$26:G37)-1,COLUMNS($G$26:G37)-1),"") ->  | F24: =IF(OFFSET(DE104_9!$H$26,ROWS($H$26:H37)-1,COLUMNS($H$26:H37)-1)<>"",OFFSET(DE104_9!$H$26,ROWS($H$26:H37)-1,COLUMNS($H$26:H37)-1),"") ->  | G24: =IF(OFFSET(DE104_9!$I$26,ROWS($I$26:I37)-1,COLUMNS($I$26:I37)-1)<>"",OFFSET(DE104_9!$I$26,ROWS($I$26:I37)-1,COLUMNS($I$26:I37)-1),"") ->  | H24: =IF(OFFSET(DE104_9!$J$26,ROWS($J$26:J37)-1,COLUMNS($J$26:J37)-1)<>"",OFFSET(DE104_9!$J$26,ROWS($J$26:J37)-1,COLUMNS($J$26:J37)-1),"") ->  | I24: =IF(OFFSET(DE104_9!$K$26,ROWS($K$26:K37)-1,COLUMNS($K$26:K37)-1)<>"",OFFSET(DE104_9!$K$26,ROWS($K$26:K37)-1,COLUMNS($K$26:K37)-1),"") ->  | J24: =IF(OFFSET(DE104_9!$L$26,ROWS($L$26:L37)-1,COLUMNS($L$26:L37)-1)<>"",OFFSET(DE104_9!$L$26,ROWS($L$26:L37)-1,COLUMNS($L$26:L37)-1),"") ->  | K24: =IF(OFFSET(DE104_9!$M$26,ROWS($M$26:M37)-1,COLUMNS($M$26:M37)-1)<>"",OFFSET(DE104_9!$M$26,ROWS($M$26:M37)-1,COLUMNS($M$26:M37)-1),"") ->  | L24: =IF(OFFSET(DE104_9!$N$26,ROWS($N$26:N37)-1,COLUMNS($N$26:N37)-1)<>"",OFFSET(DE104_9!$N$26,ROWS($N$26:N37)-1,COLUMNS($N$26:N37)-1),"") ->  | M24: =IF(OFFSET(DE104_9!$O$26,ROWS($O$26:O37)-1,COLUMNS($O$26:O37)-1)<>"",OFFSET(DE104_9!$O$26,ROWS($O$26:O37)-1,COLUMNS($O$26:O37)-1),"") ->  | N24: =IF(OFFSET(DE104_9!$P$26,ROWS($P$26:P37)-1,COLUMNS($P$26:P37)-1)<>"",OFFSET(DE104_9!$P$26,ROWS($P$26:P37)-1,COLUMNS($P$26:P37)-1),"") -> 140975 | O24: =IF(OFFSET(DE104_9!$Q$26,ROWS($Q$26:Q37)-1,COLUMNS($Q$26:Q37)-1)<>"",OFFSET(DE104_9!$Q$26,ROWS($Q$26:Q37)-1,COLUMNS($Q$26:Q37)-1),"") -> DR-306 | P24: =IF(OFFSET(DE104_9!$R$26,ROWS($R$26:R37)-1,COLUMNS($R$26:R37)-1)<>"",OFFSET(DE104_9!$R$26,ROWS($R$26:R37)-1,COLUMNS($R$26:R37)-1),"") ->  | Q24: =IF(OFFSET(DE104_9!$S$26,ROWS($S$26:S37)-1,COLUMNS($S$26:S37)-1)<>"",OFFSET(DE104_9!$S$26,ROWS($S$26:S37)-1,COLUMNS($S$26:S37)-1),"") -> 0.4 | R24: =IF(OFFSET(DE104_9!$T$26,ROWS($T$26:T37)-1,COLUMNS($T$26:T37)-1)<>"",OFFSET(DE104_9!$T$26,ROWS($T$26:T37)-1,COLUMNS($T$26:T37)-1),"") -> 
A25: =IF(OFFSET(DE104_9!$C$26,ROWS($C$26:C38)-1,COLUMNS($C$26:C38)-1)<>"",OFFSET(DE104_9!$C$26,ROWS($C$26:C38)-1,COLUMNS($C$26:C38)-1),"") -> 7 | B25: =IF(OFFSET(DE104_9!$D$26,ROWS($D$26:D38)-1,COLUMNS($D$26:D38)-1)<>"",OFFSET(DE104_9!$D$26,ROWS($D$26:D38)-1,COLUMNS($D$26:D38)-1),"") -> EBL | C25: =IF(OFFSET(DE104_9!$E$26,ROWS($E$26:E38)-1,COLUMNS($E$26:E38)-1)<>"",OFFSET(DE104_9!$E$26,ROWS($E$26:E38)-1,COLUMNS($E$26:E38)-1),"") -> 140975 | D25: =IF(OFFSET(DE104_9!$F$26,ROWS($F$26:F38)-1,COLUMNS($F$26:F38)-1)<>"",OFFSET(DE104_9!$F$26,ROWS($F$26:F38)-1,COLUMNS($F$26:F38)-1),"") -> 141500 | E25: =IF(OFFSET(DE104_9!$G$26,ROWS($G$26:G38)-1,COLUMNS($G$26:G38)-1)<>"",OFFSET(DE104_9!$G$26,ROWS($G$26:G38)-1,COLUMNS($G$26:G38)-1),"") -> RT | F25: =IF(OFFSET(DE104_9!$H$26,ROWS($H$26:H38)-1,COLUMNS($H$26:H38)-1)<>"",OFFSET(DE104_9!$H$26,ROWS($H$26:H38)-1,COLUMNS($H$26:H38)-1),"") -> 42 | G25: =IF(OFFSET(DE104_9!$I$26,ROWS($I$26:I38)-1,COLUMNS($I$26:I38)-1)<>"",OFFSET(DE104_9!$I$26,ROWS($I$26:I38)-1,COLUMNS($I$26:I38)-1),"") -> 4 | H25: =IF(OFFSET(DE104_9!$J$26,ROWS($J$26:J38)-1,COLUMNS($J$26:J38)-1)<>"",OFFSET(DE104_9!$J$26,ROWS($J$26:J38)-1,COLUMNS($J$26:J38)-1),"") -> 565 | I25: =IF(OFFSET(DE104_9!$K$26,ROWS($K$26:K38)-1,COLUMNS($K$26:K38)-1)<>"",OFFSET(DE104_9!$K$26,ROWS($K$26:K38)-1,COLUMNS($K$26:K38)-1),"") ->  | J25: =IF(OFFSET(DE104_9!$L$26,ROWS($L$26:L38)-1,COLUMNS($L$26:L38)-1)<>"",OFFSET(DE104_9!$L$26,ROWS($L$26:L38)-1,COLUMNS($L$26:L38)-1),"") ->  | K25: =IF(OFFSET(DE104_9!$M$26,ROWS($M$26:M38)-1,COLUMNS($M$26:M38)-1)<>"",OFFSET(DE104_9!$M$26,ROWS($M$26:M38)-1,COLUMNS($M$26:M38)-1),"") ->  | L25: =IF(OFFSET(DE104_9!$N$26,ROWS($N$26:N38)-1,COLUMNS($N$26:N38)-1)<>"",OFFSET(DE104_9!$N$26,ROWS($N$26:N38)-1,COLUMNS($N$26:N38)-1),"") ->  | M25: =IF(OFFSET(DE104_9!$O$26,ROWS($O$26:O38)-1,COLUMNS($O$26:O38)-1)<>"",OFFSET(DE104_9!$O$26,ROWS($O$26:O38)-1,COLUMNS($O$26:O38)-1),"") ->  | N25: =IF(OFFSET(DE104_9!$P$26,ROWS($P$26:P38)-1,COLUMNS($P$26:P38)-1)<>"",OFFSET(DE104_9!$P$26,ROWS($P$26:P38)-1,COLUMNS($P$26:P38)-1),"") -> 140975 | O25: =IF(OFFSET(DE104_9!$Q$26,ROWS($Q$26:Q38)-1,COLUMNS($Q$26:Q38)-1)<>"",OFFSET(DE104_9!$Q$26,ROWS($Q$26:Q38)-1,COLUMNS($Q$26:Q38)-1),"") -> DR-306 | P25: =IF(OFFSET(DE104_9!$R$26,ROWS($R$26:R38)-1,COLUMNS($R$26:R38)-1)<>"",OFFSET(DE104_9!$R$26,ROWS($R$26:R38)-1,COLUMNS($R$26:R38)-1),"") -> 52.3 | Q25: =IF(OFFSET(DE104_9!$S$26,ROWS($S$26:S38)-1,COLUMNS($S$26:S38)-1)<>"",OFFSET(DE104_9!$S$26,ROWS($S$26:S38)-1,COLUMNS($S$26:S38)-1),"") -> 0.4 | R25: =IF(OFFSET(DE104_9!$T$26,ROWS($T$26:T38)-1,COLUMNS($T$26:T38)-1)<>"",OFFSET(DE104_9!$T$26,ROWS($T$26:T38)-1,COLUMNS($T$26:T38)-1),"") -> 
A26: =IF(OFFSET(DE104_9!$C$26,ROWS($C$26:C39)-1,COLUMNS($C$26:C39)-1)<>"",OFFSET(DE104_9!$C$26,ROWS($C$26:C39)-1,COLUMNS($C$26:C39)-1),"") ->  | B26: =IF(OFFSET(DE104_9!$D$26,ROWS($D$26:D39)-1,COLUMNS($D$26:D39)-1)<>"",OFFSET(DE104_9!$D$26,ROWS($D$26:D39)-1,COLUMNS($D$26:D39)-1),"") ->  | C26: =IF(OFFSET(DE104_9!$E$26,ROWS($E$26:E39)-1,COLUMNS($E$26:E39)-1)<>"",OFFSET(DE104_9!$E$26,ROWS($E$26:E39)-1,COLUMNS($E$26:E39)-1),"") ->  | D26: =IF(OFFSET(DE104_9!$F$26,ROWS($F$26:F39)-1,COLUMNS($F$26:F39)-1)<>"",OFFSET(DE104_9!$F$26,ROWS($F$26:F39)-1,COLUMNS($F$26:F39)-1),"") ->  | E26: =IF(OFFSET(DE104_9!$G$26,ROWS($G$26:G39)-1,COLUMNS($G$26:G39)-1)<>"",OFFSET(DE104_9!$G$26,ROWS($G$26:G39)-1,COLUMNS($G$26:G39)-1),"") ->  | F26: =IF(OFFSET(DE104_9!$H$26,ROWS($H$26:H39)-1,COLUMNS($H$26:H39)-1)<>"",OFFSET(DE104_9!$H$26,ROWS($H$26:H39)-1,COLUMNS($H$26:H39)-1),"") ->  | G26: =IF(OFFSET(DE104_9!$I$26,ROWS($I$26:I39)-1,COLUMNS($I$26:I39)-1)<>"",OFFSET(DE104_9!$I$26,ROWS($I$26:I39)-1,COLUMNS($I$26:I39)-1),"") ->  | H26: =IF(OFFSET(DE104_9!$J$26,ROWS($J$26:J39)-1,COLUMNS($J$26:J39)-1)<>"",OFFSET(DE104_9!$J$26,ROWS($J$26:J39)-1,COLUMNS($J$26:J39)-1),"") ->  | I26: =IF(OFFSET(DE104_9!$K$26,ROWS($K$26:K39)-1,COLUMNS($K$26:K39)-1)<>"",OFFSET(DE104_9!$K$26,ROWS($K$26:K39)-1,COLUMNS($K$26:K39)-1),"") ->  | J26: =IF(OFFSET(DE104_9!$L$26,ROWS($L$26:L39)-1,COLUMNS($L$26:L39)-1)<>"",OFFSET(DE104_9!$L$26,ROWS($L$26:L39)-1,COLUMNS($L$26:L39)-1),"") ->  | K26: =IF(OFFSET(DE104_9!$M$26,ROWS($M$26:M39)-1,COLUMNS($M$26:M39)-1)<>"",OFFSET(DE104_9!$M$26,ROWS($M$26:M39)-1,COLUMNS($M$26:M39)-1),"") ->  | L26: =IF(OFFSET(DE104_9!$N$26,ROWS($N$26:N39)-1,COLUMNS($N$26:N39)-1)<>"",OFFSET(DE104_9!$N$26,ROWS($N$26:N39)-1,COLUMNS($N$26:N39)-1),"") ->  | M26: =IF(OFFSET(DE104_9!$O$26,ROWS($O$26:O39)-1,COLUMNS($O$26:O39)-1)<>"",OFFSET(DE104_9!$O$26,ROWS($O$26:O39)-1,COLUMNS($O$26:O39)-1),"") ->  | N26: =IF(OFFSET(DE104_9!$P$26,ROWS($P$26:P39)-1,COLUMNS($P$26:P39)-1)<>"",OFFSET(DE104_9!$P$26,ROWS($P$26:P39)-1,COLUMNS($P$26:P39)-1),"") -> 141500 | O26: =IF(OFFSET(DE104_9!$Q$26,ROWS($Q$26:Q39)-1,COLUMNS($Q$26:Q39)-1)<>"",OFFSET(DE104_9!$Q$26,ROWS($Q$26:Q39)-1,COLUMNS($Q$26:Q39)-1),"") -> DR-306 | P26: =IF(OFFSET(DE104_9!$R$26,ROWS($R$26:R39)-1,COLUMNS($R$26:R39)-1)<>"",OFFSET(DE104_9!$R$26,ROWS($R$26:R39)-1,COLUMNS($R$26:R39)-1),"") ->  | Q26: =IF(OFFSET(DE104_9!$S$26,ROWS($S$26:S39)-1,COLUMNS($S$26:S39)-1)<>"",OFFSET(DE104_9!$S$26,ROWS($S$26:S39)-1,COLUMNS($S$26:S39)-1),"") -> 0.4 | R26: =IF(OFFSET(DE104_9!$T$26,ROWS($T$26:T39)-1,COLUMNS($T$26:T39)-1)<>"",OFFSET(DE104_9!$T$26,ROWS($T$26:T39)-1,COLUMNS($T$26:T39)-1),"") -> 
A27: =IF(OFFSET(DE104_9!$C$26,ROWS($C$26:C40)-1,COLUMNS($C$26:C40)-1)<>"",OFFSET(DE104_9!$C$26,ROWS($C$26:C40)-1,COLUMNS($C$26:C40)-1),"") -> 8 | B27: =IF(OFFSET(DE104_9!$D$26,ROWS($D$26:D40)-1,COLUMNS($D$26:D40)-1)<>"",OFFSET(DE104_9!$D$26,ROWS($D$26:D40)-1,COLUMNS($D$26:D40)-1),"") -> EBL | C27: =IF(OFFSET(DE104_9!$E$26,ROWS($E$26:E40)-1,COLUMNS($E$26:E40)-1)<>"",OFFSET(DE104_9!$E$26,ROWS($E$26:E40)-1,COLUMNS($E$26:E40)-1),"") -> 141500 | D27: =IF(OFFSET(DE104_9!$F$26,ROWS($F$26:F40)-1,COLUMNS($F$26:F40)-1)<>"",OFFSET(DE104_9!$F$26,ROWS($F$26:F40)-1,COLUMNS($F$26:F40)-1),"") -> 142000 | E27: =IF(OFFSET(DE104_9!$G$26,ROWS($G$26:G40)-1,COLUMNS($G$26:G40)-1)<>"",OFFSET(DE104_9!$G$26,ROWS($G$26:G40)-1,COLUMNS($G$26:G40)-1),"") -> RT | F27: =IF(OFFSET(DE104_9!$H$26,ROWS($H$26:H40)-1,COLUMNS($H$26:H40)-1)<>"",OFFSET(DE104_9!$H$26,ROWS($H$26:H40)-1,COLUMNS($H$26:H40)-1),"") -> 42 | G27: =IF(OFFSET(DE104_9!$I$26,ROWS($I$26:I40)-1,COLUMNS($I$26:I40)-1)<>"",OFFSET(DE104_9!$I$26,ROWS($I$26:I40)-1,COLUMNS($I$26:I40)-1),"") -> 4 | H27: =IF(OFFSET(DE104_9!$J$26,ROWS($J$26:J40)-1,COLUMNS($J$26:J40)-1)<>"",OFFSET(DE104_9!$J$26,ROWS($J$26:J40)-1,COLUMNS($J$26:J40)-1),"") -> 540 | I27: =IF(OFFSET(DE104_9!$K$26,ROWS($K$26:K40)-1,COLUMNS($K$26:K40)-1)<>"",OFFSET(DE104_9!$K$26,ROWS($K$26:K40)-1,COLUMNS($K$26:K40)-1),"") ->  | J27: =IF(OFFSET(DE104_9!$L$26,ROWS($L$26:L40)-1,COLUMNS($L$26:L40)-1)<>"",OFFSET(DE104_9!$L$26,ROWS($L$26:L40)-1,COLUMNS($L$26:L40)-1),"") ->  | K27: =IF(OFFSET(DE104_9!$M$26,ROWS($M$26:M40)-1,COLUMNS($M$26:M40)-1)<>"",OFFSET(DE104_9!$M$26,ROWS($M$26:M40)-1,COLUMNS($M$26:M40)-1),"") ->  | L27: =IF(OFFSET(DE104_9!$N$26,ROWS($N$26:N40)-1,COLUMNS($N$26:N40)-1)<>"",OFFSET(DE104_9!$N$26,ROWS($N$26:N40)-1,COLUMNS($N$26:N40)-1),"") ->  | M27: =IF(OFFSET(DE104_9!$O$26,ROWS($O$26:O40)-1,COLUMNS($O$26:O40)-1)<>"",OFFSET(DE104_9!$O$26,ROWS($O$26:O40)-1,COLUMNS($O$26:O40)-1),"") ->  | N27: =IF(OFFSET(DE104_9!$P$26,ROWS($P$26:P40)-1,COLUMNS($P$26:P40)-1)<>"",OFFSET(DE104_9!$P$26,ROWS($P$26:P40)-1,COLUMNS($P$26:P40)-1),"") -> 141500 | O27: =IF(OFFSET(DE104_9!$Q$26,ROWS($Q$26:Q40)-1,COLUMNS($Q$26:Q40)-1)<>"",OFFSET(DE104_9!$Q$26,ROWS($Q$26:Q40)-1,COLUMNS($Q$26:Q40)-1),"") -> DR-306 | P27: =IF(OFFSET(DE104_9!$R$26,ROWS($R$26:R40)-1,COLUMNS($R$26:R40)-1)<>"",OFFSET(DE104_9!$R$26,ROWS($R$26:R40)-1,COLUMNS($R$26:R40)-1),"") -> 50 | Q27: =IF(OFFSET(DE104_9!$S$26,ROWS($S$26:S40)-1,COLUMNS($S$26:S40)-1)<>"",OFFSET(DE104_9!$S$26,ROWS($S$26:S40)-1,COLUMNS($S$26:S40)-1),"") -> 0.4 | R27: =IF(OFFSET(DE104_9!$T$26,ROWS($T$26:T40)-1,COLUMNS($T$26:T40)-1)<>"",OFFSET(DE104_9!$T$26,ROWS($T$26:T40)-1,COLUMNS($T$26:T40)-1),"") -> 
A28: =IF(OFFSET(DE104_9!$C$26,ROWS($C$26:C41)-1,COLUMNS($C$26:C41)-1)<>"",OFFSET(DE104_9!$C$26,ROWS($C$26:C41)-1,COLUMNS($C$26:C41)-1),"") ->  | B28: =IF(OFFSET(DE104_9!$D$26,ROWS($D$26:D41)-1,COLUMNS($D$26:D41)-1)<>"",OFFSET(DE104_9!$D$26,ROWS($D$26:D41)-1,COLUMNS($D$26:D41)-1),"") ->  | C28: =IF(OFFSET(DE104_9!$E$26,ROWS($E$26:E41)-1,COLUMNS($E$26:E41)-1)<>"",OFFSET(DE104_9!$E$26,ROWS($E$26:E41)-1,COLUMNS($E$26:E41)-1),"") ->  | D28: =IF(OFFSET(DE104_9!$F$26,ROWS($F$26:F41)-1,COLUMNS($F$26:F41)-1)<>"",OFFSET(DE104_9!$F$26,ROWS($F$26:F41)-1,COLUMNS($F$26:F41)-1),"") ->  | E28: =IF(OFFSET(DE104_9!$G$26,ROWS($G$26:G41)-1,COLUMNS($G$26:G41)-1)<>"",OFFSET(DE104_9!$G$26,ROWS($G$26:G41)-1,COLUMNS($G$26:G41)-1),"") ->  | F28: =IF(OFFSET(DE104_9!$H$26,ROWS($H$26:H41)-1,COLUMNS($H$26:H41)-1)<>"",OFFSET(DE104_9!$H$26,ROWS($H$26:H41)-1,COLUMNS($H$26:H41)-1),"") ->  | G28: =IF(OFFSET(DE104_9!$I$26,ROWS($I$26:I41)-1,COLUMNS($I$26:I41)-1)<>"",OFFSET(DE104_9!$I$26,ROWS($I$26:I41)-1,COLUMNS($I$26:I41)-1),"") ->  | H28: =IF(OFFSET(DE104_9!$J$26,ROWS($J$26:J41)-1,COLUMNS($J$26:J41)-1)<>"",OFFSET(DE104_9!$J$26,ROWS($J$26:J41)-1,COLUMNS($J$26:J41)-1),"") ->  | I28: =IF(OFFSET(DE104_9!$K$26,ROWS($K$26:K41)-1,COLUMNS($K$26:K41)-1)<>"",OFFSET(DE104_9!$K$26,ROWS($K$26:K41)-1,COLUMNS($K$26:K41)-1),"") ->  | J28: =IF(OFFSET(DE104_9!$L$26,ROWS($L$26:L41)-1,COLUMNS($L$26:L41)-1)<>"",OFFSET(DE104_9!$L$26,ROWS($L$26:L41)-1,COLUMNS($L$26:L41)-1),"") ->  | K28: =IF(OFFSET(DE104_9!$M$26,ROWS($M$26:M41)-1,COLUMNS($M$26:M41)-1)<>"",OFFSET(DE104_9!$M$26,ROWS($M$26:M41)-1,COLUMNS($M$26:M41)-1),"") ->  | L28: =IF(OFFSET(DE104_9!$N$26,ROWS($N$26:N41)-1,COLUMNS($N$26:N41)-1)<>"",OFFSET(DE104_9!$N$26,ROWS($N$26:N41)-1,COLUMNS($N$26:N41)-1),"") ->  | M28: =IF(OFFSET(DE104_9!$O$26,ROWS($O$26:O41)-1,COLUMNS($O$26:O41)-1)<>"",OFFSET(DE104_9!$O$26,ROWS($O$26:O41)-1,COLUMNS($O$26:O41)-1),"") ->  | N28: =IF(OFFSET(DE104_9!$P$26,ROWS($P$26:P41)-1,COLUMNS($P$26:P41)-1)<>"",OFFSET(DE104_9!$P$26,ROWS($P$26:P41)-1,COLUMNS($P$26:P41)-1),"") -> 142000 | O28: =IF(OFFSET(DE104_9!$Q$26,ROWS($Q$26:Q41)-1,COLUMNS($Q$26:Q41)-1)<>"",OFFSET(DE104_9!$Q$26,ROWS($Q$26:Q41)-1,COLUMNS($Q$26:Q41)-1),"") -> DR-306 | P28: =IF(OFFSET(DE104_9!$R$26,ROWS($R$26:R41)-1,COLUMNS($R$26:R41)-1)<>"",OFFSET(DE104_9!$R$26,ROWS($R$26:R41)-1,COLUMNS($R$26:R41)-1),"") ->  | Q28: =IF(OFFSET(DE104_9!$S$26,ROWS($S$26:S41)-1,COLUMNS($S$26:S41)-1)<>"",OFFSET(DE104_9!$S$26,ROWS($S$26:S41)-1,COLUMNS($S$26:S41)-1),"") -> 0.4 | R28: =IF(OFFSET(DE104_9!$T$26,ROWS($T$26:T41)-1,COLUMNS($T$26:T41)-1)<>"",OFFSET(DE104_9!$T$26,ROWS($T$26:T41)-1,COLUMNS($T$26:T41)-1),"") -> 
A29: =IF(OFFSET(DE104_9!$C$26,ROWS($C$26:C42)-1,COLUMNS($C$26:C42)-1)<>"",OFFSET(DE104_9!$C$26,ROWS($C$26:C42)-1,COLUMNS($C$26:C42)-1),"") -> 9 | B29: =IF(OFFSET(DE104_9!$D$26,ROWS($D$26:D42)-1,COLUMNS($D$26:D42)-1)<>"",OFFSET(DE104_9!$D$26,ROWS($D$26:D42)-1,COLUMNS($D$26:D42)-1),"") -> EBL | C29: =IF(OFFSET(DE104_9!$E$26,ROWS($E$26:E42)-1,COLUMNS($E$26:E42)-1)<>"",OFFSET(DE104_9!$E$26,ROWS($E$26:E42)-1,COLUMNS($E$26:E42)-1),"") -> 142000 | D29: =IF(OFFSET(DE104_9!$F$26,ROWS($F$26:F42)-1,COLUMNS($F$26:F42)-1)<>"",OFFSET(DE104_9!$F$26,ROWS($F$26:F42)-1,COLUMNS($F$26:F42)-1),"") -> 142500 | E29: =IF(OFFSET(DE104_9!$G$26,ROWS($G$26:G42)-1,COLUMNS($G$26:G42)-1)<>"",OFFSET(DE104_9!$G$26,ROWS($G$26:G42)-1,COLUMNS($G$26:G42)-1),"") -> RT | F29: =IF(OFFSET(DE104_9!$H$26,ROWS($H$26:H42)-1,COLUMNS($H$26:H42)-1)<>"",OFFSET(DE104_9!$H$26,ROWS($H$26:H42)-1,COLUMNS($H$26:H42)-1),"") -> 42 | G29: =IF(OFFSET(DE104_9!$I$26,ROWS($I$26:I42)-1,COLUMNS($I$26:I42)-1)<>"",OFFSET(DE104_9!$I$26,ROWS($I$26:I42)-1,COLUMNS($I$26:I42)-1),"") -> 4 | H29: =IF(OFFSET(DE104_9!$J$26,ROWS($J$26:J42)-1,COLUMNS($J$26:J42)-1)<>"",OFFSET(DE104_9!$J$26,ROWS($J$26:J42)-1,COLUMNS($J$26:J42)-1),"") -> 540 | I29: =IF(OFFSET(DE104_9!$K$26,ROWS($K$26:K42)-1,COLUMNS($K$26:K42)-1)<>"",OFFSET(DE104_9!$K$26,ROWS($K$26:K42)-1,COLUMNS($K$26:K42)-1),"") ->  | J29: =IF(OFFSET(DE104_9!$L$26,ROWS($L$26:L42)-1,COLUMNS($L$26:L42)-1)<>"",OFFSET(DE104_9!$L$26,ROWS($L$26:L42)-1,COLUMNS($L$26:L42)-1),"") ->  | K29: =IF(OFFSET(DE104_9!$M$26,ROWS($M$26:M42)-1,COLUMNS($M$26:M42)-1)<>"",OFFSET(DE104_9!$M$26,ROWS($M$26:M42)-1,COLUMNS($M$26:M42)-1),"") ->  | L29: =IF(OFFSET(DE104_9!$N$26,ROWS($N$26:N42)-1,COLUMNS($N$26:N42)-1)<>"",OFFSET(DE104_9!$N$26,ROWS($N$26:N42)-1,COLUMNS($N$26:N42)-1),"") ->  | M29: =IF(OFFSET(DE104_9!$O$26,ROWS($O$26:O42)-1,COLUMNS($O$26:O42)-1)<>"",OFFSET(DE104_9!$O$26,ROWS($O$26:O42)-1,COLUMNS($O$26:O42)-1),"") ->  | N29: =IF(OFFSET(DE104_9!$P$26,ROWS($P$26:P42)-1,COLUMNS($P$26:P42)-1)<>"",OFFSET(DE104_9!$P$26,ROWS($P$26:P42)-1,COLUMNS($P$26:P42)-1),"") -> 142000 | O29: =IF(OFFSET(DE104_9!$Q$26,ROWS($Q$26:Q42)-1,COLUMNS($Q$26:Q42)-1)<>"",OFFSET(DE104_9!$Q$26,ROWS($Q$26:Q42)-1,COLUMNS($Q$26:Q42)-1),"") -> DR-306 | P29: =IF(OFFSET(DE104_9!$R$26,ROWS($R$26:R42)-1,COLUMNS($R$26:R42)-1)<>"",OFFSET(DE104_9!$R$26,ROWS($R$26:R42)-1,COLUMNS($R$26:R42)-1),"") -> 50 | Q29: =IF(OFFSET(DE104_9!$S$26,ROWS($S$26:S42)-1,COLUMNS($S$26:S42)-1)<>"",OFFSET(DE104_9!$S$26,ROWS($S$26:S42)-1,COLUMNS($S$26:S42)-1),"") -> 0.4 | R29: =IF(OFFSET(DE104_9!$T$26,ROWS($T$26:T42)-1,COLUMNS($T$26:T42)-1)<>"",OFFSET(DE104_9!$T$26,ROWS($T$26:T42)-1,COLUMNS($T$26:T42)-1),"") -> 
A30: =IF(OFFSET(DE104_9!$C$26,ROWS($C$26:C43)-1,COLUMNS($C$26:C43)-1)<>"",OFFSET(DE104_9!$C$26,ROWS($C$26:C43)-1,COLUMNS($C$26:C43)-1),"") ->  | B30: =IF(OFFSET(DE104_9!$D$26,ROWS($D$26:D43)-1,COLUMNS($D$26:D43)-1)<>"",OFFSET(DE104_9!$D$26,ROWS($D$26:D43)-1,COLUMNS($D$26:D43)-1),"") ->  | C30: =IF(OFFSET(DE104_9!$E$26,ROWS($E$26:E43)-1,COLUMNS($E$26:E43)-1)<>"",OFFSET(DE104_9!$E$26,ROWS($E$26:E43)-1,COLUMNS($E$26:E43)-1),"") ->  | D30: =IF(OFFSET(DE104_9!$F$26,ROWS($F$26:F43)-1,COLUMNS($F$26:F43)-1)<>"",OFFSET(DE104_9!$F$26,ROWS($F$26:F43)-1,COLUMNS($F$26:F43)-1),"") ->  | E30: =IF(OFFSET(DE104_9!$G$26,ROWS($G$26:G43)-1,COLUMNS($G$26:G43)-1)<>"",OFFSET(DE104_9!$G$26,ROWS($G$26:G43)-1,COLUMNS($G$26:G43)-1),"") ->  | F30: =IF(OFFSET(DE104_9!$H$26,ROWS($H$26:H43)-1,COLUMNS($H$26:H43)-1)<>"",OFFSET(DE104_9!$H$26,ROWS($H$26:H43)-1,COLUMNS($H$26:H43)-1),"") ->  | G30: =IF(OFFSET(DE104_9!$I$26,ROWS($I$26:I43)-1,COLUMNS($I$26:I43)-1)<>"",OFFSET(DE104_9!$I$26,ROWS($I$26:I43)-1,COLUMNS($I$26:I43)-1),"") ->  | H30: =IF(OFFSET(DE104_9!$J$26,ROWS($J$26:J43)-1,COLUMNS($J$26:J43)-1)<>"",OFFSET(DE104_9!$J$26,ROWS($J$26:J43)-1,COLUMNS($J$26:J43)-1),"") ->  | I30: =IF(OFFSET(DE104_9!$K$26,ROWS($K$26:K43)-1,COLUMNS($K$26:K43)-1)<>"",OFFSET(DE104_9!$K$26,ROWS($K$26:K43)-1,COLUMNS($K$26:K43)-1),"") ->  | J30: =IF(OFFSET(DE104_9!$L$26,ROWS($L$26:L43)-1,COLUMNS($L$26:L43)-1)<>"",OFFSET(DE104_9!$L$26,ROWS($L$26:L43)-1,COLUMNS($L$26:L43)-1),"") ->  | K30: =IF(OFFSET(DE104_9!$M$26,ROWS($M$26:M43)-1,COLUMNS($M$26:M43)-1)<>"",OFFSET(DE104_9!$M$26,ROWS($M$26:M43)-1,COLUMNS($M$26:M43)-1),"") ->  | L30: =IF(OFFSET(DE104_9!$N$26,ROWS($N$26:N43)-1,COLUMNS($N$26:N43)-1)<>"",OFFSET(DE104_9!$N$26,ROWS($N$26:N43)-1,COLUMNS($N$26:N43)-1),"") ->  | M30: =IF(OFFSET(DE104_9!$O$26,ROWS($O$26:O43)-1,COLUMNS($O$26:O43)-1)<>"",OFFSET(DE104_9!$O$26,ROWS($O$26:O43)-1,COLUMNS($O$26:O43)-1),"") ->  | N30: =IF(OFFSET(DE104_9!$P$26,ROWS($P$26:P43)-1,COLUMNS($P$26:P43)-1)<>"",OFFSET(DE104_9!$P$26,ROWS($P$26:P43)-1,COLUMNS($P$26:P43)-1),"") -> 142500 | O30: =IF(OFFSET(DE104_9!$Q$26,ROWS($Q$26:Q43)-1,COLUMNS($Q$26:Q43)-1)<>"",OFFSET(DE104_9!$Q$26,ROWS($Q$26:Q43)-1,COLUMNS($Q$26:Q43)-1),"") -> DR-306 | P30: =IF(OFFSET(DE104_9!$R$26,ROWS($R$26:R43)-1,COLUMNS($R$26:R43)-1)<>"",OFFSET(DE104_9!$R$26,ROWS($R$26:R43)-1,COLUMNS($R$26:R43)-1),"") ->  | Q30: =IF(OFFSET(DE104_9!$S$26,ROWS($S$26:S43)-1,COLUMNS($S$26:S43)-1)<>"",OFFSET(DE104_9!$S$26,ROWS($S$26:S43)-1,COLUMNS($S$26:S43)-1),"") -> 0.4 | R30: =IF(OFFSET(DE104_9!$T$26,ROWS($T$26:T43)-1,COLUMNS($T$26:T43)-1)<>"",OFFSET(DE104_9!$T$26,ROWS($T$26:T43)-1,COLUMNS($T$26:T43)-1),"") -> 
A31: =IF(OFFSET(DE104_9!$C$26,ROWS($C$26:C44)-1,COLUMNS($C$26:C44)-1)<>"",OFFSET(DE104_9!$C$26,ROWS($C$26:C44)-1,COLUMNS($C$26:C44)-1),"") -> 10 | B31: =IF(OFFSET(DE104_9!$D$26,ROWS($D$26:D44)-1,COLUMNS($D$26:D44)-1)<>"",OFFSET(DE104_9!$D$26,ROWS($D$26:D44)-1,COLUMNS($D$26:D44)-1),"") -> EBL | C31: =IF(OFFSET(DE104_9!$E$26,ROWS($E$26:E44)-1,COLUMNS($E$26:E44)-1)<>"",OFFSET(DE104_9!$E$26,ROWS($E$26:E44)-1,COLUMNS($E$26:E44)-1),"") -> 142500 | D31: =IF(OFFSET(DE104_9!$F$26,ROWS($F$26:F44)-1,COLUMNS($F$26:F44)-1)<>"",OFFSET(DE104_9!$F$26,ROWS($F$26:F44)-1,COLUMNS($F$26:F44)-1),"") -> 143000 | E31: =IF(OFFSET(DE104_9!$G$26,ROWS($G$26:G44)-1,COLUMNS($G$26:G44)-1)<>"",OFFSET(DE104_9!$G$26,ROWS($G$26:G44)-1,COLUMNS($G$26:G44)-1),"") -> RT | F31: =IF(OFFSET(DE104_9!$H$26,ROWS($H$26:H44)-1,COLUMNS($H$26:H44)-1)<>"",OFFSET(DE104_9!$H$26,ROWS($H$26:H44)-1,COLUMNS($H$26:H44)-1),"") -> 42 | G31: =IF(OFFSET(DE104_9!$I$26,ROWS($I$26:I44)-1,COLUMNS($I$26:I44)-1)<>"",OFFSET(DE104_9!$I$26,ROWS($I$26:I44)-1,COLUMNS($I$26:I44)-1),"") -> 4 | H31: =IF(OFFSET(DE104_9!$J$26,ROWS($J$26:J44)-1,COLUMNS($J$26:J44)-1)<>"",OFFSET(DE104_9!$J$26,ROWS($J$26:J44)-1,COLUMNS($J$26:J44)-1),"") -> 540 | I31: =IF(OFFSET(DE104_9!$K$26,ROWS($K$26:K44)-1,COLUMNS($K$26:K44)-1)<>"",OFFSET(DE104_9!$K$26,ROWS($K$26:K44)-1,COLUMNS($K$26:K44)-1),"") ->  | J31: =IF(OFFSET(DE104_9!$L$26,ROWS($L$26:L44)-1,COLUMNS($L$26:L44)-1)<>"",OFFSET(DE104_9!$L$26,ROWS($L$26:L44)-1,COLUMNS($L$26:L44)-1),"") ->  | K31: =IF(OFFSET(DE104_9!$M$26,ROWS($M$26:M44)-1,COLUMNS($M$26:M44)-1)<>"",OFFSET(DE104_9!$M$26,ROWS($M$26:M44)-1,COLUMNS($M$26:M44)-1),"") ->  | L31: =IF(OFFSET(DE104_9!$N$26,ROWS($N$26:N44)-1,COLUMNS($N$26:N44)-1)<>"",OFFSET(DE104_9!$N$26,ROWS($N$26:N44)-1,COLUMNS($N$26:N44)-1),"") ->  | M31: =IF(OFFSET(DE104_9!$O$26,ROWS($O$26:O44)-1,COLUMNS($O$26:O44)-1)<>"",OFFSET(DE104_9!$O$26,ROWS($O$26:O44)-1,COLUMNS($O$26:O44)-1),"") ->  | N31: =IF(OFFSET(DE104_9!$P$26,ROWS($P$26:P44)-1,COLUMNS($P$26:P44)-1)<>"",OFFSET(DE104_9!$P$26,ROWS($P$26:P44)-1,COLUMNS($P$26:P44)-1),"") -> 142500 | O31: =IF(OFFSET(DE104_9!$Q$26,ROWS($Q$26:Q44)-1,COLUMNS($Q$26:Q44)-1)<>"",OFFSET(DE104_9!$Q$26,ROWS($Q$26:Q44)-1,COLUMNS($Q$26:Q44)-1),"") -> DR-306 | P31: =IF(OFFSET(DE104_9!$R$26,ROWS($R$26:R44)-1,COLUMNS($R$26:R44)-1)<>"",OFFSET(DE104_9!$R$26,ROWS($R$26:R44)-1,COLUMNS($R$26:R44)-1),"") -> 50 | Q31: =IF(OFFSET(DE104_9!$S$26,ROWS($S$26:S44)-1,COLUMNS($S$26:S44)-1)<>"",OFFSET(DE104_9!$S$26,ROWS($S$26:S44)-1,COLUMNS($S$26:S44)-1),"") -> 0.4 | R31: =IF(OFFSET(DE104_9!$T$26,ROWS($T$26:T44)-1,COLUMNS($T$26:T44)-1)<>"",OFFSET(DE104_9!$T$26,ROWS($T$26:T44)-1,COLUMNS($T$26:T44)-1),"") -> 
A32: =IF(OFFSET(DE104_9!$C$26,ROWS($C$26:C45)-1,COLUMNS($C$26:C45)-1)<>"",OFFSET(DE104_9!$C$26,ROWS($C$26:C45)-1,COLUMNS($C$26:C45)-1),"") ->  | B32: =IF(OFFSET(DE104_9!$D$26,ROWS($D$26:D45)-1,COLUMNS($D$26:D45)-1)<>"",OFFSET(DE104_9!$D$26,ROWS($D$26:D45)-1,COLUMNS($D$26:D45)-1),"") ->  | C32: =IF(OFFSET(DE104_9!$E$26,ROWS($E$26:E45)-1,COLUMNS($E$26:E45)-1)<>"",OFFSET(DE104_9!$E$26,ROWS($E$26:E45)-1,COLUMNS($E$26:E45)-1),"") ->  | D32: =IF(OFFSET(DE104_9!$F$26,ROWS($F$26:F45)-1,COLUMNS($F$26:F45)-1)<>"",OFFSET(DE104_9!$F$26,ROWS($F$26:F45)-1,COLUMNS($F$26:F45)-1),"") ->  | E32: =IF(OFFSET(DE104_9!$G$26,ROWS($G$26:G45)-1,COLUMNS($G$26:G45)-1)<>"",OFFSET(DE104_9!$G$26,ROWS($G$26:G45)-1,COLUMNS($G$26:G45)-1),"") ->  | F32: =IF(OFFSET(DE104_9!$H$26,ROWS($H$26:H45)-1,COLUMNS($H$26:H45)-1)<>"",OFFSET(DE104_9!$H$26,ROWS($H$26:H45)-1,COLUMNS($H$26:H45)-1),"") ->  | G32: =IF(OFFSET(DE104_9!$I$26,ROWS($I$26:I45)-1,COLUMNS($I$26:I45)-1)<>"",OFFSET(DE104_9!$I$26,ROWS($I$26:I45)-1,COLUMNS($I$26:I45)-1),"") ->  | H32: =IF(OFFSET(DE104_9!$J$26,ROWS($J$26:J45)-1,COLUMNS($J$26:J45)-1)<>"",OFFSET(DE104_9!$J$26,ROWS($J$26:J45)-1,COLUMNS($J$26:J45)-1),"") ->  | I32: =IF(OFFSET(DE104_9!$K$26,ROWS($K$26:K45)-1,COLUMNS($K$26:K45)-1)<>"",OFFSET(DE104_9!$K$26,ROWS($K$26:K45)-1,COLUMNS($K$26:K45)-1),"") ->  | J32: =IF(OFFSET(DE104_9!$L$26,ROWS($L$26:L45)-1,COLUMNS($L$26:L45)-1)<>"",OFFSET(DE104_9!$L$26,ROWS($L$26:L45)-1,COLUMNS($L$26:L45)-1),"") ->  | K32: =IF(OFFSET(DE104_9!$M$26,ROWS($M$26:M45)-1,COLUMNS($M$26:M45)-1)<>"",OFFSET(DE104_9!$M$26,ROWS($M$26:M45)-1,COLUMNS($M$26:M45)-1),"") ->  | L32: =IF(OFFSET(DE104_9!$N$26,ROWS($N$26:N45)-1,COLUMNS($N$26:N45)-1)<>"",OFFSET(DE104_9!$N$26,ROWS($N$26:N45)-1,COLUMNS($N$26:N45)-1),"") ->  | M32: =IF(OFFSET(DE104_9!$O$26,ROWS($O$26:O45)-1,COLUMNS($O$26:O45)-1)<>"",OFFSET(DE104_9!$O$26,ROWS($O$26:O45)-1,COLUMNS($O$26:O45)-1),"") ->  | N32: =IF(OFFSET(DE104_9!$P$26,ROWS($P$26:P45)-1,COLUMNS($P$26:P45)-1)<>"",OFFSET(DE104_9!$P$26,ROWS($P$26:P45)-1,COLUMNS($P$26:P45)-1),"") -> 143000 | O32: =IF(OFFSET(DE104_9!$Q$26,ROWS($Q$26:Q45)-1,COLUMNS($Q$26:Q45)-1)<>"",OFFSET(DE104_9!$Q$26,ROWS($Q$26:Q45)-1,COLUMNS($Q$26:Q45)-1),"") -> DR-306 | P32: =IF(OFFSET(DE104_9!$R$26,ROWS($R$26:R45)-1,COLUMNS($R$26:R45)-1)<>"",OFFSET(DE104_9!$R$26,ROWS($R$26:R45)-1,COLUMNS($R$26:R45)-1),"") ->  | Q32: =IF(OFFSET(DE104_9!$S$26,ROWS($S$26:S45)-1,COLUMNS($S$26:S45)-1)<>"",OFFSET(DE104_9!$S$26,ROWS($S$26:S45)-1,COLUMNS($S$26:S45)-1),"") -> 0.4 | R32: =IF(OFFSET(DE104_9!$T$26,ROWS($T$26:T45)-1,COLUMNS($T$26:T45)-1)<>"",OFFSET(DE104_9!$T$26,ROWS($T$26:T45)-1,COLUMNS($T$26:T45)-1),"") -> 
A33: =IF(OFFSET(DE104_9!$C$26,ROWS($C$26:C46)-1,COLUMNS($C$26:C46)-1)<>"",OFFSET(DE104_9!$C$26,ROWS($C$26:C46)-1,COLUMNS($C$26:C46)-1),"") -> 11 | B33: =IF(OFFSET(DE104_9!$D$26,ROWS($D$26:D46)-1,COLUMNS($D$26:D46)-1)<>"",OFFSET(DE104_9!$D$26,ROWS($D$26:D46)-1,COLUMNS($D$26:D46)-1),"") -> EBL | C33: =IF(OFFSET(DE104_9!$E$26,ROWS($E$26:E46)-1,COLUMNS($E$26:E46)-1)<>"",OFFSET(DE104_9!$E$26,ROWS($E$26:E46)-1,COLUMNS($E$26:E46)-1),"") -> 143000 | D33: =IF(OFFSET(DE104_9!$F$26,ROWS($F$26:F46)-1,COLUMNS($F$26:F46)-1)<>"",OFFSET(DE104_9!$F$26,ROWS($F$26:F46)-1,COLUMNS($F$26:F46)-1),"") -> 143500 | E33: =IF(OFFSET(DE104_9!$G$26,ROWS($G$26:G46)-1,COLUMNS($G$26:G46)-1)<>"",OFFSET(DE104_9!$G$26,ROWS($G$26:G46)-1,COLUMNS($G$26:G46)-1),"") -> RT | F33: =IF(OFFSET(DE104_9!$H$26,ROWS($H$26:H46)-1,COLUMNS($H$26:H46)-1)<>"",OFFSET(DE104_9!$H$26,ROWS($H$26:H46)-1,COLUMNS($H$26:H46)-1),"") -> 42 | G33: =IF(OFFSET(DE104_9!$I$26,ROWS($I$26:I46)-1,COLUMNS($I$26:I46)-1)<>"",OFFSET(DE104_9!$I$26,ROWS($I$26:I46)-1,COLUMNS($I$26:I46)-1),"") -> 4 | H33: =IF(OFFSET(DE104_9!$J$26,ROWS($J$26:J46)-1,COLUMNS($J$26:J46)-1)<>"",OFFSET(DE104_9!$J$26,ROWS($J$26:J46)-1,COLUMNS($J$26:J46)-1),"") -> 540 | I33: =IF(OFFSET(DE104_9!$K$26,ROWS($K$26:K46)-1,COLUMNS($K$26:K46)-1)<>"",OFFSET(DE104_9!$K$26,ROWS($K$26:K46)-1,COLUMNS($K$26:K46)-1),"") ->  | J33: =IF(OFFSET(DE104_9!$L$26,ROWS($L$26:L46)-1,COLUMNS($L$26:L46)-1)<>"",OFFSET(DE104_9!$L$26,ROWS($L$26:L46)-1,COLUMNS($L$26:L46)-1),"") ->  | K33: =IF(OFFSET(DE104_9!$M$26,ROWS($M$26:M46)-1,COLUMNS($M$26:M46)-1)<>"",OFFSET(DE104_9!$M$26,ROWS($M$26:M46)-1,COLUMNS($M$26:M46)-1),"") ->  | L33: =IF(OFFSET(DE104_9!$N$26,ROWS($N$26:N46)-1,COLUMNS($N$26:N46)-1)<>"",OFFSET(DE104_9!$N$26,ROWS($N$26:N46)-1,COLUMNS($N$26:N46)-1),"") ->  | M33: =IF(OFFSET(DE104_9!$O$26,ROWS($O$26:O46)-1,COLUMNS($O$26:O46)-1)<>"",OFFSET(DE104_9!$O$26,ROWS($O$26:O46)-1,COLUMNS($O$26:O46)-1),"") ->  | N33: =IF(OFFSET(DE104_9!$P$26,ROWS($P$26:P46)-1,COLUMNS($P$26:P46)-1)<>"",OFFSET(DE104_9!$P$26,ROWS($P$26:P46)-1,COLUMNS($P$26:P46)-1),"") -> 143000 | O33: =IF(OFFSET(DE104_9!$Q$26,ROWS($Q$26:Q46)-1,COLUMNS($Q$26:Q46)-1)<>"",OFFSET(DE104_9!$Q$26,ROWS($Q$26:Q46)-1,COLUMNS($Q$26:Q46)-1),"") -> DR-306 | P33: =IF(OFFSET(DE104_9!$R$26,ROWS($R$26:R46)-1,COLUMNS($R$26:R46)-1)<>"",OFFSET(DE104_9!$R$26,ROWS($R$26:R46)-1,COLUMNS($R$26:R46)-1),"") -> 50 | Q33: =IF(OFFSET(DE104_9!$S$26,ROWS($S$26:S46)-1,COLUMNS($S$26:S46)-1)<>"",OFFSET(DE104_9!$S$26,ROWS($S$26:S46)-1,COLUMNS($S$26:S46)-1),"") -> 0.4 | R33: =IF(OFFSET(DE104_9!$T$26,ROWS($T$26:T46)-1,COLUMNS($T$26:T46)-1)<>"",OFFSET(DE104_9!$T$26,ROWS($T$26:T46)-1,COLUMNS($T$26:T46)-1),"") -> 
A34: =IF(OFFSET(DE104_9!$C$26,ROWS($C$26:C47)-1,COLUMNS($C$26:C47)-1)<>"",OFFSET(DE104_9!$C$26,ROWS($C$26:C47)-1,COLUMNS($C$26:C47)-1),"") ->  | B34: =IF(OFFSET(DE104_9!$D$26,ROWS($D$26:D47)-1,COLUMNS($D$26:D47)-1)<>"",OFFSET(DE104_9!$D$26,ROWS($D$26:D47)-1,COLUMNS($D$26:D47)-1),"") ->  | C34: =IF(OFFSET(DE104_9!$E$26,ROWS($E$26:E47)-1,COLUMNS($E$26:E47)-1)<>"",OFFSET(DE104_9!$E$26,ROWS($E$26:E47)-1,COLUMNS($E$26:E47)-1),"") ->  | D34: =IF(OFFSET(DE104_9!$F$26,ROWS($F$26:F47)-1,COLUMNS($F$26:F47)-1)<>"",OFFSET(DE104_9!$F$26,ROWS($F$26:F47)-1,COLUMNS($F$26:F47)-1),"") ->  | E34: =IF(OFFSET(DE104_9!$G$26,ROWS($G$26:G47)-1,COLUMNS($G$26:G47)-1)<>"",OFFSET(DE104_9!$G$26,ROWS($G$26:G47)-1,COLUMNS($G$26:G47)-1),"") ->  | F34: =IF(OFFSET(DE104_9!$H$26,ROWS($H$26:H47)-1,COLUMNS($H$26:H47)-1)<>"",OFFSET(DE104_9!$H$26,ROWS($H$26:H47)-1,COLUMNS($H$26:H47)-1),"") ->  | G34: =IF(OFFSET(DE104_9!$I$26,ROWS($I$26:I47)-1,COLUMNS($I$26:I47)-1)<>"",OFFSET(DE104_9!$I$26,ROWS($I$26:I47)-1,COLUMNS($I$26:I47)-1),"") ->  | H34: =IF(OFFSET(DE104_9!$J$26,ROWS($J$26:J47)-1,COLUMNS($J$26:J47)-1)<>"",OFFSET(DE104_9!$J$26,ROWS($J$26:J47)-1,COLUMNS($J$26:J47)-1),"") ->  | I34: =IF(OFFSET(DE104_9!$K$26,ROWS($K$26:K47)-1,COLUMNS($K$26:K47)-1)<>"",OFFSET(DE104_9!$K$26,ROWS($K$26:K47)-1,COLUMNS($K$26:K47)-1),"") ->  | J34: =IF(OFFSET(DE104_9!$L$26,ROWS($L$26:L47)-1,COLUMNS($L$26:L47)-1)<>"",OFFSET(DE104_9!$L$26,ROWS($L$26:L47)-1,COLUMNS($L$26:L47)-1),"") ->  | K34: =IF(OFFSET(DE104_9!$M$26,ROWS($M$26:M47)-1,COLUMNS($M$26:M47)-1)<>"",OFFSET(DE104_9!$M$26,ROWS($M$26:M47)-1,COLUMNS($M$26:M47)-1),"") ->  | L34: =IF(OFFSET(DE104_9!$N$26,ROWS($N$26:N47)-1,COLUMNS($N$26:N47)-1)<>"",OFFSET(DE104_9!$N$26,ROWS($N$26:N47)-1,COLUMNS($N$26:N47)-1),"") ->  | M34: =IF(OFFSET(DE104_9!$O$26,ROWS($O$26:O47)-1,COLUMNS($O$26:O47)-1)<>"",OFFSET(DE104_9!$O$26,ROWS($O$26:O47)-1,COLUMNS($O$26:O47)-1),"") ->  | N34: =IF(OFFSET(DE104_9!$P$26,ROWS($P$26:P47)-1,COLUMNS($P$26:P47)-1)<>"",OFFSET(DE104_9!$P$26,ROWS($P$26:P47)-1,COLUMNS($P$26:P47)-1),"") -> 143500 | O34: =IF(OFFSET(DE104_9!$Q$26,ROWS($Q$26:Q47)-1,COLUMNS($Q$26:Q47)-1)<>"",OFFSET(DE104_9!$Q$26,ROWS($Q$26:Q47)-1,COLUMNS($Q$26:Q47)-1),"") -> DR-306 | P34: =IF(OFFSET(DE104_9!$R$26,ROWS($R$26:R47)-1,COLUMNS($R$26:R47)-1)<>"",OFFSET(DE104_9!$R$26,ROWS($R$26:R47)-1,COLUMNS($R$26:R47)-1),"") ->  | Q34: =IF(OFFSET(DE104_9!$S$26,ROWS($S$26:S47)-1,COLUMNS($S$26:S47)-1)<>"",OFFSET(DE104_9!$S$26,ROWS($S$26:S47)-1,COLUMNS($S$26:S47)-1),"") -> 0.4 | R34: =IF(OFFSET(DE104_9!$T$26,ROWS($T$26:T47)-1,COLUMNS($T$26:T47)-1)<>"",OFFSET(DE104_9!$T$26,ROWS($T$26:T47)-1,COLUMNS($T$26:T47)-1),"") -> 
A35: =IF(OFFSET(DE104_9!$C$26,ROWS($C$26:C48)-1,COLUMNS($C$26:C48)-1)<>"",OFFSET(DE104_9!$C$26,ROWS($C$26:C48)-1,COLUMNS($C$26:C48)-1),"") -> 12 | B35: =IF(OFFSET(DE104_9!$D$26,ROWS($D$26:D48)-1,COLUMNS($D$26:D48)-1)<>"",OFFSET(DE104_9!$D$26,ROWS($D$26:D48)-1,COLUMNS($D$26:D48)-1),"") -> EBL | C35: =IF(OFFSET(DE104_9!$E$26,ROWS($E$26:E48)-1,COLUMNS($E$26:E48)-1)<>"",OFFSET(DE104_9!$E$26,ROWS($E$26:E48)-1,COLUMNS($E$26:E48)-1),"") -> 143500 | D35: =IF(OFFSET(DE104_9!$F$26,ROWS($F$26:F48)-1,COLUMNS($F$26:F48)-1)<>"",OFFSET(DE104_9!$F$26,ROWS($F$26:F48)-1,COLUMNS($F$26:F48)-1),"") -> 144000 | E35: =IF(OFFSET(DE104_9!$G$26,ROWS($G$26:G48)-1,COLUMNS($G$26:G48)-1)<>"",OFFSET(DE104_9!$G$26,ROWS($G$26:G48)-1,COLUMNS($G$26:G48)-1),"") -> RT | F35: =IF(OFFSET(DE104_9!$H$26,ROWS($H$26:H48)-1,COLUMNS($H$26:H48)-1)<>"",OFFSET(DE104_9!$H$26,ROWS($H$26:H48)-1,COLUMNS($H$26:H48)-1),"") -> 42 | G35: =IF(OFFSET(DE104_9!$I$26,ROWS($I$26:I48)-1,COLUMNS($I$26:I48)-1)<>"",OFFSET(DE104_9!$I$26,ROWS($I$26:I48)-1,COLUMNS($I$26:I48)-1),"") -> 4 | H35: =IF(OFFSET(DE104_9!$J$26,ROWS($J$26:J48)-1,COLUMNS($J$26:J48)-1)<>"",OFFSET(DE104_9!$J$26,ROWS($J$26:J48)-1,COLUMNS($J$26:J48)-1),"") -> 540 | I35: =IF(OFFSET(DE104_9!$K$26,ROWS($K$26:K48)-1,COLUMNS($K$26:K48)-1)<>"",OFFSET(DE104_9!$K$26,ROWS($K$26:K48)-1,COLUMNS($K$26:K48)-1),"") ->  | J35: =IF(OFFSET(DE104_9!$L$26,ROWS($L$26:L48)-1,COLUMNS($L$26:L48)-1)<>"",OFFSET(DE104_9!$L$26,ROWS($L$26:L48)-1,COLUMNS($L$26:L48)-1),"") ->  | K35: =IF(OFFSET(DE104_9!$M$26,ROWS($M$26:M48)-1,COLUMNS($M$26:M48)-1)<>"",OFFSET(DE104_9!$M$26,ROWS($M$26:M48)-1,COLUMNS($M$26:M48)-1),"") ->  | L35: =IF(OFFSET(DE104_9!$N$26,ROWS($N$26:N48)-1,COLUMNS($N$26:N48)-1)<>"",OFFSET(DE104_9!$N$26,ROWS($N$26:N48)-1,COLUMNS($N$26:N48)-1),"") ->  | M35: =IF(OFFSET(DE104_9!$O$26,ROWS($O$26:O48)-1,COLUMNS($O$26:O48)-1)<>"",OFFSET(DE104_9!$O$26,ROWS($O$26:O48)-1,COLUMNS($O$26:O48)-1),"") ->  | N35: =IF(OFFSET(DE104_9!$P$26,ROWS($P$26:P48)-1,COLUMNS($P$26:P48)-1)<>"",OFFSET(DE104_9!$P$26,ROWS($P$26:P48)-1,COLUMNS($P$26:P48)-1),"") -> 143500 | O35: =IF(OFFSET(DE104_9!$Q$26,ROWS($Q$26:Q48)-1,COLUMNS($Q$26:Q48)-1)<>"",OFFSET(DE104_9!$Q$26,ROWS($Q$26:Q48)-1,COLUMNS($Q$26:Q48)-1),"") -> DR-306 | P35: =IF(OFFSET(DE104_9!$R$26,ROWS($R$26:R48)-1,COLUMNS($R$26:R48)-1)<>"",OFFSET(DE104_9!$R$26,ROWS($R$26:R48)-1,COLUMNS($R$26:R48)-1),"") -> 50 | Q35: =IF(OFFSET(DE104_9!$S$26,ROWS($S$26:S48)-1,COLUMNS($S$26:S48)-1)<>"",OFFSET(DE104_9!$S$26,ROWS($S$26:S48)-1,COLUMNS($S$26:S48)-1),"") -> 0.4 | R35: =IF(OFFSET(DE104_9!$T$26,ROWS($T$26:T48)-1,COLUMNS($T$26:T48)-1)<>"",OFFSET(DE104_9!$T$26,ROWS($T$26:T48)-1,COLUMNS($T$26:T48)-1),"") -> 
A36: =IF(OFFSET(DE104_9!$C$26,ROWS($C$26:C49)-1,COLUMNS($C$26:C49)-1)<>"",OFFSET(DE104_9!$C$26,ROWS($C$26:C49)-1,COLUMNS($C$26:C49)-1),"") ->  | B36: =IF(OFFSET(DE104_9!$D$26,ROWS($D$26:D49)-1,COLUMNS($D$26:D49)-1)<>"",OFFSET(DE104_9!$D$26,ROWS($D$26:D49)-1,COLUMNS($D$26:D49)-1),"") ->  | C36: =IF(OFFSET(DE104_9!$E$26,ROWS($E$26:E49)-1,COLUMNS($E$26:E49)-1)<>"",OFFSET(DE104_9!$E$26,ROWS($E$26:E49)-1,COLUMNS($E$26:E49)-1),"") ->  | D36: =IF(OFFSET(DE104_9!$F$26,ROWS($F$26:F49)-1,COLUMNS($F$26:F49)-1)<>"",OFFSET(DE104_9!$F$26,ROWS($F$26:F49)-1,COLUMNS($F$26:F49)-1),"") ->  | E36: =IF(OFFSET(DE104_9!$G$26,ROWS($G$26:G49)-1,COLUMNS($G$26:G49)-1)<>"",OFFSET(DE104_9!$G$26,ROWS($G$26:G49)-1,COLUMNS($G$26:G49)-1),"") ->  | F36: =IF(OFFSET(DE104_9!$H$26,ROWS($H$26:H49)-1,COLUMNS($H$26:H49)-1)<>"",OFFSET(DE104_9!$H$26,ROWS($H$26:H49)-1,COLUMNS($H$26:H49)-1),"") ->  | G36: =IF(OFFSET(DE104_9!$I$26,ROWS($I$26:I49)-1,COLUMNS($I$26:I49)-1)<>"",OFFSET(DE104_9!$I$26,ROWS($I$26:I49)-1,COLUMNS($I$26:I49)-1),"") ->  | H36: =IF(OFFSET(DE104_9!$J$26,ROWS($J$26:J49)-1,COLUMNS($J$26:J49)-1)<>"",OFFSET(DE104_9!$J$26,ROWS($J$26:J49)-1,COLUMNS($J$26:J49)-1),"") ->  | I36: =IF(OFFSET(DE104_9!$K$26,ROWS($K$26:K49)-1,COLUMNS($K$26:K49)-1)<>"",OFFSET(DE104_9!$K$26,ROWS($K$26:K49)-1,COLUMNS($K$26:K49)-1),"") ->  | J36: =IF(OFFSET(DE104_9!$L$26,ROWS($L$26:L49)-1,COLUMNS($L$26:L49)-1)<>"",OFFSET(DE104_9!$L$26,ROWS($L$26:L49)-1,COLUMNS($L$26:L49)-1),"") ->  | K36: =IF(OFFSET(DE104_9!$M$26,ROWS($M$26:M49)-1,COLUMNS($M$26:M49)-1)<>"",OFFSET(DE104_9!$M$26,ROWS($M$26:M49)-1,COLUMNS($M$26:M49)-1),"") ->  | L36: =IF(OFFSET(DE104_9!$N$26,ROWS($N$26:N49)-1,COLUMNS($N$26:N49)-1)<>"",OFFSET(DE104_9!$N$26,ROWS($N$26:N49)-1,COLUMNS($N$26:N49)-1),"") ->  | M36: =IF(OFFSET(DE104_9!$O$26,ROWS($O$26:O49)-1,COLUMNS($O$26:O49)-1)<>"",OFFSET(DE104_9!$O$26,ROWS($O$26:O49)-1,COLUMNS($O$26:O49)-1),"") ->  | N36: =IF(OFFSET(DE104_9!$P$26,ROWS($P$26:P49)-1,COLUMNS($P$26:P49)-1)<>"",OFFSET(DE104_9!$P$26,ROWS($P$26:P49)-1,COLUMNS($P$26:P49)-1),"") -> 144000 | O36: =IF(OFFSET(DE104_9!$Q$26,ROWS($Q$26:Q49)-1,COLUMNS($Q$26:Q49)-1)<>"",OFFSET(DE104_9!$Q$26,ROWS($Q$26:Q49)-1,COLUMNS($Q$26:Q49)-1),"") -> DR-306 | P36: =IF(OFFSET(DE104_9!$R$26,ROWS($R$26:R49)-1,COLUMNS($R$26:R49)-1)<>"",OFFSET(DE104_9!$R$26,ROWS($R$26:R49)-1,COLUMNS($R$26:R49)-1),"") ->  | Q36: =IF(OFFSET(DE104_9!$S$26,ROWS($S$26:S49)-1,COLUMNS($S$26:S49)-1)<>"",OFFSET(DE104_9!$S$26,ROWS($S$26:S49)-1,COLUMNS($S$26:S49)-1),"") -> 0.4 | R36: =IF(OFFSET(DE104_9!$T$26,ROWS($T$26:T49)-1,COLUMNS($T$26:T49)-1)<>"",OFFSET(DE104_9!$T$26,ROWS($T$26:T49)-1,COLUMNS($T$26:T49)-1),"") -> 
A37: =IF(OFFSET(DE104_9!$C$26,ROWS($C$26:C50)-1,COLUMNS($C$26:C50)-1)<>"",OFFSET(DE104_9!$C$26,ROWS($C$26:C50)-1,COLUMNS($C$26:C50)-1),"") -> 13 | B37: =IF(OFFSET(DE104_9!$D$26,ROWS($D$26:D50)-1,COLUMNS($D$26:D50)-1)<>"",OFFSET(DE104_9!$D$26,ROWS($D$26:D50)-1,COLUMNS($D$26:D50)-1),"") -> EBL | C37: =IF(OFFSET(DE104_9!$E$26,ROWS($E$26:E50)-1,COLUMNS($E$26:E50)-1)<>"",OFFSET(DE104_9!$E$26,ROWS($E$26:E50)-1,COLUMNS($E$26:E50)-1),"") -> 144000 | D37: =IF(OFFSET(DE104_9!$F$26,ROWS($F$26:F50)-1,COLUMNS($F$26:F50)-1)<>"",OFFSET(DE104_9!$F$26,ROWS($F$26:F50)-1,COLUMNS($F$26:F50)-1),"") -> 144500 | E37: =IF(OFFSET(DE104_9!$G$26,ROWS($G$26:G50)-1,COLUMNS($G$26:G50)-1)<>"",OFFSET(DE104_9!$G$26,ROWS($G$26:G50)-1,COLUMNS($G$26:G50)-1),"") -> RT | F37: =IF(OFFSET(DE104_9!$H$26,ROWS($H$26:H50)-1,COLUMNS($H$26:H50)-1)<>"",OFFSET(DE104_9!$H$26,ROWS($H$26:H50)-1,COLUMNS($H$26:H50)-1),"") -> 42 | G37: =IF(OFFSET(DE104_9!$I$26,ROWS($I$26:I50)-1,COLUMNS($I$26:I50)-1)<>"",OFFSET(DE104_9!$I$26,ROWS($I$26:I50)-1,COLUMNS($I$26:I50)-1),"") -> 4 | H37: =IF(OFFSET(DE104_9!$J$26,ROWS($J$26:J50)-1,COLUMNS($J$26:J50)-1)<>"",OFFSET(DE104_9!$J$26,ROWS($J$26:J50)-1,COLUMNS($J$26:J50)-1),"") -> 540 | I37: =IF(OFFSET(DE104_9!$K$26,ROWS($K$26:K50)-1,COLUMNS($K$26:K50)-1)<>"",OFFSET(DE104_9!$K$26,ROWS($K$26:K50)-1,COLUMNS($K$26:K50)-1),"") ->  | J37: =IF(OFFSET(DE104_9!$L$26,ROWS($L$26:L50)-1,COLUMNS($L$26:L50)-1)<>"",OFFSET(DE104_9!$L$26,ROWS($L$26:L50)-1,COLUMNS($L$26:L50)-1),"") ->  | K37: =IF(OFFSET(DE104_9!$M$26,ROWS($M$26:M50)-1,COLUMNS($M$26:M50)-1)<>"",OFFSET(DE104_9!$M$26,ROWS($M$26:M50)-1,COLUMNS($M$26:M50)-1),"") ->  | L37: =IF(OFFSET(DE104_9!$N$26,ROWS($N$26:N50)-1,COLUMNS($N$26:N50)-1)<>"",OFFSET(DE104_9!$N$26,ROWS($N$26:N50)-1,COLUMNS($N$26:N50)-1),"") ->  | M37: =IF(OFFSET(DE104_9!$O$26,ROWS($O$26:O50)-1,COLUMNS($O$26:O50)-1)<>"",OFFSET(DE104_9!$O$26,ROWS($O$26:O50)-1,COLUMNS($O$26:O50)-1),"") ->  | N37: =IF(OFFSET(DE104_9!$P$26,ROWS($P$26:P50)-1,COLUMNS($P$26:P50)-1)<>"",OFFSET(DE104_9!$P$26,ROWS($P$26:P50)-1,COLUMNS($P$26:P50)-1),"") -> 144000 | O37: =IF(OFFSET(DE104_9!$Q$26,ROWS($Q$26:Q50)-1,COLUMNS($Q$26:Q50)-1)<>"",OFFSET(DE104_9!$Q$26,ROWS($Q$26:Q50)-1,COLUMNS($Q$26:Q50)-1),"") -> DR-306 | P37: =IF(OFFSET(DE104_9!$R$26,ROWS($R$26:R50)-1,COLUMNS($R$26:R50)-1)<>"",OFFSET(DE104_9!$R$26,ROWS($R$26:R50)-1,COLUMNS($R$26:R50)-1),"") -> 50 | Q37: =IF(OFFSET(DE104_9!$S$26,ROWS($S$26:S50)-1,COLUMNS($S$26:S50)-1)<>"",OFFSET(DE104_9!$S$26,ROWS($S$26:S50)-1,COLUMNS($S$26:S50)-1),"") -> 0.4 | R37: =IF(OFFSET(DE104_9!$T$26,ROWS($T$26:T50)-1,COLUMNS($T$26:T50)-1)<>"",OFFSET(DE104_9!$T$26,ROWS($T$26:T50)-1,COLUMNS($T$26:T50)-1),"") -> 
A38: =IF(OFFSET(DE104_9!$C$26,ROWS($C$26:C51)-1,COLUMNS($C$26:C51)-1)<>"",OFFSET(DE104_9!$C$26,ROWS($C$26:C51)-1,COLUMNS($C$26:C51)-1),"") ->  | B38: =IF(OFFSET(DE104_9!$D$26,ROWS($D$26:D51)-1,COLUMNS($D$26:D51)-1)<>"",OFFSET(DE104_9!$D$26,ROWS($D$26:D51)-1,COLUMNS($D$26:D51)-1),"") ->  | C38: =IF(OFFSET(DE104_9!$E$26,ROWS($E$26:E51)-1,COLUMNS($E$26:E51)-1)<>"",OFFSET(DE104_9!$E$26,ROWS($E$26:E51)-1,COLUMNS($E$26:E51)-1),"") ->  | D38: =IF(OFFSET(DE104_9!$F$26,ROWS($F$26:F51)-1,COLUMNS($F$26:F51)-1)<>"",OFFSET(DE104_9!$F$26,ROWS($F$26:F51)-1,COLUMNS($F$26:F51)-1),"") ->  | E38: =IF(OFFSET(DE104_9!$G$26,ROWS($G$26:G51)-1,COLUMNS($G$26:G51)-1)<>"",OFFSET(DE104_9!$G$26,ROWS($G$26:G51)-1,COLUMNS($G$26:G51)-1),"") ->  | F38: =IF(OFFSET(DE104_9!$H$26,ROWS($H$26:H51)-1,COLUMNS($H$26:H51)-1)<>"",OFFSET(DE104_9!$H$26,ROWS($H$26:H51)-1,COLUMNS($H$26:H51)-1),"") ->  | G38: =IF(OFFSET(DE104_9!$I$26,ROWS($I$26:I51)-1,COLUMNS($I$26:I51)-1)<>"",OFFSET(DE104_9!$I$26,ROWS($I$26:I51)-1,COLUMNS($I$26:I51)-1),"") ->  | H38: =IF(OFFSET(DE104_9!$J$26,ROWS($J$26:J51)-1,COLUMNS($J$26:J51)-1)<>"",OFFSET(DE104_9!$J$26,ROWS($J$26:J51)-1,COLUMNS($J$26:J51)-1),"") ->  | I38: =IF(OFFSET(DE104_9!$K$26,ROWS($K$26:K51)-1,COLUMNS($K$26:K51)-1)<>"",OFFSET(DE104_9!$K$26,ROWS($K$26:K51)-1,COLUMNS($K$26:K51)-1),"") ->  | J38: =IF(OFFSET(DE104_9!$L$26,ROWS($L$26:L51)-1,COLUMNS($L$26:L51)-1)<>"",OFFSET(DE104_9!$L$26,ROWS($L$26:L51)-1,COLUMNS($L$26:L51)-1),"") ->  | K38: =IF(OFFSET(DE104_9!$M$26,ROWS($M$26:M51)-1,COLUMNS($M$26:M51)-1)<>"",OFFSET(DE104_9!$M$26,ROWS($M$26:M51)-1,COLUMNS($M$26:M51)-1),"") ->  | L38: =IF(OFFSET(DE104_9!$N$26,ROWS($N$26:N51)-1,COLUMNS($N$26:N51)-1)<>"",OFFSET(DE104_9!$N$26,ROWS($N$26:N51)-1,COLUMNS($N$26:N51)-1),"") ->  | M38: =IF(OFFSET(DE104_9!$O$26,ROWS($O$26:O51)-1,COLUMNS($O$26:O51)-1)<>"",OFFSET(DE104_9!$O$26,ROWS($O$26:O51)-1,COLUMNS($O$26:O51)-1),"") ->  | N38: =IF(OFFSET(DE104_9!$P$26,ROWS($P$26:P51)-1,COLUMNS($P$26:P51)-1)<>"",OFFSET(DE104_9!$P$26,ROWS($P$26:P51)-1,COLUMNS($P$26:P51)-1),"") -> 144500 | O38: =IF(OFFSET(DE104_9!$Q$26,ROWS($Q$26:Q51)-1,COLUMNS($Q$26:Q51)-1)<>"",OFFSET(DE104_9!$Q$26,ROWS($Q$26:Q51)-1,COLUMNS($Q$26:Q51)-1),"") -> DR-306 | P38: =IF(OFFSET(DE104_9!$R$26,ROWS($R$26:R51)-1,COLUMNS($R$26:R51)-1)<>"",OFFSET(DE104_9!$R$26,ROWS($R$26:R51)-1,COLUMNS($R$26:R51)-1),"") ->  | Q38: =IF(OFFSET(DE104_9!$S$26,ROWS($S$26:S51)-1,COLUMNS($S$26:S51)-1)<>"",OFFSET(DE104_9!$S$26,ROWS($S$26:S51)-1,COLUMNS($S$26:S51)-1),"") -> 0.4 | R38: =IF(OFFSET(DE104_9!$T$26,ROWS($T$26:T51)-1,COLUMNS($T$26:T51)-1)<>"",OFFSET(DE104_9!$T$26,ROWS($T$26:T51)-1,COLUMNS($T$26:T51)-1),"") -> 
A39: =IF(OFFSET(DE104_9!$C$26,ROWS($C$26:C52)-1,COLUMNS($C$26:C52)-1)<>"",OFFSET(DE104_9!$C$26,ROWS($C$26:C52)-1,COLUMNS($C$26:C52)-1),"") -> 14 | B39: =IF(OFFSET(DE104_9!$D$26,ROWS($D$26:D52)-1,COLUMNS($D$26:D52)-1)<>"",OFFSET(DE104_9!$D$26,ROWS($D$26:D52)-1,COLUMNS($D$26:D52)-1),"") -> EBL | C39: =IF(OFFSET(DE104_9!$E$26,ROWS($E$26:E52)-1,COLUMNS($E$26:E52)-1)<>"",OFFSET(DE104_9!$E$26,ROWS($E$26:E52)-1,COLUMNS($E$26:E52)-1),"") -> 144500 | D39: =IF(OFFSET(DE104_9!$F$26,ROWS($F$26:F52)-1,COLUMNS($F$26:F52)-1)<>"",OFFSET(DE104_9!$F$26,ROWS($F$26:F52)-1,COLUMNS($F$26:F52)-1),"") -> 145000 | E39: =IF(OFFSET(DE104_9!$G$26,ROWS($G$26:G52)-1,COLUMNS($G$26:G52)-1)<>"",OFFSET(DE104_9!$G$26,ROWS($G$26:G52)-1,COLUMNS($G$26:G52)-1),"") -> RT | F39: =IF(OFFSET(DE104_9!$H$26,ROWS($H$26:H52)-1,COLUMNS($H$26:H52)-1)<>"",OFFSET(DE104_9!$H$26,ROWS($H$26:H52)-1,COLUMNS($H$26:H52)-1),"") -> 42 | G39: =IF(OFFSET(DE104_9!$I$26,ROWS($I$26:I52)-1,COLUMNS($I$26:I52)-1)<>"",OFFSET(DE104_9!$I$26,ROWS($I$26:I52)-1,COLUMNS($I$26:I52)-1),"") -> 4 | H39: =IF(OFFSET(DE104_9!$J$26,ROWS($J$26:J52)-1,COLUMNS($J$26:J52)-1)<>"",OFFSET(DE104_9!$J$26,ROWS($J$26:J52)-1,COLUMNS($J$26:J52)-1),"") -> 540 | I39: =IF(OFFSET(DE104_9!$K$26,ROWS($K$26:K52)-1,COLUMNS($K$26:K52)-1)<>"",OFFSET(DE104_9!$K$26,ROWS($K$26:K52)-1,COLUMNS($K$26:K52)-1),"") ->  | J39: =IF(OFFSET(DE104_9!$L$26,ROWS($L$26:L52)-1,COLUMNS($L$26:L52)-1)<>"",OFFSET(DE104_9!$L$26,ROWS($L$26:L52)-1,COLUMNS($L$26:L52)-1),"") ->  | K39: =IF(OFFSET(DE104_9!$M$26,ROWS($M$26:M52)-1,COLUMNS($M$26:M52)-1)<>"",OFFSET(DE104_9!$M$26,ROWS($M$26:M52)-1,COLUMNS($M$26:M52)-1),"") ->  | L39: =IF(OFFSET(DE104_9!$N$26,ROWS($N$26:N52)-1,COLUMNS($N$26:N52)-1)<>"",OFFSET(DE104_9!$N$26,ROWS($N$26:N52)-1,COLUMNS($N$26:N52)-1),"") ->  | M39: =IF(OFFSET(DE104_9!$O$26,ROWS($O$26:O52)-1,COLUMNS($O$26:O52)-1)<>"",OFFSET(DE104_9!$O$26,ROWS($O$26:O52)-1,COLUMNS($O$26:O52)-1),"") ->  | N39: =IF(OFFSET(DE104_9!$P$26,ROWS($P$26:P52)-1,COLUMNS($P$26:P52)-1)<>"",OFFSET(DE104_9!$P$26,ROWS($P$26:P52)-1,COLUMNS($P$26:P52)-1),"") -> 144500 | O39: =IF(OFFSET(DE104_9!$Q$26,ROWS($Q$26:Q52)-1,COLUMNS($Q$26:Q52)-1)<>"",OFFSET(DE104_9!$Q$26,ROWS($Q$26:Q52)-1,COLUMNS($Q$26:Q52)-1),"") -> DR-306 | P39: =IF(OFFSET(DE104_9!$R$26,ROWS($R$26:R52)-1,COLUMNS($R$26:R52)-1)<>"",OFFSET(DE104_9!$R$26,ROWS($R$26:R52)-1,COLUMNS($R$26:R52)-1),"") -> 50 | Q39: =IF(OFFSET(DE104_9!$S$26,ROWS($S$26:S52)-1,COLUMNS($S$26:S52)-1)<>"",OFFSET(DE104_9!$S$26,ROWS($S$26:S52)-1,COLUMNS($S$26:S52)-1),"") -> 0.4 | R39: =IF(OFFSET(DE104_9!$T$26,ROWS($T$26:T52)-1,COLUMNS($T$26:T52)-1)<>"",OFFSET(DE104_9!$T$26,ROWS($T$26:T52)-1,COLUMNS($T$26:T52)-1),"") -> 
A40: =IF(OFFSET(DE104_9!$C$26,ROWS($C$26:C53)-1,COLUMNS($C$26:C53)-1)<>"",OFFSET(DE104_9!$C$26,ROWS($C$26:C53)-1,COLUMNS($C$26:C53)-1),"") ->  | B40: =IF(OFFSET(DE104_9!$D$26,ROWS($D$26:D53)-1,COLUMNS($D$26:D53)-1)<>"",OFFSET(DE104_9!$D$26,ROWS($D$26:D53)-1,COLUMNS($D$26:D53)-1),"") ->  | C40: =IF(OFFSET(DE104_9!$E$26,ROWS($E$26:E53)-1,COLUMNS($E$26:E53)-1)<>"",OFFSET(DE104_9!$E$26,ROWS($E$26:E53)-1,COLUMNS($E$26:E53)-1),"") ->  | D40: =IF(OFFSET(DE104_9!$F$26,ROWS($F$26:F53)-1,COLUMNS($F$26:F53)-1)<>"",OFFSET(DE104_9!$F$26,ROWS($F$26:F53)-1,COLUMNS($F$26:F53)-1),"") ->  | E40: =IF(OFFSET(DE104_9!$G$26,ROWS($G$26:G53)-1,COLUMNS($G$26:G53)-1)<>"",OFFSET(DE104_9!$G$26,ROWS($G$26:G53)-1,COLUMNS($G$26:G53)-1),"") ->  | F40: =IF(OFFSET(DE104_9!$H$26,ROWS($H$26:H53)-1,COLUMNS($H$26:H53)-1)<>"",OFFSET(DE104_9!$H$26,ROWS($H$26:H53)-1,COLUMNS($H$26:H53)-1),"") ->  | G40: =IF(OFFSET(DE104_9!$I$26,ROWS($I$26:I53)-1,COLUMNS($I$26:I53)-1)<>"",OFFSET(DE104_9!$I$26,ROWS($I$26:I53)-1,COLUMNS($I$26:I53)-1),"") ->  | H40: =IF(OFFSET(DE104_9!$J$26,ROWS($J$26:J53)-1,COLUMNS($J$26:J53)-1)<>"",OFFSET(DE104_9!$J$26,ROWS($J$26:J53)-1,COLUMNS($J$26:J53)-1),"") ->  | I40: =IF(OFFSET(DE104_9!$K$26,ROWS($K$26:K53)-1,COLUMNS($K$26:K53)-1)<>"",OFFSET(DE104_9!$K$26,ROWS($K$26:K53)-1,COLUMNS($K$26:K53)-1),"") ->  | J40: =IF(OFFSET(DE104_9!$L$26,ROWS($L$26:L53)-1,COLUMNS($L$26:L53)-1)<>"",OFFSET(DE104_9!$L$26,ROWS($L$26:L53)-1,COLUMNS($L$26:L53)-1),"") ->  | K40: =IF(OFFSET(DE104_9!$M$26,ROWS($M$26:M53)-1,COLUMNS($M$26:M53)-1)<>"",OFFSET(DE104_9!$M$26,ROWS($M$26:M53)-1,COLUMNS($M$26:M53)-1),"") ->  | L40: =IF(OFFSET(DE104_9!$N$26,ROWS($N$26:N53)-1,COLUMNS($N$26:N53)-1)<>"",OFFSET(DE104_9!$N$26,ROWS($N$26:N53)-1,COLUMNS($N$26:N53)-1),"") ->  | M40: =IF(OFFSET(DE104_9!$O$26,ROWS($O$26:O53)-1,COLUMNS($O$26:O53)-1)<>"",OFFSET(DE104_9!$O$26,ROWS($O$26:O53)-1,COLUMNS($O$26:O53)-1),"") ->  | N40: =IF(OFFSET(DE104_9!$P$26,ROWS($P$26:P53)-1,COLUMNS($P$26:P53)-1)<>"",OFFSET(DE104_9!$P$26,ROWS($P$26:P53)-1,COLUMNS($P$26:P53)-1),"") -> 145000 | O40: =IF(OFFSET(DE104_9!$Q$26,ROWS($Q$26:Q53)-1,COLUMNS($Q$26:Q53)-1)<>"",OFFSET(DE104_9!$Q$26,ROWS($Q$26:Q53)-1,COLUMNS($Q$26:Q53)-1),"") -> DR-306 | P40: =IF(OFFSET(DE104_9!$R$26,ROWS($R$26:R53)-1,COLUMNS($R$26:R53)-1)<>"",OFFSET(DE104_9!$R$26,ROWS($R$26:R53)-1,COLUMNS($R$26:R53)-1),"") ->  | Q40: =IF(OFFSET(DE104_9!$S$26,ROWS($S$26:S53)-1,COLUMNS($S$26:S53)-1)<>"",OFFSET(DE104_9!$S$26,ROWS($S$26:S53)-1,COLUMNS($S$26:S53)-1),"") -> 0.4 | R40: =IF(OFFSET(DE104_9!$T$26,ROWS($T$26:T53)-1,COLUMNS($T$26:T53)-1)<>"",OFFSET(DE104_9!$T$26,ROWS($T$26:T53)-1,COLUMNS($T$26:T53)-1),"") -> 
A41: =IF(OFFSET(DE104_9!$C$26,ROWS($C$26:C54)-1,COLUMNS($C$26:C54)-1)<>"",OFFSET(DE104_9!$C$26,ROWS($C$26:C54)-1,COLUMNS($C$26:C54)-1),"") -> 15 | B41: =IF(OFFSET(DE104_9!$D$26,ROWS($D$26:D54)-1,COLUMNS($D$26:D54)-1)<>"",OFFSET(DE104_9!$D$26,ROWS($D$26:D54)-1,COLUMNS($D$26:D54)-1),"") -> EBL | C41: =IF(OFFSET(DE104_9!$E$26,ROWS($E$26:E54)-1,COLUMNS($E$26:E54)-1)<>"",OFFSET(DE104_9!$E$26,ROWS($E$26:E54)-1,COLUMNS($E$26:E54)-1),"") -> 145000 | D41: =IF(OFFSET(DE104_9!$F$26,ROWS($F$26:F54)-1,COLUMNS($F$26:F54)-1)<>"",OFFSET(DE104_9!$F$26,ROWS($F$26:F54)-1,COLUMNS($F$26:F54)-1),"") -> 145500 | E41: =IF(OFFSET(DE104_9!$G$26,ROWS($G$26:G54)-1,COLUMNS($G$26:G54)-1)<>"",OFFSET(DE104_9!$G$26,ROWS($G$26:G54)-1,COLUMNS($G$26:G54)-1),"") -> RT | F41: =IF(OFFSET(DE104_9!$H$26,ROWS($H$26:H54)-1,COLUMNS($H$26:H54)-1)<>"",OFFSET(DE104_9!$H$26,ROWS($H$26:H54)-1,COLUMNS($H$26:H54)-1),"") -> 42 | G41: =IF(OFFSET(DE104_9!$I$26,ROWS($I$26:I54)-1,COLUMNS($I$26:I54)-1)<>"",OFFSET(DE104_9!$I$26,ROWS($I$26:I54)-1,COLUMNS($I$26:I54)-1),"") -> 4 | H41: =IF(OFFSET(DE104_9!$J$26,ROWS($J$26:J54)-1,COLUMNS($J$26:J54)-1)<>"",OFFSET(DE104_9!$J$26,ROWS($J$26:J54)-1,COLUMNS($J$26:J54)-1),"") -> 540 | I41: =IF(OFFSET(DE104_9!$K$26,ROWS($K$26:K54)-1,COLUMNS($K$26:K54)-1)<>"",OFFSET(DE104_9!$K$26,ROWS($K$26:K54)-1,COLUMNS($K$26:K54)-1),"") ->  | J41: =IF(OFFSET(DE104_9!$L$26,ROWS($L$26:L54)-1,COLUMNS($L$26:L54)-1)<>"",OFFSET(DE104_9!$L$26,ROWS($L$26:L54)-1,COLUMNS($L$26:L54)-1),"") ->  | K41: =IF(OFFSET(DE104_9!$M$26,ROWS($M$26:M54)-1,COLUMNS($M$26:M54)-1)<>"",OFFSET(DE104_9!$M$26,ROWS($M$26:M54)-1,COLUMNS($M$26:M54)-1),"") ->  | L41: =IF(OFFSET(DE104_9!$N$26,ROWS($N$26:N54)-1,COLUMNS($N$26:N54)-1)<>"",OFFSET(DE104_9!$N$26,ROWS($N$26:N54)-1,COLUMNS($N$26:N54)-1),"") ->  | M41: =IF(OFFSET(DE104_9!$O$26,ROWS($O$26:O54)-1,COLUMNS($O$26:O54)-1)<>"",OFFSET(DE104_9!$O$26,ROWS($O$26:O54)-1,COLUMNS($O$26:O54)-1),"") ->  | N41: =IF(OFFSET(DE104_9!$P$26,ROWS($P$26:P54)-1,COLUMNS($P$26:P54)-1)<>"",OFFSET(DE104_9!$P$26,ROWS($P$26:P54)-1,COLUMNS($P$26:P54)-1),"") -> 145000 | O41: =IF(OFFSET(DE104_9!$Q$26,ROWS($Q$26:Q54)-1,COLUMNS($Q$26:Q54)-1)<>"",OFFSET(DE104_9!$Q$26,ROWS($Q$26:Q54)-1,COLUMNS($Q$26:Q54)-1),"") -> DR-306 | P41: =IF(OFFSET(DE104_9!$R$26,ROWS($R$26:R54)-1,COLUMNS($R$26:R54)-1)<>"",OFFSET(DE104_9!$R$26,ROWS($R$26:R54)-1,COLUMNS($R$26:R54)-1),"") -> 50 | Q41: =IF(OFFSET(DE104_9!$S$26,ROWS($S$26:S54)-1,COLUMNS($S$26:S54)-1)<>"",OFFSET(DE104_9!$S$26,ROWS($S$26:S54)-1,COLUMNS($S$26:S54)-1),"") -> 0.4 | R41: =IF(OFFSET(DE104_9!$T$26,ROWS($T$26:T54)-1,COLUMNS($T$26:T54)-1)<>"",OFFSET(DE104_9!$T$26,ROWS($T$26:T54)-1,COLUMNS($T$26:T54)-1),"") -> 
A42: =IF(OFFSET(DE104_9!$C$26,ROWS($C$26:C55)-1,COLUMNS($C$26:C55)-1)<>"",OFFSET(DE104_9!$C$26,ROWS($C$26:C55)-1,COLUMNS($C$26:C55)-1),"") ->  | B42: =IF(OFFSET(DE104_9!$D$26,ROWS($D$26:D55)-1,COLUMNS($D$26:D55)-1)<>"",OFFSET(DE104_9!$D$26,ROWS($D$26:D55)-1,COLUMNS($D$26:D55)-1),"") ->  | C42: =IF(OFFSET(DE104_9!$E$26,ROWS($E$26:E55)-1,COLUMNS($E$26:E55)-1)<>"",OFFSET(DE104_9!$E$26,ROWS($E$26:E55)-1,COLUMNS($E$26:E55)-1),"") ->  | D42: =IF(OFFSET(DE104_9!$F$26,ROWS($F$26:F55)-1,COLUMNS($F$26:F55)-1)<>"",OFFSET(DE104_9!$F$26,ROWS($F$26:F55)-1,COLUMNS($F$26:F55)-1),"") ->  | E42: =IF(OFFSET(DE104_9!$G$26,ROWS($G$26:G55)-1,COLUMNS($G$26:G55)-1)<>"",OFFSET(DE104_9!$G$26,ROWS($G$26:G55)-1,COLUMNS($G$26:G55)-1),"") ->  | F42: =IF(OFFSET(DE104_9!$H$26,ROWS($H$26:H55)-1,COLUMNS($H$26:H55)-1)<>"",OFFSET(DE104_9!$H$26,ROWS($H$26:H55)-1,COLUMNS($H$26:H55)-1),"") ->  | G42: =IF(OFFSET(DE104_9!$I$26,ROWS($I$26:I55)-1,COLUMNS($I$26:I55)-1)<>"",OFFSET(DE104_9!$I$26,ROWS($I$26:I55)-1,COLUMNS($I$26:I55)-1),"") ->  | H42: =IF(OFFSET(DE104_9!$J$26,ROWS($J$26:J55)-1,COLUMNS($J$26:J55)-1)<>"",OFFSET(DE104_9!$J$26,ROWS($J$26:J55)-1,COLUMNS($J$26:J55)-1),"") ->  | I42: =IF(OFFSET(DE104_9!$K$26,ROWS($K$26:K55)-1,COLUMNS($K$26:K55)-1)<>"",OFFSET(DE104_9!$K$26,ROWS($K$26:K55)-1,COLUMNS($K$26:K55)-1),"") ->  | J42: =IF(OFFSET(DE104_9!$L$26,ROWS($L$26:L55)-1,COLUMNS($L$26:L55)-1)<>"",OFFSET(DE104_9!$L$26,ROWS($L$26:L55)-1,COLUMNS($L$26:L55)-1),"") ->  | K42: =IF(OFFSET(DE104_9!$M$26,ROWS($M$26:M55)-1,COLUMNS($M$26:M55)-1)<>"",OFFSET(DE104_9!$M$26,ROWS($M$26:M55)-1,COLUMNS($M$26:M55)-1),"") ->  | L42: =IF(OFFSET(DE104_9!$N$26,ROWS($N$26:N55)-1,COLUMNS($N$26:N55)-1)<>"",OFFSET(DE104_9!$N$26,ROWS($N$26:N55)-1,COLUMNS($N$26:N55)-1),"") ->  | M42: =IF(OFFSET(DE104_9!$O$26,ROWS($O$26:O55)-1,COLUMNS($O$26:O55)-1)<>"",OFFSET(DE104_9!$O$26,ROWS($O$26:O55)-1,COLUMNS($O$26:O55)-1),"") ->  | N42: =IF(OFFSET(DE104_9!$P$26,ROWS($P$26:P55)-1,COLUMNS($P$26:P55)-1)<>"",OFFSET(DE104_9!$P$26,ROWS($P$26:P55)-1,COLUMNS($P$26:P55)-1),"") -> 145500 | O42: =IF(OFFSET(DE104_9!$Q$26,ROWS($Q$26:Q55)-1,COLUMNS($Q$26:Q55)-1)<>"",OFFSET(DE104_9!$Q$26,ROWS($Q$26:Q55)-1,COLUMNS($Q$26:Q55)-1),"") -> DR-306 | P42: =IF(OFFSET(DE104_9!$R$26,ROWS($R$26:R55)-1,COLUMNS($R$26:R55)-1)<>"",OFFSET(DE104_9!$R$26,ROWS($R$26:R55)-1,COLUMNS($R$26:R55)-1),"") ->  | Q42: =IF(OFFSET(DE104_9!$S$26,ROWS($S$26:S55)-1,COLUMNS($S$26:S55)-1)<>"",OFFSET(DE104_9!$S$26,ROWS($S$26:S55)-1,COLUMNS($S$26:S55)-1),"") -> 0.4 | R42: =IF(OFFSET(DE104_9!$T$26,ROWS($T$26:T55)-1,COLUMNS($T$26:T55)-1)<>"",OFFSET(DE104_9!$T$26,ROWS($T$26:T55)-1,COLUMNS($T$26:T55)-1),"") -> 
A43: =IF(OFFSET(DE104_9!$C$26,ROWS($C$26:C56)-1,COLUMNS($C$26:C56)-1)<>"",OFFSET(DE104_9!$C$26,ROWS($C$26:C56)-1,COLUMNS($C$26:C56)-1),"") -> 16 | B43: =IF(OFFSET(DE104_9!$D$26,ROWS($D$26:D56)-1,COLUMNS($D$26:D56)-1)<>"",OFFSET(DE104_9!$D$26,ROWS($D$26:D56)-1,COLUMNS($D$26:D56)-1),"") -> EBL | C43: =IF(OFFSET(DE104_9!$E$26,ROWS($E$26:E56)-1,COLUMNS($E$26:E56)-1)<>"",OFFSET(DE104_9!$E$26,ROWS($E$26:E56)-1,COLUMNS($E$26:E56)-1),"") -> 145500 | D43: =IF(OFFSET(DE104_9!$F$26,ROWS($F$26:F56)-1,COLUMNS($F$26:F56)-1)<>"",OFFSET(DE104_9!$F$26,ROWS($F$26:F56)-1,COLUMNS($F$26:F56)-1),"") -> 146000 | E43: =IF(OFFSET(DE104_9!$G$26,ROWS($G$26:G56)-1,COLUMNS($G$26:G56)-1)<>"",OFFSET(DE104_9!$G$26,ROWS($G$26:G56)-1,COLUMNS($G$26:G56)-1),"") -> RT | F43: =IF(OFFSET(DE104_9!$H$26,ROWS($H$26:H56)-1,COLUMNS($H$26:H56)-1)<>"",OFFSET(DE104_9!$H$26,ROWS($H$26:H56)-1,COLUMNS($H$26:H56)-1),"") -> 42 | G43: =IF(OFFSET(DE104_9!$I$26,ROWS($I$26:I56)-1,COLUMNS($I$26:I56)-1)<>"",OFFSET(DE104_9!$I$26,ROWS($I$26:I56)-1,COLUMNS($I$26:I56)-1),"") -> 4 | H43: =IF(OFFSET(DE104_9!$J$26,ROWS($J$26:J56)-1,COLUMNS($J$26:J56)-1)<>"",OFFSET(DE104_9!$J$26,ROWS($J$26:J56)-1,COLUMNS($J$26:J56)-1),"") -> 540 | I43: =IF(OFFSET(DE104_9!$K$26,ROWS($K$26:K56)-1,COLUMNS($K$26:K56)-1)<>"",OFFSET(DE104_9!$K$26,ROWS($K$26:K56)-1,COLUMNS($K$26:K56)-1),"") ->  | J43: =IF(OFFSET(DE104_9!$L$26,ROWS($L$26:L56)-1,COLUMNS($L$26:L56)-1)<>"",OFFSET(DE104_9!$L$26,ROWS($L$26:L56)-1,COLUMNS($L$26:L56)-1),"") ->  | K43: =IF(OFFSET(DE104_9!$M$26,ROWS($M$26:M56)-1,COLUMNS($M$26:M56)-1)<>"",OFFSET(DE104_9!$M$26,ROWS($M$26:M56)-1,COLUMNS($M$26:M56)-1),"") ->  | L43: =IF(OFFSET(DE104_9!$N$26,ROWS($N$26:N56)-1,COLUMNS($N$26:N56)-1)<>"",OFFSET(DE104_9!$N$26,ROWS($N$26:N56)-1,COLUMNS($N$26:N56)-1),"") ->  | M43: =IF(OFFSET(DE104_9!$O$26,ROWS($O$26:O56)-1,COLUMNS($O$26:O56)-1)<>"",OFFSET(DE104_9!$O$26,ROWS($O$26:O56)-1,COLUMNS($O$26:O56)-1),"") ->  | N43: =IF(OFFSET(DE104_9!$P$26,ROWS($P$26:P56)-1,COLUMNS($P$26:P56)-1)<>"",OFFSET(DE104_9!$P$26,ROWS($P$26:P56)-1,COLUMNS($P$26:P56)-1),"") -> 145500 | O43: =IF(OFFSET(DE104_9!$Q$26,ROWS($Q$26:Q56)-1,COLUMNS($Q$26:Q56)-1)<>"",OFFSET(DE104_9!$Q$26,ROWS($Q$26:Q56)-1,COLUMNS($Q$26:Q56)-1),"") -> DR-306 | P43: =IF(OFFSET(DE104_9!$R$26,ROWS($R$26:R56)-1,COLUMNS($R$26:R56)-1)<>"",OFFSET(DE104_9!$R$26,ROWS($R$26:R56)-1,COLUMNS($R$26:R56)-1),"") -> 50 | Q43: =IF(OFFSET(DE104_9!$S$26,ROWS($S$26:S56)-1,COLUMNS($S$26:S56)-1)<>"",OFFSET(DE104_9!$S$26,ROWS($S$26:S56)-1,COLUMNS($S$26:S56)-1),"") -> 0.4 | R43: =IF(OFFSET(DE104_9!$T$26,ROWS($T$26:T56)-1,COLUMNS($T$26:T56)-1)<>"",OFFSET(DE104_9!$T$26,ROWS($T$26:T56)-1,COLUMNS($T$26:T56)-1),"") -> 
A44: =IF(OFFSET(DE104_9!$C$26,ROWS($C$26:C57)-1,COLUMNS($C$26:C57)-1)<>"",OFFSET(DE104_9!$C$26,ROWS($C$26:C57)-1,COLUMNS($C$26:C57)-1),"") ->  | B44: =IF(OFFSET(DE104_9!$D$26,ROWS($D$26:D57)-1,COLUMNS($D$26:D57)-1)<>"",OFFSET(DE104_9!$D$26,ROWS($D$26:D57)-1,COLUMNS($D$26:D57)-1),"") ->  | C44: =IF(OFFSET(DE104_9!$E$26,ROWS($E$26:E57)-1,COLUMNS($E$26:E57)-1)<>"",OFFSET(DE104_9!$E$26,ROWS($E$26:E57)-1,COLUMNS($E$26:E57)-1),"") ->  | D44: =IF(OFFSET(DE104_9!$F$26,ROWS($F$26:F57)-1,COLUMNS($F$26:F57)-1)<>"",OFFSET(DE104_9!$F$26,ROWS($F$26:F57)-1,COLUMNS($F$26:F57)-1),"") ->  | E44: =IF(OFFSET(DE104_9!$G$26,ROWS($G$26:G57)-1,COLUMNS($G$26:G57)-1)<>"",OFFSET(DE104_9!$G$26,ROWS($G$26:G57)-1,COLUMNS($G$26:G57)-1),"") ->  | F44: =IF(OFFSET(DE104_9!$H$26,ROWS($H$26:H57)-1,COLUMNS($H$26:H57)-1)<>"",OFFSET(DE104_9!$H$26,ROWS($H$26:H57)-1,COLUMNS($H$26:H57)-1),"") ->  | G44: =IF(OFFSET(DE104_9!$I$26,ROWS($I$26:I57)-1,COLUMNS($I$26:I57)-1)<>"",OFFSET(DE104_9!$I$26,ROWS($I$26:I57)-1,COLUMNS($I$26:I57)-1),"") ->  | H44: =IF(OFFSET(DE104_9!$J$26,ROWS($J$26:J57)-1,COLUMNS($J$26:J57)-1)<>"",OFFSET(DE104_9!$J$26,ROWS($J$26:J57)-1,COLUMNS($J$26:J57)-1),"") ->  | I44: =IF(OFFSET(DE104_9!$K$26,ROWS($K$26:K57)-1,COLUMNS($K$26:K57)-1)<>"",OFFSET(DE104_9!$K$26,ROWS($K$26:K57)-1,COLUMNS($K$26:K57)-1),"") ->  | J44: =IF(OFFSET(DE104_9!$L$26,ROWS($L$26:L57)-1,COLUMNS($L$26:L57)-1)<>"",OFFSET(DE104_9!$L$26,ROWS($L$26:L57)-1,COLUMNS($L$26:L57)-1),"") ->  | K44: =IF(OFFSET(DE104_9!$M$26,ROWS($M$26:M57)-1,COLUMNS($M$26:M57)-1)<>"",OFFSET(DE104_9!$M$26,ROWS($M$26:M57)-1,COLUMNS($M$26:M57)-1),"") ->  | L44: =IF(OFFSET(DE104_9!$N$26,ROWS($N$26:N57)-1,COLUMNS($N$26:N57)-1)<>"",OFFSET(DE104_9!$N$26,ROWS($N$26:N57)-1,COLUMNS($N$26:N57)-1),"") ->  | M44: =IF(OFFSET(DE104_9!$O$26,ROWS($O$26:O57)-1,COLUMNS($O$26:O57)-1)<>"",OFFSET(DE104_9!$O$26,ROWS($O$26:O57)-1,COLUMNS($O$26:O57)-1),"") ->  | N44: =IF(OFFSET(DE104_9!$P$26,ROWS($P$26:P57)-1,COLUMNS($P$26:P57)-1)<>"",OFFSET(DE104_9!$P$26,ROWS($P$26:P57)-1,COLUMNS($P$26:P57)-1),"") -> 146000 | O44: =IF(OFFSET(DE104_9!$Q$26,ROWS($Q$26:Q57)-1,COLUMNS($Q$26:Q57)-1)<>"",OFFSET(DE104_9!$Q$26,ROWS($Q$26:Q57)-1,COLUMNS($Q$26:Q57)-1),"") -> DR-306 | P44: =IF(OFFSET(DE104_9!$R$26,ROWS($R$26:R57)-1,COLUMNS($R$26:R57)-1)<>"",OFFSET(DE104_9!$R$26,ROWS($R$26:R57)-1,COLUMNS($R$26:R57)-1),"") ->  | Q44: =IF(OFFSET(DE104_9!$S$26,ROWS($S$26:S57)-1,COLUMNS($S$26:S57)-1)<>"",OFFSET(DE104_9!$S$26,ROWS($S$26:S57)-1,COLUMNS($S$26:S57)-1),"") -> 0.4 | R44: =IF(OFFSET(DE104_9!$T$26,ROWS($T$26:T57)-1,COLUMNS($T$26:T57)-1)<>"",OFFSET(DE104_9!$T$26,ROWS($T$26:T57)-1,COLUMNS($T$26:T57)-1),"") -> 
A45: =IF(OFFSET(DE104_9!$C$26,ROWS($C$26:C58)-1,COLUMNS($C$26:C58)-1)<>"",OFFSET(DE104_9!$C$26,ROWS($C$26:C58)-1,COLUMNS($C$26:C58)-1),"") -> 17 | B45: =IF(OFFSET(DE104_9!$D$26,ROWS($D$26:D58)-1,COLUMNS($D$26:D58)-1)<>"",OFFSET(DE104_9!$D$26,ROWS($D$26:D58)-1,COLUMNS($D$26:D58)-1),"") -> EBL | C45: =IF(OFFSET(DE104_9!$E$26,ROWS($E$26:E58)-1,COLUMNS($E$26:E58)-1)<>"",OFFSET(DE104_9!$E$26,ROWS($E$26:E58)-1,COLUMNS($E$26:E58)-1),"") -> 146000 | D45: =IF(OFFSET(DE104_9!$F$26,ROWS($F$26:F58)-1,COLUMNS($F$26:F58)-1)<>"",OFFSET(DE104_9!$F$26,ROWS($F$26:F58)-1,COLUMNS($F$26:F58)-1),"") -> 146520 | E45: =IF(OFFSET(DE104_9!$G$26,ROWS($G$26:G58)-1,COLUMNS($G$26:G58)-1)<>"",OFFSET(DE104_9!$G$26,ROWS($G$26:G58)-1,COLUMNS($G$26:G58)-1),"") -> RT | F45: =IF(OFFSET(DE104_9!$H$26,ROWS($H$26:H58)-1,COLUMNS($H$26:H58)-1)<>"",OFFSET(DE104_9!$H$26,ROWS($H$26:H58)-1,COLUMNS($H$26:H58)-1),"") -> 42 | G45: =IF(OFFSET(DE104_9!$I$26,ROWS($I$26:I58)-1,COLUMNS($I$26:I58)-1)<>"",OFFSET(DE104_9!$I$26,ROWS($I$26:I58)-1,COLUMNS($I$26:I58)-1),"") -> 4 | H45: =IF(OFFSET(DE104_9!$J$26,ROWS($J$26:J58)-1,COLUMNS($J$26:J58)-1)<>"",OFFSET(DE104_9!$J$26,ROWS($J$26:J58)-1,COLUMNS($J$26:J58)-1),"") -> 560 | I45: =IF(OFFSET(DE104_9!$K$26,ROWS($K$26:K58)-1,COLUMNS($K$26:K58)-1)<>"",OFFSET(DE104_9!$K$26,ROWS($K$26:K58)-1,COLUMNS($K$26:K58)-1),"") ->  | J45: =IF(OFFSET(DE104_9!$L$26,ROWS($L$26:L58)-1,COLUMNS($L$26:L58)-1)<>"",OFFSET(DE104_9!$L$26,ROWS($L$26:L58)-1,COLUMNS($L$26:L58)-1),"") ->  | K45: =IF(OFFSET(DE104_9!$M$26,ROWS($M$26:M58)-1,COLUMNS($M$26:M58)-1)<>"",OFFSET(DE104_9!$M$26,ROWS($M$26:M58)-1,COLUMNS($M$26:M58)-1),"") ->  | L45: =IF(OFFSET(DE104_9!$N$26,ROWS($N$26:N58)-1,COLUMNS($N$26:N58)-1)<>"",OFFSET(DE104_9!$N$26,ROWS($N$26:N58)-1,COLUMNS($N$26:N58)-1),"") ->  | M45: =IF(OFFSET(DE104_9!$O$26,ROWS($O$26:O58)-1,COLUMNS($O$26:O58)-1)<>"",OFFSET(DE104_9!$O$26,ROWS($O$26:O58)-1,COLUMNS($O$26:O58)-1),"") ->  | N45: =IF(OFFSET(DE104_9!$P$26,ROWS($P$26:P58)-1,COLUMNS($P$26:P58)-1)<>"",OFFSET(DE104_9!$P$26,ROWS($P$26:P58)-1,COLUMNS($P$26:P58)-1),"") -> 146000 | O45: =IF(OFFSET(DE104_9!$Q$26,ROWS($Q$26:Q58)-1,COLUMNS($Q$26:Q58)-1)<>"",OFFSET(DE104_9!$Q$26,ROWS($Q$26:Q58)-1,COLUMNS($Q$26:Q58)-1),"") -> DR-306 | P45: =IF(OFFSET(DE104_9!$R$26,ROWS($R$26:R58)-1,COLUMNS($R$26:R58)-1)<>"",OFFSET(DE104_9!$R$26,ROWS($R$26:R58)-1,COLUMNS($R$26:R58)-1),"") -> 51.9 | Q45: =IF(OFFSET(DE104_9!$S$26,ROWS($S$26:S58)-1,COLUMNS($S$26:S58)-1)<>"",OFFSET(DE104_9!$S$26,ROWS($S$26:S58)-1,COLUMNS($S$26:S58)-1),"") -> 0.4 | R45: =IF(OFFSET(DE104_9!$T$26,ROWS($T$26:T58)-1,COLUMNS($T$26:T58)-1)<>"",OFFSET(DE104_9!$T$26,ROWS($T$26:T58)-1,COLUMNS($T$26:T58)-1),"") -> 
A46: =IF(OFFSET(DE104_9!$C$26,ROWS($C$26:C59)-1,COLUMNS($C$26:C59)-1)<>"",OFFSET(DE104_9!$C$26,ROWS($C$26:C59)-1,COLUMNS($C$26:C59)-1),"") ->  | B46: =IF(OFFSET(DE104_9!$D$26,ROWS($D$26:D59)-1,COLUMNS($D$26:D59)-1)<>"",OFFSET(DE104_9!$D$26,ROWS($D$26:D59)-1,COLUMNS($D$26:D59)-1),"") ->  | C46: =IF(OFFSET(DE104_9!$E$26,ROWS($E$26:E59)-1,COLUMNS($E$26:E59)-1)<>"",OFFSET(DE104_9!$E$26,ROWS($E$26:E59)-1,COLUMNS($E$26:E59)-1),"") ->  | D46: =IF(OFFSET(DE104_9!$F$26,ROWS($F$26:F59)-1,COLUMNS($F$26:F59)-1)<>"",OFFSET(DE104_9!$F$26,ROWS($F$26:F59)-1,COLUMNS($F$26:F59)-1),"") ->  | E46: =IF(OFFSET(DE104_9!$G$26,ROWS($G$26:G59)-1,COLUMNS($G$26:G59)-1)<>"",OFFSET(DE104_9!$G$26,ROWS($G$26:G59)-1,COLUMNS($G$26:G59)-1),"") ->  | F46: =IF(OFFSET(DE104_9!$H$26,ROWS($H$26:H59)-1,COLUMNS($H$26:H59)-1)<>"",OFFSET(DE104_9!$H$26,ROWS($H$26:H59)-1,COLUMNS($H$26:H59)-1),"") ->  | G46: =IF(OFFSET(DE104_9!$I$26,ROWS($I$26:I59)-1,COLUMNS($I$26:I59)-1)<>"",OFFSET(DE104_9!$I$26,ROWS($I$26:I59)-1,COLUMNS($I$26:I59)-1),"") ->  | H46: =IF(OFFSET(DE104_9!$J$26,ROWS($J$26:J59)-1,COLUMNS($J$26:J59)-1)<>"",OFFSET(DE104_9!$J$26,ROWS($J$26:J59)-1,COLUMNS($J$26:J59)-1),"") ->  | I46: =IF(OFFSET(DE104_9!$K$26,ROWS($K$26:K59)-1,COLUMNS($K$26:K59)-1)<>"",OFFSET(DE104_9!$K$26,ROWS($K$26:K59)-1,COLUMNS($K$26:K59)-1),"") ->  | J46: =IF(OFFSET(DE104_9!$L$26,ROWS($L$26:L59)-1,COLUMNS($L$26:L59)-1)<>"",OFFSET(DE104_9!$L$26,ROWS($L$26:L59)-1,COLUMNS($L$26:L59)-1),"") ->  | K46: =IF(OFFSET(DE104_9!$M$26,ROWS($M$26:M59)-1,COLUMNS($M$26:M59)-1)<>"",OFFSET(DE104_9!$M$26,ROWS($M$26:M59)-1,COLUMNS($M$26:M59)-1),"") ->  | L46: =IF(OFFSET(DE104_9!$N$26,ROWS($N$26:N59)-1,COLUMNS($N$26:N59)-1)<>"",OFFSET(DE104_9!$N$26,ROWS($N$26:N59)-1,COLUMNS($N$26:N59)-1),"") ->  | M46: =IF(OFFSET(DE104_9!$O$26,ROWS($O$26:O59)-1,COLUMNS($O$26:O59)-1)<>"",OFFSET(DE104_9!$O$26,ROWS($O$26:O59)-1,COLUMNS($O$26:O59)-1),"") ->  | N46: =IF(OFFSET(DE104_9!$P$26,ROWS($P$26:P59)-1,COLUMNS($P$26:P59)-1)<>"",OFFSET(DE104_9!$P$26,ROWS($P$26:P59)-1,COLUMNS($P$26:P59)-1),"") -> 146520 | O46: =IF(OFFSET(DE104_9!$Q$26,ROWS($Q$26:Q59)-1,COLUMNS($Q$26:Q59)-1)<>"",OFFSET(DE104_9!$Q$26,ROWS($Q$26:Q59)-1,COLUMNS($Q$26:Q59)-1),"") -> DR-306 | P46: =IF(OFFSET(DE104_9!$R$26,ROWS($R$26:R59)-1,COLUMNS($R$26:R59)-1)<>"",OFFSET(DE104_9!$R$26,ROWS($R$26:R59)-1,COLUMNS($R$26:R59)-1),"") ->  | Q46: =IF(OFFSET(DE104_9!$S$26,ROWS($S$26:S59)-1,COLUMNS($S$26:S59)-1)<>"",OFFSET(DE104_9!$S$26,ROWS($S$26:S59)-1,COLUMNS($S$26:S59)-1),"") -> 0.4 | R46: =IF(OFFSET(DE104_9!$T$26,ROWS($T$26:T59)-1,COLUMNS($T$26:T59)-1)<>"",OFFSET(DE104_9!$T$26,ROWS($T$26:T59)-1,COLUMNS($T$26:T59)-1),"") -> 
A47: =IF(OFFSET(DE104_9!$C$26,ROWS($C$26:C60)-1,COLUMNS($C$26:C60)-1)<>"",OFFSET(DE104_9!$C$26,ROWS($C$26:C60)-1,COLUMNS($C$26:C60)-1),"") -> 18 | B47: =IF(OFFSET(DE104_9!$D$26,ROWS($D$26:D60)-1,COLUMNS($D$26:D60)-1)<>"",OFFSET(DE104_9!$D$26,ROWS($D$26:D60)-1,COLUMNS($D$26:D60)-1),"") -> EBL | C47: =IF(OFFSET(DE104_9!$E$26,ROWS($E$26:E60)-1,COLUMNS($E$26:E60)-1)<>"",OFFSET(DE104_9!$E$26,ROWS($E$26:E60)-1,COLUMNS($E$26:E60)-1),"") -> 146530 | D47: =IF(OFFSET(DE104_9!$F$26,ROWS($F$26:F60)-1,COLUMNS($F$26:F60)-1)<>"",OFFSET(DE104_9!$F$26,ROWS($F$26:F60)-1,COLUMNS($F$26:F60)-1),"") -> 146995 | E47: =IF(OFFSET(DE104_9!$G$26,ROWS($G$26:G60)-1,COLUMNS($G$26:G60)-1)<>"",OFFSET(DE104_9!$G$26,ROWS($G$26:G60)-1,COLUMNS($G$26:G60)-1),"") -> RT | F47: =IF(OFFSET(DE104_9!$H$26,ROWS($H$26:H60)-1,COLUMNS($H$26:H60)-1)<>"",OFFSET(DE104_9!$H$26,ROWS($H$26:H60)-1,COLUMNS($H$26:H60)-1),"") -> 42 | G47: =IF(OFFSET(DE104_9!$I$26,ROWS($I$26:I60)-1,COLUMNS($I$26:I60)-1)<>"",OFFSET(DE104_9!$I$26,ROWS($I$26:I60)-1,COLUMNS($I$26:I60)-1),"") -> 4 | H47: =IF(OFFSET(DE104_9!$J$26,ROWS($J$26:J60)-1,COLUMNS($J$26:J60)-1)<>"",OFFSET(DE104_9!$J$26,ROWS($J$26:J60)-1,COLUMNS($J$26:J60)-1),"") -> 505 | I47: =IF(OFFSET(DE104_9!$K$26,ROWS($K$26:K60)-1,COLUMNS($K$26:K60)-1)<>"",OFFSET(DE104_9!$K$26,ROWS($K$26:K60)-1,COLUMNS($K$26:K60)-1),"") ->  | J47: =IF(OFFSET(DE104_9!$L$26,ROWS($L$26:L60)-1,COLUMNS($L$26:L60)-1)<>"",OFFSET(DE104_9!$L$26,ROWS($L$26:L60)-1,COLUMNS($L$26:L60)-1),"") ->  | K47: =IF(OFFSET(DE104_9!$M$26,ROWS($M$26:M60)-1,COLUMNS($M$26:M60)-1)<>"",OFFSET(DE104_9!$M$26,ROWS($M$26:M60)-1,COLUMNS($M$26:M60)-1),"") ->  | L47: =IF(OFFSET(DE104_9!$N$26,ROWS($N$26:N60)-1,COLUMNS($N$26:N60)-1)<>"",OFFSET(DE104_9!$N$26,ROWS($N$26:N60)-1,COLUMNS($N$26:N60)-1),"") ->  | M47: =IF(OFFSET(DE104_9!$O$26,ROWS($O$26:O60)-1,COLUMNS($O$26:O60)-1)<>"",OFFSET(DE104_9!$O$26,ROWS($O$26:O60)-1,COLUMNS($O$26:O60)-1),"") ->  | N47: =IF(OFFSET(DE104_9!$P$26,ROWS($P$26:P60)-1,COLUMNS($P$26:P60)-1)<>"",OFFSET(DE104_9!$P$26,ROWS($P$26:P60)-1,COLUMNS($P$26:P60)-1),"") -> 146530 | O47: =IF(OFFSET(DE104_9!$Q$26,ROWS($Q$26:Q60)-1,COLUMNS($Q$26:Q60)-1)<>"",OFFSET(DE104_9!$Q$26,ROWS($Q$26:Q60)-1,COLUMNS($Q$26:Q60)-1),"") -> DR-306 | P47: =IF(OFFSET(DE104_9!$R$26,ROWS($R$26:R60)-1,COLUMNS($R$26:R60)-1)<>"",OFFSET(DE104_9!$R$26,ROWS($R$26:R60)-1,COLUMNS($R$26:R60)-1),"") -> 46.8 | Q47: =IF(OFFSET(DE104_9!$S$26,ROWS($S$26:S60)-1,COLUMNS($S$26:S60)-1)<>"",OFFSET(DE104_9!$S$26,ROWS($S$26:S60)-1,COLUMNS($S$26:S60)-1),"") -> 0.4 | R47: =IF(OFFSET(DE104_9!$T$26,ROWS($T$26:T60)-1,COLUMNS($T$26:T60)-1)<>"",OFFSET(DE104_9!$T$26,ROWS($T$26:T60)-1,COLUMNS($T$26:T60)-1),"") -> 
A48: =IF(OFFSET(DE104_9!$C$26,ROWS($C$26:C61)-1,COLUMNS($C$26:C61)-1)<>"",OFFSET(DE104_9!$C$26,ROWS($C$26:C61)-1,COLUMNS($C$26:C61)-1),"") ->  | B48: =IF(OFFSET(DE104_9!$D$26,ROWS($D$26:D61)-1,COLUMNS($D$26:D61)-1)<>"",OFFSET(DE104_9!$D$26,ROWS($D$26:D61)-1,COLUMNS($D$26:D61)-1),"") ->  | C48: =IF(OFFSET(DE104_9!$E$26,ROWS($E$26:E61)-1,COLUMNS($E$26:E61)-1)<>"",OFFSET(DE104_9!$E$26,ROWS($E$26:E61)-1,COLUMNS($E$26:E61)-1),"") ->  | D48: =IF(OFFSET(DE104_9!$F$26,ROWS($F$26:F61)-1,COLUMNS($F$26:F61)-1)<>"",OFFSET(DE104_9!$F$26,ROWS($F$26:F61)-1,COLUMNS($F$26:F61)-1),"") ->  | E48: =IF(OFFSET(DE104_9!$G$26,ROWS($G$26:G61)-1,COLUMNS($G$26:G61)-1)<>"",OFFSET(DE104_9!$G$26,ROWS($G$26:G61)-1,COLUMNS($G$26:G61)-1),"") ->  | F48: =IF(OFFSET(DE104_9!$H$26,ROWS($H$26:H61)-1,COLUMNS($H$26:H61)-1)<>"",OFFSET(DE104_9!$H$26,ROWS($H$26:H61)-1,COLUMNS($H$26:H61)-1),"") ->  | G48: =IF(OFFSET(DE104_9!$I$26,ROWS($I$26:I61)-1,COLUMNS($I$26:I61)-1)<>"",OFFSET(DE104_9!$I$26,ROWS($I$26:I61)-1,COLUMNS($I$26:I61)-1),"") ->  | H48: =IF(OFFSET(DE104_9!$J$26,ROWS($J$26:J61)-1,COLUMNS($J$26:J61)-1)<>"",OFFSET(DE104_9!$J$26,ROWS($J$26:J61)-1,COLUMNS($J$26:J61)-1),"") ->  | I48: =IF(OFFSET(DE104_9!$K$26,ROWS($K$26:K61)-1,COLUMNS($K$26:K61)-1)<>"",OFFSET(DE104_9!$K$26,ROWS($K$26:K61)-1,COLUMNS($K$26:K61)-1),"") ->  | J48: =IF(OFFSET(DE104_9!$L$26,ROWS($L$26:L61)-1,COLUMNS($L$26:L61)-1)<>"",OFFSET(DE104_9!$L$26,ROWS($L$26:L61)-1,COLUMNS($L$26:L61)-1),"") ->  | K48: =IF(OFFSET(DE104_9!$M$26,ROWS($M$26:M61)-1,COLUMNS($M$26:M61)-1)<>"",OFFSET(DE104_9!$M$26,ROWS($M$26:M61)-1,COLUMNS($M$26:M61)-1),"") ->  | L48: =IF(OFFSET(DE104_9!$N$26,ROWS($N$26:N61)-1,COLUMNS($N$26:N61)-1)<>"",OFFSET(DE104_9!$N$26,ROWS($N$26:N61)-1,COLUMNS($N$26:N61)-1),"") ->  | M48: =IF(OFFSET(DE104_9!$O$26,ROWS($O$26:O61)-1,COLUMNS($O$26:O61)-1)<>"",OFFSET(DE104_9!$O$26,ROWS($O$26:O61)-1,COLUMNS($O$26:O61)-1),"") ->  | N48: =IF(OFFSET(DE104_9!$P$26,ROWS($P$26:P61)-1,COLUMNS($P$26:P61)-1)<>"",OFFSET(DE104_9!$P$26,ROWS($P$26:P61)-1,COLUMNS($P$26:P61)-1),"") -> 146995 | O48: =IF(OFFSET(DE104_9!$Q$26,ROWS($Q$26:Q61)-1,COLUMNS($Q$26:Q61)-1)<>"",OFFSET(DE104_9!$Q$26,ROWS($Q$26:Q61)-1,COLUMNS($Q$26:Q61)-1),"") -> DR-306 | P48: =IF(OFFSET(DE104_9!$R$26,ROWS($R$26:R61)-1,COLUMNS($R$26:R61)-1)<>"",OFFSET(DE104_9!$R$26,ROWS($R$26:R61)-1,COLUMNS($R$26:R61)-1),"") ->  | Q48: =IF(OFFSET(DE104_9!$S$26,ROWS($S$26:S61)-1,COLUMNS($S$26:S61)-1)<>"",OFFSET(DE104_9!$S$26,ROWS($S$26:S61)-1,COLUMNS($S$26:S61)-1),"") -> 0.4 | R48: =IF(OFFSET(DE104_9!$T$26,ROWS($T$26:T61)-1,COLUMNS($T$26:T61)-1)<>"",OFFSET(DE104_9!$T$26,ROWS($T$26:T61)-1,COLUMNS($T$26:T61)-1),"") -> 
A49: =IF(OFFSET(DE104_9!$C$26,ROWS($C$26:C62)-1,COLUMNS($C$26:C62)-1)<>"",OFFSET(DE104_9!$C$26,ROWS($C$26:C62)-1,COLUMNS($C$26:C62)-1),"") -> 19 | B49: =IF(OFFSET(DE104_9!$D$26,ROWS($D$26:D62)-1,COLUMNS($D$26:D62)-1)<>"",OFFSET(DE104_9!$D$26,ROWS($D$26:D62)-1,COLUMNS($D$26:D62)-1),"") -> EBL | C49: =IF(OFFSET(DE104_9!$E$26,ROWS($E$26:E62)-1,COLUMNS($E$26:E62)-1)<>"",OFFSET(DE104_9!$E$26,ROWS($E$26:E62)-1,COLUMNS($E$26:E62)-1),"") -> 147030 | D49: =IF(OFFSET(DE104_9!$F$26,ROWS($F$26:F62)-1,COLUMNS($F$26:F62)-1)<>"",OFFSET(DE104_9!$F$26,ROWS($F$26:F62)-1,COLUMNS($F$26:F62)-1),"") -> 147500 | E49: =IF(OFFSET(DE104_9!$G$26,ROWS($G$26:G62)-1,COLUMNS($G$26:G62)-1)<>"",OFFSET(DE104_9!$G$26,ROWS($G$26:G62)-1,COLUMNS($G$26:G62)-1),"") -> RT | F49: =IF(OFFSET(DE104_9!$H$26,ROWS($H$26:H62)-1,COLUMNS($H$26:H62)-1)<>"",OFFSET(DE104_9!$H$26,ROWS($H$26:H62)-1,COLUMNS($H$26:H62)-1),"") -> 42 | G49: =IF(OFFSET(DE104_9!$I$26,ROWS($I$26:I62)-1,COLUMNS($I$26:I62)-1)<>"",OFFSET(DE104_9!$I$26,ROWS($I$26:I62)-1,COLUMNS($I$26:I62)-1),"") -> 4 | H49: =IF(OFFSET(DE104_9!$J$26,ROWS($J$26:J62)-1,COLUMNS($J$26:J62)-1)<>"",OFFSET(DE104_9!$J$26,ROWS($J$26:J62)-1,COLUMNS($J$26:J62)-1),"") -> 510 | I49: =IF(OFFSET(DE104_9!$K$26,ROWS($K$26:K62)-1,COLUMNS($K$26:K62)-1)<>"",OFFSET(DE104_9!$K$26,ROWS($K$26:K62)-1,COLUMNS($K$26:K62)-1),"") ->  | J49: =IF(OFFSET(DE104_9!$L$26,ROWS($L$26:L62)-1,COLUMNS($L$26:L62)-1)<>"",OFFSET(DE104_9!$L$26,ROWS($L$26:L62)-1,COLUMNS($L$26:L62)-1),"") ->  | K49: =IF(OFFSET(DE104_9!$M$26,ROWS($M$26:M62)-1,COLUMNS($M$26:M62)-1)<>"",OFFSET(DE104_9!$M$26,ROWS($M$26:M62)-1,COLUMNS($M$26:M62)-1),"") ->  | L49: =IF(OFFSET(DE104_9!$N$26,ROWS($N$26:N62)-1,COLUMNS($N$26:N62)-1)<>"",OFFSET(DE104_9!$N$26,ROWS($N$26:N62)-1,COLUMNS($N$26:N62)-1),"") ->  | M49: =IF(OFFSET(DE104_9!$O$26,ROWS($O$26:O62)-1,COLUMNS($O$26:O62)-1)<>"",OFFSET(DE104_9!$O$26,ROWS($O$26:O62)-1,COLUMNS($O$26:O62)-1),"") ->  | N49: =IF(OFFSET(DE104_9!$P$26,ROWS($P$26:P62)-1,COLUMNS($P$26:P62)-1)<>"",OFFSET(DE104_9!$P$26,ROWS($P$26:P62)-1,COLUMNS($P$26:P62)-1),"") -> 147030 | O49: =IF(OFFSET(DE104_9!$Q$26,ROWS($Q$26:Q62)-1,COLUMNS($Q$26:Q62)-1)<>"",OFFSET(DE104_9!$Q$26,ROWS($Q$26:Q62)-1,COLUMNS($Q$26:Q62)-1),"") -> DR-306 | P49: =IF(OFFSET(DE104_9!$R$26,ROWS($R$26:R62)-1,COLUMNS($R$26:R62)-1)<>"",OFFSET(DE104_9!$R$26,ROWS($R$26:R62)-1,COLUMNS($R$26:R62)-1),"") -> 47.2 | Q49: =IF(OFFSET(DE104_9!$S$26,ROWS($S$26:S62)-1,COLUMNS($S$26:S62)-1)<>"",OFFSET(DE104_9!$S$26,ROWS($S$26:S62)-1,COLUMNS($S$26:S62)-1),"") -> 0.4 | R49: =IF(OFFSET(DE104_9!$T$26,ROWS($T$26:T62)-1,COLUMNS($T$26:T62)-1)<>"",OFFSET(DE104_9!$T$26,ROWS($T$26:T62)-1,COLUMNS($T$26:T62)-1),"") -> US 30 EB AND LOOP A TAPER
A50: =IF(OFFSET(DE104_9!$C$26,ROWS($C$26:C63)-1,COLUMNS($C$26:C63)-1)<>"",OFFSET(DE104_9!$C$26,ROWS($C$26:C63)-1,COLUMNS($C$26:C63)-1),"") ->  | B50: =IF(OFFSET(DE104_9!$D$26,ROWS($D$26:D63)-1,COLUMNS($D$26:D63)-1)<>"",OFFSET(DE104_9!$D$26,ROWS($D$26:D63)-1,COLUMNS($D$26:D63)-1),"") ->  | C50: =IF(OFFSET(DE104_9!$E$26,ROWS($E$26:E63)-1,COLUMNS($E$26:E63)-1)<>"",OFFSET(DE104_9!$E$26,ROWS($E$26:E63)-1,COLUMNS($E$26:E63)-1),"") ->  | D50: =IF(OFFSET(DE104_9!$F$26,ROWS($F$26:F63)-1,COLUMNS($F$26:F63)-1)<>"",OFFSET(DE104_9!$F$26,ROWS($F$26:F63)-1,COLUMNS($F$26:F63)-1),"") ->  | E50: =IF(OFFSET(DE104_9!$G$26,ROWS($G$26:G63)-1,COLUMNS($G$26:G63)-1)<>"",OFFSET(DE104_9!$G$26,ROWS($G$26:G63)-1,COLUMNS($G$26:G63)-1),"") ->  | F50: =IF(OFFSET(DE104_9!$H$26,ROWS($H$26:H63)-1,COLUMNS($H$26:H63)-1)<>"",OFFSET(DE104_9!$H$26,ROWS($H$26:H63)-1,COLUMNS($H$26:H63)-1),"") ->  | G50: =IF(OFFSET(DE104_9!$I$26,ROWS($I$26:I63)-1,COLUMNS($I$26:I63)-1)<>"",OFFSET(DE104_9!$I$26,ROWS($I$26:I63)-1,COLUMNS($I$26:I63)-1),"") ->  | H50: =IF(OFFSET(DE104_9!$J$26,ROWS($J$26:J63)-1,COLUMNS($J$26:J63)-1)<>"",OFFSET(DE104_9!$J$26,ROWS($J$26:J63)-1,COLUMNS($J$26:J63)-1),"") ->  | I50: =IF(OFFSET(DE104_9!$K$26,ROWS($K$26:K63)-1,COLUMNS($K$26:K63)-1)<>"",OFFSET(DE104_9!$K$26,ROWS($K$26:K63)-1,COLUMNS($K$26:K63)-1),"") ->  | J50: =IF(OFFSET(DE104_9!$L$26,ROWS($L$26:L63)-1,COLUMNS($L$26:L63)-1)<>"",OFFSET(DE104_9!$L$26,ROWS($L$26:L63)-1,COLUMNS($L$26:L63)-1),"") ->  | K50: =IF(OFFSET(DE104_9!$M$26,ROWS($M$26:M63)-1,COLUMNS($M$26:M63)-1)<>"",OFFSET(DE104_9!$M$26,ROWS($M$26:M63)-1,COLUMNS($M$26:M63)-1),"") ->  | L50: =IF(OFFSET(DE104_9!$N$26,ROWS($N$26:N63)-1,COLUMNS($N$26:N63)-1)<>"",OFFSET(DE104_9!$N$26,ROWS($N$26:N63)-1,COLUMNS($N$26:N63)-1),"") ->  | M50: =IF(OFFSET(DE104_9!$O$26,ROWS($O$26:O63)-1,COLUMNS($O$26:O63)-1)<>"",OFFSET(DE104_9!$O$26,ROWS($O$26:O63)-1,COLUMNS($O$26:O63)-1),"") ->  | N50: =IF(OFFSET(DE104_9!$P$26,ROWS($P$26:P63)-1,COLUMNS($P$26:P63)-1)<>"",OFFSET(DE104_9!$P$26,ROWS($P$26:P63)-1,COLUMNS($P$26:P63)-1),"") -> 147500 | O50: =IF(OFFSET(DE104_9!$Q$26,ROWS($Q$26:Q63)-1,COLUMNS($Q$26:Q63)-1)<>"",OFFSET(DE104_9!$Q$26,ROWS($Q$26:Q63)-1,COLUMNS($Q$26:Q63)-1),"") -> DR-306 | P50: =IF(OFFSET(DE104_9!$R$26,ROWS($R$26:R63)-1,COLUMNS($R$26:R63)-1)<>"",OFFSET(DE104_9!$R$26,ROWS($R$26:R63)-1,COLUMNS($R$26:R63)-1),"") ->  | Q50: =IF(OFFSET(DE104_9!$S$26,ROWS($S$26:S63)-1,COLUMNS($S$26:S63)-1)<>"",OFFSET(DE104_9!$S$26,ROWS($S$26:S63)-1,COLUMNS($S$26:S63)-1),"") -> 0.4 | R50: =IF(OFFSET(DE104_9!$T$26,ROWS($T$26:T63)-1,COLUMNS($T$26:T63)-1)<>"",OFFSET(DE104_9!$T$26,ROWS($T$26:T63)-1,COLUMNS($T$26:T63)-1),"") -> 
A51: =IF(OFFSET(DE104_9!$C$26,ROWS($C$26:C64)-1,COLUMNS($C$26:C64)-1)<>"",OFFSET(DE104_9!$C$26,ROWS($C$26:C64)-1,COLUMNS($C$26:C64)-1),"") -> 20 | B51: =IF(OFFSET(DE104_9!$D$26,ROWS($D$26:D64)-1,COLUMNS($D$26:D64)-1)<>"",OFFSET(DE104_9!$D$26,ROWS($D$26:D64)-1,COLUMNS($D$26:D64)-1),"") -> EBL | C51: =IF(OFFSET(DE104_9!$E$26,ROWS($E$26:E64)-1,COLUMNS($E$26:E64)-1)<>"",OFFSET(DE104_9!$E$26,ROWS($E$26:E64)-1,COLUMNS($E$26:E64)-1),"") -> 147500 | D51: =IF(OFFSET(DE104_9!$F$26,ROWS($F$26:F64)-1,COLUMNS($F$26:F64)-1)<>"",OFFSET(DE104_9!$F$26,ROWS($F$26:F64)-1,COLUMNS($F$26:F64)-1),"") -> 147695 | E51: =IF(OFFSET(DE104_9!$G$26,ROWS($G$26:G64)-1,COLUMNS($G$26:G64)-1)<>"",OFFSET(DE104_9!$G$26,ROWS($G$26:G64)-1,COLUMNS($G$26:G64)-1),"") -> RT | F51: =IF(OFFSET(DE104_9!$H$26,ROWS($H$26:H64)-1,COLUMNS($H$26:H64)-1)<>"",OFFSET(DE104_9!$H$26,ROWS($H$26:H64)-1,COLUMNS($H$26:H64)-1),"") -> 42 | G51: =IF(OFFSET(DE104_9!$I$26,ROWS($I$26:I64)-1,COLUMNS($I$26:I64)-1)<>"",OFFSET(DE104_9!$I$26,ROWS($I$26:I64)-1,COLUMNS($I$26:I64)-1),"") -> 4 | H51: =IF(OFFSET(DE104_9!$J$26,ROWS($J$26:J64)-1,COLUMNS($J$26:J64)-1)<>"",OFFSET(DE104_9!$J$26,ROWS($J$26:J64)-1,COLUMNS($J$26:J64)-1),"") -> 235 | I51: =IF(OFFSET(DE104_9!$K$26,ROWS($K$26:K64)-1,COLUMNS($K$26:K64)-1)<>"",OFFSET(DE104_9!$K$26,ROWS($K$26:K64)-1,COLUMNS($K$26:K64)-1),"") ->  | J51: =IF(OFFSET(DE104_9!$L$26,ROWS($L$26:L64)-1,COLUMNS($L$26:L64)-1)<>"",OFFSET(DE104_9!$L$26,ROWS($L$26:L64)-1,COLUMNS($L$26:L64)-1),"") ->  | K51: =IF(OFFSET(DE104_9!$M$26,ROWS($M$26:M64)-1,COLUMNS($M$26:M64)-1)<>"",OFFSET(DE104_9!$M$26,ROWS($M$26:M64)-1,COLUMNS($M$26:M64)-1),"") ->  | L51: =IF(OFFSET(DE104_9!$N$26,ROWS($N$26:N64)-1,COLUMNS($N$26:N64)-1)<>"",OFFSET(DE104_9!$N$26,ROWS($N$26:N64)-1,COLUMNS($N$26:N64)-1),"") ->  | M51: =IF(OFFSET(DE104_9!$O$26,ROWS($O$26:O64)-1,COLUMNS($O$26:O64)-1)<>"",OFFSET(DE104_9!$O$26,ROWS($O$26:O64)-1,COLUMNS($O$26:O64)-1),"") ->  | N51: =IF(OFFSET(DE104_9!$P$26,ROWS($P$26:P64)-1,COLUMNS($P$26:P64)-1)<>"",OFFSET(DE104_9!$P$26,ROWS($P$26:P64)-1,COLUMNS($P$26:P64)-1),"") -> 147500 | O51: =IF(OFFSET(DE104_9!$Q$26,ROWS($Q$26:Q64)-1,COLUMNS($Q$26:Q64)-1)<>"",OFFSET(DE104_9!$Q$26,ROWS($Q$26:Q64)-1,COLUMNS($Q$26:Q64)-1),"") -> DR-306 | P51: =IF(OFFSET(DE104_9!$R$26,ROWS($R$26:R64)-1,COLUMNS($R$26:R64)-1)<>"",OFFSET(DE104_9!$R$26,ROWS($R$26:R64)-1,COLUMNS($R$26:R64)-1),"") -> 21.8 | Q51: =IF(OFFSET(DE104_9!$S$26,ROWS($S$26:S64)-1,COLUMNS($S$26:S64)-1)<>"",OFFSET(DE104_9!$S$26,ROWS($S$26:S64)-1,COLUMNS($S$26:S64)-1),"") -> 0.4 | R51: =IF(OFFSET(DE104_9!$T$26,ROWS($T$26:T64)-1,COLUMNS($T$26:T64)-1)<>"",OFFSET(DE104_9!$T$26,ROWS($T$26:T64)-1,COLUMNS($T$26:T64)-1),"") -> US 30 EB AND LOOP A TAPER
A52: =IF(OFFSET(DE104_9!$C$26,ROWS($C$26:C65)-1,COLUMNS($C$26:C65)-1)<>"",OFFSET(DE104_9!$C$26,ROWS($C$26:C65)-1,COLUMNS($C$26:C65)-1),"") ->  | B52: =IF(OFFSET(DE104_9!$D$26,ROWS($D$26:D65)-1,COLUMNS($D$26:D65)-1)<>"",OFFSET(DE104_9!$D$26,ROWS($D$26:D65)-1,COLUMNS($D$26:D65)-1),"") ->  | C52: =IF(OFFSET(DE104_9!$E$26,ROWS($E$26:E65)-1,COLUMNS($E$26:E65)-1)<>"",OFFSET(DE104_9!$E$26,ROWS($E$26:E65)-1,COLUMNS($E$26:E65)-1),"") ->  | D52: =IF(OFFSET(DE104_9!$F$26,ROWS($F$26:F65)-1,COLUMNS($F$26:F65)-1)<>"",OFFSET(DE104_9!$F$26,ROWS($F$26:F65)-1,COLUMNS($F$26:F65)-1),"") ->  | E52: =IF(OFFSET(DE104_9!$G$26,ROWS($G$26:G65)-1,COLUMNS($G$26:G65)-1)<>"",OFFSET(DE104_9!$G$26,ROWS($G$26:G65)-1,COLUMNS($G$26:G65)-1),"") ->  | F52: =IF(OFFSET(DE104_9!$H$26,ROWS($H$26:H65)-1,COLUMNS($H$26:H65)-1)<>"",OFFSET(DE104_9!$H$26,ROWS($H$26:H65)-1,COLUMNS($H$26:H65)-1),"") ->  | G52: =IF(OFFSET(DE104_9!$I$26,ROWS($I$26:I65)-1,COLUMNS($I$26:I65)-1)<>"",OFFSET(DE104_9!$I$26,ROWS($I$26:I65)-1,COLUMNS($I$26:I65)-1),"") ->  | H52: =IF(OFFSET(DE104_9!$J$26,ROWS($J$26:J65)-1,COLUMNS($J$26:J65)-1)<>"",OFFSET(DE104_9!$J$26,ROWS($J$26:J65)-1,COLUMNS($J$26:J65)-1),"") ->  | I52: =IF(OFFSET(DE104_9!$K$26,ROWS($K$26:K65)-1,COLUMNS($K$26:K65)-1)<>"",OFFSET(DE104_9!$K$26,ROWS($K$26:K65)-1,COLUMNS($K$26:K65)-1),"") ->  | J52: =IF(OFFSET(DE104_9!$L$26,ROWS($L$26:L65)-1,COLUMNS($L$26:L65)-1)<>"",OFFSET(DE104_9!$L$26,ROWS($L$26:L65)-1,COLUMNS($L$26:L65)-1),"") ->  | K52: =IF(OFFSET(DE104_9!$M$26,ROWS($M$26:M65)-1,COLUMNS($M$26:M65)-1)<>"",OFFSET(DE104_9!$M$26,ROWS($M$26:M65)-1,COLUMNS($M$26:M65)-1),"") ->  | L52: =IF(OFFSET(DE104_9!$N$26,ROWS($N$26:N65)-1,COLUMNS($N$26:N65)-1)<>"",OFFSET(DE104_9!$N$26,ROWS($N$26:N65)-1,COLUMNS($N$26:N65)-1),"") ->  | M52: =IF(OFFSET(DE104_9!$O$26,ROWS($O$26:O65)-1,COLUMNS($O$26:O65)-1)<>"",OFFSET(DE104_9!$O$26,ROWS($O$26:O65)-1,COLUMNS($O$26:O65)-1),"") ->  | N52: =IF(OFFSET(DE104_9!$P$26,ROWS($P$26:P65)-1,COLUMNS($P$26:P65)-1)<>"",OFFSET(DE104_9!$P$26,ROWS($P$26:P65)-1,COLUMNS($P$26:P65)-1),"") -> 147695 | O52: =IF(OFFSET(DE104_9!$Q$26,ROWS($Q$26:Q65)-1,COLUMNS($Q$26:Q65)-1)<>"",OFFSET(DE104_9!$Q$26,ROWS($Q$26:Q65)-1,COLUMNS($Q$26:Q65)-1),"") -> DR-306 | P52: =IF(OFFSET(DE104_9!$R$26,ROWS($R$26:R65)-1,COLUMNS($R$26:R65)-1)<>"",OFFSET(DE104_9!$R$26,ROWS($R$26:R65)-1,COLUMNS($R$26:R65)-1),"") ->  | Q52: =IF(OFFSET(DE104_9!$S$26,ROWS($S$26:S65)-1,COLUMNS($S$26:S65)-1)<>"",OFFSET(DE104_9!$S$26,ROWS($S$26:S65)-1,COLUMNS($S$26:S65)-1),"") -> 0.4 | R52: =IF(OFFSET(DE104_9!$T$26,ROWS($T$26:T65)-1,COLUMNS($T$26:T65)-1)<>"",OFFSET(DE104_9!$T$26,ROWS($T$26:T65)-1,COLUMNS($T$26:T65)-1),"") -> 
A53: =IF(OFFSET(DE104_9!$C$26,ROWS($C$26:C66)-1,COLUMNS($C$26:C66)-1)<>"",OFFSET(DE104_9!$C$26,ROWS($C$26:C66)-1,COLUMNS($C$26:C66)-1),"") -> 21 | B53: =IF(OFFSET(DE104_9!$D$26,ROWS($D$26:D66)-1,COLUMNS($D$26:D66)-1)<>"",OFFSET(DE104_9!$D$26,ROWS($D$26:D66)-1,COLUMNS($D$26:D66)-1),"") -> EBL | C53: =IF(OFFSET(DE104_9!$E$26,ROWS($E$26:E66)-1,COLUMNS($E$26:E66)-1)<>"",OFFSET(DE104_9!$E$26,ROWS($E$26:E66)-1,COLUMNS($E$26:E66)-1),"") -> 147705 | D53: =IF(OFFSET(DE104_9!$F$26,ROWS($F$26:F66)-1,COLUMNS($F$26:F66)-1)<>"",OFFSET(DE104_9!$F$26,ROWS($F$26:F66)-1,COLUMNS($F$26:F66)-1),"") -> 147910 | E53: =IF(OFFSET(DE104_9!$G$26,ROWS($G$26:G66)-1,COLUMNS($G$26:G66)-1)<>"",OFFSET(DE104_9!$G$26,ROWS($G$26:G66)-1,COLUMNS($G$26:G66)-1),"") -> RT | F53: =IF(OFFSET(DE104_9!$H$26,ROWS($H$26:H66)-1,COLUMNS($H$26:H66)-1)<>"",OFFSET(DE104_9!$H$26,ROWS($H$26:H66)-1,COLUMNS($H$26:H66)-1),"") -> 42 | G53: =IF(OFFSET(DE104_9!$I$26,ROWS($I$26:I66)-1,COLUMNS($I$26:I66)-1)<>"",OFFSET(DE104_9!$I$26,ROWS($I$26:I66)-1,COLUMNS($I$26:I66)-1),"") -> 4 | H53: =IF(OFFSET(DE104_9!$J$26,ROWS($J$26:J66)-1,COLUMNS($J$26:J66)-1)<>"",OFFSET(DE104_9!$J$26,ROWS($J$26:J66)-1,COLUMNS($J$26:J66)-1),"") -> 245 | I53: =IF(OFFSET(DE104_9!$K$26,ROWS($K$26:K66)-1,COLUMNS($K$26:K66)-1)<>"",OFFSET(DE104_9!$K$26,ROWS($K$26:K66)-1,COLUMNS($K$26:K66)-1),"") ->  | J53: =IF(OFFSET(DE104_9!$L$26,ROWS($L$26:L66)-1,COLUMNS($L$26:L66)-1)<>"",OFFSET(DE104_9!$L$26,ROWS($L$26:L66)-1,COLUMNS($L$26:L66)-1),"") ->  | K53: =IF(OFFSET(DE104_9!$M$26,ROWS($M$26:M66)-1,COLUMNS($M$26:M66)-1)<>"",OFFSET(DE104_9!$M$26,ROWS($M$26:M66)-1,COLUMNS($M$26:M66)-1),"") ->  | L53: =IF(OFFSET(DE104_9!$N$26,ROWS($N$26:N66)-1,COLUMNS($N$26:N66)-1)<>"",OFFSET(DE104_9!$N$26,ROWS($N$26:N66)-1,COLUMNS($N$26:N66)-1),"") ->  | M53: =IF(OFFSET(DE104_9!$O$26,ROWS($O$26:O66)-1,COLUMNS($O$26:O66)-1)<>"",OFFSET(DE104_9!$O$26,ROWS($O$26:O66)-1,COLUMNS($O$26:O66)-1),"") ->  | N53: =IF(OFFSET(DE104_9!$P$26,ROWS($P$26:P66)-1,COLUMNS($P$26:P66)-1)<>"",OFFSET(DE104_9!$P$26,ROWS($P$26:P66)-1,COLUMNS($P$26:P66)-1),"") -> 147705 | O53: =IF(OFFSET(DE104_9!$Q$26,ROWS($Q$26:Q66)-1,COLUMNS($Q$26:Q66)-1)<>"",OFFSET(DE104_9!$Q$26,ROWS($Q$26:Q66)-1,COLUMNS($Q$26:Q66)-1),"") -> DR-306 | P53: =IF(OFFSET(DE104_9!$R$26,ROWS($R$26:R66)-1,COLUMNS($R$26:R66)-1)<>"",OFFSET(DE104_9!$R$26,ROWS($R$26:R66)-1,COLUMNS($R$26:R66)-1),"") -> 22.7 | Q53: =IF(OFFSET(DE104_9!$S$26,ROWS($S$26:S66)-1,COLUMNS($S$26:S66)-1)<>"",OFFSET(DE104_9!$S$26,ROWS($S$26:S66)-1,COLUMNS($S$26:S66)-1),"") -> 0.4 | R53: =IF(OFFSET(DE104_9!$T$26,ROWS($T$26:T66)-1,COLUMNS($T$26:T66)-1)<>"",OFFSET(DE104_9!$T$26,ROWS($T$26:T66)-1,COLUMNS($T$26:T66)-1),"") -> 
A54: =IF(OFFSET(DE104_9!$C$26,ROWS($C$26:C67)-1,COLUMNS($C$26:C67)-1)<>"",OFFSET(DE104_9!$C$26,ROWS($C$26:C67)-1,COLUMNS($C$26:C67)-1),"") ->  | B54: =IF(OFFSET(DE104_9!$D$26,ROWS($D$26:D67)-1,COLUMNS($D$26:D67)-1)<>"",OFFSET(DE104_9!$D$26,ROWS($D$26:D67)-1,COLUMNS($D$26:D67)-1),"") ->  | C54: =IF(OFFSET(DE104_9!$E$26,ROWS($E$26:E67)-1,COLUMNS($E$26:E67)-1)<>"",OFFSET(DE104_9!$E$26,ROWS($E$26:E67)-1,COLUMNS($E$26:E67)-1),"") ->  | D54: =IF(OFFSET(DE104_9!$F$26,ROWS($F$26:F67)-1,COLUMNS($F$26:F67)-1)<>"",OFFSET(DE104_9!$F$26,ROWS($F$26:F67)-1,COLUMNS($F$26:F67)-1),"") ->  | E54: =IF(OFFSET(DE104_9!$G$26,ROWS($G$26:G67)-1,COLUMNS($G$26:G67)-1)<>"",OFFSET(DE104_9!$G$26,ROWS($G$26:G67)-1,COLUMNS($G$26:G67)-1),"") ->  | F54: =IF(OFFSET(DE104_9!$H$26,ROWS($H$26:H67)-1,COLUMNS($H$26:H67)-1)<>"",OFFSET(DE104_9!$H$26,ROWS($H$26:H67)-1,COLUMNS($H$26:H67)-1),"") ->  | G54: =IF(OFFSET(DE104_9!$I$26,ROWS($I$26:I67)-1,COLUMNS($I$26:I67)-1)<>"",OFFSET(DE104_9!$I$26,ROWS($I$26:I67)-1,COLUMNS($I$26:I67)-1),"") ->  | H54: =IF(OFFSET(DE104_9!$J$26,ROWS($J$26:J67)-1,COLUMNS($J$26:J67)-1)<>"",OFFSET(DE104_9!$J$26,ROWS($J$26:J67)-1,COLUMNS($J$26:J67)-1),"") ->  | I54: =IF(OFFSET(DE104_9!$K$26,ROWS($K$26:K67)-1,COLUMNS($K$26:K67)-1)<>"",OFFSET(DE104_9!$K$26,ROWS($K$26:K67)-1,COLUMNS($K$26:K67)-1),"") ->  | J54: =IF(OFFSET(DE104_9!$L$26,ROWS($L$26:L67)-1,COLUMNS($L$26:L67)-1)<>"",OFFSET(DE104_9!$L$26,ROWS($L$26:L67)-1,COLUMNS($L$26:L67)-1),"") ->  | K54: =IF(OFFSET(DE104_9!$M$26,ROWS($M$26:M67)-1,COLUMNS($M$26:M67)-1)<>"",OFFSET(DE104_9!$M$26,ROWS($M$26:M67)-1,COLUMNS($M$26:M67)-1),"") ->  | L54: =IF(OFFSET(DE104_9!$N$26,ROWS($N$26:N67)-1,COLUMNS($N$26:N67)-1)<>"",OFFSET(DE104_9!$N$26,ROWS($N$26:N67)-1,COLUMNS($N$26:N67)-1),"") ->  | M54: =IF(OFFSET(DE104_9!$O$26,ROWS($O$26:O67)-1,COLUMNS($O$26:O67)-1)<>"",OFFSET(DE104_9!$O$26,ROWS($O$26:O67)-1,COLUMNS($O$26:O67)-1),"") ->  | N54: =IF(OFFSET(DE104_9!$P$26,ROWS($P$26:P67)-1,COLUMNS($P$26:P67)-1)<>"",OFFSET(DE104_9!$P$26,ROWS($P$26:P67)-1,COLUMNS($P$26:P67)-1),"") -> 147910 | O54: =IF(OFFSET(DE104_9!$Q$26,ROWS($Q$26:Q67)-1,COLUMNS($Q$26:Q67)-1)<>"",OFFSET(DE104_9!$Q$26,ROWS($Q$26:Q67)-1,COLUMNS($Q$26:Q67)-1),"") -> DR-306 | P54: =IF(OFFSET(DE104_9!$R$26,ROWS($R$26:R67)-1,COLUMNS($R$26:R67)-1)<>"",OFFSET(DE104_9!$R$26,ROWS($R$26:R67)-1,COLUMNS($R$26:R67)-1),"") ->  | Q54: =IF(OFFSET(DE104_9!$S$26,ROWS($S$26:S67)-1,COLUMNS($S$26:S67)-1)<>"",OFFSET(DE104_9!$S$26,ROWS($S$26:S67)-1,COLUMNS($S$26:S67)-1),"") -> 0.4 | R54: =IF(OFFSET(DE104_9!$T$26,ROWS($T$26:T67)-1,COLUMNS($T$26:T67)-1)<>"",OFFSET(DE104_9!$T$26,ROWS($T$26:T67)-1,COLUMNS($T$26:T67)-1),"") -> 
A55: =IF(OFFSET(DE104_9!$C$26,ROWS($C$26:C68)-1,COLUMNS($C$26:C68)-1)<>"",OFFSET(DE104_9!$C$26,ROWS($C$26:C68)-1,COLUMNS($C$26:C68)-1),"") -> 22 | B55: =IF(OFFSET(DE104_9!$D$26,ROWS($D$26:D68)-1,COLUMNS($D$26:D68)-1)<>"",OFFSET(DE104_9!$D$26,ROWS($D$26:D68)-1,COLUMNS($D$26:D68)-1),"") -> EBL | C55: =IF(OFFSET(DE104_9!$E$26,ROWS($E$26:E68)-1,COLUMNS($E$26:E68)-1)<>"",OFFSET(DE104_9!$E$26,ROWS($E$26:E68)-1,COLUMNS($E$26:E68)-1),"") -> 147920 | D55: =IF(OFFSET(DE104_9!$F$26,ROWS($F$26:F68)-1,COLUMNS($F$26:F68)-1)<>"",OFFSET(DE104_9!$F$26,ROWS($F$26:F68)-1,COLUMNS($F$26:F68)-1),"") -> 148280 | E55: =IF(OFFSET(DE104_9!$G$26,ROWS($G$26:G68)-1,COLUMNS($G$26:G68)-1)<>"",OFFSET(DE104_9!$G$26,ROWS($G$26:G68)-1,COLUMNS($G$26:G68)-1),"") -> RT | F55: =IF(OFFSET(DE104_9!$H$26,ROWS($H$26:H68)-1,COLUMNS($H$26:H68)-1)<>"",OFFSET(DE104_9!$H$26,ROWS($H$26:H68)-1,COLUMNS($H$26:H68)-1),"") -> 42 | G55: =IF(OFFSET(DE104_9!$I$26,ROWS($I$26:I68)-1,COLUMNS($I$26:I68)-1)<>"",OFFSET(DE104_9!$I$26,ROWS($I$26:I68)-1,COLUMNS($I$26:I68)-1),"") -> 4 | H55: =IF(OFFSET(DE104_9!$J$26,ROWS($J$26:J68)-1,COLUMNS($J$26:J68)-1)<>"",OFFSET(DE104_9!$J$26,ROWS($J$26:J68)-1,COLUMNS($J$26:J68)-1),"") -> 380 | I55: =IF(OFFSET(DE104_9!$K$26,ROWS($K$26:K68)-1,COLUMNS($K$26:K68)-1)<>"",OFFSET(DE104_9!$K$26,ROWS($K$26:K68)-1,COLUMNS($K$26:K68)-1),"") ->  | J55: =IF(OFFSET(DE104_9!$L$26,ROWS($L$26:L68)-1,COLUMNS($L$26:L68)-1)<>"",OFFSET(DE104_9!$L$26,ROWS($L$26:L68)-1,COLUMNS($L$26:L68)-1),"") ->  | K55: =IF(OFFSET(DE104_9!$M$26,ROWS($M$26:M68)-1,COLUMNS($M$26:M68)-1)<>"",OFFSET(DE104_9!$M$26,ROWS($M$26:M68)-1,COLUMNS($M$26:M68)-1),"") ->  | L55: =IF(OFFSET(DE104_9!$N$26,ROWS($N$26:N68)-1,COLUMNS($N$26:N68)-1)<>"",OFFSET(DE104_9!$N$26,ROWS($N$26:N68)-1,COLUMNS($N$26:N68)-1),"") ->  | M55: =IF(OFFSET(DE104_9!$O$26,ROWS($O$26:O68)-1,COLUMNS($O$26:O68)-1)<>"",OFFSET(DE104_9!$O$26,ROWS($O$26:O68)-1,COLUMNS($O$26:O68)-1),"") ->  | N55: =IF(OFFSET(DE104_9!$P$26,ROWS($P$26:P68)-1,COLUMNS($P$26:P68)-1)<>"",OFFSET(DE104_9!$P$26,ROWS($P$26:P68)-1,COLUMNS($P$26:P68)-1),"") -> 147920 | O55: =IF(OFFSET(DE104_9!$Q$26,ROWS($Q$26:Q68)-1,COLUMNS($Q$26:Q68)-1)<>"",OFFSET(DE104_9!$Q$26,ROWS($Q$26:Q68)-1,COLUMNS($Q$26:Q68)-1),"") -> DR-306 | P55: =IF(OFFSET(DE104_9!$R$26,ROWS($R$26:R68)-1,COLUMNS($R$26:R68)-1)<>"",OFFSET(DE104_9!$R$26,ROWS($R$26:R68)-1,COLUMNS($R$26:R68)-1),"") -> 35.2 | Q55: =IF(OFFSET(DE104_9!$S$26,ROWS($S$26:S68)-1,COLUMNS($S$26:S68)-1)<>"",OFFSET(DE104_9!$S$26,ROWS($S$26:S68)-1,COLUMNS($S$26:S68)-1),"") -> 0.4 | R55: =IF(OFFSET(DE104_9!$T$26,ROWS($T$26:T68)-1,COLUMNS($T$26:T68)-1)<>"",OFFSET(DE104_9!$T$26,ROWS($T$26:T68)-1,COLUMNS($T$26:T68)-1),"") -> INSTALL OUTLET PRIOR TO LOOP A
A56: =IF(OFFSET(DE104_9!$C$26,ROWS($C$26:C69)-1,COLUMNS($C$26:C69)-1)<>"",OFFSET(DE104_9!$C$26,ROWS($C$26:C69)-1,COLUMNS($C$26:C69)-1),"") -> 23 | B56: =IF(OFFSET(DE104_9!$D$26,ROWS($D$26:D69)-1,COLUMNS($D$26:D69)-1)<>"",OFFSET(DE104_9!$D$26,ROWS($D$26:D69)-1,COLUMNS($D$26:D69)-1),"") -> EBL | C56: =IF(OFFSET(DE104_9!$E$26,ROWS($E$26:E69)-1,COLUMNS($E$26:E69)-1)<>"",OFFSET(DE104_9!$E$26,ROWS($E$26:E69)-1,COLUMNS($E$26:E69)-1),"") -> 148280 | D56: =IF(OFFSET(DE104_9!$F$26,ROWS($F$26:F69)-1,COLUMNS($F$26:F69)-1)<>"",OFFSET(DE104_9!$F$26,ROWS($F$26:F69)-1,COLUMNS($F$26:F69)-1),"") -> 148640 | E56: =IF(OFFSET(DE104_9!$G$26,ROWS($G$26:G69)-1,COLUMNS($G$26:G69)-1)<>"",OFFSET(DE104_9!$G$26,ROWS($G$26:G69)-1,COLUMNS($G$26:G69)-1),"") -> RT | F56: =IF(OFFSET(DE104_9!$H$26,ROWS($H$26:H69)-1,COLUMNS($H$26:H69)-1)<>"",OFFSET(DE104_9!$H$26,ROWS($H$26:H69)-1,COLUMNS($H$26:H69)-1),"") -> 42 | G56: =IF(OFFSET(DE104_9!$I$26,ROWS($I$26:I69)-1,COLUMNS($I$26:I69)-1)<>"",OFFSET(DE104_9!$I$26,ROWS($I$26:I69)-1,COLUMNS($I$26:I69)-1),"") -> 4 | H56: =IF(OFFSET(DE104_9!$J$26,ROWS($J$26:J69)-1,COLUMNS($J$26:J69)-1)<>"",OFFSET(DE104_9!$J$26,ROWS($J$26:J69)-1,COLUMNS($J$26:J69)-1),"") -> 400 | I56: =IF(OFFSET(DE104_9!$K$26,ROWS($K$26:K69)-1,COLUMNS($K$26:K69)-1)<>"",OFFSET(DE104_9!$K$26,ROWS($K$26:K69)-1,COLUMNS($K$26:K69)-1),"") ->  | J56: =IF(OFFSET(DE104_9!$L$26,ROWS($L$26:L69)-1,COLUMNS($L$26:L69)-1)<>"",OFFSET(DE104_9!$L$26,ROWS($L$26:L69)-1,COLUMNS($L$26:L69)-1),"") ->  | K56: =IF(OFFSET(DE104_9!$M$26,ROWS($M$26:M69)-1,COLUMNS($M$26:M69)-1)<>"",OFFSET(DE104_9!$M$26,ROWS($M$26:M69)-1,COLUMNS($M$26:M69)-1),"") ->  | L56: =IF(OFFSET(DE104_9!$N$26,ROWS($N$26:N69)-1,COLUMNS($N$26:N69)-1)<>"",OFFSET(DE104_9!$N$26,ROWS($N$26:N69)-1,COLUMNS($N$26:N69)-1),"") ->  | M56: =IF(OFFSET(DE104_9!$O$26,ROWS($O$26:O69)-1,COLUMNS($O$26:O69)-1)<>"",OFFSET(DE104_9!$O$26,ROWS($O$26:O69)-1,COLUMNS($O$26:O69)-1),"") ->  | N56: =IF(OFFSET(DE104_9!$P$26,ROWS($P$26:P69)-1,COLUMNS($P$26:P69)-1)<>"",OFFSET(DE104_9!$P$26,ROWS($P$26:P69)-1,COLUMNS($P$26:P69)-1),"") -> 148280 | O56: =IF(OFFSET(DE104_9!$Q$26,ROWS($Q$26:Q69)-1,COLUMNS($Q$26:Q69)-1)<>"",OFFSET(DE104_9!$Q$26,ROWS($Q$26:Q69)-1,COLUMNS($Q$26:Q69)-1),"") -> DR-306 | P56: =IF(OFFSET(DE104_9!$R$26,ROWS($R$26:R69)-1,COLUMNS($R$26:R69)-1)<>"",OFFSET(DE104_9!$R$26,ROWS($R$26:R69)-1,COLUMNS($R$26:R69)-1),"") -> 37 | Q56: =IF(OFFSET(DE104_9!$S$26,ROWS($S$26:S69)-1,COLUMNS($S$26:S69)-1)<>"",OFFSET(DE104_9!$S$26,ROWS($S$26:S69)-1,COLUMNS($S$26:S69)-1),"") -> 0.4 | R56: =IF(OFFSET(DE104_9!$T$26,ROWS($T$26:T69)-1,COLUMNS($T$26:T69)-1)<>"",OFFSET(DE104_9!$T$26,ROWS($T$26:T69)-1,COLUMNS($T$26:T69)-1),"") -> 
A57: =IF(OFFSET(DE104_9!$C$26,ROWS($C$26:C70)-1,COLUMNS($C$26:C70)-1)<>"",OFFSET(DE104_9!$C$26,ROWS($C$26:C70)-1,COLUMNS($C$26:C70)-1),"") ->  | B57: =IF(OFFSET(DE104_9!$D$26,ROWS($D$26:D70)-1,COLUMNS($D$26:D70)-1)<>"",OFFSET(DE104_9!$D$26,ROWS($D$26:D70)-1,COLUMNS($D$26:D70)-1),"") ->  | C57: =IF(OFFSET(DE104_9!$E$26,ROWS($E$26:E70)-1,COLUMNS($E$26:E70)-1)<>"",OFFSET(DE104_9!$E$26,ROWS($E$26:E70)-1,COLUMNS($E$26:E70)-1),"") ->  | D57: =IF(OFFSET(DE104_9!$F$26,ROWS($F$26:F70)-1,COLUMNS($F$26:F70)-1)<>"",OFFSET(DE104_9!$F$26,ROWS($F$26:F70)-1,COLUMNS($F$26:F70)-1),"") ->  | E57: =IF(OFFSET(DE104_9!$G$26,ROWS($G$26:G70)-1,COLUMNS($G$26:G70)-1)<>"",OFFSET(DE104_9!$G$26,ROWS($G$26:G70)-1,COLUMNS($G$26:G70)-1),"") ->  | F57: =IF(OFFSET(DE104_9!$H$26,ROWS($H$26:H70)-1,COLUMNS($H$26:H70)-1)<>"",OFFSET(DE104_9!$H$26,ROWS($H$26:H70)-1,COLUMNS($H$26:H70)-1),"") ->  | G57: =IF(OFFSET(DE104_9!$I$26,ROWS($I$26:I70)-1,COLUMNS($I$26:I70)-1)<>"",OFFSET(DE104_9!$I$26,ROWS($I$26:I70)-1,COLUMNS($I$26:I70)-1),"") ->  | H57: =IF(OFFSET(DE104_9!$J$26,ROWS($J$26:J70)-1,COLUMNS($J$26:J70)-1)<>"",OFFSET(DE104_9!$J$26,ROWS($J$26:J70)-1,COLUMNS($J$26:J70)-1),"") ->  | I57: =IF(OFFSET(DE104_9!$K$26,ROWS($K$26:K70)-1,COLUMNS($K$26:K70)-1)<>"",OFFSET(DE104_9!$K$26,ROWS($K$26:K70)-1,COLUMNS($K$26:K70)-1),"") ->  | J57: =IF(OFFSET(DE104_9!$L$26,ROWS($L$26:L70)-1,COLUMNS($L$26:L70)-1)<>"",OFFSET(DE104_9!$L$26,ROWS($L$26:L70)-1,COLUMNS($L$26:L70)-1),"") ->  | K57: =IF(OFFSET(DE104_9!$M$26,ROWS($M$26:M70)-1,COLUMNS($M$26:M70)-1)<>"",OFFSET(DE104_9!$M$26,ROWS($M$26:M70)-1,COLUMNS($M$26:M70)-1),"") ->  | L57: =IF(OFFSET(DE104_9!$N$26,ROWS($N$26:N70)-1,COLUMNS($N$26:N70)-1)<>"",OFFSET(DE104_9!$N$26,ROWS($N$26:N70)-1,COLUMNS($N$26:N70)-1),"") ->  | M57: =IF(OFFSET(DE104_9!$O$26,ROWS($O$26:O70)-1,COLUMNS($O$26:O70)-1)<>"",OFFSET(DE104_9!$O$26,ROWS($O$26:O70)-1,COLUMNS($O$26:O70)-1),"") ->  | N57: =IF(OFFSET(DE104_9!$P$26,ROWS($P$26:P70)-1,COLUMNS($P$26:P70)-1)<>"",OFFSET(DE104_9!$P$26,ROWS($P$26:P70)-1,COLUMNS($P$26:P70)-1),"") -> 148640 | O57: =IF(OFFSET(DE104_9!$Q$26,ROWS($Q$26:Q70)-1,COLUMNS($Q$26:Q70)-1)<>"",OFFSET(DE104_9!$Q$26,ROWS($Q$26:Q70)-1,COLUMNS($Q$26:Q70)-1),"") -> DR-306 | P57: =IF(OFFSET(DE104_9!$R$26,ROWS($R$26:R70)-1,COLUMNS($R$26:R70)-1)<>"",OFFSET(DE104_9!$R$26,ROWS($R$26:R70)-1,COLUMNS($R$26:R70)-1),"") ->  | Q57: =IF(OFFSET(DE104_9!$S$26,ROWS($S$26:S70)-1,COLUMNS($S$26:S70)-1)<>"",OFFSET(DE104_9!$S$26,ROWS($S$26:S70)-1,COLUMNS($S$26:S70)-1),"") -> 0.4 | R57: =IF(OFFSET(DE104_9!$T$26,ROWS($T$26:T70)-1,COLUMNS($T$26:T70)-1)<>"",OFFSET(DE104_9!$T$26,ROWS($T$26:T70)-1,COLUMNS($T$26:T70)-1),"") -> 
A58: =IF(OFFSET(DE104_9!$C$26,ROWS($C$26:C71)-1,COLUMNS($C$26:C71)-1)<>"",OFFSET(DE104_9!$C$26,ROWS($C$26:C71)-1,COLUMNS($C$26:C71)-1),"") -> 24 | B58: =IF(OFFSET(DE104_9!$D$26,ROWS($D$26:D71)-1,COLUMNS($D$26:D71)-1)<>"",OFFSET(DE104_9!$D$26,ROWS($D$26:D71)-1,COLUMNS($D$26:D71)-1),"") -> EBL | C58: =IF(OFFSET(DE104_9!$E$26,ROWS($E$26:E71)-1,COLUMNS($E$26:E71)-1)<>"",OFFSET(DE104_9!$E$26,ROWS($E$26:E71)-1,COLUMNS($E$26:E71)-1),"") -> 148640 | D58: =IF(OFFSET(DE104_9!$F$26,ROWS($F$26:F71)-1,COLUMNS($F$26:F71)-1)<>"",OFFSET(DE104_9!$F$26,ROWS($F$26:F71)-1,COLUMNS($F$26:F71)-1),"") -> 148990 | E58: =IF(OFFSET(DE104_9!$G$26,ROWS($G$26:G71)-1,COLUMNS($G$26:G71)-1)<>"",OFFSET(DE104_9!$G$26,ROWS($G$26:G71)-1,COLUMNS($G$26:G71)-1),"") -> RT | F58: =IF(OFFSET(DE104_9!$H$26,ROWS($H$26:H71)-1,COLUMNS($H$26:H71)-1)<>"",OFFSET(DE104_9!$H$26,ROWS($H$26:H71)-1,COLUMNS($H$26:H71)-1),"") -> 42 | G58: =IF(OFFSET(DE104_9!$I$26,ROWS($I$26:I71)-1,COLUMNS($I$26:I71)-1)<>"",OFFSET(DE104_9!$I$26,ROWS($I$26:I71)-1,COLUMNS($I$26:I71)-1),"") -> 4 | H58: =IF(OFFSET(DE104_9!$J$26,ROWS($J$26:J71)-1,COLUMNS($J$26:J71)-1)<>"",OFFSET(DE104_9!$J$26,ROWS($J$26:J71)-1,COLUMNS($J$26:J71)-1),"") -> 370 | I58: =IF(OFFSET(DE104_9!$K$26,ROWS($K$26:K71)-1,COLUMNS($K$26:K71)-1)<>"",OFFSET(DE104_9!$K$26,ROWS($K$26:K71)-1,COLUMNS($K$26:K71)-1),"") ->  | J58: =IF(OFFSET(DE104_9!$L$26,ROWS($L$26:L71)-1,COLUMNS($L$26:L71)-1)<>"",OFFSET(DE104_9!$L$26,ROWS($L$26:L71)-1,COLUMNS($L$26:L71)-1),"") ->  | K58: =IF(OFFSET(DE104_9!$M$26,ROWS($M$26:M71)-1,COLUMNS($M$26:M71)-1)<>"",OFFSET(DE104_9!$M$26,ROWS($M$26:M71)-1,COLUMNS($M$26:M71)-1),"") ->  | L58: =IF(OFFSET(DE104_9!$N$26,ROWS($N$26:N71)-1,COLUMNS($N$26:N71)-1)<>"",OFFSET(DE104_9!$N$26,ROWS($N$26:N71)-1,COLUMNS($N$26:N71)-1),"") ->  | M58: =IF(OFFSET(DE104_9!$O$26,ROWS($O$26:O71)-1,COLUMNS($O$26:O71)-1)<>"",OFFSET(DE104_9!$O$26,ROWS($O$26:O71)-1,COLUMNS($O$26:O71)-1),"") ->  | N58: =IF(OFFSET(DE104_9!$P$26,ROWS($P$26:P71)-1,COLUMNS($P$26:P71)-1)<>"",OFFSET(DE104_9!$P$26,ROWS($P$26:P71)-1,COLUMNS($P$26:P71)-1),"") -> 148640 | O58: =IF(OFFSET(DE104_9!$Q$26,ROWS($Q$26:Q71)-1,COLUMNS($Q$26:Q71)-1)<>"",OFFSET(DE104_9!$Q$26,ROWS($Q$26:Q71)-1,COLUMNS($Q$26:Q71)-1),"") -> DR-306 | P58: =IF(OFFSET(DE104_9!$R$26,ROWS($R$26:R71)-1,COLUMNS($R$26:R71)-1)<>"",OFFSET(DE104_9!$R$26,ROWS($R$26:R71)-1,COLUMNS($R$26:R71)-1),"") -> 34.3 | Q58: =IF(OFFSET(DE104_9!$S$26,ROWS($S$26:S71)-1,COLUMNS($S$26:S71)-1)<>"",OFFSET(DE104_9!$S$26,ROWS($S$26:S71)-1,COLUMNS($S$26:S71)-1),"") -> 0.4 | R58: =IF(OFFSET(DE104_9!$T$26,ROWS($T$26:T71)-1,COLUMNS($T$26:T71)-1)<>"",OFFSET(DE104_9!$T$26,ROWS($T$26:T71)-1,COLUMNS($T$26:T71)-1),"") -> SINGLE OUTLET
A59: =IF(OFFSET(DE104_9!$C$26,ROWS($C$26:C72)-1,COLUMNS($C$26:C72)-1)<>"",OFFSET(DE104_9!$C$26,ROWS($C$26:C72)-1,COLUMNS($C$26:C72)-1),"") -> 25 | B59: =IF(OFFSET(DE104_9!$D$26,ROWS($D$26:D72)-1,COLUMNS($D$26:D72)-1)<>"",OFFSET(DE104_9!$D$26,ROWS($D$26:D72)-1,COLUMNS($D$26:D72)-1),"") -> EBL | C59: =IF(OFFSET(DE104_9!$E$26,ROWS($E$26:E72)-1,COLUMNS($E$26:E72)-1)<>"",OFFSET(DE104_9!$E$26,ROWS($E$26:E72)-1,COLUMNS($E$26:E72)-1),"") -> 149000 | D59: =IF(OFFSET(DE104_9!$F$26,ROWS($F$26:F72)-1,COLUMNS($F$26:F72)-1)<>"",OFFSET(DE104_9!$F$26,ROWS($F$26:F72)-1,COLUMNS($F$26:F72)-1),"") -> 149450 | E59: =IF(OFFSET(DE104_9!$G$26,ROWS($G$26:G72)-1,COLUMNS($G$26:G72)-1)<>"",OFFSET(DE104_9!$G$26,ROWS($G$26:G72)-1,COLUMNS($G$26:G72)-1),"") -> RT | F59: =IF(OFFSET(DE104_9!$H$26,ROWS($H$26:H72)-1,COLUMNS($H$26:H72)-1)<>"",OFFSET(DE104_9!$H$26,ROWS($H$26:H72)-1,COLUMNS($H$26:H72)-1),"") -> 42 | G59: =IF(OFFSET(DE104_9!$I$26,ROWS($I$26:I72)-1,COLUMNS($I$26:I72)-1)<>"",OFFSET(DE104_9!$I$26,ROWS($I$26:I72)-1,COLUMNS($I$26:I72)-1),"") -> 4 | H59: =IF(OFFSET(DE104_9!$J$26,ROWS($J$26:J72)-1,COLUMNS($J$26:J72)-1)<>"",OFFSET(DE104_9!$J$26,ROWS($J$26:J72)-1,COLUMNS($J$26:J72)-1),"") -> 490 | I59: =IF(OFFSET(DE104_9!$K$26,ROWS($K$26:K72)-1,COLUMNS($K$26:K72)-1)<>"",OFFSET(DE104_9!$K$26,ROWS($K$26:K72)-1,COLUMNS($K$26:K72)-1),"") ->  | J59: =IF(OFFSET(DE104_9!$L$26,ROWS($L$26:L72)-1,COLUMNS($L$26:L72)-1)<>"",OFFSET(DE104_9!$L$26,ROWS($L$26:L72)-1,COLUMNS($L$26:L72)-1),"") ->  | K59: =IF(OFFSET(DE104_9!$M$26,ROWS($M$26:M72)-1,COLUMNS($M$26:M72)-1)<>"",OFFSET(DE104_9!$M$26,ROWS($M$26:M72)-1,COLUMNS($M$26:M72)-1),"") ->  | L59: =IF(OFFSET(DE104_9!$N$26,ROWS($N$26:N72)-1,COLUMNS($N$26:N72)-1)<>"",OFFSET(DE104_9!$N$26,ROWS($N$26:N72)-1,COLUMNS($N$26:N72)-1),"") ->  | M59: =IF(OFFSET(DE104_9!$O$26,ROWS($O$26:O72)-1,COLUMNS($O$26:O72)-1)<>"",OFFSET(DE104_9!$O$26,ROWS($O$26:O72)-1,COLUMNS($O$26:O72)-1),"") ->  | N59: =IF(OFFSET(DE104_9!$P$26,ROWS($P$26:P72)-1,COLUMNS($P$26:P72)-1)<>"",OFFSET(DE104_9!$P$26,ROWS($P$26:P72)-1,COLUMNS($P$26:P72)-1),"") -> 149000 | O59: =IF(OFFSET(DE104_9!$Q$26,ROWS($Q$26:Q72)-1,COLUMNS($Q$26:Q72)-1)<>"",OFFSET(DE104_9!$Q$26,ROWS($Q$26:Q72)-1,COLUMNS($Q$26:Q72)-1),"") -> DR-306 | P59: =IF(OFFSET(DE104_9!$R$26,ROWS($R$26:R72)-1,COLUMNS($R$26:R72)-1)<>"",OFFSET(DE104_9!$R$26,ROWS($R$26:R72)-1,COLUMNS($R$26:R72)-1),"") -> 45.4 | Q59: =IF(OFFSET(DE104_9!$S$26,ROWS($S$26:S72)-1,COLUMNS($S$26:S72)-1)<>"",OFFSET(DE104_9!$S$26,ROWS($S$26:S72)-1,COLUMNS($S$26:S72)-1),"") -> 0.4 | R59: =IF(OFFSET(DE104_9!$T$26,ROWS($T$26:T72)-1,COLUMNS($T$26:T72)-1)<>"",OFFSET(DE104_9!$T$26,ROWS($T$26:T72)-1,COLUMNS($T$26:T72)-1),"") -> US 30 EB/RAMP D TAPER; SING.OUT.
A60: =IF(OFFSET(DE104_9!$C$26,ROWS($C$26:C73)-1,COLUMNS($C$26:C73)-1)<>"",OFFSET(DE104_9!$C$26,ROWS($C$26:C73)-1,COLUMNS($C$26:C73)-1),"") -> 26 | B60: =IF(OFFSET(DE104_9!$D$26,ROWS($D$26:D73)-1,COLUMNS($D$26:D73)-1)<>"",OFFSET(DE104_9!$D$26,ROWS($D$26:D73)-1,COLUMNS($D$26:D73)-1),"") -> EBL | C60: =IF(OFFSET(DE104_9!$E$26,ROWS($E$26:E73)-1,COLUMNS($E$26:E73)-1)<>"",OFFSET(DE104_9!$E$26,ROWS($E$26:E73)-1,COLUMNS($E$26:E73)-1),"") -> 149450 | D60: =IF(OFFSET(DE104_9!$F$26,ROWS($F$26:F73)-1,COLUMNS($F$26:F73)-1)<>"",OFFSET(DE104_9!$F$26,ROWS($F$26:F73)-1,COLUMNS($F$26:F73)-1),"") -> 150000 | E60: =IF(OFFSET(DE104_9!$G$26,ROWS($G$26:G73)-1,COLUMNS($G$26:G73)-1)<>"",OFFSET(DE104_9!$G$26,ROWS($G$26:G73)-1,COLUMNS($G$26:G73)-1),"") -> RT | F60: =IF(OFFSET(DE104_9!$H$26,ROWS($H$26:H73)-1,COLUMNS($H$26:H73)-1)<>"",OFFSET(DE104_9!$H$26,ROWS($H$26:H73)-1,COLUMNS($H$26:H73)-1),"") -> 42 | G60: =IF(OFFSET(DE104_9!$I$26,ROWS($I$26:I73)-1,COLUMNS($I$26:I73)-1)<>"",OFFSET(DE104_9!$I$26,ROWS($I$26:I73)-1,COLUMNS($I$26:I73)-1),"") -> 4 | H60: =IF(OFFSET(DE104_9!$J$26,ROWS($J$26:J73)-1,COLUMNS($J$26:J73)-1)<>"",OFFSET(DE104_9!$J$26,ROWS($J$26:J73)-1,COLUMNS($J$26:J73)-1),"") -> 570 | I60: =IF(OFFSET(DE104_9!$K$26,ROWS($K$26:K73)-1,COLUMNS($K$26:K73)-1)<>"",OFFSET(DE104_9!$K$26,ROWS($K$26:K73)-1,COLUMNS($K$26:K73)-1),"") ->  | J60: =IF(OFFSET(DE104_9!$L$26,ROWS($L$26:L73)-1,COLUMNS($L$26:L73)-1)<>"",OFFSET(DE104_9!$L$26,ROWS($L$26:L73)-1,COLUMNS($L$26:L73)-1),"") ->  | K60: =IF(OFFSET(DE104_9!$M$26,ROWS($M$26:M73)-1,COLUMNS($M$26:M73)-1)<>"",OFFSET(DE104_9!$M$26,ROWS($M$26:M73)-1,COLUMNS($M$26:M73)-1),"") ->  | L60: =IF(OFFSET(DE104_9!$N$26,ROWS($N$26:N73)-1,COLUMNS($N$26:N73)-1)<>"",OFFSET(DE104_9!$N$26,ROWS($N$26:N73)-1,COLUMNS($N$26:N73)-1),"") ->  | M60: =IF(OFFSET(DE104_9!$O$26,ROWS($O$26:O73)-1,COLUMNS($O$26:O73)-1)<>"",OFFSET(DE104_9!$O$26,ROWS($O$26:O73)-1,COLUMNS($O$26:O73)-1),"") ->  | N60: =IF(OFFSET(DE104_9!$P$26,ROWS($P$26:P73)-1,COLUMNS($P$26:P73)-1)<>"",OFFSET(DE104_9!$P$26,ROWS($P$26:P73)-1,COLUMNS($P$26:P73)-1),"") -> 150000 | O60: =IF(OFFSET(DE104_9!$Q$26,ROWS($Q$26:Q73)-1,COLUMNS($Q$26:Q73)-1)<>"",OFFSET(DE104_9!$Q$26,ROWS($Q$26:Q73)-1,COLUMNS($Q$26:Q73)-1),"") -> DR-306 | P60: =IF(OFFSET(DE104_9!$R$26,ROWS($R$26:R73)-1,COLUMNS($R$26:R73)-1)<>"",OFFSET(DE104_9!$R$26,ROWS($R$26:R73)-1,COLUMNS($R$26:R73)-1),"") -> 52.8 | Q60: =IF(OFFSET(DE104_9!$S$26,ROWS($S$26:S73)-1,COLUMNS($S$26:S73)-1)<>"",OFFSET(DE104_9!$S$26,ROWS($S$26:S73)-1,COLUMNS($S$26:S73)-1),"") -> 0.4 | R60: =IF(OFFSET(DE104_9!$T$26,ROWS($T$26:T73)-1,COLUMNS($T$26:T73)-1)<>"",OFFSET(DE104_9!$T$26,ROWS($T$26:T73)-1,COLUMNS($T$26:T73)-1),"") -> SINGLE OUTLET
A61: =IF(OFFSET(DE104_9!$C$26,ROWS($C$26:C74)-1,COLUMNS($C$26:C74)-1)<>"",OFFSET(DE104_9!$C$26,ROWS($C$26:C74)-1,COLUMNS($C$26:C74)-1),"") -> 27 | B61: =IF(OFFSET(DE104_9!$D$26,ROWS($D$26:D74)-1,COLUMNS($D$26:D74)-1)<>"",OFFSET(DE104_9!$D$26,ROWS($D$26:D74)-1,COLUMNS($D$26:D74)-1),"") -> EBL | C61: =IF(OFFSET(DE104_9!$E$26,ROWS($E$26:E74)-1,COLUMNS($E$26:E74)-1)<>"",OFFSET(DE104_9!$E$26,ROWS($E$26:E74)-1,COLUMNS($E$26:E74)-1),"") -> 150000 | D61: =IF(OFFSET(DE104_9!$F$26,ROWS($F$26:F74)-1,COLUMNS($F$26:F74)-1)<>"",OFFSET(DE104_9!$F$26,ROWS($F$26:F74)-1,COLUMNS($F$26:F74)-1),"") -> 150500 | E61: =IF(OFFSET(DE104_9!$G$26,ROWS($G$26:G74)-1,COLUMNS($G$26:G74)-1)<>"",OFFSET(DE104_9!$G$26,ROWS($G$26:G74)-1,COLUMNS($G$26:G74)-1),"") -> RT | F61: =IF(OFFSET(DE104_9!$H$26,ROWS($H$26:H74)-1,COLUMNS($H$26:H74)-1)<>"",OFFSET(DE104_9!$H$26,ROWS($H$26:H74)-1,COLUMNS($H$26:H74)-1),"") -> 42 | G61: =IF(OFFSET(DE104_9!$I$26,ROWS($I$26:I74)-1,COLUMNS($I$26:I74)-1)<>"",OFFSET(DE104_9!$I$26,ROWS($I$26:I74)-1,COLUMNS($I$26:I74)-1),"") -> 4 | H61: =IF(OFFSET(DE104_9!$J$26,ROWS($J$26:J74)-1,COLUMNS($J$26:J74)-1)<>"",OFFSET(DE104_9!$J$26,ROWS($J$26:J74)-1,COLUMNS($J$26:J74)-1),"") -> 540 | I61: =IF(OFFSET(DE104_9!$K$26,ROWS($K$26:K74)-1,COLUMNS($K$26:K74)-1)<>"",OFFSET(DE104_9!$K$26,ROWS($K$26:K74)-1,COLUMNS($K$26:K74)-1),"") ->  | J61: =IF(OFFSET(DE104_9!$L$26,ROWS($L$26:L74)-1,COLUMNS($L$26:L74)-1)<>"",OFFSET(DE104_9!$L$26,ROWS($L$26:L74)-1,COLUMNS($L$26:L74)-1),"") ->  | K61: =IF(OFFSET(DE104_9!$M$26,ROWS($M$26:M74)-1,COLUMNS($M$26:M74)-1)<>"",OFFSET(DE104_9!$M$26,ROWS($M$26:M74)-1,COLUMNS($M$26:M74)-1),"") ->  | L61: =IF(OFFSET(DE104_9!$N$26,ROWS($N$26:N74)-1,COLUMNS($N$26:N74)-1)<>"",OFFSET(DE104_9!$N$26,ROWS($N$26:N74)-1,COLUMNS($N$26:N74)-1),"") ->  | M61: =IF(OFFSET(DE104_9!$O$26,ROWS($O$26:O74)-1,COLUMNS($O$26:O74)-1)<>"",OFFSET(DE104_9!$O$26,ROWS($O$26:O74)-1,COLUMNS($O$26:O74)-1),"") ->  | N61: =IF(OFFSET(DE104_9!$P$26,ROWS($P$26:P74)-1,COLUMNS($P$26:P74)-1)<>"",OFFSET(DE104_9!$P$26,ROWS($P$26:P74)-1,COLUMNS($P$26:P74)-1),"") -> 150000 | O61: =IF(OFFSET(DE104_9!$Q$26,ROWS($Q$26:Q74)-1,COLUMNS($Q$26:Q74)-1)<>"",OFFSET(DE104_9!$Q$26,ROWS($Q$26:Q74)-1,COLUMNS($Q$26:Q74)-1),"") -> DR-306 | P61: =IF(OFFSET(DE104_9!$R$26,ROWS($R$26:R74)-1,COLUMNS($R$26:R74)-1)<>"",OFFSET(DE104_9!$R$26,ROWS($R$26:R74)-1,COLUMNS($R$26:R74)-1),"") -> 50 | Q61: =IF(OFFSET(DE104_9!$S$26,ROWS($S$26:S74)-1,COLUMNS($S$26:S74)-1)<>"",OFFSET(DE104_9!$S$26,ROWS($S$26:S74)-1,COLUMNS($S$26:S74)-1),"") -> 0.4 | R61: =IF(OFFSET(DE104_9!$T$26,ROWS($T$26:T74)-1,COLUMNS($T$26:T74)-1)<>"",OFFSET(DE104_9!$T$26,ROWS($T$26:T74)-1,COLUMNS($T$26:T74)-1),"") -> 
A62: =IF(OFFSET(DE104_9!$C$26,ROWS($C$26:C75)-1,COLUMNS($C$26:C75)-1)<>"",OFFSET(DE104_9!$C$26,ROWS($C$26:C75)-1,COLUMNS($C$26:C75)-1),"") ->  | B62: =IF(OFFSET(DE104_9!$D$26,ROWS($D$26:D75)-1,COLUMNS($D$26:D75)-1)<>"",OFFSET(DE104_9!$D$26,ROWS($D$26:D75)-1,COLUMNS($D$26:D75)-1),"") ->  | C62: =IF(OFFSET(DE104_9!$E$26,ROWS($E$26:E75)-1,COLUMNS($E$26:E75)-1)<>"",OFFSET(DE104_9!$E$26,ROWS($E$26:E75)-1,COLUMNS($E$26:E75)-1),"") ->  | D62: =IF(OFFSET(DE104_9!$F$26,ROWS($F$26:F75)-1,COLUMNS($F$26:F75)-1)<>"",OFFSET(DE104_9!$F$26,ROWS($F$26:F75)-1,COLUMNS($F$26:F75)-1),"") ->  | E62: =IF(OFFSET(DE104_9!$G$26,ROWS($G$26:G75)-1,COLUMNS($G$26:G75)-1)<>"",OFFSET(DE104_9!$G$26,ROWS($G$26:G75)-1,COLUMNS($G$26:G75)-1),"") ->  | F62: =IF(OFFSET(DE104_9!$H$26,ROWS($H$26:H75)-1,COLUMNS($H$26:H75)-1)<>"",OFFSET(DE104_9!$H$26,ROWS($H$26:H75)-1,COLUMNS($H$26:H75)-1),"") ->  | G62: =IF(OFFSET(DE104_9!$I$26,ROWS($I$26:I75)-1,COLUMNS($I$26:I75)-1)<>"",OFFSET(DE104_9!$I$26,ROWS($I$26:I75)-1,COLUMNS($I$26:I75)-1),"") ->  | H62: =IF(OFFSET(DE104_9!$J$26,ROWS($J$26:J75)-1,COLUMNS($J$26:J75)-1)<>"",OFFSET(DE104_9!$J$26,ROWS($J$26:J75)-1,COLUMNS($J$26:J75)-1),"") ->  | I62: =IF(OFFSET(DE104_9!$K$26,ROWS($K$26:K75)-1,COLUMNS($K$26:K75)-1)<>"",OFFSET(DE104_9!$K$26,ROWS($K$26:K75)-1,COLUMNS($K$26:K75)-1),"") ->  | J62: =IF(OFFSET(DE104_9!$L$26,ROWS($L$26:L75)-1,COLUMNS($L$26:L75)-1)<>"",OFFSET(DE104_9!$L$26,ROWS($L$26:L75)-1,COLUMNS($L$26:L75)-1),"") ->  | K62: =IF(OFFSET(DE104_9!$M$26,ROWS($M$26:M75)-1,COLUMNS($M$26:M75)-1)<>"",OFFSET(DE104_9!$M$26,ROWS($M$26:M75)-1,COLUMNS($M$26:M75)-1),"") ->  | L62: =IF(OFFSET(DE104_9!$N$26,ROWS($N$26:N75)-1,COLUMNS($N$26:N75)-1)<>"",OFFSET(DE104_9!$N$26,ROWS($N$26:N75)-1,COLUMNS($N$26:N75)-1),"") ->  | M62: =IF(OFFSET(DE104_9!$O$26,ROWS($O$26:O75)-1,COLUMNS($O$26:O75)-1)<>"",OFFSET(DE104_9!$O$26,ROWS($O$26:O75)-1,COLUMNS($O$26:O75)-1),"") ->  | N62: =IF(OFFSET(DE104_9!$P$26,ROWS($P$26:P75)-1,COLUMNS($P$26:P75)-1)<>"",OFFSET(DE104_9!$P$26,ROWS($P$26:P75)-1,COLUMNS($P$26:P75)-1),"") -> 150500 | O62: =IF(OFFSET(DE104_9!$Q$26,ROWS($Q$26:Q75)-1,COLUMNS($Q$26:Q75)-1)<>"",OFFSET(DE104_9!$Q$26,ROWS($Q$26:Q75)-1,COLUMNS($Q$26:Q75)-1),"") -> DR-306 | P62: =IF(OFFSET(DE104_9!$R$26,ROWS($R$26:R75)-1,COLUMNS($R$26:R75)-1)<>"",OFFSET(DE104_9!$R$26,ROWS($R$26:R75)-1,COLUMNS($R$26:R75)-1),"") ->  | Q62: =IF(OFFSET(DE104_9!$S$26,ROWS($S$26:S75)-1,COLUMNS($S$26:S75)-1)<>"",OFFSET(DE104_9!$S$26,ROWS($S$26:S75)-1,COLUMNS($S$26:S75)-1),"") -> 0.4 | R62: =IF(OFFSET(DE104_9!$T$26,ROWS($T$26:T75)-1,COLUMNS($T$26:T75)-1)<>"",OFFSET(DE104_9!$T$26,ROWS($T$26:T75)-1,COLUMNS($T$26:T75)-1),"") -> 
A63: =IF(OFFSET(DE104_9!$C$26,ROWS($C$26:C76)-1,COLUMNS($C$26:C76)-1)<>"",OFFSET(DE104_9!$C$26,ROWS($C$26:C76)-1,COLUMNS($C$26:C76)-1),"") -> 28 | B63: =IF(OFFSET(DE104_9!$D$26,ROWS($D$26:D76)-1,COLUMNS($D$26:D76)-1)<>"",OFFSET(DE104_9!$D$26,ROWS($D$26:D76)-1,COLUMNS($D$26:D76)-1),"") -> EBL | C63: =IF(OFFSET(DE104_9!$E$26,ROWS($E$26:E76)-1,COLUMNS($E$26:E76)-1)<>"",OFFSET(DE104_9!$E$26,ROWS($E$26:E76)-1,COLUMNS($E$26:E76)-1),"") -> 150500 | D63: =IF(OFFSET(DE104_9!$F$26,ROWS($F$26:F76)-1,COLUMNS($F$26:F76)-1)<>"",OFFSET(DE104_9!$F$26,ROWS($F$26:F76)-1,COLUMNS($F$26:F76)-1),"") -> 151000 | E63: =IF(OFFSET(DE104_9!$G$26,ROWS($G$26:G76)-1,COLUMNS($G$26:G76)-1)<>"",OFFSET(DE104_9!$G$26,ROWS($G$26:G76)-1,COLUMNS($G$26:G76)-1),"") -> RT | F63: =IF(OFFSET(DE104_9!$H$26,ROWS($H$26:H76)-1,COLUMNS($H$26:H76)-1)<>"",OFFSET(DE104_9!$H$26,ROWS($H$26:H76)-1,COLUMNS($H$26:H76)-1),"") -> 42 | G63: =IF(OFFSET(DE104_9!$I$26,ROWS($I$26:I76)-1,COLUMNS($I$26:I76)-1)<>"",OFFSET(DE104_9!$I$26,ROWS($I$26:I76)-1,COLUMNS($I$26:I76)-1),"") -> 4 | H63: =IF(OFFSET(DE104_9!$J$26,ROWS($J$26:J76)-1,COLUMNS($J$26:J76)-1)<>"",OFFSET(DE104_9!$J$26,ROWS($J$26:J76)-1,COLUMNS($J$26:J76)-1),"") -> 540 | I63: =IF(OFFSET(DE104_9!$K$26,ROWS($K$26:K76)-1,COLUMNS($K$26:K76)-1)<>"",OFFSET(DE104_9!$K$26,ROWS($K$26:K76)-1,COLUMNS($K$26:K76)-1),"") ->  | J63: =IF(OFFSET(DE104_9!$L$26,ROWS($L$26:L76)-1,COLUMNS($L$26:L76)-1)<>"",OFFSET(DE104_9!$L$26,ROWS($L$26:L76)-1,COLUMNS($L$26:L76)-1),"") ->  | K63: =IF(OFFSET(DE104_9!$M$26,ROWS($M$26:M76)-1,COLUMNS($M$26:M76)-1)<>"",OFFSET(DE104_9!$M$26,ROWS($M$26:M76)-1,COLUMNS($M$26:M76)-1),"") ->  | L63: =IF(OFFSET(DE104_9!$N$26,ROWS($N$26:N76)-1,COLUMNS($N$26:N76)-1)<>"",OFFSET(DE104_9!$N$26,ROWS($N$26:N76)-1,COLUMNS($N$26:N76)-1),"") ->  | M63: =IF(OFFSET(DE104_9!$O$26,ROWS($O$26:O76)-1,COLUMNS($O$26:O76)-1)<>"",OFFSET(DE104_9!$O$26,ROWS($O$26:O76)-1,COLUMNS($O$26:O76)-1),"") ->  | N63: =IF(OFFSET(DE104_9!$P$26,ROWS($P$26:P76)-1,COLUMNS($P$26:P76)-1)<>"",OFFSET(DE104_9!$P$26,ROWS($P$26:P76)-1,COLUMNS($P$26:P76)-1),"") -> 150500 | O63: =IF(OFFSET(DE104_9!$Q$26,ROWS($Q$26:Q76)-1,COLUMNS($Q$26:Q76)-1)<>"",OFFSET(DE104_9!$Q$26,ROWS($Q$26:Q76)-1,COLUMNS($Q$26:Q76)-1),"") -> DR-306 | P63: =IF(OFFSET(DE104_9!$R$26,ROWS($R$26:R76)-1,COLUMNS($R$26:R76)-1)<>"",OFFSET(DE104_9!$R$26,ROWS($R$26:R76)-1,COLUMNS($R$26:R76)-1),"") -> 50 | Q63: =IF(OFFSET(DE104_9!$S$26,ROWS($S$26:S76)-1,COLUMNS($S$26:S76)-1)<>"",OFFSET(DE104_9!$S$26,ROWS($S$26:S76)-1,COLUMNS($S$26:S76)-1),"") -> 0.4 | R63: =IF(OFFSET(DE104_9!$T$26,ROWS($T$26:T76)-1,COLUMNS($T$26:T76)-1)<>"",OFFSET(DE104_9!$T$26,ROWS($T$26:T76)-1,COLUMNS($T$26:T76)-1),"") -> 
A64: =IF(OFFSET(DE104_9!$C$26,ROWS($C$26:C77)-1,COLUMNS($C$26:C77)-1)<>"",OFFSET(DE104_9!$C$26,ROWS($C$26:C77)-1,COLUMNS($C$26:C77)-1),"") ->  | B64: =IF(OFFSET(DE104_9!$D$26,ROWS($D$26:D77)-1,COLUMNS($D$26:D77)-1)<>"",OFFSET(DE104_9!$D$26,ROWS($D$26:D77)-1,COLUMNS($D$26:D77)-1),"") ->  | C64: =IF(OFFSET(DE104_9!$E$26,ROWS($E$26:E77)-1,COLUMNS($E$26:E77)-1)<>"",OFFSET(DE104_9!$E$26,ROWS($E$26:E77)-1,COLUMNS($E$26:E77)-1),"") ->  | D64: =IF(OFFSET(DE104_9!$F$26,ROWS($F$26:F77)-1,COLUMNS($F$26:F77)-1)<>"",OFFSET(DE104_9!$F$26,ROWS($F$26:F77)-1,COLUMNS($F$26:F77)-1),"") ->  | E64: =IF(OFFSET(DE104_9!$G$26,ROWS($G$26:G77)-1,COLUMNS($G$26:G77)-1)<>"",OFFSET(DE104_9!$G$26,ROWS($G$26:G77)-1,COLUMNS($G$26:G77)-1),"") ->  | F64: =IF(OFFSET(DE104_9!$H$26,ROWS($H$26:H77)-1,COLUMNS($H$26:H77)-1)<>"",OFFSET(DE104_9!$H$26,ROWS($H$26:H77)-1,COLUMNS($H$26:H77)-1),"") ->  | G64: =IF(OFFSET(DE104_9!$I$26,ROWS($I$26:I77)-1,COLUMNS($I$26:I77)-1)<>"",OFFSET(DE104_9!$I$26,ROWS($I$26:I77)-1,COLUMNS($I$26:I77)-1),"") ->  | H64: =IF(OFFSET(DE104_9!$J$26,ROWS($J$26:J77)-1,COLUMNS($J$26:J77)-1)<>"",OFFSET(DE104_9!$J$26,ROWS($J$26:J77)-1,COLUMNS($J$26:J77)-1),"") ->  | I64: =IF(OFFSET(DE104_9!$K$26,ROWS($K$26:K77)-1,COLUMNS($K$26:K77)-1)<>"",OFFSET(DE104_9!$K$26,ROWS($K$26:K77)-1,COLUMNS($K$26:K77)-1),"") ->  | J64: =IF(OFFSET(DE104_9!$L$26,ROWS($L$26:L77)-1,COLUMNS($L$26:L77)-1)<>"",OFFSET(DE104_9!$L$26,ROWS($L$26:L77)-1,COLUMNS($L$26:L77)-1),"") ->  | K64: =IF(OFFSET(DE104_9!$M$26,ROWS($M$26:M77)-1,COLUMNS($M$26:M77)-1)<>"",OFFSET(DE104_9!$M$26,ROWS($M$26:M77)-1,COLUMNS($M$26:M77)-1),"") ->  | L64: =IF(OFFSET(DE104_9!$N$26,ROWS($N$26:N77)-1,COLUMNS($N$26:N77)-1)<>"",OFFSET(DE104_9!$N$26,ROWS($N$26:N77)-1,COLUMNS($N$26:N77)-1),"") ->  | M64: =IF(OFFSET(DE104_9!$O$26,ROWS($O$26:O77)-1,COLUMNS($O$26:O77)-1)<>"",OFFSET(DE104_9!$O$26,ROWS($O$26:O77)-1,COLUMNS($O$26:O77)-1),"") ->  | N64: =IF(OFFSET(DE104_9!$P$26,ROWS($P$26:P77)-1,COLUMNS($P$26:P77)-1)<>"",OFFSET(DE104_9!$P$26,ROWS($P$26:P77)-1,COLUMNS($P$26:P77)-1),"") -> 151000 | O64: =IF(OFFSET(DE104_9!$Q$26,ROWS($Q$26:Q77)-1,COLUMNS($Q$26:Q77)-1)<>"",OFFSET(DE104_9!$Q$26,ROWS($Q$26:Q77)-1,COLUMNS($Q$26:Q77)-1),"") -> DR-306 | P64: =IF(OFFSET(DE104_9!$R$26,ROWS($R$26:R77)-1,COLUMNS($R$26:R77)-1)<>"",OFFSET(DE104_9!$R$26,ROWS($R$26:R77)-1,COLUMNS($R$26:R77)-1),"") ->  | Q64: =IF(OFFSET(DE104_9!$S$26,ROWS($S$26:S77)-1,COLUMNS($S$26:S77)-1)<>"",OFFSET(DE104_9!$S$26,ROWS($S$26:S77)-1,COLUMNS($S$26:S77)-1),"") -> 0.4 | R64: =IF(OFFSET(DE104_9!$T$26,ROWS($T$26:T77)-1,COLUMNS($T$26:T77)-1)<>"",OFFSET(DE104_9!$T$26,ROWS($T$26:T77)-1,COLUMNS($T$26:T77)-1),"") -> 
A65: =IF(OFFSET(DE104_9!$C$26,ROWS($C$26:C78)-1,COLUMNS($C$26:C78)-1)<>"",OFFSET(DE104_9!$C$26,ROWS($C$26:C78)-1,COLUMNS($C$26:C78)-1),"") -> 29 | B65: =IF(OFFSET(DE104_9!$D$26,ROWS($D$26:D78)-1,COLUMNS($D$26:D78)-1)<>"",OFFSET(DE104_9!$D$26,ROWS($D$26:D78)-1,COLUMNS($D$26:D78)-1),"") -> EBL | C65: =IF(OFFSET(DE104_9!$E$26,ROWS($E$26:E78)-1,COLUMNS($E$26:E78)-1)<>"",OFFSET(DE104_9!$E$26,ROWS($E$26:E78)-1,COLUMNS($E$26:E78)-1),"") -> 151000 | D65: =IF(OFFSET(DE104_9!$F$26,ROWS($F$26:F78)-1,COLUMNS($F$26:F78)-1)<>"",OFFSET(DE104_9!$F$26,ROWS($F$26:F78)-1,COLUMNS($F$26:F78)-1),"") -> 151335 | E65: =IF(OFFSET(DE104_9!$G$26,ROWS($G$26:G78)-1,COLUMNS($G$26:G78)-1)<>"",OFFSET(DE104_9!$G$26,ROWS($G$26:G78)-1,COLUMNS($G$26:G78)-1),"") -> RT | F65: =IF(OFFSET(DE104_9!$H$26,ROWS($H$26:H78)-1,COLUMNS($H$26:H78)-1)<>"",OFFSET(DE104_9!$H$26,ROWS($H$26:H78)-1,COLUMNS($H$26:H78)-1),"") -> 42 | G65: =IF(OFFSET(DE104_9!$I$26,ROWS($I$26:I78)-1,COLUMNS($I$26:I78)-1)<>"",OFFSET(DE104_9!$I$26,ROWS($I$26:I78)-1,COLUMNS($I$26:I78)-1),"") -> 4 | H65: =IF(OFFSET(DE104_9!$J$26,ROWS($J$26:J78)-1,COLUMNS($J$26:J78)-1)<>"",OFFSET(DE104_9!$J$26,ROWS($J$26:J78)-1,COLUMNS($J$26:J78)-1),"") -> 375 | I65: =IF(OFFSET(DE104_9!$K$26,ROWS($K$26:K78)-1,COLUMNS($K$26:K78)-1)<>"",OFFSET(DE104_9!$K$26,ROWS($K$26:K78)-1,COLUMNS($K$26:K78)-1),"") ->  | J65: =IF(OFFSET(DE104_9!$L$26,ROWS($L$26:L78)-1,COLUMNS($L$26:L78)-1)<>"",OFFSET(DE104_9!$L$26,ROWS($L$26:L78)-1,COLUMNS($L$26:L78)-1),"") ->  | K65: =IF(OFFSET(DE104_9!$M$26,ROWS($M$26:M78)-1,COLUMNS($M$26:M78)-1)<>"",OFFSET(DE104_9!$M$26,ROWS($M$26:M78)-1,COLUMNS($M$26:M78)-1),"") ->  | L65: =IF(OFFSET(DE104_9!$N$26,ROWS($N$26:N78)-1,COLUMNS($N$26:N78)-1)<>"",OFFSET(DE104_9!$N$26,ROWS($N$26:N78)-1,COLUMNS($N$26:N78)-1),"") ->  | M65: =IF(OFFSET(DE104_9!$O$26,ROWS($O$26:O78)-1,COLUMNS($O$26:O78)-1)<>"",OFFSET(DE104_9!$O$26,ROWS($O$26:O78)-1,COLUMNS($O$26:O78)-1),"") ->  | N65: =IF(OFFSET(DE104_9!$P$26,ROWS($P$26:P78)-1,COLUMNS($P$26:P78)-1)<>"",OFFSET(DE104_9!$P$26,ROWS($P$26:P78)-1,COLUMNS($P$26:P78)-1),"") -> 151000 | O65: =IF(OFFSET(DE104_9!$Q$26,ROWS($Q$26:Q78)-1,COLUMNS($Q$26:Q78)-1)<>"",OFFSET(DE104_9!$Q$26,ROWS($Q$26:Q78)-1,COLUMNS($Q$26:Q78)-1),"") -> DR-306 | P65: =IF(OFFSET(DE104_9!$R$26,ROWS($R$26:R78)-1,COLUMNS($R$26:R78)-1)<>"",OFFSET(DE104_9!$R$26,ROWS($R$26:R78)-1,COLUMNS($R$26:R78)-1),"") -> 34.7 | Q65: =IF(OFFSET(DE104_9!$S$26,ROWS($S$26:S78)-1,COLUMNS($S$26:S78)-1)<>"",OFFSET(DE104_9!$S$26,ROWS($S$26:S78)-1,COLUMNS($S$26:S78)-1),"") -> 0.4 | R65: =IF(OFFSET(DE104_9!$T$26,ROWS($T$26:T78)-1,COLUMNS($T$26:T78)-1)<>"",OFFSET(DE104_9!$T$26,ROWS($T$26:T78)-1,COLUMNS($T$26:T78)-1),"") -> 
A66: =IF(OFFSET(DE104_9!$C$26,ROWS($C$26:C79)-1,COLUMNS($C$26:C79)-1)<>"",OFFSET(DE104_9!$C$26,ROWS($C$26:C79)-1,COLUMNS($C$26:C79)-1),"") ->  | B66: =IF(OFFSET(DE104_9!$D$26,ROWS($D$26:D79)-1,COLUMNS($D$26:D79)-1)<>"",OFFSET(DE104_9!$D$26,ROWS($D$26:D79)-1,COLUMNS($D$26:D79)-1),"") ->  | C66: =IF(OFFSET(DE104_9!$E$26,ROWS($E$26:E79)-1,COLUMNS($E$26:E79)-1)<>"",OFFSET(DE104_9!$E$26,ROWS($E$26:E79)-1,COLUMNS($E$26:E79)-1),"") ->  | D66: =IF(OFFSET(DE104_9!$F$26,ROWS($F$26:F79)-1,COLUMNS($F$26:F79)-1)<>"",OFFSET(DE104_9!$F$26,ROWS($F$26:F79)-1,COLUMNS($F$26:F79)-1),"") ->  | E66: =IF(OFFSET(DE104_9!$G$26,ROWS($G$26:G79)-1,COLUMNS($G$26:G79)-1)<>"",OFFSET(DE104_9!$G$26,ROWS($G$26:G79)-1,COLUMNS($G$26:G79)-1),"") ->  | F66: =IF(OFFSET(DE104_9!$H$26,ROWS($H$26:H79)-1,COLUMNS($H$26:H79)-1)<>"",OFFSET(DE104_9!$H$26,ROWS($H$26:H79)-1,COLUMNS($H$26:H79)-1),"") ->  | G66: =IF(OFFSET(DE104_9!$I$26,ROWS($I$26:I79)-1,COLUMNS($I$26:I79)-1)<>"",OFFSET(DE104_9!$I$26,ROWS($I$26:I79)-1,COLUMNS($I$26:I79)-1),"") ->  | H66: =IF(OFFSET(DE104_9!$J$26,ROWS($J$26:J79)-1,COLUMNS($J$26:J79)-1)<>"",OFFSET(DE104_9!$J$26,ROWS($J$26:J79)-1,COLUMNS($J$26:J79)-1),"") ->  | I66: =IF(OFFSET(DE104_9!$K$26,ROWS($K$26:K79)-1,COLUMNS($K$26:K79)-1)<>"",OFFSET(DE104_9!$K$26,ROWS($K$26:K79)-1,COLUMNS($K$26:K79)-1),"") ->  | J66: =IF(OFFSET(DE104_9!$L$26,ROWS($L$26:L79)-1,COLUMNS($L$26:L79)-1)<>"",OFFSET(DE104_9!$L$26,ROWS($L$26:L79)-1,COLUMNS($L$26:L79)-1),"") ->  | K66: =IF(OFFSET(DE104_9!$M$26,ROWS($M$26:M79)-1,COLUMNS($M$26:M79)-1)<>"",OFFSET(DE104_9!$M$26,ROWS($M$26:M79)-1,COLUMNS($M$26:M79)-1),"") ->  | L66: =IF(OFFSET(DE104_9!$N$26,ROWS($N$26:N79)-1,COLUMNS($N$26:N79)-1)<>"",OFFSET(DE104_9!$N$26,ROWS($N$26:N79)-1,COLUMNS($N$26:N79)-1),"") ->  | M66: =IF(OFFSET(DE104_9!$O$26,ROWS($O$26:O79)-1,COLUMNS($O$26:O79)-1)<>"",OFFSET(DE104_9!$O$26,ROWS($O$26:O79)-1,COLUMNS($O$26:O79)-1),"") ->  | N66: =IF(OFFSET(DE104_9!$P$26,ROWS($P$26:P79)-1,COLUMNS($P$26:P79)-1)<>"",OFFSET(DE104_9!$P$26,ROWS($P$26:P79)-1,COLUMNS($P$26:P79)-1),"") -> 151335 | O66: =IF(OFFSET(DE104_9!$Q$26,ROWS($Q$26:Q79)-1,COLUMNS($Q$26:Q79)-1)<>"",OFFSET(DE104_9!$Q$26,ROWS($Q$26:Q79)-1,COLUMNS($Q$26:Q79)-1),"") -> DR-306 | P66: =IF(OFFSET(DE104_9!$R$26,ROWS($R$26:R79)-1,COLUMNS($R$26:R79)-1)<>"",OFFSET(DE104_9!$R$26,ROWS($R$26:R79)-1,COLUMNS($R$26:R79)-1),"") ->  | Q66: =IF(OFFSET(DE104_9!$S$26,ROWS($S$26:S79)-1,COLUMNS($S$26:S79)-1)<>"",OFFSET(DE104_9!$S$26,ROWS($S$26:S79)-1,COLUMNS($S$26:S79)-1),"") -> 0.4 | R66: =IF(OFFSET(DE104_9!$T$26,ROWS($T$26:T79)-1,COLUMNS($T$26:T79)-1)<>"",OFFSET(DE104_9!$T$26,ROWS($T$26:T79)-1,COLUMNS($T$26:T79)-1),"") -> 
A67: =IF(OFFSET(DE104_9!$C$26,ROWS($C$26:C80)-1,COLUMNS($C$26:C80)-1)<>"",OFFSET(DE104_9!$C$26,ROWS($C$26:C80)-1,COLUMNS($C$26:C80)-1),"") -> 30 | B67: =IF(OFFSET(DE104_9!$D$26,ROWS($D$26:D80)-1,COLUMNS($D$26:D80)-1)<>"",OFFSET(DE104_9!$D$26,ROWS($D$26:D80)-1,COLUMNS($D$26:D80)-1),"") -> EBL | C67: =IF(OFFSET(DE104_9!$E$26,ROWS($E$26:E80)-1,COLUMNS($E$26:E80)-1)<>"",OFFSET(DE104_9!$E$26,ROWS($E$26:E80)-1,COLUMNS($E$26:E80)-1),"") -> 151335 | D67: =IF(OFFSET(DE104_9!$F$26,ROWS($F$26:F80)-1,COLUMNS($F$26:F80)-1)<>"",OFFSET(DE104_9!$F$26,ROWS($F$26:F80)-1,COLUMNS($F$26:F80)-1),"") -> 151670 | E67: =IF(OFFSET(DE104_9!$G$26,ROWS($G$26:G80)-1,COLUMNS($G$26:G80)-1)<>"",OFFSET(DE104_9!$G$26,ROWS($G$26:G80)-1,COLUMNS($G$26:G80)-1),"") -> RT | F67: =IF(OFFSET(DE104_9!$H$26,ROWS($H$26:H80)-1,COLUMNS($H$26:H80)-1)<>"",OFFSET(DE104_9!$H$26,ROWS($H$26:H80)-1,COLUMNS($H$26:H80)-1),"") -> 42 | G67: =IF(OFFSET(DE104_9!$I$26,ROWS($I$26:I80)-1,COLUMNS($I$26:I80)-1)<>"",OFFSET(DE104_9!$I$26,ROWS($I$26:I80)-1,COLUMNS($I$26:I80)-1),"") -> 4 | H67: =IF(OFFSET(DE104_9!$J$26,ROWS($J$26:J80)-1,COLUMNS($J$26:J80)-1)<>"",OFFSET(DE104_9!$J$26,ROWS($J$26:J80)-1,COLUMNS($J$26:J80)-1),"") -> 375 | I67: =IF(OFFSET(DE104_9!$K$26,ROWS($K$26:K80)-1,COLUMNS($K$26:K80)-1)<>"",OFFSET(DE104_9!$K$26,ROWS($K$26:K80)-1,COLUMNS($K$26:K80)-1),"") ->  | J67: =IF(OFFSET(DE104_9!$L$26,ROWS($L$26:L80)-1,COLUMNS($L$26:L80)-1)<>"",OFFSET(DE104_9!$L$26,ROWS($L$26:L80)-1,COLUMNS($L$26:L80)-1),"") ->  | K67: =IF(OFFSET(DE104_9!$M$26,ROWS($M$26:M80)-1,COLUMNS($M$26:M80)-1)<>"",OFFSET(DE104_9!$M$26,ROWS($M$26:M80)-1,COLUMNS($M$26:M80)-1),"") ->  | L67: =IF(OFFSET(DE104_9!$N$26,ROWS($N$26:N80)-1,COLUMNS($N$26:N80)-1)<>"",OFFSET(DE104_9!$N$26,ROWS($N$26:N80)-1,COLUMNS($N$26:N80)-1),"") ->  | M67: =IF(OFFSET(DE104_9!$O$26,ROWS($O$26:O80)-1,COLUMNS($O$26:O80)-1)<>"",OFFSET(DE104_9!$O$26,ROWS($O$26:O80)-1,COLUMNS($O$26:O80)-1),"") ->  | N67: =IF(OFFSET(DE104_9!$P$26,ROWS($P$26:P80)-1,COLUMNS($P$26:P80)-1)<>"",OFFSET(DE104_9!$P$26,ROWS($P$26:P80)-1,COLUMNS($P$26:P80)-1),"") -> 151335 | O67: =IF(OFFSET(DE104_9!$Q$26,ROWS($Q$26:Q80)-1,COLUMNS($Q$26:Q80)-1)<>"",OFFSET(DE104_9!$Q$26,ROWS($Q$26:Q80)-1,COLUMNS($Q$26:Q80)-1),"") -> DR-306 | P67: =IF(OFFSET(DE104_9!$R$26,ROWS($R$26:R80)-1,COLUMNS($R$26:R80)-1)<>"",OFFSET(DE104_9!$R$26,ROWS($R$26:R80)-1,COLUMNS($R$26:R80)-1),"") -> 34.7 | Q67: =IF(OFFSET(DE104_9!$S$26,ROWS($S$26:S80)-1,COLUMNS($S$26:S80)-1)<>"",OFFSET(DE104_9!$S$26,ROWS($S$26:S80)-1,COLUMNS($S$26:S80)-1),"") -> 0.4 | R67: =IF(OFFSET(DE104_9!$T$26,ROWS($T$26:T80)-1,COLUMNS($T$26:T80)-1)<>"",OFFSET(DE104_9!$T$26,ROWS($T$26:T80)-1,COLUMNS($T$26:T80)-1),"") -> 
A68: =IF(OFFSET(DE104_9!$C$26,ROWS($C$26:C81)-1,COLUMNS($C$26:C81)-1)<>"",OFFSET(DE104_9!$C$26,ROWS($C$26:C81)-1,COLUMNS($C$26:C81)-1),"") ->  | B68: =IF(OFFSET(DE104_9!$D$26,ROWS($D$26:D81)-1,COLUMNS($D$26:D81)-1)<>"",OFFSET(DE104_9!$D$26,ROWS($D$26:D81)-1,COLUMNS($D$26:D81)-1),"") ->  | C68: =IF(OFFSET(DE104_9!$E$26,ROWS($E$26:E81)-1,COLUMNS($E$26:E81)-1)<>"",OFFSET(DE104_9!$E$26,ROWS($E$26:E81)-1,COLUMNS($E$26:E81)-1),"") ->  | D68: =IF(OFFSET(DE104_9!$F$26,ROWS($F$26:F81)-1,COLUMNS($F$26:F81)-1)<>"",OFFSET(DE104_9!$F$26,ROWS($F$26:F81)-1,COLUMNS($F$26:F81)-1),"") ->  | E68: =IF(OFFSET(DE104_9!$G$26,ROWS($G$26:G81)-1,COLUMNS($G$26:G81)-1)<>"",OFFSET(DE104_9!$G$26,ROWS($G$26:G81)-1,COLUMNS($G$26:G81)-1),"") ->  | F68: =IF(OFFSET(DE104_9!$H$26,ROWS($H$26:H81)-1,COLUMNS($H$26:H81)-1)<>"",OFFSET(DE104_9!$H$26,ROWS($H$26:H81)-1,COLUMNS($H$26:H81)-1),"") ->  | G68: =IF(OFFSET(DE104_9!$I$26,ROWS($I$26:I81)-1,COLUMNS($I$26:I81)-1)<>"",OFFSET(DE104_9!$I$26,ROWS($I$26:I81)-1,COLUMNS($I$26:I81)-1),"") ->  | H68: =IF(OFFSET(DE104_9!$J$26,ROWS($J$26:J81)-1,COLUMNS($J$26:J81)-1)<>"",OFFSET(DE104_9!$J$26,ROWS($J$26:J81)-1,COLUMNS($J$26:J81)-1),"") ->  | I68: =IF(OFFSET(DE104_9!$K$26,ROWS($K$26:K81)-1,COLUMNS($K$26:K81)-1)<>"",OFFSET(DE104_9!$K$26,ROWS($K$26:K81)-1,COLUMNS($K$26:K81)-1),"") ->  | J68: =IF(OFFSET(DE104_9!$L$26,ROWS($L$26:L81)-1,COLUMNS($L$26:L81)-1)<>"",OFFSET(DE104_9!$L$26,ROWS($L$26:L81)-1,COLUMNS($L$26:L81)-1),"") ->  | K68: =IF(OFFSET(DE104_9!$M$26,ROWS($M$26:M81)-1,COLUMNS($M$26:M81)-1)<>"",OFFSET(DE104_9!$M$26,ROWS($M$26:M81)-1,COLUMNS($M$26:M81)-1),"") ->  | L68: =IF(OFFSET(DE104_9!$N$26,ROWS($N$26:N81)-1,COLUMNS($N$26:N81)-1)<>"",OFFSET(DE104_9!$N$26,ROWS($N$26:N81)-1,COLUMNS($N$26:N81)-1),"") ->  | M68: =IF(OFFSET(DE104_9!$O$26,ROWS($O$26:O81)-1,COLUMNS($O$26:O81)-1)<>"",OFFSET(DE104_9!$O$26,ROWS($O$26:O81)-1,COLUMNS($O$26:O81)-1),"") ->  | N68: =IF(OFFSET(DE104_9!$P$26,ROWS($P$26:P81)-1,COLUMNS($P$26:P81)-1)<>"",OFFSET(DE104_9!$P$26,ROWS($P$26:P81)-1,COLUMNS($P$26:P81)-1),"") -> 151670 | O68: =IF(OFFSET(DE104_9!$Q$26,ROWS($Q$26:Q81)-1,COLUMNS($Q$26:Q81)-1)<>"",OFFSET(DE104_9!$Q$26,ROWS($Q$26:Q81)-1,COLUMNS($Q$26:Q81)-1),"") -> DR-306 | P68: =IF(OFFSET(DE104_9!$R$26,ROWS($R$26:R81)-1,COLUMNS($R$26:R81)-1)<>"",OFFSET(DE104_9!$R$26,ROWS($R$26:R81)-1,COLUMNS($R$26:R81)-1),"") ->  | Q68: =IF(OFFSET(DE104_9!$S$26,ROWS($S$26:S81)-1,COLUMNS($S$26:S81)-1)<>"",OFFSET(DE104_9!$S$26,ROWS($S$26:S81)-1,COLUMNS($S$26:S81)-1),"") -> 0.4 | R68: =IF(OFFSET(DE104_9!$T$26,ROWS($T$26:T81)-1,COLUMNS($T$26:T81)-1)<>"",OFFSET(DE104_9!$T$26,ROWS($T$26:T81)-1,COLUMNS($T$26:T81)-1),"") -> 
A69: =IF(OFFSET(DE104_9!$C$26,ROWS($C$26:C82)-1,COLUMNS($C$26:C82)-1)<>"",OFFSET(DE104_9!$C$26,ROWS($C$26:C82)-1,COLUMNS($C$26:C82)-1),"") -> 31 | B69: =IF(OFFSET(DE104_9!$D$26,ROWS($D$26:D82)-1,COLUMNS($D$26:D82)-1)<>"",OFFSET(DE104_9!$D$26,ROWS($D$26:D82)-1,COLUMNS($D$26:D82)-1),"") -> WBL | C69: =IF(OFFSET(DE104_9!$E$26,ROWS($E$26:E82)-1,COLUMNS($E$26:E82)-1)<>"",OFFSET(DE104_9!$E$26,ROWS($E$26:E82)-1,COLUMNS($E$26:E82)-1),"") -> 138900 | D69: =IF(OFFSET(DE104_9!$F$26,ROWS($F$26:F82)-1,COLUMNS($F$26:F82)-1)<>"",OFFSET(DE104_9!$F$26,ROWS($F$26:F82)-1,COLUMNS($F$26:F82)-1),"") -> 139400 | E69: =IF(OFFSET(DE104_9!$G$26,ROWS($G$26:G82)-1,COLUMNS($G$26:G82)-1)<>"",OFFSET(DE104_9!$G$26,ROWS($G$26:G82)-1,COLUMNS($G$26:G82)-1),"") -> LT | F69: =IF(OFFSET(DE104_9!$H$26,ROWS($H$26:H82)-1,COLUMNS($H$26:H82)-1)<>"",OFFSET(DE104_9!$H$26,ROWS($H$26:H82)-1,COLUMNS($H$26:H82)-1),"") -> 42 | G69: =IF(OFFSET(DE104_9!$I$26,ROWS($I$26:I82)-1,COLUMNS($I$26:I82)-1)<>"",OFFSET(DE104_9!$I$26,ROWS($I$26:I82)-1,COLUMNS($I$26:I82)-1),"") -> 4 | H69: =IF(OFFSET(DE104_9!$J$26,ROWS($J$26:J82)-1,COLUMNS($J$26:J82)-1)<>"",OFFSET(DE104_9!$J$26,ROWS($J$26:J82)-1,COLUMNS($J$26:J82)-1),"") -> 540 | I69: =IF(OFFSET(DE104_9!$K$26,ROWS($K$26:K82)-1,COLUMNS($K$26:K82)-1)<>"",OFFSET(DE104_9!$K$26,ROWS($K$26:K82)-1,COLUMNS($K$26:K82)-1),"") ->  | J69: =IF(OFFSET(DE104_9!$L$26,ROWS($L$26:L82)-1,COLUMNS($L$26:L82)-1)<>"",OFFSET(DE104_9!$L$26,ROWS($L$26:L82)-1,COLUMNS($L$26:L82)-1),"") ->  | K69: =IF(OFFSET(DE104_9!$M$26,ROWS($M$26:M82)-1,COLUMNS($M$26:M82)-1)<>"",OFFSET(DE104_9!$M$26,ROWS($M$26:M82)-1,COLUMNS($M$26:M82)-1),"") ->  | L69: =IF(OFFSET(DE104_9!$N$26,ROWS($N$26:N82)-1,COLUMNS($N$26:N82)-1)<>"",OFFSET(DE104_9!$N$26,ROWS($N$26:N82)-1,COLUMNS($N$26:N82)-1),"") ->  | M69: =IF(OFFSET(DE104_9!$O$26,ROWS($O$26:O82)-1,COLUMNS($O$26:O82)-1)<>"",OFFSET(DE104_9!$O$26,ROWS($O$26:O82)-1,COLUMNS($O$26:O82)-1),"") ->  | N69: =IF(OFFSET(DE104_9!$P$26,ROWS($P$26:P82)-1,COLUMNS($P$26:P82)-1)<>"",OFFSET(DE104_9!$P$26,ROWS($P$26:P82)-1,COLUMNS($P$26:P82)-1),"") -> 138900 | O69: =IF(OFFSET(DE104_9!$Q$26,ROWS($Q$26:Q82)-1,COLUMNS($Q$26:Q82)-1)<>"",OFFSET(DE104_9!$Q$26,ROWS($Q$26:Q82)-1,COLUMNS($Q$26:Q82)-1),"") -> DR-306 | P69: =IF(OFFSET(DE104_9!$R$26,ROWS($R$26:R82)-1,COLUMNS($R$26:R82)-1)<>"",OFFSET(DE104_9!$R$26,ROWS($R$26:R82)-1,COLUMNS($R$26:R82)-1),"") -> 50 | Q69: =IF(OFFSET(DE104_9!$S$26,ROWS($S$26:S82)-1,COLUMNS($S$26:S82)-1)<>"",OFFSET(DE104_9!$S$26,ROWS($S$26:S82)-1,COLUMNS($S$26:S82)-1),"") -> 0.4 | R69: =IF(OFFSET(DE104_9!$T$26,ROWS($T$26:T82)-1,COLUMNS($T$26:T82)-1)<>"",OFFSET(DE104_9!$T$26,ROWS($T$26:T82)-1,COLUMNS($T$26:T82)-1),"") -> 
